Workbook

Sheet Cover
B2: PROSPECTS
B5: Country/region | C5: South Africa
B6: Description | C6: Tool for modeling historical and projected GHG emissions time series using decarbonisation indicators.
B7: Creators | C7: Lisa Luna, Sebastian Sterl, Frederic Hans, Hanna Fekete, Markus Hagemann, Jing Zhang, Takeshi Kuramochi, Niklas Höhne (NewClimate Institute), Karlien Wouters, Yvonne Deng, Lindee Wong, Tom Berg, Kornelis Blok (Ecofys), Fabio Sferra, Tina Aboumahboub, Jasmin Cantzler, Bill Hare, Michiel Schaeffer (Climate Analytics)
B8: Authors (this file) | C8: Frederic Hans, Lisa Luna, Hanna Fekete, Keno Riechers, Markus Hagemann, Niklas Höhne, Takeshi Kuramochi, Sebastian Sterl, Jing Zhang (NewClimate Institute), Thibaud Lemercier, Yvonne Deng, Lindee Wong, Tom Berg (Ecofys), Tina Aboumahboub, Fabio Sferra, Jasmin Cantzler (Climate Analytics)
B9: Copyright | C9: PROSPECTS © 2018 Climate Action Tracker (NewClimate Institute, Ecofys, Climate Analytics). All rights reserved.
B10: Disclaimer | C10: The information contained herein is proprietary and shall remain the sole property of the Climate Action Tracker (CAT). The CAT assumes no liability for any action arising from use of this information.
C11: The CAT has made every attempt to ensure the accuracy and timeliness of this information, but cannot guarantee that it has not been superseded by events or discoveries beyond the CAT's control.
C12: This work is partially based on the IEA Energy and Emissions Balances 2017 developed by the International Energy Agency, © OECD/IEA [2017], but the resulting work has been prepared by the Climate Action Tracker and does not necessarily reflect the views of the International Energy Agency.
C13: This file is available for non-commercial use at the user's own risk. The Climate Action Tracker does not provide support for the use of this tool beyond the information contained herein.
C23: The PROSPECTS tool structure and logic builds on and is inspired by the Carbon Transparency Initiative (CTI) models developed by ClimateWorks Foundation. ClimateWorks Foundation provided funding for the PROSPECTS tool development.
B29: Introduction
B31: The purpose of PROSPECTS is to reconstruct historical GHG emissions of countries on a sectoral basis, and provide the user with the opportunity to construct future scenarios of these emissions based on changes in key indicators.
B32: Key results are displayed in the "Country Summary" sheet.
B33: Historical data for all sectors should be input in the "Input - Data" sheet by linking to the "Raw Data" sheets. Check input validation at the left side of the sheet.
B34: Projections for key indicators should be input in the "Input - Policy Evaluation" sheet. Up to 4 senarios can be input. Check input validation at the left side of the sheet.
B35: Historical data on emissions, overall and by sector, can be compared and validated against other scenarios from literature in the "Data Validation" sheet.
B36: Choose the scenario to be analysed from the drop-down list at the top of the "Country Summary" sheet. S1-S4 corresponds to Scenario 1 - Scenario 4.
B37: Define the base year (last year of historical data) at the top of the "Country Summary" sheet.
B40: Contents
B43: Sheet 1 | C43: ScalingUp ScenSummary
B44: Sheet 2 | C44: Country Summary
B45: Sheet 3 | C45: Data validation
B46: Sheet 4 | C46: Input - Policy Evaluation
B47: Sheet 5 | C47: Input - Data
B48: Sheet 6 | C48: Input - ScalingUp scenarios
B49: Sheet 7 | C49: References
B50: Sheet 8 | C50: Admin
B51: Sheet 9 | C51: Calculation - Electricity & Heat
B52: Sheet 10 | C52: Calculation - Transport
B53: Sheet 11 | C53: Calculation - Buildings
B54: Sheet 12 | C54: Calculation - Industry Steel
B55: Sheet 13 | C55: Calculation - Industry Cement
B56: Sheet 14 | C56: Calculation - Other Industry
B57: Sheet 15 | C57: Calculation - Oil & Natural gas
B58: Sheet 16 | C58: Calculation - Waste
B59: Sheet 17 | C59: Calculation - Agriculture
B63: Version log
B66: Date | C66: Version name
B67: 2018-11-28 | C67: PROSPECTS 2.3

Sheet ScalingUp ScenSummary
B2: Scaling Up Climate Action South Africa - Summary of sceanrio analysis
B3: back to cover
E5: Allocate electrictiy related emissions to
E6: Electricity generation sector
C9: Input definition for 'Scenario 2' in 'Input - Policy Evaluation' worksheet
D11: Scen2Settings
C12: Scen2Name | D12: Scenario name | E12: Paris compatible - upper end of ambition | F12: Paris compatible - lower end of ambition | G12: Best-in-class 1 | H12: Best-in-class 2 | I12: National scenarios 1 | J12: National scenarios 2 | K12: Current Development Scenario (CDS) | L12: IRP3 of Draft IRP update of 2018
C13: Scen2Completeness | D13: Completeness check | E13: =IF(COUNTA(E$15:E$33)=COUNTA($D$15:$D$33),"OK","Incomplete") -> OK | F13: =IF(COUNTA(F$15:F$33)=COUNTA($D$15:$D$33),"OK","Incomplete") -> OK | G13: =IF(COUNTA(G$15:G$33)=COUNTA($D$15:$D$33),"OK","Incomplete") -> OK | H13: OK | I13: OK | J13: OK | K13: OK | L13: OK | M13: Incomplete | N13: Incomplete
C14: Scen2Number | D14: Sector/subsector | E14: Set1 | F14: Set2 | G14: Set3 | H14: Set4 | I14: Set5 | J14: Set6 | K14: Set7 | L14: Set8 | M14: Set9 | N14: Set10
D15: General | E15: PROSPECTS scenario 1 | F15: PROSPECTS scenario 1 | G15: PROSPECTS scenario 1 | H15: PROSPECTS scenario 1 | I15: PROSPECTS scenario 1 | J15: PROSPECTS scenario 1 | K15: PROSPECTS scenario 1 | L15: PROSPECTS scenario 1
D16: Electricity | E16: Paris Agreement compatible 1 | F16: Paris Agreement compatible 1 | G16: Best-in-class 1 | H16: Best-in-class 2 | I16: National scenarios 1 | J16: National scenarios 2 | K16: PROSPECTS scenario 1 | L16: PROSPECTS scenario 3
D17: Heat | E17: PROSPECTS scenario 1 | F17: PROSPECTS scenario 1 | G17: PROSPECTS scenario 1 | H17: PROSPECTS scenario 1 | I17: PROSPECTS scenario 1 | J17: PROSPECTS scenario 1 | K17: PROSPECTS scenario 1 | L17: PROSPECTS scenario 1
D18: Industry cement | E18: PROSPECTS scenario 1 | F18: PROSPECTS scenario 1 | G18: PROSPECTS scenario 1 | H18: PROSPECTS scenario 1 | I18: PROSPECTS scenario 1 | J18: PROSPECTS scenario 1 | K18: PROSPECTS scenario 1 | L18: PROSPECTS scenario 1
D19: Industry steel | E19: PROSPECTS scenario 1 | F19: PROSPECTS scenario 1 | G19: PROSPECTS scenario 1 | H19: PROSPECTS scenario 1 | I19: PROSPECTS scenario 1 | J19: PROSPECTS scenario 1 | K19: PROSPECTS scenario 1 | L19: PROSPECTS scenario 1
D20: Transport - passenger | E20: Paris Agreement compatible 1 | F20: Paris Agreement compatible 2 | G20: Best-in-class 1 | H20: Best-in-class 2 | I20: National scenarios 1 | J20: National scenarios 2 | K20: PROSPECTS scenario 1 | L20: PROSPECTS scenario 1
D21: Transport - freight | E21: PROSPECTS scenario 1 | F21: PROSPECTS scenario 1 | G21: PROSPECTS scenario 1 | H21: PROSPECTS scenario 1 | I21: PROSPECTS scenario 1 | J21: PROSPECTS scenario 1 | K21: PROSPECTS scenario 1 | L21: PROSPECTS scenario 1
D22: International aviation | E22: PROSPECTS scenario 1 | F22: PROSPECTS scenario 1 | G22: PROSPECTS scenario 1 | H22: PROSPECTS scenario 1 | I22: PROSPECTS scenario 1 | J22: PROSPECTS scenario 1 | K22: PROSPECTS scenario 1 | L22: PROSPECTS scenario 1
D23: Buildings - residential | E23: Paris Agreement compatible 1 | F23: Paris Agreement compatible 2 | G23: Best-in-class 1 | H23: Best-in-class 2 | I23: National scenarios 1 | J23: National scenarios 2 | K23: PROSPECTS scenario 1 | L23: PROSPECTS scenario 1
D24: Buildings - commercial | E24: PROSPECTS scenario 1 | F24: PROSPECTS scenario 1 | G24: PROSPECTS scenario 1 | H24: PROSPECTS scenario 1 | I24: PROSPECTS scenario 1 | J24: PROSPECTS scenario 1 | K24: PROSPECTS scenario 1 | L24: PROSPECTS scenario 1
D25: Oil & gas | E25: PROSPECTS scenario 1 | F25: PROSPECTS scenario 1 | G25: PROSPECTS scenario 1 | H25: PROSPECTS scenario 1 | I25: PROSPECTS scenario 1 | J25: PROSPECTS scenario 1 | K25: PROSPECTS scenario 1 | L25: PROSPECTS scenario 1
D26: Other industry - general | E26: PROSPECTS scenario 1 | F26: PROSPECTS scenario 1 | G26: PROSPECTS scenario 1 | H26: PROSPECTS scenario 1 | I26: PROSPECTS scenario 1 | J26: PROSPECTS scenario 1 | K26: PROSPECTS scenario 1 | L26: PROSPECTS scenario 1
D27: Other industry - light | E27: PROSPECTS scenario 1 | F27: PROSPECTS scenario 1 | G27: PROSPECTS scenario 1 | H27: PROSPECTS scenario 1 | I27: PROSPECTS scenario 1 | J27: PROSPECTS scenario 1 | K27: PROSPECTS scenario 1 | L27: PROSPECTS scenario 1
D28: Other industry - heavy | E28: PROSPECTS scenario 1 | F28: PROSPECTS scenario 1 | G28: PROSPECTS scenario 1 | H28: PROSPECTS scenario 1 | I28: PROSPECTS scenario 1 | J28: PROSPECTS scenario 1 | K28: PROSPECTS scenario 1 | L28: PROSPECTS scenario 1
D29: Agriculture - energy use | E29: PROSPECTS scenario 1 | F29: PROSPECTS scenario 1 | G29: PROSPECTS scenario 1 | H29: PROSPECTS scenario 1 | I29: PROSPECTS scenario 1 | J29: PROSPECTS scenario 1 | K29: PROSPECTS scenario 1 | L29: PROSPECTS scenario 1
D30: Agriculture - animal-related | E30: PROSPECTS scenario 1 | F30: PROSPECTS scenario 1 | G30: PROSPECTS scenario 1 | H30: PROSPECTS scenario 1 | I30: PROSPECTS scenario 1 | J30: PROSPECTS scenario 1 | K30: PROSPECTS scenario 1 | L30: PROSPECTS scenario 1
D31: Agriculture - land-related | E31: PROSPECTS scenario 1 | F31: PROSPECTS scenario 1 | G31: PROSPECTS scenario 1 | H31: PROSPECTS scenario 1 | I31: PROSPECTS scenario 1 | J31: PROSPECTS scenario 1 | K31: PROSPECTS scenario 1 | L31: PROSPECTS scenario 1
D32: Waste - MSW | E32: PROSPECTS scenario 1 | F32: PROSPECTS scenario 1 | G32: PROSPECTS scenario 1 | H32: PROSPECTS scenario 1 | I32: PROSPECTS scenario 1 | J32: PROSPECTS scenario 1 | K32: PROSPECTS scenario 1 | L32: PROSPECTS scenario 1
D33: Waste - Wastewater | E33: PROSPECTS scenario 1 | F33: PROSPECTS scenario 1 | G33: PROSPECTS scenario 1 | H33: PROSPECTS scenario 1 | I33: PROSPECTS scenario 1 | J33: PROSPECTS scenario 1 | K33: PROSPECTS scenario 1 | L33: PROSPECTS scenario 1
C36: Outputs
D38: Emissions excl. LULUCF
D39: [MtCO2e/a]
E41: Total emisions - PROSPECTS only | H41: Total emisions - Harmonized w/ scenario growth rates to inventory data (1990-2012) | K41: Total emisions - Harmonized w/ offset to inventory data (1990-2012) | N41: Emissions from electricity generation [MtCO2e/a]
D63: Additional graphs for South Africa analysis
E65: Electricity generation (total) [TWh/a] | H65: Emissions from residential buildings [MtCO2e/a] | K65: Emissions from passenger transport [MtCO2e/a] | N65: Emissions from passeneger transport in Gauteng, Cape Town, and Durban [MtCO2e/a]
C87: Summary calculations
D91: ID | E91: Sector | F91: Setting | G91: Unit | H91: Scenario name | I91: 1990 | J91: 1991 | K91: 1992 | L91: 1993 | M91: 1994 | N91: 1995 | O91: 1996 | P91: 1997 | Q91: 1998 | R91: 1999 | S91: 2000 | T91: 2001 | U91: 2002 | V91: 2003 | W91: 2004 | X91: 2005 | Y91: 2006 | Z91: 2007 | AA91: 2008 | AB91: 2009 | AC91: 2010 | AD91: 2011 | AE91: 2012 | AF91: 2013 | AG91: 2014 | AH91: 2015 | AI91: 2016 | AJ91: 2017 | AK91: 2018 | AL91: 2019 | AM91: 2020 | AN91: 2021 | AO91: 2022 | AP91: 2023 | AQ91: 2024 | AR91: 2025 | AS91: 2026 | AT91: 2027 | AU91: 2028 | AV91: 2029 | AW91: 2030 | AX91: 2031 | AY91: 2032 | AZ91: 2033 | BA91: 2034 | BB91: 2035 | BC91: 2036 | BD91: 2037 | BE91: 2038 | BF91: 2039 | BG91: 2040 | BH91: 2041 | BI91: 2042 | BJ91: 2043 | BK91: 2044 | BL91: 2045 | BM91: 2046 | BN91: 2047 | BO91: 2048 | BP91: 2049 | BQ91: 2050
E92: Total | G92: Mt CO2e | H92: Inventory emission (1990-2012) | I92: 354.65968 | J92: 362.81141 | K92: 370.96314 | L92: 379.11487 | M92: 387.2666 | N92: 399.3961892 | O92: 411.5257784 | P92: 423.6553676 | Q92: 435.7849568 | R92: 447.914546 | S92: 460.0441352 | T92: 459.9030985 | U92: 475.0786394 | V92: 497.9789075 | W92: 516.6873469 | X92: 512.0952868 | Y92: 522.0166478 | Z92: 548.042379 | AA92: 537.3589636 | AB92: 542.6928117 | AC92: 561.2427151 | AD92: 545.1092702 | AE92: 554.0919206
E93: Total | G93: Mt CO2e | H93: Longer term pathway (PPD) - Upper bound | AM93: 600.0103846 | AN93: =AM93+(($AR93-$AM93)/($AR$91-$AM$91)) -> 606.2103846 | AO93: =AN93+(($AR93-$AM93)/($AR$91-$AM$91)) -> 612.4103846 | AP93: 618.6103846 | AQ93: 624.8103846 | AR93: 631.0103846 | AS93: 631.0103846 | AT93: 631.0103846 | AU93: 631.0103846 | AV93: 631.0103846 | AW93: 631.0103846 | AX93: 621.7103846 | AY93: 612.4103846 | AZ93: 603.1103846 | BA93: 593.8103846 | BB93: 584.5103846 | BC93: 575.2103846 | BD93: 565.9103846 | BE93: 556.6103846 | BF93: 547.3103846 | BG93: 538.0103846 | BH93: 528.7103846 | BI93: 519.4103846 | BJ93: 510.1103846 | BK93: 500.8103846 | BL93: 491.5103846 | BM93: 482.2103846 | BN93: 472.9103846 | BO93: 463.6103846 | BP93: 454.3103846 | BQ93: 445.0103846
E94: Total | G94: Mt CO2e | H94: Longer term pathway (PPD) - Lower bound | AM94: 415.0103846 | AN94: =AM94+(($AR94-$AM94)/($AR$91-$AM$91)) -> 415.0103846 | AO94: =AN94+(($AR94-$AM94)/($AR$91-$AM$91)) -> 415.0103846 | AP94: 415.0103846 | AQ94: 415.0103846 | AR94: 415.0103846 | AS94: 415.0103846 | AT94: 415.0103846 | AU94: 415.0103846 | AV94: 415.0103846 | AW94: 415.0103846 | AX94: 405.7103846 | AY94: 396.4103846 | AZ94: 387.1103846 | BA94: 377.8103846 | BB94: 368.5103846 | BC94: 359.2103846 | BD94: 349.9103846 | BE94: 340.6103846 | BF94: 331.3103846 | BG94: 322.0103846 | BH94: 312.7103846 | BI94: 303.4103846 | BJ94: 294.1103846 | BK94: 284.8103846 | BL94: 275.5103846 | BM94: 266.2103846 | BN94: 256.9103846 | BO94: 247.6103846 | BP94: 238.3103846 | BQ94: 229.0103846
D95: Harmonisation to inventory data w/ growth rate | E95: Total | G95: Mt CO2e | H95: =H132 -> Paris compatible - upper end of ambition | I95: =I92 -> 354.65968 | J95: =J92 -> 362.81141 | K95: 370.96314 | L95: 379.11487 | M95: 387.2666 | N95: 399.3961892 | O95: 411.5257784 | P95: 423.6553676 | Q95: 435.7849568 | R95: 447.914546 | S95: 460.0441352 | T95: 459.9030985 | U95: 475.0786394 | V95: 497.9789075 | W95: 516.6873469 | X95: 512.0952868 | Y95: 522.0166478 | Z95: 548.042379 | AA95: 537.3589636 | AB95: 542.6928117 | AC95: 561.2427151 | AD95: 545.1092702 | AE95: 554.0919206 | AF95: =AE95*(AF132/AE132) -> 570.4824449 | AG95: 595.290584 | AH95: 597.1543305 | AI95: 591.9853405 | AJ95: 587.6022281 | AK95: 580.9619592 | AL95: 596.7759201 | AM95: 590.6405443 | AN95: 584.0065512 | AO95: 577.7660102 | AP95: 571.3791365 | AQ95: 564.9604186 | AR95: 558.3490469 | AS95: 552.2073651 | AT95: 546.1964932 | AU95: 539.8053825 | AV95: 533.0262177 | AW95: 525.9465978 | AX95: 519.7291397 | AY95: 514.8113099 | AZ95: 509.9517792 | BA95: 505.064927 | BB95: 500.1678529 | BC95: 494.8381681 | BD95: 489.8736024 | BE95: 484.9718515 | BF95: 480.1741886 | BG95: 475.4772105 | BH95: 473.873051 | BI95: 472.4276511 | BJ95: 470.981629 | BK95: 469.5091169 | BL95: 467.997159 | BM95: 465.6483688 | BN95: 463.4892939 | BO95: 461.3150272 | BP95: 459.1387058 | BQ95: 456.9706009
D96: Harmonisation to inventory data w/ growth rate | E96: Total | G96: Mt CO2e | H96: =H133 -> Paris compatible - lower end of ambition | I96: =I92 -> 354.65968 | J96: =J92 -> 362.81141 | K96: 370.96314 | L96: 379.11487 | M96: 387.2666 | N96: 399.3961892 | O96: 411.5257784 | P96: 423.6553676 | Q96: 435.7849568 | R96: 447.914546 | S96: 460.0441352 | T96: 459.9030985 | U96: 475.0786394 | V96: 497.9789075 | W96: 516.6873469 | X96: 512.0952868 | Y96: 522.0166478 | Z96: 548.042379 | AA96: 537.3589636 | AB96: 542.6928117 | AC96: 561.2427151 | AD96: 545.1092702 | AE96: 554.0919206 | AF96: =AE96*(AF133/AE133) -> 570.4824449 | AG96: 595.290584 | AH96: 597.1543305 | AI96: 592.0709762 | AJ96: 587.7669197 | AK96: 581.2068401 | AL96: 597.0946781 | AM96: 591.2254129 | AN96: 584.8444417 | AO96: 578.8281534 | AP96: 572.6572067 | AQ96: 566.4512286 | AR96: 560.0315218 | AS96: 554.0490531 | AT96: 548.1696029 | AU96: 541.8779888 | AV96: 535.1709312 | AW96: 528.1259218 | AX96: 521.9918949 | AY96: 517.1369018 | AZ96: 512.3234302 | BA96: 507.4625259 | BB96: 502.5690059 | BC96: 497.2185976 | BD96: 492.2079587 | BE96: 487.2373636 | BF96: 482.3490829 | BG96: 477.538517 | BH96: 475.8927133 | BI96: 474.3882166 | BJ96: 472.8690713 | BK96: 471.3074183 | BL96: 469.6900611 | BM96: 467.2239221 | BN96: 464.9300896 | BO96: 462.6061814 | BP96: 460.2684608 | BQ96: 457.9302314
D97: Harmonisation to inventory data w/ growth rate | E97: Total | G97: Mt CO2e | H97: Best-in-class 1 | I97: =I92 -> 354.65968 | J97: =J92 -> 362.81141 | K97: 370.96314 | L97: 379.11487 | M97: 387.2666 | N97: 399.3961892 | O97: 411.5257784 | P97: 423.6553676 | Q97: 435.7849568 | R97: 447.914546 | S97: 460.0441352 | T97: 459.9030985 | U97: 475.0786394 | V97: 497.9789075 | W97: 516.6873469 | X97: 512.0952868 | Y97: 522.0166478 | Z97: 548.042379 | AA97: 537.3589636 | AB97: 542.6928117 | AC97: 561.2427151 | AD97: 545.1092702 | AE97: 554.0919206 | AF97: =AE97*(AF134/AE134) -> 570.4824449 | AG97: 595.290584 | AH97: 597.1543305 | AI97: 598.8581549 | AJ97: 605.4748944 | AK97: 606.3974741 | AL97: 633.9985626 | AM97: 636.5976253 | AN97: 638.6996748 | AO97: 641.2367095 | AP97: 643.8595356 | AQ97: 646.7444458 | AR97: 646.0378312 | AS97: 646.0499979 | AT97: 646.4077893 | AU97: 650.1845795 | AV97: 646.4790615 | AW97: 642.0506895 | AX97: 632.7818775 | AY97: 621.1371951 | AZ97: 620.2713733 | BA97: 608.350775 | BB97: 592.779541 | BC97: 580.0287491 | BD97: 564.2538479 | BE97: 551.9461225 | BF97: 542.9841543 | BG97: 530.7244955 | BH97: 519.9463901 | BI97: 506.4690713 | BJ97: 499.4730933 | BK97: 495.6671573 | BL97: 486.1092126 | BM97: 478.9179598 | BN97: 472.2613087 | BO97: 468.6794416 | BP97: 465.3430059 | BQ97: 464.8676077
D98: Harmonisation to inventory data w/ growth rate | E98: Total | G98: Mt CO2e | H98: Best-in-class 2 | I98: =I92 -> 354.65968 | J98: =J92 -> 362.81141 | K98: 370.96314 | L98: 379.11487 | M98: 387.2666 | N98: 399.3961892 | O98: 411.5257784 | P98: 423.6553676 | Q98: 435.7849568 | R98: 447.914546 | S98: 460.0441352 | T98: 459.9030985 | U98: 475.0786394 | V98: 497.9789075 | W98: 516.6873469 | X98: 512.0952868 | Y98: 522.0166478 | Z98: 548.042379 | AA98: 537.3589636 | AB98: 542.6928117 | AC98: 561.2427151 | AD98: 545.1092702 | AE98: 554.0919206 | AF98: =AE98*(AF135/AE135) -> 570.4824449 | AG98: 595.290584 | AH98: 597.1543305 | AI98: 599.5076821 | AJ98: 602.7015366 | AK98: 603.5913134 | AL98: 627.6642923 | AM98: 630.2440692 | AN98: 632.3639964 | AO98: 634.9025809 | AP98: 637.5232753 | AQ98: 640.4327747 | AR98: 643.3067161 | AS98: 646.9853432 | AT98: 651.106458 | AU98: 655.1339924 | AV98: 659.0763165 | AW98: 662.6026117 | AX98: 659.8779622 | AY98: 658.4625059 | AZ98: 656.9367327 | BA98: 655.2767984 | BB98: 653.4907168 | BC98: 650.697138 | BD98: 648.3136422 | BE98: 645.8127123 | BF98: 643.2427107 | BG98: 640.5922056 | BH98: 638.6167461 | BI98: 636.6982365 | BJ98: 634.6659685 | BK98: 632.5040153 | BL98: 630.2361276 | BM98: 626.7227066 | BN98: 623.6209601 | BO98: 620.4683295 | BP98: 617.2825064 | BQ98: 614.0795346
D99: Harmonisation to inventory data w/ growth rate | E99: Total | G99: Mt CO2e | H99: National scenarios 1 | I99: =I92 -> 354.65968 | J99: =J92 -> 362.81141 | K99: 370.96314 | L99: 379.11487 | M99: 387.2666 | N99: 399.3961892 | O99: 411.5257784 | P99: 423.6553676 | Q99: 435.7849568 | R99: 447.914546 | S99: 460.0441352 | T99: 459.9030985 | U99: 475.0786394 | V99: 497.9789075 | W99: 516.6873469 | X99: 512.0952868 | Y99: 522.0166478 | Z99: 548.042379 | AA99: 537.3589636 | AB99: 542.6928117 | AC99: 561.2427151 | AD99: 545.1092702 | AE99: 554.0919206 | AF99: =AE99*(AF136/AE136) -> 570.4824449 | AG99: 595.290584 | AH99: 597.1543305 | AI99: 598.5854396 | AJ99: 600.9181755 | AK99: 600.8545142 | AL99: 623.8443197 | AM99: 625.3230957 | AN99: 635.816387 | AO99: 645.2696581 | AP99: 652.8575766 | AQ99: 661.0319231 | AR99: 668.2347421 | AS99: 665.6676694 | AT99: 660.9670197 | AU99: 649.764355 | AV99: 637.8332402 | AW99: 636.0589999 | AX99: 619.2880329 | AY99: 599.0191299 | AZ99: 591.166911 | BA99: 577.56669 | BB99: 579.8221313 | BC99: 572.5335427 | BD99: 558.0097981 | BE99: 551.0736561 | BF99: 536.0933138 | BG99: 527.5637656 | BH99: 527.0973298 | BI99: 514.4052134 | BJ99: 516.0827439 | BK99: 515.7967182 | BL99: 517.0216955 | BM99: 517.6954376 | BN99: 518.6001228 | BO99: 519.1809838 | BP99: 521.6167519 | BQ99: 521.662138
D100: Harmonisation to inventory data w/ growth rate | E100: Total | G100: Mt CO2e | H100: National scenarios 2 | I100: =I92 -> 354.65968 | J100: =J92 -> 362.81141 | K100: 370.96314 | L100: 379.11487 | M100: 387.2666 | N100: 399.3961892 | O100: 411.5257784 | P100: 423.6553676 | Q100: 435.7849568 | R100: 447.914546 | S100: 460.0441352 | T100: 459.9030985 | U100: 475.0786394 | V100: 497.9789075 | W100: 516.6873469 | X100: 512.0952868 | Y100: 522.0166478 | Z100: 548.042379 | AA100: 537.3589636 | AB100: 542.6928117 | AC100: 561.2427151 | AD100: 545.1092702 | AE100: 554.0919206 | AF100: =AE100*(AF137/AE137) -> 570.4824449 | AG100: 595.290584 | AH100: 597.1543305 | AI100: 597.0042484 | AJ100: 597.5596824 | AK100: 595.791691 | AL100: 616.8454759 | AM100: 616.5028084 | AN100: 615.6321055 | AO100: 615.1388342 | AP100: 614.6050821 | AQ100: 614.2177794 | AR100: 613.7183528 | AS100: 613.9295767 | AT100: 614.4417834 | AU100: 614.7409532 | AV100: 614.8013763 | AW100: 614.6050357 | AX100: 606.8200958 | AY100: 600.3162607 | AZ100: 593.7493462 | BA100: 587.0317335 | BB100: 580.1565928 | BC100: 572.5682903 | BD100: 565.2478082 | BE100: 557.8042813 | BF100: 550.2849168 | BG100: 542.6963309 | BH100: 543.3415134 | BI100: 543.9969307 | BJ100: 544.5674399 | BK100: 545.0227148 | BL100: 545.3570062 | BM100: 544.5638978 | BN100: 543.9531286 | BO100: 543.2500997 | BP100: 542.4805998 | BQ100: 541.663991
D101: Harmonisation to inventory data w/ growth rate | E101: Total | G101: Mt CO2e | H101: Current Development Scenario (CDS) | I101: =I92 -> 354.65968 | J101: =J92 -> 362.81141 | K101: 370.96314 | L101: 379.11487 | M101: 387.2666 | N101: 399.3961892 | O101: 411.5257784 | P101: 423.6553676 | Q101: 435.7849568 | R101: 447.914546 | S101: 460.0441352 | T101: 459.9030985 | U101: 475.0786394 | V101: 497.9789075 | W101: 516.6873469 | X101: 512.0952868 | Y101: 522.0166478 | Z101: 548.042379 | AA101: 537.3589636 | AB101: 542.6928117 | AC101: 561.2427151 | AD101: 545.1092702 | AE101: 554.0919206 | AF101: =AE101*(AF138/AE138) -> 570.4824449 | AG101: 595.290584 | AH101: 597.1543305 | AI101: 606.2981623 | AJ101: 612.3279037 | AK101: 616.2442093 | AL101: 643.7027954 | AM101: 649.5453471 | AN101: 655.0954164 | AO101: 661.1833426 | AP101: 667.5445817 | AQ101: 674.4545875 | AR101: 681.4722975 | AS101: 685.4754085 | AT101: 690.2647996 | AU101: 695.2511726 | AV101: 700.463932 | AW101: 705.7459493 | AX101: 708.1217885 | AY101: 711.9482065 | AZ101: 715.7866265 | BA101: 719.6134313 | BB101: 723.4475374 | BC101: 726.2978353 | BD101: 729.7787245 | BE101: 733.199374 | BF101: 736.6444079 | BG101: 740.0488455 | BH101: 741.5961407 | BI101: 744.3106385 | BJ101: 746.844605 | BK101: 749.1946579 | BL101: 751.3534458 | BM101: 751.952324 | BN101: 753.0160357 | BO101: 753.9207587 | BP101: 754.6595409 | BQ101: 755.2537836
D102: Harmonisation to inventory data w/ growth rate | E102: Total | G102: Mt CO2e | H102: =H139 -> IRP3 of Draft IRP update of 2018 | I102: =I92 -> 354.65968 | J102: =J92 -> 362.81141 | K102: 370.96314 | L102: 379.11487 | M102: 387.2666 | N102: 399.3961892 | O102: 411.5257784 | P102: 423.6553676 | Q102: 435.7849568 | R102: 447.914546 | S102: 460.0441352 | T102: 459.9030985 | U102: 475.0786394 | V102: 497.9789075 | W102: 516.6873469 | X102: 512.0952868 | Y102: 522.0166478 | Z102: 548.042379 | AA102: 537.3589636 | AB102: 542.6928117 | AC102: 561.2427151 | AD102: 545.1092702 | AE102: 554.0919206 | AF102: =AE102*(AF139/AE139) -> 570.4824449 | AG102: =AF102*(AG139/AF139) -> 595.290584 | AH102: 597.1543305 | AI102: 599.0940697 | AJ102: 601.3105216 | AK102: 601.3541996 | AL102: 624.3646124 | AM102: 625.8890412 | AN102: 627.5484824 | AO102: 629.6060339 | AP102: 631.7150589 | AQ102: 634.1244676 | AR102: 636.4738491 | AS102: 639.6763895 | AT102: 643.2891172 | AU102: 646.7754173 | AV102: 650.1442098 | AW102: 653.3124343 | AX102: 649.0205618 | AY102: 645.9650276 | AZ102: 642.7859128 | BA102: 639.4247995 | BB102: 635.8939739 | BC102: 631.4964502 | BD102: 627.4529362 | BE102: 623.2425257 | BF102: 618.9422102 | BG102: 614.5316138 | BH102: 618.2088361 | BI102: 622.249057 | BJ102: 626.1635977 | BK102: 629.9358783 | BL102: 633.547796 | BM102: 635.8364221 | BN102: 638.416017 | BO102: 640.8616851 | BP102: 643.1811718 | BQ102: 645.3948729
E103: Total | G103: Mt CO2e | H103: =H140 -> 0 | I103: =I92 -> 354.65968 | J103: =J92 -> 362.81141 | K103: 370.96314 | L103: 379.11487 | M103: 387.2666 | N103: 399.3961892 | O103: 411.5257784 | P103: 423.6553676 | Q103: 435.7849568 | R103: 447.914546 | S103: 460.0441352 | T103: 459.9030985 | U103: 475.0786394 | V103: 497.9789075 | W103: 516.6873469 | X103: 512.0952868 | Y103: 522.0166478 | Z103: 548.042379 | AA103: 537.3589636 | AB103: 542.6928117 | AC103: 561.2427151 | AD103: 545.1092702 | AE103: 554.0919206 | AF103: =AE103*(AF140/AE140) -> 
E104: Total | G104: Mt CO2e | H104: =H141 -> 0 | I104: =I92 -> 354.65968 | J104: =J92 -> 362.81141 | K104: 370.96314 | L104: 379.11487 | M104: 387.2666 | N104: 399.3961892 | O104: 411.5257784 | P104: 423.6553676 | Q104: 435.7849568 | R104: 447.914546 | S104: 460.0441352 | T104: 459.9030985 | U104: 475.0786394 | V104: 497.9789075 | W104: 516.6873469 | X104: 512.0952868 | Y104: 522.0166478 | Z104: 548.042379 | AA104: 537.3589636 | AB104: 542.6928117 | AC104: 561.2427151 | AD104: 545.1092702 | AE104: 554.0919206 | AF104: =AE104*(AF141/AE141) -> 
D106: Harmonisation to inventory data w/ offset | E106: Total | G106: Mt CO2e | H106: =H95 -> Paris compatible - upper end of ambition | I106: =I92 -> 354.65968 | J106: =J92 -> 362.81141 | K106: 370.96314 | L106: 379.11487 | M106: 387.2666 | N106: 399.3961892 | O106: 411.5257784 | P106: 423.6553676 | Q106: 435.7849568 | R106: 447.914546 | S106: 460.0441352 | T106: 459.9030985 | U106: 475.0786394 | V106: 497.9789075 | W106: 516.6873469 | X106: 512.0952868 | Y106: 522.0166478 | Z106: 548.042379 | AA106: 537.3589636 | AB106: 542.6928117 | AC106: 561.2427151 | AD106: 545.1092702 | AE106: 554.0919206 | AF106: =AF132+($AE$112-$AF$138) -> 554.0919206 | AG106: =AG132+($AE$112-$AF$138) -> 575.2599749 | AH106: 576.8502549 | AI106: 572.439708 | AJ106: 568.6997272 | AK106: 563.0337814 | AL106: 576.5273684 | AM106: 571.292233 | AN106: 565.6316421 | AO106: 560.3067723 | AP106: 554.8570411 | AQ106: 549.3801382 | AR106: 543.7388494 | AS106: 538.4983332 | AT106: 533.3694333 | AU106: 527.9160868 | AV106: 522.1316251 | AW106: 516.090794 | AX106: 510.7856201 | AY106: 506.5893808 | AZ106: 502.4428864 | BA106: 498.2730793 | BB106: 494.0945503 | BC106: 489.5468872 | BD106: 485.3107696 | BE106: 481.1282499 | BF106: 477.0345454 | BG106: 473.0267524 | BH106: 471.6579703 | BI106: 470.4246532 | BJ106: 469.1908051 | BK106: 467.9343539 | BL106: 466.6442448 | BM106: 464.6400912 | BN106: 462.7978162 | BO106: 460.9425785 | BP106: 459.0855876 | BQ106: 457.2356075
D107: Harmonisation to inventory data w/ offset | E107: Total | G107: Mt CO2e | H107: =H96 -> Paris compatible - lower end of ambition | I107: =I92 -> 354.65968 | J107: =J92 -> 362.81141 | K107: 370.96314 | L107: 379.11487 | M107: 387.2666 | N107: 399.3961892 | O107: 411.5257784 | P107: 423.6553676 | Q107: 435.7849568 | R107: 447.914546 | S107: 460.0441352 | T107: 459.9030985 | U107: 475.0786394 | V107: 497.9789075 | W107: 516.6873469 | X107: 512.0952868 | Y107: 522.0166478 | Z107: 548.042379 | AA107: 537.3589636 | AB107: 542.6928117 | AC107: 561.2427151 | AD107: 545.1092702 | AE107: 554.0919206 | AF107: =AF133+($AE$112-$AF$138) -> 554.0919206 | AG107: 575.2599749 | AH107: 576.8502549 | AI107: 572.5127784 | AJ107: 568.8402537 | AK107: 563.2427311 | AL107: 576.7993552 | AM107: 571.7912842 | AN107: 566.3465893 | AO107: 561.2130677 | AP107: 555.9475807 | AQ107: 550.6522024 | AR107: 545.1744557 | AS107: 540.0697914 | AT107: 535.0530297 | AU107: 529.6845806 | AV107: 523.961646 | AW107: 517.950347 | AX107: 512.7163625 | AY107: 508.5737399 | AZ107: 504.4665463 | BA107: 500.3188799 | BB107: 496.1433834 | BC107: 491.5780376 | BD107: 487.302607 | BE107: 483.0613446 | BF107: 478.8903187 | BG107: 474.7856045 | BH107: 473.3812887 | BI107: 472.0975459 | BJ107: 470.801304 | BK107: 469.4687915 | BL107: 468.0887482 | BM107: 465.9844644 | BN107: 464.0272047 | BO107: 462.0442823 | BP107: 460.0495742 | BQ107: 458.0544319
D108: Harmonisation to inventory data w/ offset | E108: Total | G108: Mt CO2e | H108: Best-in-class 1 | I108: =I92 -> 354.65968 | J108: =J92 -> 362.81141 | K108: 370.96314 | L108: 379.11487 | M108: 387.2666 | N108: 399.3961892 | O108: 411.5257784 | P108: 423.6553676 | Q108: 435.7849568 | R108: 447.914546 | S108: 460.0441352 | T108: 459.9030985 | U108: 475.0786394 | V108: 497.9789075 | W108: 516.6873469 | X108: 512.0952868 | Y108: 522.0166478 | Z108: 548.042379 | AA108: 537.3589636 | AB108: 542.6928117 | AC108: 561.2427151 | AD108: 545.1092702 | AE108: 554.0919206 | AF108: 554.0919206 | AG108: 575.2599749 | AH108: 576.8502549 | AI108: 578.304078 | AJ108: 583.949947 | AK108: 584.737157 | AL108: 608.2883529 | AM108: 610.5060566 | AN108: 612.2996735 | AO108: 614.4644505 | AP108: 616.7024307 | AQ108: 619.1640396 | AR108: 618.5611062 | AS108: 618.5714877 | AT108: 618.8767806 | AU108: 622.0994044 | AV108: 618.937595 | AW108: 615.1589956 | AX108: 607.2501914 | AY108: 597.3141269 | AZ108: 596.5753466 | BA108: 586.4038512 | BB108: 573.1173759 | BC108: 562.2375007 | BD108: 548.7772421 | BE108: 538.2754226 | BF108: 530.6284391 | BG108: 520.1676333 | BH108: 510.9709935 | BI108: 499.4711943 | BJ108: 493.5017323 | BK108: 490.2542393 | BL108: 482.0987266 | BM108: 475.9626424 | BN108: 470.2827181 | BO108: 467.2264164 | BP108: 464.379534 | BQ108: 463.9738907
D109: Harmonisation to inventory data w/ offset | E109: Total | G109: Mt CO2e | H109: Best-in-class 2 | I109: =I92 -> 354.65968 | J109: =J92 -> 362.81141 | K109: 370.96314 | L109: 379.11487 | M109: 387.2666 | N109: 399.3961892 | O109: 411.5257784 | P109: 423.6553676 | Q109: 435.7849568 | R109: 447.914546 | S109: 460.0441352 | T109: 459.9030985 | U109: 475.0786394 | V109: 497.9789075 | W109: 516.6873469 | X109: 512.0952868 | Y109: 522.0166478 | Z109: 548.042379 | AA109: 537.3589636 | AB109: 542.6928117 | AC109: 561.2427151 | AD109: 545.1092702 | AE109: 554.0919206 | AF109: 554.0919206 | AG109: 575.2599749 | AH109: 576.8502549 | AI109: 578.8583005 | AJ109: 581.5835225 | AK109: 582.3427428 | AL109: 602.8835067 | AM109: 605.0847543 | AN109: 606.8936257 | AO109: 609.0597251 | AP109: 611.2958864 | AQ109: 613.7784766 | AR109: 616.2307262 | AS109: 619.3695903 | AT109: 622.8860161 | AU109: 626.3225927 | AV109: 629.6864616 | AW109: 632.6953455 | AX109: 630.3704823 | AY109: 629.1627151 | AZ109: 627.8608179 | BA109: 626.4444448 | BB109: 624.9204339 | BC109: 622.5367555 | BD109: 620.5029887 | BE109: 618.3690188 | BF109: 616.1761122 | BG109: 613.9145143 | BH109: 612.2289129 | BI109: 610.5919052 | BJ109: 608.8578308 | BK109: 607.0130997 | BL109: 605.077978 | BM109: 602.0800793 | BN109: 599.4334504 | BO109: 596.7434036 | BP109: 594.0250345 | BQ109: 591.292033
D110: Harmonisation to inventory data w/ offset | E110: Total | G110: Mt CO2e | H110: National scenarios 1 | I110: =I92 -> 354.65968 | J110: =J92 -> 362.81141 | K110: 370.96314 | L110: 379.11487 | M110: 387.2666 | N110: 399.3961892 | O110: 411.5257784 | P110: 423.6553676 | Q110: 435.7849568 | R110: 447.914546 | S110: 460.0441352 | T110: 459.9030985 | U110: 475.0786394 | V110: 497.9789075 | W110: 516.6873469 | X110: 512.0952868 | Y110: 522.0166478 | Z110: 548.042379 | AA110: 537.3589636 | AB110: 542.6928117 | AC110: 561.2427151 | AD110: 545.1092702 | AE110: 554.0919206 | AF110: 554.0919206 | AG110: 575.2599749 | AH110: 576.8502549 | AI110: 578.0713781 | AJ110: 580.061833 | AK110: 580.0075127 | AL110: 599.6240365 | AM110: 600.8858326 | AN110: 609.8394489 | AO110: 617.9056467 | AP110: 624.3801941 | AQ110: 631.3551232 | AR110: 637.5010765 | AS110: 635.3106689 | AT110: 631.299743 | AU110: 621.7408392 | AV110: 611.5603703 | AW110: 610.0464634 | AX110: 595.7362912 | AY110: 578.4414333 | AZ110: 571.7413662 | BA110: 560.1366982 | BB110: 562.0611998 | BC110: 555.8420618 | BD110: 543.4493784 | BE110: 537.5309727 | BF110: 524.7486879 | BG110: 517.4706756 | BH110: 517.0726797 | BI110: 506.2428706 | BJ110: 507.674258 | BK110: 507.4302007 | BL110: 508.4754377 | BM110: 509.050322 | BN110: 509.8222633 | BO110: 510.3178948 | BP110: 512.396264 | BQ110: 512.4349906
D111: Harmonisation to inventory data w/ offset | E111: Total | G111: Mt CO2e | H111: National scenarios 2 | I111: =I92 -> 354.65968 | J111: =J92 -> 362.81141 | K111: 370.96314 | L111: 379.11487 | M111: 387.2666 | N111: 399.3961892 | O111: 411.5257784 | P111: 423.6553676 | Q111: 435.7849568 | R111: 447.914546 | S111: 460.0441352 | T111: 459.9030985 | U111: 475.0786394 | V111: 497.9789075 | W111: 516.6873469 | X111: 512.0952868 | Y111: 522.0166478 | Z111: 548.042379 | AA111: 537.3589636 | AB111: 542.6928117 | AC111: 561.2427151 | AD111: 545.1092702 | AE111: 554.0919206 | AF111: 554.0919206 | AG111: 575.2599749 | AH111: 576.8502549 | AI111: 576.7221942 | AJ111: 577.1961297 | AK111: 575.6875548 | AL111: 593.6521293 | AM111: 593.3597412 | AN111: 592.6167961 | AO111: 592.1959021 | AP111: 591.7404672 | AQ111: 591.4099932 | AR111: 590.9838473 | AS111: 591.1640784 | AT111: 591.6011293 | AU111: 591.856402 | AV111: 591.9079593 | AW111: 591.7404277 | AX111: 585.0977677 | AY111: 579.5482368 | AZ111: 573.9448821 | BA111: 568.212941 | BB111: 562.346586 | BC111: 555.871711 | BD111: 549.6253592 | BE111: 543.2740169 | BF111: 536.8579647 | BG111: 530.3828478 | BH111: 530.9333631 | BI111: 531.4926114 | BJ111: 531.9794101 | BK111: 532.3678827 | BL111: 532.6531238 | BM111: 531.9763877 | BN111: 531.4552364 | BO111: 530.8553624 | BP111: 530.1987709 | BQ111: 529.5019826
D112: Harmonisation to inventory data w/ offset | E112: Total | G112: Mt CO2e | H112: Current Development Scenario (CDS) | I112: =I92 -> 354.65968 | J112: =J92 -> 362.81141 | K112: 370.96314 | L112: 379.11487 | M112: 387.2666 | N112: 399.3961892 | O112: 411.5257784 | P112: 423.6553676 | Q112: 435.7849568 | R112: 447.914546 | S112: 460.0441352 | T112: 459.9030985 | U112: 475.0786394 | V112: 497.9789075 | W112: 516.6873469 | X112: 512.0952868 | Y112: 522.0166478 | Z112: 548.042379 | AA112: 537.3589636 | AB112: 542.6928117 | AC112: 561.2427151 | AD112: 545.1092702 | AE112: 554.0919206 | AF112: 554.0919206 | AG112: 575.2599749 | AH112: 576.8502549 | AI112: 584.6524173 | AJ112: 589.797418 | AK112: 593.1390862 | AL112: 616.5686889 | AM112: 621.5539662 | AN112: 626.2896769 | AO112: 631.484325 | AP112: 636.9121829 | AQ112: 642.8082873 | AR112: 648.7962926 | AS112: 652.2120293 | AT112: 656.2986756 | AU112: 660.5534009 | AV112: 665.0012949 | AW112: 669.5082847 | AX112: 671.5355183 | AY112: 674.8004881 | AZ112: 678.0756988 | BA112: 681.3409986 | BB112: 684.6125284 | BC112: 687.0446037 | BD112: 690.0147439 | BE112: 692.9334834 | BF112: 695.8730293 | BG112: 698.7779357 | BH112: 700.0981971 | BI112: 702.4143981 | BJ112: 704.5765571 | BK112: 706.581788 | BL112: 708.4238181 | BM112: 708.9348233 | BN112: 709.8424571 | BO112: 710.6144306 | BP112: 711.2448117 | BQ112: 711.7518615
D113: Harmonisation to inventory data w/ offset | E113: Total | G113: Mt CO2e | H113: IRP3 of Draft IRP update of 2018 | I113: =I92 -> 354.65968 | J113: =J92 -> 362.81141 | K113: 370.96314 | L113: 379.11487 | M113: 387.2666 | N113: 399.3961892 | O113: 411.5257784 | P113: 423.6553676 | Q113: 435.7849568 | R113: 447.914546 | S113: 460.0441352 | T113: 459.9030985 | U113: 475.0786394 | V113: 497.9789075 | W113: 516.6873469 | X113: 512.0952868 | Y113: 522.0166478 | Z113: 548.042379 | AA113: 537.3589636 | AB113: 542.6928117 | AC113: 561.2427151 | AD113: 545.1092702 | AE113: 554.0919206 | AF113: 554.0919206 | AG113: 575.2599749 | AH113: 576.8502549 | AI113: 578.5053772 | AJ113: 580.3966104 | AK113: 580.4338795 | AL113: 600.067987 | AM113: 601.3687372 | AN113: 602.7846895 | AO113: 604.5403375 | AP113: 606.3399064 | AQ113: 608.395784 | AR113: =AR139+($AE$112-$AF$138) -> 610.400442 | AS113: 613.1330754 | AT113: 616.2157095 | AU113: 619.1904667 | AV113: 622.0649581 | AW113: 624.7683108 | AX113: 621.1061824 | AY113: 618.4989851 | AZ113: 615.78634 | BA113: 612.9184011 | BB113: 609.9056515 | BC113: 606.1533741 | BD113: 602.7031627 | BE113: 599.1105434 | BF113: 595.4412109 | BG113: 591.6777789 | BH113: 594.8154444 | BI113: 598.2628459 | BJ113: 601.6030082 | BK113: 604.8217841 | BL113: 607.903727 | BM113: 609.8565443 | BN113: 612.0576367 | BO113: 614.1444532 | BP113: 616.1236029 | BQ113: 618.0124889
F118: Setting | G118: Unit | H118: Scenario name | I118: 1990 | J118: 1991 | K118: 1992 | L118: 1993 | M118: 1994 | N118: 1995 | O118: 1996 | P118: 1997 | Q118: 1998 | R118: 1999 | S118: 2000 | T118: 2001 | U118: 2002 | V118: 2003 | W118: 2004 | X118: 2005 | Y118: 2006 | Z118: 2007 | AA118: 2008 | AB118: 2009 | AC118: 2010 | AD118: 2011 | AE118: 2012 | AF118: 2013 | AG118: 2014 | AH118: 2015 | AI118: 2016 | AJ118: 2017 | AK118: 2018 | AL118: 2019 | AM118: 2020 | AN118: 2021 | AO118: 2022 | AP118: 2023 | AQ118: 2024 | AR118: 2025 | AS118: 2026 | AT118: 2027 | AU118: 2028 | AV118: 2029 | AW118: 2030 | AX118: 2031 | AY118: 2032 | AZ118: 2033 | BA118: 2034 | BB118: 2035 | BC118: 2036 | BD118: 2037 | BE118: 2038 | BF118: 2039 | BG118: 2040 | BH118: 2041 | BI118: 2042 | BJ118: 2043 | BK118: 2044 | BL118: 2045 | BM118: 2046 | BN118: 2047 | BO118: 2048 | BP118: 2049 | BQ118: 2050
F119: Assumption on urban/rural split | G119: % | I119: 0.6199462098 | J119: 0.6199462098 | K119: 0.6199462098 | L119: 0.6199462098 | M119: 0.6199462098 | N119: 0.6199462098 | O119: 0.6199462098 | P119: 0.6199462098 | Q119: 0.6199462098 | R119: 0.6199462098 | S119: 0.6199462098 | T119: 0.6199462098 | U119: 0.6199462098 | V119: 0.6199462098 | W119: 0.6199462098 | X119: 0.6199462098 | Y119: 0.6199462098 | Z119: 0.6199462098 | AA119: 0.6199462098 | AB119: 0.6199462098 | AC119: 0.6199462098 | AD119: 0.6199462098 | AE119: 0.6199462098 | AF119: 0.6199462098 | AG119: 0.6199462098 | AH119: 0.6199462098 | AI119: 0.6175569768 | AJ119: 0.6152732507 | AK119: 0.6131035179 | AL119: 0.6110489402 | AM119: 0.6091099561 | AN119: 0.6094233789 | AO119: 0.6097465212 | AP119: 0.6100941443 | AQ119: 0.6104812397 | AR119: 0.6109187258 | AS119: 0.6098993217 | AT119: 0.6090306628 | AU119: 0.6083015179 | AV119: 0.6076967074 | AW119: 0.6072036447 | AX119: 0.6071372807 | AY119: 0.6071580705 | AZ119: 0.6072615726 | BA119: 0.6074437421 | BB119: 0.6077008557 | BC119: 0.6078532889 | BD119: 0.6080846244 | BE119: 0.6083911246 | BF119: 0.6087693683 | BG119: 0.6092164349 | BH119: 0.6103621017 | BI119: 0.6115406801 | BJ119: 0.6127528632 | BK119: 0.6139999651 | BL119: 0.6152827292 | BM119: 0.6172100074 | BN119: 0.6191502033 | BO119: 0.621101679 | BP119: 0.6230620326 | BQ119: 0.6250297483
D121: ID | E121: Sector | F121: Setting | G121: Unit | H121: Scenario name | I121: 1990 | J121: 1991 | K121: 1992 | L121: 1993 | M121: 1994 | N121: 1995 | O121: 1996 | P121: 1997 | Q121: 1998 | R121: 1999 | S121: 2000 | T121: 2001 | U121: 2002 | V121: 2003 | W121: 2004 | X121: 2005 | Y121: 2006 | Z121: 2007 | AA121: 2008 | AB121: 2009 | AC121: 2010 | AD121: 2011 | AE121: 2012 | AF121: 2013 | AG121: 2014 | AH121: 2015 | AI121: 2016 | AJ121: 2017 | AK121: 2018 | AL121: 2019 | AM121: 2020 | AN121: 2021 | AO121: 2022 | AP121: 2023 | AQ121: 2024 | AR121: 2025 | AS121: 2026 | AT121: 2027 | AU121: 2028 | AV121: 2029 | AW121: 2030 | AX121: 2031 | AY121: 2032 | AZ121: 2033 | BA121: 2034 | BB121: 2035 | BC121: 2036 | BD121: 2037 | BE121: 2038 | BF121: 2039 | BG121: 2040 | BH121: 2041 | BI121: 2042 | BJ121: 2043 | BK121: 2044 | BL121: 2045 | BM121: 2046 | BN121: 2047 | BO121: 2048 | BP121: 2049 | BQ121: 2050
E122: Total | G122: Mt CO2e | H122: =H252 -> Paris compatible - upper end of ambition | I122: =IF(I252-(I$258*(1-I$119))>0, I252-(I$258*(1-I$119)),0) -> 13.06435405 | J122: =IF(J252-(J$258*(1-J$119))>0, J252-(J$258*(1-J$119)),0) -> 13.13774764 | K122: 13.21176336 | L122: 13.28640799 | M122: 13.36168843 | N122: 13.4376117 | O122: 13.37218217 | P122: 13.30723202 | Q122: 13.24274065 | R122: 13.17868748 | S122: 13.11505193 | T122: 13.11205439 | U122: 13.10798002 | V122: 13.10288364 | W122: 13.09682035 | X122: 13.08984553 | Y122: 13.15284762 | Z122: 13.2088925 | AA122: 13.25813326 | AB122: 13.3007227 | AC122: 13.3368133 | AD122: 13.6145546 | AE122: 13.88602557 | AF122: 14.15105397 | AG122: 14.40946606 | AH122: 14.66108661 | AI122: 14.45156694 | AJ122: 14.59058424 | AK122: 14.69539609 | AL122: 14.75326976 | AM122: 14.74815222 | AN122: 14.49064246 | AO122: 14.13355159 | AP122: 13.66930728 | AQ122: 13.09314043 | AR122: 12.4199301 | AS122: 11.66276219 | AT122: 10.83153331 | AU122: 9.884323941 | AV122: 8.910640468 | AW122: 7.948707696 | AX122: 6.91710866 | AY122: 5.930698233 | AZ122: 5.019848323 | BA122: 4.186996822 | BB122: 3.443017607 | BC122: 2.796399213 | BD122: 2.247775883 | BE122: 1.792231772 | BF122: 1.428788467 | BG122: 1.135119424 | BH122: 0.8986600866 | BI122: 0.7263121638 | BJ122: 0.6020296961 | BK122: 0.5131722191 | BL122: 0.4500990011 | BM122: 0.3974546581 | BN122: 0.3595063167 | BO122: 0.3320660607 | BP122: 0.3101436407 | BQ122: 0.2919173893
E123: Total | G123: Mt CO2e | H123: =H253 -> Paris compatible - lower end of ambition | I123: =IF(I253-(I$258*(1-I$119))>0, I253-(I$258*(1-I$119)),0) -> 13.06435405 | J123: 13.13774764 | K123: 13.21176336 | L123: 13.28640799 | M123: 13.36168843 | N123: 13.4376117 | O123: 13.37218217 | P123: 13.30723202 | Q123: 13.24274065 | R123: 13.17868748 | S123: 13.11505193 | T123: 13.11205439 | U123: 13.10798002 | V123: 13.10288364 | W123: 13.09682035 | X123: 13.08984553 | Y123: 13.15284762 | Z123: 13.2088925 | AA123: 13.25813326 | AB123: 13.3007227 | AC123: 13.3368133 | AD123: 13.6145546 | AE123: 13.88602557 | AF123: 14.15105397 | AG123: 14.40946606 | AH123: 14.66108661 | AI123: 14.40222546 | AJ123: 14.49164418 | AK123: 14.54714254 | AL123: 14.55670311 | AM123: 14.5051855 | AN123: 14.20632165 | AO123: 13.8122887 | AP123: 13.31675243 | AQ123: 12.71561644 | AR123: 12.02394173 | AS123: 11.25370332 | AT123: 10.41491656 | AU123: 9.449971709 | AV123: 8.461149249 | AW123: 7.486159129 | AX123: 6.49230602 | AY123: 5.546455212 | AZ123: 4.678773129 | BA123: 3.890473674 | BB123: 3.191469298 | BC123: 2.588555032 | BD123: 2.081318672 | BE123: 1.663283293 | BF123: 1.33269904 | BG123: 1.063838069 | BH123: 0.8484319299 | BI123: 0.6928445533 | BJ123: 0.5815487873 | BK123: 0.5025608952 | BL123: 0.4469443434 | BM123: 0.4027541135 | BN123: 0.3711075913 | BO123: 0.3488231568 | BP123: 0.3308251175 | BQ123: 0.3156623391
E124: Total | G124: Mt CO2e | H124: Best-in-class 1 | I124: 13.06435405 | J124: 13.13774764 | K124: 13.21176336 | L124: 13.28640799 | M124: 13.36168843 | N124: 13.4376117 | O124: 13.37218217 | P124: 13.30723202 | Q124: 13.24274065 | R124: 13.17868748 | S124: 13.11505193 | T124: 13.11205439 | U124: 13.10798002 | V124: 13.10288364 | W124: 13.09682035 | X124: 13.08984553 | Y124: 13.15284762 | Z124: 13.2088925 | AA124: 13.25813326 | AB124: 13.3007227 | AC124: 13.3368133 | AD124: 13.6145546 | AE124: 13.88602557 | AF124: 14.15105397 | AG124: 14.40946606 | AH124: 14.66108661 | AI124: 14.49978291 | AJ124: 14.68975863 | AK124: 14.87292513 | AL124: 15.04804287 | AM124: 15.21335034 | AN124: 15.18196969 | AO124: 15.1287815 | AP124: 15.05485838 | AQ124: 14.95680283 | AR124: 14.83552147 | AS124: 14.72796585 | AT124: 14.58209465 | AU124: 14.37906192 | AV124: 14.12771223 | AW124: 13.83072353 | AX124: 13.46252675 | AY124: 13.03426119 | AZ124: 12.5527937 | BA124: 12.01559348 | BB124: 11.42785886 | BC124: 10.81967176 | BD124: 10.17491764 | BE124: 9.497720746 | BF124: 8.806500634 | BG124: 8.067149083 | BH124: 7.313468287 | BI124: 6.581070047 | BJ124: 5.880524101 | BK124: 5.2188848 | BL124: 4.609953179 | BM124: 3.982634061 | BN124: 3.417850668 | BO124: 2.914790136 | BP124: 2.473257425 | BQ124: 2.087939839
E125: Total | G125: Mt CO2e | H125: Best-in-class 2 | I125: 13.06435405 | J125: 13.13774764 | K125: 13.21176336 | L125: 13.28640799 | M125: 13.36168843 | N125: 13.4376117 | O125: 13.37218217 | P125: 13.30723202 | Q125: 13.24274065 | R125: 13.17868748 | S125: 13.11505193 | T125: 13.11205439 | U125: 13.10798002 | V125: 13.10288364 | W125: 13.09682035 | X125: 13.08984553 | Y125: 13.15284762 | Z125: 13.2088925 | AA125: 13.25813326 | AB125: 13.3007227 | AC125: 13.3368133 | AD125: 13.6145546 | AE125: 13.88602557 | AF125: 14.15105397 | AG125: 14.40946606 | AH125: 14.66108661 | AI125: 14.4520509 | AJ125: 14.5933422 | AK125: 14.727252 | AL125: 14.84859565 | AM125: 14.91450986 | AN125: 14.49169421 | AO125: 13.73169714 | AP125: 13.32026123 | AQ125: 13.0547081 | AR125: 12.79466104 | AS125: 12.54222387 | AT125: 12.25744872 | AU125: 11.93917193 | AV125: 11.58510792 | AW125: 11.19980789 | AX125: 10.77740575 | AY125: 10.31534758 | AZ125: 9.815514401 | BA125: 9.281295766 | BB125: 8.717774637 | BC125: 8.150789971 | BD125: 7.565731681 | BE125: 6.971880094 | BF125: 6.378195005 | BG125: 5.793523049 | BH125: 5.203949214 | BI125: 4.639970085 | BJ125: 4.106546388 | BK125: 3.608998308 | BL125: 3.151316865 | BM125: 2.697841667 | BN125: 2.295487361 | BO125: 1.942354971 | BP125: 1.636539429 | BQ125: 1.375102863
E126: Total | G126: Mt CO2e | H126: National scenarios 1 | I126: 13.06435405 | J126: 13.13774764 | K126: 13.21176336 | L126: 13.28640799 | M126: 13.36168843 | N126: 13.4376117 | O126: 13.37218217 | P126: 13.30723202 | Q126: 13.24274065 | R126: 13.17868748 | S126: 13.11505193 | T126: 13.11205439 | U126: 13.10798002 | V126: 13.10288364 | W126: 13.09682035 | X126: 13.08984553 | Y126: 13.15284762 | Z126: 13.2088925 | AA126: 13.25813326 | AB126: 13.3007227 | AC126: 13.3368133 | AD126: 13.6145546 | AE126: 13.88602557 | AF126: 14.15105397 | AG126: 14.40946606 | AH126: 14.66108661 | AI126: 14.68685848 | AJ126: 15.00934703 | AK126: 15.37363363 | AL126: 15.74145051 | AM126: 16.11276714 | AN126: =IF(AN256-(AN$258*(1-AN$119))>0, AN256-(AN$258*(1-AN$119)),0) -> 16.31942596 | AO126: 16.47089601 | AP126: 16.6128288 | AQ126: 16.74776785 | AR126: 16.87519918 | AS126: 17.04143343 | AT126: 17.21729183 | AU126: 17.38384788 | AV126: 17.54215341 | AW126: 17.69231908 | AX126: 17.87541582 | AY126: 18.03225789 | AZ126: 18.18216758 | BA126: 18.32508224 | BB126: 18.4609067 | BC126: 18.63287974 | BD126: 18.79431027 | BE126: 18.94953164 | BF126: 19.09878136 | BG126: 19.24202762 | BH126: 19.38495528 | BI126: 19.49983218 | BJ126: 19.61083228 | BK126: 19.71737927 | BL126: 19.81947936 | BM126: 19.83135353 | BN126: 19.82188462 | BO126: 19.80842264 | BP126: 19.79082604 | BQ126: 19.76932198
E127: Total | G127: Mt CO2e | H127: National scenarios 2 | I127: 13.06435405 | J127: 13.13774764 | K127: 13.21176336 | L127: 13.28640799 | M127: 13.36168843 | N127: 13.4376117 | O127: 13.37218217 | P127: 13.30723202 | Q127: 13.24274065 | R127: 13.17868748 | S127: 13.11505193 | T127: 13.11205439 | U127: 13.10798002 | V127: 13.10288364 | W127: 13.09682035 | X127: 13.08984553 | Y127: 13.15284762 | Z127: 13.2088925 | AA127: 13.25813326 | AB127: 13.3007227 | AC127: 13.3368133 | AD127: 13.6145546 | AE127: 13.88602557 | AF127: 14.15105397 | AG127: 14.40946606 | AH127: 14.66108661 | AI127: 14.94284665 | AJ127: 15.22409766 | AK127: 15.50478922 | AL127: 15.78512405 | AM127: 16.06508217 | AN127: 16.21174276 | AO127: 16.35292769 | AP127: 16.48803887 | AQ127: 16.61642556 | AR127: 16.73757516 | AS127: 16.95650132 | AT127: 17.16710543 | AU127: 17.36927144 | AV127: 17.56304607 | AW127: 17.74835966 | AX127: 17.95176849 | AY127: 18.14959194 | AZ127: 18.34165528 | BA127: 18.52778653 | BB127: 18.70781108 | BC127: 18.92856261 | BD127: 19.14576667 | BE127: 19.35936804 | BF127: 19.56932773 | BG127: 19.77560316 | BH127: 19.9459528 | BI127: 20.1142558 | BJ127: 20.28054998 | BK127: 20.44486191 | BL127: 20.60725604 | BM127: 20.65293072 | BN127: 20.69596805 | BO127: 20.73666554 | BP127: 20.77537994 | BQ127: 20.81240905
E128: Total | G128: Mt CO2e | H128: Current Development Scenario (CDS) | I128: =I258*I119 -> 13.06435405 | J128: =J258*J119 -> 13.13774764 | K128: 13.21176336 | L128: 13.28640799 | M128: 13.36168843 | N128: 13.4376117 | O128: 13.37218217 | P128: 13.30723202 | Q128: 13.24274065 | R128: 13.17868748 | S128: 13.11505193 | T128: 13.11205439 | U128: 13.10798002 | V128: 13.10288364 | W128: 13.09682035 | X128: 13.08984553 | Y128: 13.15284762 | Z128: 13.2088925 | AA128: 13.25813326 | AB128: 13.3007227 | AC128: 13.3368133 | AD128: 13.6145546 | AE128: 13.88602557 | AF128: 14.15105397 | AG128: 14.40946606 | AH128: 14.66108661 | AI128: 14.94284665 | AJ128: 15.22409766 | AK128: 15.50478922 | AL128: 15.78512405 | AM128: 16.06508217 | AN128: 16.21174276 | AO128: 16.35292769 | AP128: 16.48803887 | AQ128: 16.61642556 | AR128: 16.73757516 | AS128: 16.95650132 | AT128: 17.16710543 | AU128: 17.36927144 | AV128: 17.56304607 | AW128: 17.74835966 | AX128: 17.95176849 | AY128: 18.14959194 | AZ128: 18.34165528 | BA128: 18.52778653 | BB128: 18.70781108 | BC128: 18.92856261 | BD128: 19.14576667 | BE128: 19.35936804 | BF128: 19.56932773 | BG128: 19.77560316 | BH128: 19.9459528 | BI128: 20.1142558 | BJ128: 20.28054998 | BK128: 20.44486191 | BL128: 20.60725604 | BM128: 20.65293072 | BN128: 20.69596805 | BO128: 20.73666554 | BP128: 20.77537994 | BQ128: 20.81240905
D131: ID | E131: Sector | F131: Setting | G131: Unit | H131: Scenario name | I131: 1990 | J131: 1991 | K131: 1992 | L131: 1993 | M131: 1994 | N131: 1995 | O131: 1996 | P131: 1997 | Q131: 1998 | R131: 1999 | S131: 2000 | T131: 2001 | U131: 2002 | V131: 2003 | W131: 2004 | X131: 2005 | Y131: 2006 | Z131: 2007 | AA131: 2008 | AB131: 2009 | AC131: 2010 | AD131: 2011 | AE131: 2012 | AF131: 2013 | AG131: 2014 | AH131: 2015 | AI131: 2016 | AJ131: 2017 | AK131: 2018 | AL131: 2019 | AM131: 2020 | AN131: 2021 | AO131: 2022 | AP131: 2023 | AQ131: 2024 | AR131: 2025 | AS131: 2026 | AT131: 2027 | AU131: 2028 | AV131: 2029 | AW131: 2030 | AX131: 2031 | AY131: 2032 | AZ131: 2033 | BA131: 2034 | BB131: 2035 | BC131: 2036 | BD131: 2037 | BE131: 2038 | BF131: 2039 | BG131: 2040 | BH131: 2041 | BI131: 2042 | BJ131: 2043 | BK131: 2044 | BL131: 2045 | BM131: 2046 | BN131: 2047 | BO131: 2048 | BP131: 2049 | BQ131: 2050
D132: =$E132 & "_" & $F132&"_" & $G132 -> Total_Set1_Mt CO2e | E132: Total | F132: Set1 | G132: Mt CO2e | H132: =INDEX(Scen2Name,1,MATCH($F132,Scen2Number,0)) -> Paris compatible - upper end of ambition | I132: =INDEX(MacroOutputs,MATCH($D132,MacroOutputs_ID,0),MATCH(I$131,MacroOutputs_head,0)) -> 317.8789299 | J132: 317.8823091 | K132: 312.5613906 | L132: 331.0699108 | M132: 329.5114722 | N132: 339.8994573 | O132: 352.3881496 | P132: 368.2253861 | Q132: 379.544239 | R132: 364.7515457 | S132: =INDEX(MacroOutputs,MATCH($D132,MacroOutputs_ID,0),MATCH(S$131,MacroOutputs_head,0)) -> 365.1512375 | T132: 365.9125899 | U132: 376.039733 | V132: 394.3733117 | W132: 426.68494 | X132: 427.0729499 | Y132: 440.3446059 | Z132: 442.8546398 | AA132: 477.1903037 | AB132: 465.8747577 | AC132: =INDEX(MacroOutputs,MATCH($D132,MacroOutputs_ID,0),MATCH(AC$131,MacroOutputs_head,0)) -> 468.328693 | AD132: 457.1556195 | AE132: 472.7903153 | AF132: 486.775867 | AG132: 507.9439213 | AH132: 509.5342013 | AI132: 505.1236544 | AJ132: 501.3836737 | AK132: 495.7177278 | AL132: 509.2113148 | AM132: =INDEX(MacroOutputs,MATCH($D132,MacroOutputs_ID,0),MATCH(AM$131,MacroOutputs_head,0)) -> 503.9761794 | AN132: 498.3155885 | AO132: 492.9907187 | AP132: 487.5409875 | AQ132: 482.0640846 | AR132: 476.4227958 | AS132: 471.1822796 | AT132: 466.0533797 | AU132: 460.6000332 | AV132: 454.8155716 | AW132: =INDEX(MacroOutputs,MATCH($D132,MacroOutputs_ID,0),MATCH(AW$131,MacroOutputs_head,0)) -> 448.7747404 | AX132: 443.4695665 | AY132: 439.2733272 | AZ132: 435.1268328 | BA132: 430.9570258 | BB132: 426.7784967 | BC132: 422.2308336 | BD132: 417.994716 | BE132: 413.8121963 | BF132: 409.7184918 | BG132: =INDEX(MacroOutputs,MATCH($D132,MacroOutputs_ID,0),MATCH(BG$131,MacroOutputs_head,0)) -> 405.7106988 | BH132: 404.3419167 | BI132: 403.1085996 | BJ132: 401.8747515 | BK132: 400.6183003 | BL132: 399.3281912 | BM132: 397.3240376 | BN132: 395.4817626 | BO132: 393.6265249 | BP132: 391.769534 | BQ132: 389.9195539
D133: =$E133 & "_" & $F133&"_" & $G133 -> Total_Set2_Mt CO2e | E133: Total | F133: Set2 | G133: Mt CO2e | H133: Paris compatible - lower end of ambition | I133: 317.8789299 | J133: 317.8823091 | K133: 312.5613906 | L133: 331.0699108 | M133: 329.5114722 | N133: 339.8994573 | O133: 352.3881496 | P133: 368.2253861 | Q133: 379.544239 | R133: 364.7515457 | S133: 365.1512375 | T133: 365.9125899 | U133: 376.039733 | V133: 394.3733117 | W133: 426.68494 | X133: 427.0729499 | Y133: 440.3446059 | Z133: 442.8546398 | AA133: 477.1903037 | AB133: 465.8747577 | AC133: 468.328693 | AD133: 457.1556195 | AE133: 472.7903153 | AF133: 486.775867 | AG133: 507.9439213 | AH133: 509.5342013 | AI133: 505.1967248 | AJ133: 501.5242001 | AK133: 495.9266775 | AL133: 509.4833016 | AM133: 504.4752306 | AN133: 499.0305357 | AO133: 493.8970141 | AP133: 488.6315271 | AQ133: 483.3361488 | AR133: 477.8584021 | AS133: 472.7537378 | AT133: 467.7369761 | AU133: 462.3685271 | AV133: 456.6455924 | AW133: 450.6342934 | AX133: 445.4003089 | AY133: 441.2576863 | AZ133: 437.1504928 | BA133: 433.0028263 | BB133: 428.8273298 | BC133: 424.261984 | BD133: 419.9865534 | BE133: 415.745291 | BF133: 411.5742651 | BG133: 407.4695509 | BH133: 406.0652351 | BI133: 404.7814923 | BJ133: 403.4852504 | BK133: 402.1527379 | BL133: 400.7726946 | BM133: 398.6684108 | BN133: 396.7111511 | BO133: 394.7282288 | BP133: 392.7335206 | BQ133: 390.7383783
D134: Total_Set3_Mt CO2e | E134: Total | F134: Set3 | G134: Mt CO2e | H134: Best-in-class 1 | I134: 317.8789299 | J134: 317.8823091 | K134: 312.5613906 | L134: 331.0699108 | M134: 329.5114722 | N134: 339.8994573 | O134: 352.3881496 | P134: 368.2253861 | Q134: 379.544239 | R134: 364.7515457 | S134: 365.1512375 | T134: 365.9125899 | U134: 376.039733 | V134: 394.3733117 | W134: 426.68494 | X134: 427.0729499 | Y134: 440.3446059 | Z134: 442.8546398 | AA134: 477.1903037 | AB134: 465.8747577 | AC134: 468.328693 | AD134: 457.1556195 | AE134: 472.7903153 | AF134: 486.775867 | AG134: 507.9439213 | AH134: 509.5342013 | AI134: 510.9880245 | AJ134: 516.6338934 | AK134: 517.4211035 | AL134: 540.9722993 | AM134: 543.190003 | AN134: 544.9836199 | AO134: 547.1483969 | AP134: 549.3863771 | AQ134: 551.847986 | AR134: 551.2450526 | AS134: 551.2554341 | AT134: 551.560727 | AU134: 554.7833508 | AV134: 551.6215414 | AW134: 547.842942 | AX134: 539.9341378 | AY134: 529.9980733 | AZ134: 529.259293 | BA134: 519.0877976 | BB134: 505.8013223 | BC134: 494.9214471 | BD134: 481.4611885 | BE134: 470.959369 | BF134: 463.3123855 | BG134: 452.8515797 | BH134: 443.6549399 | BI134: 432.1551407 | BJ134: 426.1856787 | BK134: 422.9381857 | BL134: 414.782673 | BM134: 408.6465888 | BN134: 402.9666645 | BO134: 399.9103628 | BP134: 397.0634804 | BQ134: 396.6578371
D135: Total_Set4_Mt CO2e | E135: Total | F135: Set4 | G135: Mt CO2e | H135: Best-in-class 2 | I135: 317.8789299 | J135: 317.8823091 | K135: 312.5613906 | L135: 331.0699108 | M135: 329.5114722 | N135: 339.8994573 | O135: 352.3881496 | P135: 368.2253861 | Q135: 379.544239 | R135: 364.7515457 | S135: 365.1512375 | T135: 365.9125899 | U135: 376.039733 | V135: 394.3733117 | W135: 426.68494 | X135: 427.0729499 | Y135: 440.3446059 | Z135: 442.8546398 | AA135: 477.1903037 | AB135: 465.8747577 | AC135: 468.328693 | AD135: 457.1556195 | AE135: 472.7903153 | AF135: 486.775867 | AG135: 507.9439213 | AH135: 509.5342013 | AI135: 511.5422469 | AJ135: 514.2674689 | AK135: 515.0266892 | AL135: 535.5674531 | AM135: 537.7687007 | AN135: 539.5775722 | AO135: 541.7436715 | AP135: 543.9798328 | AQ135: 546.462423 | AR135: 548.9146726 | AS135: 552.0535367 | AT135: 555.5699625 | AU135: 559.0065391 | AV135: 562.370408 | AW135: 565.3792919 | AX135: 563.0544287 | AY135: 561.8466615 | AZ135: 560.5447643 | BA135: 559.1283912 | BB135: 557.6043803 | BC135: 555.2207019 | BD135: 553.1869351 | BE135: 551.0529653 | BF135: 548.8600586 | BG135: 546.5984607 | BH135: 544.9128593 | BI135: 543.2758516 | BJ135: 541.5417772 | BK135: 539.6970461 | BL135: 537.7619244 | BM135: 534.7640257 | BN135: 532.1173968 | BO135: 529.42735 | BP135: 526.7089809 | BQ135: 523.9759794
D136: Total_Set5_Mt CO2e | E136: Total | F136: Set5 | G136: Mt CO2e | H136: National scenarios 1 | I136: 317.8789299 | J136: 317.8823091 | K136: 312.5613906 | L136: 331.0699108 | M136: 329.5114722 | N136: 339.8994573 | O136: 352.3881496 | P136: 368.2253861 | Q136: 379.544239 | R136: 364.7515457 | S136: 365.1512375 | T136: 365.9125899 | U136: 376.039733 | V136: 394.3733117 | W136: 426.68494 | X136: 427.0729499 | Y136: 440.3446059 | Z136: 442.8546398 | AA136: 477.1903037 | AB136: 465.8747577 | AC136: 468.328693 | AD136: 457.1556195 | AE136: 472.7903153 | AF136: 486.775867 | AG136: 507.9439213 | AH136: 509.5342013 | AI136: 510.7553245 | AJ136: 512.7457794 | AK136: 512.6914591 | AL136: 532.3079829 | AM136: 533.569779 | AN136: 542.5233953 | AO136: 550.5895931 | AP136: 557.0641405 | AQ136: 564.0390696 | AR136: 570.1850229 | AS136: 567.9946153 | AT136: 563.9836894 | AU136: 554.4247856 | AV136: 544.2443167 | AW136: 542.7304098 | AX136: 528.4202376 | AY136: 511.1253797 | AZ136: 504.4253126 | BA136: 492.8206446 | BB136: 494.7451462 | BC136: 488.5260082 | BD136: 476.1333248 | BE136: 470.2149191 | BF136: 457.4326343 | BG136: 450.154622 | BH136: 449.7566261 | BI136: 438.926817 | BJ136: 440.3582044 | BK136: 440.1141471 | BL136: 441.1593841 | BM136: 441.7342684 | BN136: 442.5062097 | BO136: 443.0018412 | BP136: 445.0802104 | BQ136: 445.118937
D137: Total_Set6_Mt CO2e | E137: Total | F137: Set6 | G137: Mt CO2e | H137: National scenarios 2 | I137: 317.8789299 | J137: 317.8823091 | K137: 312.5613906 | L137: 331.0699108 | M137: 329.5114722 | N137: 339.8994573 | O137: 352.3881496 | P137: 368.2253861 | Q137: 379.544239 | R137: 364.7515457 | S137: 365.1512375 | T137: 365.9125899 | U137: 376.039733 | V137: 394.3733117 | W137: 426.68494 | X137: 427.0729499 | Y137: 440.3446059 | Z137: 442.8546398 | AA137: 477.1903037 | AB137: 465.8747577 | AC137: 468.328693 | AD137: 457.1556195 | AE137: 472.7903153 | AF137: 486.775867 | AG137: 507.9439213 | AH137: 509.5342013 | AI137: 509.4061407 | AJ137: 509.8800761 | AK137: 508.3715012 | AL137: 526.3360757 | AM137: 526.0436876 | AN137: 525.3007425 | AO137: 524.8798485 | AP137: 524.4244137 | AQ137: 524.0939396 | AR137: 523.6677937 | AS137: 523.8480248 | AT137: 524.2850757 | AU137: 524.5403484 | AV137: 524.5919057 | AW137: 524.4243741 | AX137: 517.7817141 | AY137: 512.2321832 | AZ137: 506.6288285 | BA137: 500.8968874 | BB137: 495.0305324 | BC137: 488.5556574 | BD137: 482.3093056 | BE137: 475.9579633 | BF137: 469.5419111 | BG137: 463.0667942 | BH137: 463.6173095 | BI137: 464.1765578 | BJ137: 464.6633565 | BK137: 465.0518291 | BL137: 465.3370702 | BM137: 464.6603341 | BN137: 464.1391828 | BO137: 463.5393088 | BP137: 462.8827173 | BQ137: 462.185929
D138: Total_Set7_Mt CO2e | E138: Total | F138: Set7 | G138: Mt CO2e | H138: Current Development Scenario (CDS) | I138: 317.8789299 | J138: 317.8823091 | K138: 312.5613906 | L138: 331.0699108 | M138: 329.5114722 | N138: 339.8994573 | O138: 352.3881496 | P138: 368.2253861 | Q138: 379.544239 | R138: 364.7515457 | S138: 365.1512375 | T138: 365.9125899 | U138: 376.039733 | V138: 394.3733117 | W138: 426.68494 | X138: 427.0729499 | Y138: 440.3446059 | Z138: 442.8546398 | AA138: 477.1903037 | AB138: 465.8747577 | AC138: 468.328693 | AD138: 457.1556195 | AE138: 472.7903153 | AF138: 486.775867 | AG138: 507.9439213 | AH138: 509.5342013 | AI138: 517.3363637 | AJ138: 522.4813644 | AK138: 525.8230326 | AL138: 549.2526353 | AM138: 554.2379126 | AN138: 558.9736233 | AO138: 564.1682714 | AP138: 569.5961293 | AQ138: 575.4922337 | AR138: 581.480239 | AS138: 584.8959757 | AT138: 588.982622 | AU138: 593.2373473 | AV138: 597.6852413 | AW138: 602.1922311 | AX138: 604.2194647 | AY138: 607.4844345 | AZ138: 610.7596452 | BA138: 614.0249451 | BB138: 617.2964748 | BC138: 619.7285501 | BD138: 622.6986903 | BE138: 625.6174298 | BF138: 628.5569757 | BG138: 631.4618821 | BH138: 632.7821435 | BI138: 635.0983445 | BJ138: 637.2605035 | BK138: 639.2657344 | BL138: 641.1077645 | BM138: 641.6187697 | BN138: 642.5264035 | BO138: 643.298377 | BP138: 643.9287581 | BQ138: 644.4358079
D139: Total_Set8_Mt CO2e | E139: Total | F139: Set8 | G139: Mt CO2e | H139: IRP3 of Draft IRP update of 2018 | I139: 317.8789299 | J139: 317.8823091 | K139: 312.5613906 | L139: 331.0699108 | M139: 329.5114722 | N139: 339.8994573 | O139: 352.3881496 | P139: 368.2253861 | Q139: 379.544239 | R139: 364.7515457 | S139: 365.1512375 | T139: 365.9125899 | U139: 376.039733 | V139: 394.3733117 | W139: 426.68494 | X139: 427.0729499 | Y139: 440.3446059 | Z139: 442.8546398 | AA139: 477.1903037 | AB139: 465.8747577 | AC139: 468.328693 | AD139: 457.1556195 | AE139: 472.7903153 | AF139: 486.775867 | AG139: 507.9439213 | AH139: 509.5342013 | AI139: 511.1893236 | AJ139: 513.0805568 | AK139: 513.1178259 | AL139: 532.7519334 | AM139: 534.0526836 | AN139: 535.4686359 | AO139: 537.2242839 | AP139: 539.0238528 | AQ139: 541.0797304 | AR139: 543.0843884 | AS139: 545.8170218 | AT139: 548.8996559 | AU139: 551.8744131 | AV139: 554.7489045 | AW139: 557.4522572 | AX139: 553.7901288 | AY139: 551.1829315 | AZ139: 548.4702864 | BA139: 545.6023475 | BB139: 542.589598 | BC139: 538.8373205 | BD139: 535.3871091 | BE139: 531.7944898 | BF139: 528.1251573 | BG139: 524.3617253 | BH139: 527.4993908 | BI139: 530.9467923 | BJ139: 534.2869546 | BK139: 537.5057305 | BL139: 540.5876735 | BM139: 542.5404907 | BN139: 544.7415831 | BO139: 546.8283996 | BP139: 548.8075493 | BQ139: 550.6964353
D140: Total_Set9_Mt CO2e | E140: Total | F140: Set9 | G140: Mt CO2e | H140: 0
D141: Total_Set10_Mt CO2e | E141: Total | F141: Set10 | G141: Mt CO2e | H141: 0
D142: Electricity_Set1_Mt CO2e | E142: Electricity | F142: Set1 | G142: Mt CO2e | H142: Paris compatible - upper end of ambition | I142: =INDEX(MacroOutputs,MATCH($D142,MacroOutputs_ID,0),MATCH(I$131,MacroOutputs_head,0)) -> 144.6101069 | J142: 146.532067 | K142: 144.2148849 | L142: 155.1617924 | M142: 155.8629581 | N142: 169.0208825 | O142: 171.5220644 | P142: 178.6927118 | Q142: 191.2123632 | R142: 184.1982035 | S142: =INDEX(MacroOutputs,MATCH($D142,MacroOutputs_ID,0),MATCH(S$131,MacroOutputs_head,0)) -> 181.6626887 | T142: 184.0360246 | U142: 182.9330951 | V142: 198.4381097 | W142: 222.1007872 | X142: 213.2635311 | Y142: 217.6643047 | Z142: 222.2341132 | AA142: 252.1487122 | AB142: 234.7508506 | AC142: =INDEX(MacroOutputs,MATCH($D142,MacroOutputs_ID,0),MATCH(AC$131,MacroOutputs_head,0)) -> 248.9787978 | AD142: 236.0635445 | AE142: 241.0009743 | AF142: 243.9418795 | AG142: 257.2310567 | AH142: 258.397467 | AI142: 252.1990341 | AJ142: 242.9079554 | AK142: 232.2340034 | AL142: 227.3866727 | AM142: =INDEX(MacroOutputs,MATCH($D142,MacroOutputs_ID,0),MATCH(AM$131,MacroOutputs_head,0)) -> 217.6165174 | AN142: 207.6676929 | AO142: 197.850338 | AP142: 188.4229217 | AQ142: 179.2373734 | AR142: 169.8864875 | AS142: 160.6927453 | AT142: 151.4957549 | AU142: 142.1023606 | AV142: 132.4828378 | AW142: =INDEX(MacroOutputs,MATCH($D142,MacroOutputs_ID,0),MATCH(AW$131,MacroOutputs_head,0)) -> 122.5012985 | AX142: 115.3364753 | AY142: 108.2627844 | AZ142: 101.1208975 | BA142: 93.95651272 | BB142: 86.77923356 | BC142: 79.33410854 | BD142: 72.04199137 | BE142: 64.76623835 | BF142: 57.52533018 | BG142: =INDEX(MacroOutputs,MATCH($D142,MacroOutputs_ID,0),MATCH(BG$131,MacroOutputs_head,0)) -> 50.32408997 | BH142: 45.98833739 | BI142: 41.66559978 | BJ142: 37.34520401 | BK142: 33.0344468 | BL142: 28.74234327 | BM142: 24.41205542 | BN142: 20.16786623 | BO142: 15.9602589 | BP142: 11.79172714 | BQ142: 7.665037168
D143: Electricity_Set2_Mt CO2e | E143: Electricity | F143: Set2 | G143: Mt CO2e | H143: Paris compatible - lower end of ambition | I143: 144.6101069 | J143: 146.532067 | K143: 144.2148849 | L143: 155.1617924 | M143: 155.8629581 | N143: 169.0208825 | O143: 171.5220644 | P143: 178.6927118 | Q143: 191.2123632 | R143: 184.1982035 | S143: 181.6626887 | T143: 184.0360246 | U143: 182.9330951 | V143: 198.4381097 | W143: 222.1007872 | X143: 213.2635311 | Y143: 217.6643047 | Z143: 222.2341132 | AA143: 252.1487122 | AB143: 234.7508506 | AC143: 248.9787978 | AD143: 236.0635445 | AE143: 241.0009743 | AF143: 243.9418795 | AG143: 257.2310567 | AH143: 258.397467 | AI143: 252.2976727 | AJ143: 243.0986435 | AK143: 232.5094811 | AL143: 227.7319492 | AM143: 218.1539354 | AN143: 208.3830485 | AO143: 198.7135459 | AP143: 189.4405975 | AQ143: 180.4160031 | AR143: 171.2061719 | AS143: 162.1266707 | AT143: 153.0198596 | AU143: 143.7086181 | AV143: 134.1612273 | AW143: 124.2167399 | AX143: 117.0784992 | AY143: 110.0024947 | AZ143: 102.8336424 | BA143: 95.63137422 | BB143: 88.40600321 | BC143: 80.89888915 | BD143: 73.53196479 | BE143: 66.16968914 | BF143: 58.82825804 | BG143: 51.51196626 | BH143: 47.11809331 | BI143: 42.72775457 | BJ143: 38.33069181 | BK143: 33.93472816 | BL143: 29.55063252 | BM143: 25.12369546 | BN143: 20.77596142 | BO143: 16.45739248 | BP143: 12.17044897 | BQ143: 7.918285575
D144: Electricity_Set3_Mt CO2e | E144: Electricity | F144: Set3 | G144: Mt CO2e | H144: Best-in-class 1 | I144: 144.6101069 | J144: 146.532067 | K144: 144.2148849 | L144: 155.1617924 | M144: 155.8629581 | N144: 169.0208825 | O144: 171.5220644 | P144: 178.6927118 | Q144: 191.2123632 | R144: 184.1982035 | S144: 181.6626887 | T144: 184.0360246 | U144: 182.9330951 | V144: 198.4381097 | W144: 222.1007872 | X144: 213.2635311 | Y144: 217.6643047 | Z144: 222.2341132 | AA144: 252.1487122 | AB144: 234.7508506 | AC144: 248.9787978 | AD144: 236.0635445 | AE144: 241.0009743 | AF144: 243.9418795 | AG144: 257.2310567 | AH144: 258.397467 | AI144: 257.9774101 | AJ144: 257.9821115 | AK144: 253.6344375 | AL144: 258.6683512 | AM144: 255.9514843 | AN144: 253.0101886 | AO144: 250.1600277 | AP144: 247.8602906 | AQ144: 246.0074978 | AR144: 241.0301827 | AS144: 236.3437073 | AT144: 231.8171741 | AU144: 230.3016491 | AV144: 222.568645 | AW144: 214.217537 | AX144: 203.8102876 | AY144: 190.4400605 | AZ144: 186.2587533 | BA144: 172.7939623 | BB144: 156.3668716 | BC144: 142.5745473 | BD144: 126.1876121 | BE144: 112.8526764 | BF144: 102.4226015 | BG144: 89.24279329 | BH144: 77.60732133 | BI144: 63.59103059 | BJ144: 55.1215114 | BK144: 49.4053362 | BL144: 38.81432446 | BM144: 30.95849892 | BN144: 23.44476399 | BO144: 18.55946796 | BP144: 13.86989402 | BQ144: 11.60214198
D145: Electricity_Set4_Mt CO2e | E145: Electricity | F145: Set4 | G145: Mt CO2e | H145: Best-in-class 2 | I145: 144.6101069 | J145: 146.532067 | K145: 144.2148849 | L145: 155.1617924 | M145: 155.8629581 | N145: 169.0208825 | O145: 171.5220644 | P145: 178.6927118 | Q145: 191.2123632 | R145: 184.1982035 | S145: 181.6626887 | T145: 184.0360246 | U145: 182.9330951 | V145: 198.4381097 | W145: 222.1007872 | X145: 213.2635311 | Y145: 217.6643047 | Z145: 222.2341132 | AA145: 252.1487122 | AB145: 234.7508506 | AC145: 248.9787978 | AD145: 236.0635445 | AE145: 241.0009743 | AF145: 243.9418795 | AG145: 257.2310567 | AH145: 258.397467 | AI145: 258.5527386 | AJ145: 255.6574715 | AK145: 251.2941637 | AL145: 253.324882 | AM145: 250.6492051 | AN145: 248.0727501 | AO145: 245.8862851 | AP145: 243.8897432 | AQ145: 242.2013428 | AR145: 240.3953928 | AS145: 238.9623636 | AT145: 237.7681083 | AU145: 236.568931 | AV145: 235.4613691 | AW145: 233.9635224 | AX145: 229.173078 | AY145: 224.5389178 | AZ145: 219.7818827 | BA145: 215.0447468 | BB145: 210.339592 | BC145: 204.9913528 | BD145: 199.967028 | BE145: 194.9165419 | BF145: 189.8437472 | BG145: 184.7073963 | BH145: 180.411225 | BI145: 176.0830779 | BJ145: 171.6752603 | BK145: 167.1935153 | BL145: 162.6719627 | BM145: 157.7871251 | BN145: 153.15665 | BO145: 148.5043332 | BP145: 143.8259007 | BQ145: 139.1252481
D146: Electricity_Set5_Mt CO2e | E146: Electricity | F146: Set5 | G146: Mt CO2e | H146: National scenarios 1 | I146: 144.6101069 | J146: 146.532067 | K146: 144.2148849 | L146: 155.1617924 | M146: 155.8629581 | N146: 169.0208825 | O146: 171.5220644 | P146: 178.6927118 | Q146: 191.2123632 | R146: 184.1982035 | S146: 181.6626887 | T146: 184.0360246 | U146: 182.9330951 | V146: 198.4381097 | W146: 222.1007872 | X146: 213.2635311 | Y146: 217.6643047 | Z146: 222.2341132 | AA146: 252.1487122 | AB146: 234.7508506 | AC146: 248.9787978 | AD146: 236.0635445 | AE146: 241.0009743 | AF146: 243.9418795 | AG146: 257.2310567 | AH146: 258.397467 | AI146: 257.5870684 | AJ146: 253.694735 | AK146: 248.306153 | AL146: 249.2027499 | AM146: 245.3176695 | AN146: 249.4115874 | AO146: 252.2640033 | AP146: 253.9802164 | AQ146: 256.4000922 | AR146: 257.9150888 | AS146: 250.7473226 | AT146: 241.5753381 | AU146: 226.8977662 | AV146: 211.7226102 | AW146: 205.1271558 | AX146: 187.7431193 | AY146: 166.3700277 | AZ146: 155.5353337 | BA146: 139.8969749 | BB146: 137.8996795 | BC146: 127.9404249 | BD146: 111.7654808 | BE146: 102.1354165 | BF146: 85.68612342 | BG146: 74.7631365 | BH146: 70.99905121 | BI146: 56.75853483 | BJ146: 54.83202531 | BK146: 51.30774838 | BL146: 49.16851465 | BM146: 47.36484287 | BN146: 45.72602977 | BO146: 43.88975676 | BP146: 43.69322084 | BQ146: 41.50082563
D147: Electricity_Set6_Mt CO2e | E147: Electricity | F147: Set6 | G147: Mt CO2e | H147: National scenarios 2 | I147: 144.6101069 | J147: 146.532067 | K147: 144.2148849 | L147: 155.1617924 | M147: 155.8629581 | N147: 169.0208825 | O147: 171.5220644 | P147: 178.6927118 | Q147: 191.2123632 | R147: 184.1982035 | S147: 181.6626887 | T147: 184.0360246 | U147: 182.9330951 | V147: 198.4381097 | W147: 222.1007872 | X147: 213.2635311 | Y147: 217.6643047 | Z147: 222.2341132 | AA147: 252.1487122 | AB147: 234.7508506 | AC147: 248.9787978 | AD147: 236.0635445 | AE147: 241.0009743 | AF147: 243.9418795 | AG147: 257.2310567 | AH147: 258.397467 | AI147: 255.8602862 | AJ147: 250.5115592 | AK147: 243.6757877 | AL147: 242.9149824 | AM147: 237.486597 | AN147: 231.7429615 | AO147: 226.0298188 | AP147: 220.7653541 | AQ147: 215.8464642 | AR147: 210.7584605 | AS147: 205.8734685 | AT147: 201.0852201 | AU147: 196.1676958 | AV147: 191.1890585 | AW147: 185.902302 | AX147: 176.1250219 | AY147: 166.4395601 | AZ147: 156.6326679 | BA147: 146.8059767 | BB147: 136.9668456 | BC147: 126.6953758 | BD147: 116.6179511 | BE147: 106.5084301 | BF147: 96.37631597 | BG147: 86.20113475 | BH147: 83.33507987 | BI147: 80.43030164 | BJ147: 77.50232211 | BK147: 74.5538954 | BL147: 71.60128531 | BM147: 68.51794241 | BN147: 65.55670069 | BO147: 62.59868822 | BP147: 59.64060443 | BQ147: 56.68344524
D148: Electricity_Set7_Mt CO2e | E148: Electricity | F148: Set7 | G148: Mt CO2e | H148: Current Development Scenario (CDS) | I148: 144.6101069 | J148: 146.532067 | K148: 144.2148849 | L148: 155.1617924 | M148: 155.8629581 | N148: 169.0208825 | O148: 171.5220644 | P148: 178.6927118 | Q148: 191.2123632 | R148: 184.1982035 | S148: 181.6626887 | T148: 184.0360246 | U148: 182.9330951 | V148: 198.4381097 | W148: 222.1007872 | X148: 213.2635311 | Y148: 217.6643047 | Z148: 222.2341132 | AA148: 252.1487122 | AB148: 234.7508506 | AC148: 248.9787978 | AD148: 236.0635445 | AE148: 241.0009743 | AF148: 243.9418795 | AG148: 257.2310567 | AH148: 258.397467 | AI148: 263.7161203 | AJ148: 263.0279052 | AK148: 260.9933869 | AL148: 265.6348476 | AM148: 265.4396707 | AN148: 265.1174321 | AO148: 264.959378 | AP148: 265.5415124 | AQ148: 266.8216919 | AR148: 268.1234335 | AS148: 266.445638 | AT148: 265.2800624 | AU148: 264.3442133 | AV148: 263.7597249 | AW148: 263.1423119 | AX148: 262.0271276 | AY148: 261.1454344 | AZ148: 260.2008506 | BA148: 259.367379 | BB148: 258.6740225 | BC148: 257.3209398 | BD148: 256.474434 | BE148: 255.6567202 | BF148: 254.9007323 | BG148: 254.1238708 | BH148: 252.0880206 | BI148: 250.9491256 | BJ148: 249.7047481 | BK148: 248.3803106 | BL148: 246.9967236 | BM148: 245.1184581 | BN148: 243.6076452 | BO148: 242.0460345 | BP148: 240.4006853 | BQ148: 238.671751
D149: Electricity_Set8_Mt CO2e | E149: Electricity | F149: Set8 | G149: Mt CO2e | H149: IRP3 of Draft IRP update of 2018 | I149: 144.6101069 | J149: 146.532067 | K149: 144.2148849 | L149: 155.1617924 | M149: 155.8629581 | N149: 169.0208825 | O149: 171.5220644 | P149: 178.6927118 | Q149: 191.2123632 | R149: 184.1982035 | S149: 181.6626887 | T149: 184.0360246 | U149: 182.9330951 | V149: 198.4381097 | W149: 222.1007872 | X149: 213.2635311 | Y149: 217.6643047 | Z149: 222.2341132 | AA149: 252.1487122 | AB149: 234.7508506 | AC149: 248.9787978 | AD149: 236.0635445 | AE149: 241.0009743 | AF149: 243.9418795 | AG149: 257.2310567 | AH149: 258.397467 | AI149: 257.5690803 | AJ149: 253.6270976 | AK149: 248.2881802 | AL149: 249.1341456 | AM149: 245.2544417 | AN149: 241.6124447 | AO149: 238.0153905 | AP149: 234.9692359 | AQ149: 232.4091885 | AR149: 229.7275829 | AS149: 227.3666841 | AT149: 225.1970962 | AU149: 222.981279 | AV149: 220.8233881 | AW149: 218.4023379 | AX149: 211.5977916 | AY149: 204.8439314 | AZ149: 197.9114918 | BA149: 190.9447814 | BB149: 183.9671456 | BC149: 176.4297102 | BD149: 169.1628528 | BE149: 161.8337802 | BF149: 154.4689139 | BG149: 147.0237141 | BH149: 146.8052679 | BI149: 146.7975734 | BJ149: 146.7311991 | BK149: 146.6203067 | BL149: 146.4766325 | BM149: 146.0401791 | BN149: 145.8228248 | BO149: 145.5760571 | BP149: 145.2794765 | BQ149: 144.9323783
D150: Electricity_Set9_Mt CO2e | E150: Electricity | F150: Set9 | G150: Mt CO2e | H150: 0
D151: Electricity_Set10_Mt CO2e | E151: Electricity | F151: Set10 | G151: Mt CO2e | H151: 0
D152: Heat_Set1_Mt CO2e | E152: Heat | F152: Set1 | G152: Mt CO2e | H152: Paris compatible - upper end of ambition | I152: =INDEX(MacroOutputs,MATCH($D152,MacroOutputs_ID,0),MATCH(I$131,MacroOutputs_head,0)) -> 0 | J152: 0 | K152: 0 | L152: 0 | M152: 0 | N152: 0 | O152: 0 | P152: 0 | Q152: 0 | R152: 0 | S152: =INDEX(MacroOutputs,MATCH($D152,MacroOutputs_ID,0),MATCH(S$131,MacroOutputs_head,0)) -> 0 | T152: 0 | U152: 0 | V152: 0 | W152: 0 | X152: 0 | Y152: 0 | Z152: 0 | AA152: 0 | AB152: 0 | AC152: =INDEX(MacroOutputs,MATCH($D152,MacroOutputs_ID,0),MATCH(AC$131,MacroOutputs_head,0)) -> 0 | AD152: 0 | AE152: 0 | AF152: 0 | AG152: 0 | AH152: 0 | AI152: 0 | AJ152: 0 | AK152: 0 | AL152: 0 | AM152: =INDEX(MacroOutputs,MATCH($D152,MacroOutputs_ID,0),MATCH(AM$131,MacroOutputs_head,0)) -> 0 | AN152: 0 | AO152: 0 | AP152: 0 | AQ152: 0 | AR152: 0 | AS152: 0 | AT152: 0 | AU152: 0 | AV152: 0 | AW152: =INDEX(MacroOutputs,MATCH($D152,MacroOutputs_ID,0),MATCH(AW$131,MacroOutputs_head,0)) -> 0 | AX152: 0 | AY152: 0 | AZ152: 0 | BA152: 0 | BB152: 0 | BC152: 0 | BD152: 0 | BE152: 0 | BF152: 0 | BG152: =INDEX(MacroOutputs,MATCH($D152,MacroOutputs_ID,0),MATCH(BG$131,MacroOutputs_head,0)) -> 0 | BH152: 0 | BI152: 0 | BJ152: 0 | BK152: 0 | BL152: 0 | BM152: 0 | BN152: 0 | BO152: 0 | BP152: 0 | BQ152: 0
D153: Heat_Set2_Mt CO2e | E153: Heat | F153: Set2 | G153: Mt CO2e | H153: Paris compatible - lower end of ambition | I153: 0 | J153: 0 | K153: 0 | L153: 0 | M153: 0 | N153: 0 | O153: 0 | P153: 0 | Q153: 0 | R153: 0 | S153: 0 | T153: 0 | U153: 0 | V153: 0 | W153: 0 | X153: 0 | Y153: 0 | Z153: 0 | AA153: 0 | AB153: 0 | AC153: 0 | AD153: 0 | AE153: 0 | AF153: 0 | AG153: 0 | AH153: 0 | AI153: 0 | AJ153: 0 | AK153: 0 | AL153: 0 | AM153: 0 | AN153: 0 | AO153: 0 | AP153: 0 | AQ153: 0 | AR153: 0 | AS153: 0 | AT153: 0 | AU153: 0 | AV153: 0 | AW153: 0 | AX153: 0 | AY153: 0 | AZ153: 0 | BA153: 0 | BB153: 0 | BC153: 0 | BD153: 0 | BE153: 0 | BF153: 0 | BG153: 0 | BH153: 0 | BI153: 0 | BJ153: 0 | BK153: 0 | BL153: 0 | BM153: 0 | BN153: 0 | BO153: 0 | BP153: 0 | BQ153: 0
D154: Heat_Set3_Mt CO2e | E154: Heat | F154: Set3 | G154: Mt CO2e | H154: Best-in-class 1 | I154: 0 | J154: 0 | K154: 0 | L154: 0 | M154: 0 | N154: 0 | O154: 0 | P154: 0 | Q154: 0 | R154: 0 | S154: 0 | T154: 0 | U154: 0 | V154: 0 | W154: 0 | X154: 0 | Y154: 0 | Z154: 0 | AA154: 0 | AB154: 0 | AC154: 0 | AD154: 0 | AE154: 0 | AF154: 0 | AG154: 0 | AH154: 0 | AI154: 0 | AJ154: 0 | AK154: 0 | AL154: 0 | AM154: 0 | AN154: 0 | AO154: 0 | AP154: 0 | AQ154: 0 | AR154: 0 | AS154: 0 | AT154: 0 | AU154: 0 | AV154: 0 | AW154: 0 | AX154: 0 | AY154: 0 | AZ154: 0 | BA154: 0 | BB154: 0 | BC154: 0 | BD154: 0 | BE154: 0 | BF154: 0 | BG154: 0 | BH154: 0 | BI154: 0 | BJ154: 0 | BK154: 0 | BL154: 0 | BM154: 0 | BN154: 0 | BO154: 0 | BP154: 0 | BQ154: 0
D155: Heat_Set4_Mt CO2e | E155: Heat | F155: Set4 | G155: Mt CO2e | H155: Best-in-class 2 | I155: 0 | J155: 0 | K155: 0 | L155: 0 | M155: 0 | N155: 0 | O155: 0 | P155: 0 | Q155: 0 | R155: 0 | S155: 0 | T155: 0 | U155: 0 | V155: 0 | W155: 0 | X155: 0 | Y155: 0 | Z155: 0 | AA155: 0 | AB155: 0 | AC155: 0 | AD155: 0 | AE155: 0 | AF155: 0 | AG155: 0 | AH155: 0 | AI155: 0 | AJ155: 0 | AK155: 0 | AL155: 0 | AM155: 0 | AN155: 0 | AO155: 0 | AP155: 0 | AQ155: 0 | AR155: 0 | AS155: 0 | AT155: 0 | AU155: 0 | AV155: 0 | AW155: 0 | AX155: 0 | AY155: 0 | AZ155: 0 | BA155: 0 | BB155: 0 | BC155: 0 | BD155: 0 | BE155: 0 | BF155: 0 | BG155: 0 | BH155: 0 | BI155: 0 | BJ155: 0 | BK155: 0 | BL155: 0 | BM155: 0 | BN155: 0 | BO155: 0 | BP155: 0 | BQ155: 0
D156: Heat_Set5_Mt CO2e | E156: Heat | F156: Set5 | G156: Mt CO2e | H156: National scenarios 1 | I156: 0 | J156: 0 | K156: 0 | L156: 0 | M156: 0 | N156: 0 | O156: 0 | P156: 0 | Q156: 0 | R156: 0 | S156: 0 | T156: 0 | U156: 0 | V156: 0 | W156: 0 | X156: 0 | Y156: 0 | Z156: 0 | AA156: 0 | AB156: 0 | AC156: 0 | AD156: 0 | AE156: 0 | AF156: 0 | AG156: 0 | AH156: 0 | AI156: 0 | AJ156: 0 | AK156: 0 | AL156: 0 | AM156: 0 | AN156: 0 | AO156: 0 | AP156: 0 | AQ156: 0 | AR156: 0 | AS156: 0 | AT156: 0 | AU156: 0 | AV156: 0 | AW156: 0 | AX156: 0 | AY156: 0 | AZ156: 0 | BA156: 0 | BB156: 0 | BC156: 0 | BD156: 0 | BE156: 0 | BF156: 0 | BG156: 0 | BH156: 0 | BI156: 0 | BJ156: 0 | BK156: 0 | BL156: 0 | BM156: 0 | BN156: 0 | BO156: 0 | BP156: 0 | BQ156: 0
D157: Heat_Set6_Mt CO2e | E157: Heat | F157: Set6 | G157: Mt CO2e | H157: National scenarios 2 | I157: 0 | J157: 0 | K157: 0 | L157: 0 | M157: 0 | N157: 0 | O157: 0 | P157: 0 | Q157: 0 | R157: 0 | S157: 0 | T157: 0 | U157: 0 | V157: 0 | W157: 0 | X157: 0 | Y157: 0 | Z157: 0 | AA157: 0 | AB157: 0 | AC157: 0 | AD157: 0 | AE157: 0 | AF157: 0 | AG157: 0 | AH157: 0 | AI157: 0 | AJ157: 0 | AK157: 0 | AL157: 0 | AM157: 0 | AN157: 0 | AO157: 0 | AP157: 0 | AQ157: 0 | AR157: 0 | AS157: 0 | AT157: 0 | AU157: 0 | AV157: 0 | AW157: 0 | AX157: 0 | AY157: 0 | AZ157: 0 | BA157: 0 | BB157: 0 | BC157: 0 | BD157: 0 | BE157: 0 | BF157: 0 | BG157: 0 | BH157: 0 | BI157: 0 | BJ157: 0 | BK157: 0 | BL157: 0 | BM157: 0 | BN157: 0 | BO157: 0 | BP157: 0 | BQ157: 0
D158: Heat_Set7_Mt CO2e | E158: Heat | F158: Set7 | G158: Mt CO2e | H158: Current Development Scenario (CDS) | I158: 0 | J158: 0 | K158: 0 | L158: 0 | M158: 0 | N158: 0 | O158: 0 | P158: 0 | Q158: 0 | R158: 0 | S158: 0 | T158: 0 | U158: 0 | V158: 0 | W158: 0 | X158: 0 | Y158: 0 | Z158: 0 | AA158: 0 | AB158: 0 | AC158: 0 | AD158: 0 | AE158: 0 | AF158: 0 | AG158: 0 | AH158: 0 | AI158: 0 | AJ158: 0 | AK158: 0 | AL158: 0 | AM158: 0 | AN158: 0 | AO158: 0 | AP158: 0 | AQ158: 0 | AR158: 0 | AS158: 0 | AT158: 0 | AU158: 0 | AV158: 0 | AW158: 0 | AX158: 0 | AY158: 0 | AZ158: 0 | BA158: 0 | BB158: 0 | BC158: 0 | BD158: 0 | BE158: 0 | BF158: 0 | BG158: 0 | BH158: 0 | BI158: 0 | BJ158: 0 | BK158: 0 | BL158: 0 | BM158: 0 | BN158: 0 | BO158: 0 | BP158: 0 | BQ158: 0
D159: Heat_Set8_Mt CO2e | E159: Heat | F159: Set8 | G159: Mt CO2e | H159: IRP3 of Draft IRP update of 2018 | I159: 0 | J159: 0 | K159: 0 | L159: 0 | M159: 0 | N159: 0 | O159: 0 | P159: 0 | Q159: 0 | R159: 0 | S159: 0 | T159: 0 | U159: 0 | V159: 0 | W159: 0 | X159: 0 | Y159: 0 | Z159: 0 | AA159: 0 | AB159: 0 | AC159: 0 | AD159: 0 | AE159: 0 | AF159: 0 | AG159: 0 | AH159: 0 | AI159: 0 | AJ159: 0 | AK159: 0 | AL159: 0 | AM159: 0 | AN159: 0 | AO159: 0 | AP159: 0 | AQ159: 0 | AR159: 0 | AS159: 0 | AT159: 0 | AU159: 0 | AV159: 0 | AW159: 0 | AX159: 0 | AY159: 0 | AZ159: 0 | BA159: 0 | BB159: 0 | BC159: 0 | BD159: 0 | BE159: 0 | BF159: 0 | BG159: 0 | BH159: 0 | BI159: 0 | BJ159: 0 | BK159: 0 | BL159: 0 | BM159: 0 | BN159: 0 | BO159: 0 | BP159: 0 | BQ159: 0
D160: Heat_Set9_Mt CO2e | E160: Heat | F160: Set9 | G160: Mt CO2e | H160: 0
D161: Heat_Set10_Mt CO2e | E161: Heat | F161: Set10 | G161: Mt CO2e | H161: 0
D162: Transport_Set1_Mt CO2e | E162: Transport | F162: Set1 | G162: Mt CO2e | H162: Paris compatible - upper end of ambition | I162: =INDEX(MacroOutputs,MATCH($D162,MacroOutputs_ID,0),MATCH(I$131,MacroOutputs_head,0)) -> 43.01106888 | J162: 43.20428089 | K162: 43.39636813 | L162: 43.58733306 | M162: 43.77717838 | N162: 43.96590694 | O162: 43.90538789 | P162: 43.84751975 | Q162: 43.79227171 | R162: 43.73961298 | S162: =INDEX(MacroOutputs,MATCH($D162,MacroOutputs_ID,0),MATCH(S$131,MacroOutputs_head,0)) -> 43.68951277 | T162: 44.31664252 | U162: 44.89854313 | V162: 45.43417634 | W162: 45.9224965 | X162: 46.36245116 | Y162: 47.64148369 | Z162: 48.92074082 | AA162: 50.20179138 | AB162: 51.48617186 | AC162: =INDEX(MacroOutputs,MATCH($D162,MacroOutputs_ID,0),MATCH(AC$131,MacroOutputs_head,0)) -> 52.77539086 | AD162: 54.12972631 | AE162: 55.47479342 | AF162: 56.81071854 | AG162: 58.1376234 | AH162: 59.45562522 | AI162: 59.99108 | AJ162: 60.85918072 | AK162: 61.68164722 | AL162: 62.44533987 | AM162: =INDEX(MacroOutputs,MATCH($D162,MacroOutputs_ID,0),MATCH(AM$131,MacroOutputs_head,0)) -> 63.13319706 | AN162: 63.55888371 | AO162: 63.87867844 | AP162: 64.0762718 | AQ162: 64.14346935 | AR162: 64.09249807 | AS162: 64.20568096 | AT162: 64.21971186 | AU162: 64.09224213 | AV162: 63.9147782 | AW162: =INDEX(MacroOutputs,MATCH($D162,MacroOutputs_ID,0),MATCH(AW$131,MacroOutputs_head,0)) -> 63.72700999 | AX162: 63.52713064 | AY162: 63.35158869 | AZ162: 63.23080157 | BA162: 63.16728621 | BB162: 63.17197058 | BC162: 63.47022207 | BD162: 63.83491464 | BE162: 64.26107674 | BF162: 64.74806832 | BG162: =INDEX(MacroOutputs,MATCH($D162,MacroOutputs_ID,0),MATCH(BG$131,MacroOutputs_head,0)) -> 65.27384873 | BH162: 65.7519371 | BI162: 66.25961404 | BJ162: 66.78129724 | BK162: 67.30401805 | BL162: 67.81801802 | BM162: 67.96905619 | BN162: 68.11044066 | BO162: 68.23975245 | BP162: 68.35357121 | BQ162: 68.45131403
D163: Transport_Set2_Mt CO2e | E163: Transport | F163: Set2 | G163: Mt CO2e | H163: Paris compatible - lower end of ambition | I163: 43.01106888 | J163: 43.20428089 | K163: 43.39636813 | L163: 43.58733306 | M163: 43.77717838 | N163: 43.96590694 | O163: 43.90538789 | P163: 43.84751975 | Q163: 43.79227171 | R163: 43.73961298 | S163: 43.68951277 | T163: 44.31664252 | U163: 44.89854313 | V163: 45.43417634 | W163: 45.9224965 | X163: 46.36245116 | Y163: 47.64148369 | Z163: 48.92074082 | AA163: 50.20179138 | AB163: 51.48617186 | AC163: 52.77539086 | AD163: 54.12972631 | AE163: 55.47479342 | AF163: 56.81071854 | AG163: 58.1376234 | AH163: 59.45562522 | AI163: 59.94173853 | AJ163: 60.76024065 | AK163: 61.53339367 | AL163: 62.24877322 | AM163: 62.89023034 | AN163: 63.2745629 | AO163: 63.55741555 | AP163: 63.72371695 | AQ163: 63.76594535 | AR163: 63.6965097 | AS163: 63.79662209 | AT163: 63.80309512 | AU163: 63.6578899 | AV163: 63.46528699 | AW163: 63.26446142 | AX163: 63.102328 | AY163: 62.96734567 | AZ163: 62.88972637 | BA163: 62.87076306 | BB163: 62.92042227 | BC163: 63.26237789 | BD163: 63.66845743 | BE163: 64.13212826 | BF163: 64.6519789 | BG163: 65.20256738 | BH163: 65.70170895 | BI163: 66.22614643 | BJ163: 66.76081634 | BK163: 67.29340673 | BL163: 67.81486336 | BM163: 67.97435565 | BN163: 68.12204193 | BO163: 68.25650954 | BP163: 68.37425269 | BQ163: 68.47505898
D164: Transport_Set3_Mt CO2e | E164: Transport | F164: Set3 | G164: Mt CO2e | H164: =INDEX(Scen2Name,1,MATCH($F164,Scen2Number,0)) -> Best-in-class 1 | I164: 43.01106888 | J164: 43.20428089 | K164: 43.39636813 | L164: 43.58733306 | M164: 43.77717838 | N164: 43.96590694 | O164: 43.90538789 | P164: 43.84751975 | Q164: 43.79227171 | R164: 43.73961298 | S164: 43.68951277 | T164: 44.31664252 | U164: 44.89854313 | V164: 45.43417634 | W164: 45.9224965 | X164: 46.36245116 | Y164: 47.64148369 | Z164: 48.92074082 | AA164: 50.20179138 | AB164: 51.48617186 | AC164: 52.77539086 | AD164: 54.12972631 | AE164: 55.47479342 | AF164: 56.81071854 | AG164: 58.1376234 | AH164: 59.45562522 | AI164: 60.03929598 | AJ164: 60.9583551 | AK164: 61.85917626 | AL164: 62.74011298 | AM164: 63.59839518 | AN164: 64.25021095 | AO164: 64.87390835 | AP164: 65.46182289 | AQ164: 66.00713174 | AR164: 66.50808945 | AS164: 67.27088462 | AT164: 67.97027321 | AU164: 68.58698011 | AV164: 69.13184997 | AW164: 69.60902582 | AX164: 70.07254873 | AY164: 70.45515165 | AZ164: 70.76374694 | BA164: 70.99588287 | BB164: 71.15681183 | BC164: 71.49349462 | BD164: 71.7620564 | BE164: 71.96656572 | BF164: 72.12578049 | BG164: 72.20587839 | BH164: 72.1667453 | BI164: 72.11437193 | BJ164: 72.05979165 | BK164: 72.00973063 | BL164: 71.9778722 | BM164: 71.55423559 | BN164: 71.16878501 | BO164: 70.82247652 | BP164: 70.51668499 | BQ164: 70.24733648
D165: Transport_Set4_Mt CO2e | E165: Transport | F165: Set4 | G165: Mt CO2e | H165: Best-in-class 2 | I165: 43.01106888 | J165: 43.20428089 | K165: 43.39636813 | L165: 43.58733306 | M165: 43.77717838 | N165: 43.96590694 | O165: 43.90538789 | P165: 43.84751975 | Q165: 43.79227171 | R165: 43.73961298 | S165: 43.68951277 | T165: 44.31664252 | U165: 44.89854313 | V165: 45.43417634 | W165: 45.9224965 | X165: 46.36245116 | Y165: 47.64148369 | Z165: 48.92074082 | AA165: 50.20179138 | AB165: 51.48617186 | AC165: 52.77539086 | AD165: 54.12972631 | AE165: 55.47479342 | AF165: 56.81071854 | AG165: 58.1376234 | AH165: 59.45562522 | AI165: 59.99156396 | AJ165: 60.86193867 | AK165: 61.71350313 | AL165: 62.54066576 | AM165: 63.2995547 | AN165: 63.55993546 | AO165: 63.47682399 | AP165: 63.72722575 | AQ165: 64.10503701 | AR165: 64.46722901 | AS165: 65.08514264 | AT165: 65.64562727 | AU165: 66.14709012 | AV165: 66.58924565 | AW165: 66.97811018 | AX165: 67.38742773 | AY165: 67.73623803 | AZ165: 68.02646764 | BA165: 68.26158515 | BB165: 68.44672761 | BC165: 68.82461283 | BD165: 69.15287044 | BE165: 69.44072506 | BF165: 69.69747486 | BG165: 69.93225236 | BH165: 70.05722623 | BI165: 70.17327196 | BJ165: 70.28581394 | BK165: 70.39984414 | BL165: 70.51923588 | BM165: 70.2694432 | BN165: 70.0464217 | BO165: 69.85004136 | BP165: 69.679967 | BQ165: 69.5344995
D166: Transport_Set5_Mt CO2e | E166: Transport | F166: Set5 | G166: Mt CO2e | H166: National scenarios 1 | I166: 43.01106888 | J166: 43.20428089 | K166: 43.39636813 | L166: 43.58733306 | M166: 43.77717838 | N166: 43.96590694 | O166: 43.90538789 | P166: 43.84751975 | Q166: 43.79227171 | R166: 43.73961298 | S166: 43.68951277 | T166: 44.31664252 | U166: 44.89854313 | V166: 45.43417634 | W166: 45.9224965 | X166: 46.36245116 | Y166: 47.64148369 | Z166: 48.92074082 | AA166: 50.20179138 | AB166: 51.48617186 | AC166: 52.77539086 | AD166: 54.12972631 | AE166: 55.47479342 | AF166: 56.81071854 | AG166: 58.1376234 | AH166: 59.45562522 | AI166: 60.15958969 | AJ166: 61.29248645 | AK166: 62.37452844 | AL166: 63.4482528 | AM166: 64.51262006 | AN166: 65.28664574 | AO166: 66.10952352 | AP166: 66.91350152 | AQ166: 67.69209521 | AR166: 68.44214318 | AS166: 69.47703876 | AT166: 70.49645131 | AU166: 71.4824892 | AV166: 72.4368602 | AW166: 73.36113746 | AX166: 74.34083968 | AY166: 75.3085107 | AZ166: 76.24861255 | BA166: 77.16111105 | BB166: 78.04596491 | BC166: 79.15623487 | BD166: 80.2307803 | BE166: 81.26797885 | BF166: 82.26805095 | BG166: 83.23125023 | BH166: 84.06779203 | BI166: 84.86434249 | BJ166: 85.62238631 | BK166: 86.34168987 | BL166: 87.02214146 | BM166: 87.22923796 | BN166: 87.40133782 | BO166: 87.5464461 | BP166: 87.66647552 | BQ166: 87.76288947
D167: Transport_Set6_Mt CO2e | E167: Transport | F167: Set6 | G167: Mt CO2e | H167: National scenarios 2 | I167: 43.01106888 | J167: 43.20428089 | K167: 43.39636813 | L167: 43.58733306 | M167: 43.77717838 | N167: 43.96590694 | O167: 43.90538789 | P167: 43.84751975 | Q167: 43.79227171 | R167: 43.73961298 | S167: 43.68951277 | T167: 44.31664252 | U167: 44.89854313 | V167: 45.43417634 | W167: 45.9224965 | X167: 46.36245116 | Y167: 47.64148369 | Z167: 48.92074082 | AA167: 50.20179138 | AB167: 51.48617186 | AC167: 52.77539086 | AD167: 54.12972631 | AE167: 55.47479342 | AF167: 56.81071854 | AG167: 58.1376234 | AH167: 59.45562522 | AI167: 60.4759458 | AJ167: 61.48621109 | AK167: 62.48449542 | AL167: 63.47059476 | AM167: 64.44348078 | AN167: 65.27893002 | AO167: 66.09698107 | AP167: 66.8939113 | AQ167: 67.66564478 | AR167: 68.40901698 | AS167: 69.49963413 | AT167: 70.55550342 | AU167: 71.57741421 | AV167: 72.5674133 | AW167: 73.52689613 | AX167: 74.56208219 | AY167: 75.57078102 | AZ167: 76.55291376 | BA167: 77.50838749 | BB167: 78.43708163 | BC167: 79.60307335 | BD167: 80.7336079 | BE167: 81.82892941 | BF167: 82.88933723 | BG167: 83.91507462 | BH167: 84.79929902 | BI167: 85.64762793 | BJ167: 86.45988876 | BK167: 87.23577987 | BL167: 87.97524803 | BM167: 88.22410898 | BN167: 88.44647576 | BO167: 88.64392232 | BP167: 88.81837528 | BQ167: 88.97137123
D168: Transport_Set7_Mt CO2e | E168: Transport | F168: Set7 | G168: Mt CO2e | H168: Current Development Scenario (CDS) | I168: 43.01106888 | J168: 43.20428089 | K168: 43.39636813 | L168: 43.58733306 | M168: 43.77717838 | N168: 43.96590694 | O168: 43.90538789 | P168: 43.84751975 | Q168: 43.79227171 | R168: 43.73961298 | S168: 43.68951277 | T168: 44.31664252 | U168: 44.89854313 | V168: 45.43417634 | W168: 45.9224965 | X168: 46.36245116 | Y168: 47.64148369 | Z168: 48.92074082 | AA168: 50.20179138 | AB168: 51.48617186 | AC168: 52.77539086 | AD168: 54.12972631 | AE168: 55.47479342 | AF168: 56.81071854 | AG168: 58.1376234 | AH168: 59.45562522 | AI168: 60.4759458 | AJ168: 61.48621109 | AK168: 62.48449542 | AL168: 63.47059476 | AM168: 64.44348078 | AN168: 65.27893002 | AO168: 66.09698107 | AP168: 66.8939113 | AQ168: 67.66564478 | AR168: 68.40901698 | AS168: 69.49963413 | AT168: 70.55550342 | AU168: 71.57741421 | AV168: 72.5674133 | AW168: 73.52689613 | AX168: 74.56208219 | AY168: 75.57078102 | AZ168: 76.55291376 | BA168: 77.50838749 | BB168: 78.43708163 | BC168: 79.60307335 | BD168: 80.7336079 | BE168: 81.82892941 | BF168: 82.88933723 | BG168: 83.91507462 | BH168: 84.79929902 | BI168: 85.64762793 | BJ168: 86.45988876 | BK168: 87.23577987 | BL168: 87.97524803 | BM168: 88.22410898 | BN168: 88.44647576 | BO168: 88.64392232 | BP168: 88.81837528 | BQ168: 88.97137123
D169: Transport_Set8_Mt CO2e | E169: Transport | F169: Set8 | G169: Mt CO2e | H169: IRP3 of Draft IRP update of 2018 | I169: 43.01106888 | J169: 43.20428089 | K169: 43.39636813 | L169: 43.58733306 | M169: 43.77717838 | N169: 43.96590694 | O169: 43.90538789 | P169: 43.84751975 | Q169: 43.79227171 | R169: 43.73961298 | S169: 43.68951277 | T169: 44.31664252 | U169: 44.89854313 | V169: 45.43417634 | W169: 45.9224965 | X169: 46.36245116 | Y169: 47.64148369 | Z169: 48.92074082 | AA169: 50.20179138 | AB169: 51.48617186 | AC169: 52.77539086 | AD169: 54.12972631 | AE169: 55.47479342 | AF169: 56.81071854 | AG169: 58.1376234 | AH169: 59.45562522 | AI169: 60.4759458 | AJ169: 61.48621109 | AK169: 62.48449542 | AL169: 63.47059476 | AM169: 64.44348078 | AN169: 65.27893002 | AO169: 66.09698107 | AP169: 66.8939113 | AQ169: 67.66564478 | AR169: 68.40901698 | AS169: 69.49963413 | AT169: 70.55550342 | AU169: 71.57741421 | AV169: 72.5674133 | AW169: 73.52689613 | AX169: 74.56208219 | AY169: 75.57078102 | AZ169: 76.55291376 | BA169: 77.50838749 | BB169: 78.43708163 | BC169: 79.60307335 | BD169: 80.7336079 | BE169: 81.82892941 | BF169: 82.88933723 | BG169: 83.91507462 | BH169: 84.79929902 | BI169: 85.64762793 | BJ169: 86.45988876 | BK169: 87.23577987 | BL169: 87.97524803 | BM169: 88.22410898 | BN169: 88.44647576 | BO169: 88.64392232 | BP169: 88.81837528 | BQ169: 88.97137123
D170: Transport_Set9_Mt CO2e | E170: Transport | F170: Set9 | G170: Mt CO2e | H170: 0
D171: Transport_Set10_Mt CO2e | E171: Transport | F171: Set10 | G171: Mt CO2e | H171: 0
D172: Buildings_Set1_Mt CO2e | E172: Buildings | F172: Set1 | G172: Mt CO2e | H172: Paris compatible - upper end of ambition | I172: =INDEX(MacroOutputs,MATCH($D172,MacroOutputs_ID,0),MATCH(I$131,MacroOutputs_head,0)) -> 9.870884652 | J172: 9.72999196 | K172: 10.43653036 | L172: 12.58356994 | M172: 12.03928667 | N172: 10.38699964 | O172: 9.789291545 | P172: 10.29710986 | Q172: 11.52438557 | R172: 11.14069201 | S172: =INDEX(MacroOutputs,MATCH($D172,MacroOutputs_ID,0),MATCH(S$131,MacroOutputs_head,0)) -> 10.58808388 | T172: 12.34070342 | U172: 15.43162404 | V172: 16.64578797 | W172: 18.37071667 | X172: 19.45270712 | Y172: 22.1585077 | Z172: 26.51373976 | AA172: 28.4430796 | AB172: 26.35898589 | AC172: =INDEX(MacroOutputs,MATCH($D172,MacroOutputs_ID,0),MATCH(AC$131,MacroOutputs_head,0)) -> 12.58646222 | AD172: 14.18067952 | AE172: 22.63709572 | AF172: 24.71394957 | AG172: 24.42454013 | AH172: 21.41962383 | AI172: 19.15079731 | AJ172: 19.02877536 | AK172: 19.27721261 | AL172: 19.72297015 | AM172: =INDEX(MacroOutputs,MATCH($D172,MacroOutputs_ID,0),MATCH(AM$131,MacroOutputs_head,0)) -> 19.31290398 | AN172: 18.87205926 | AO172: 18.64434272 | AP172: 18.03244789 | AQ172: 17.28637047 | AR172: 16.6428262 | AS172: 15.90006343 | AT172: 15.32996438 | AU172: 14.74909677 | AV172: 14.09534138 | AW172: =INDEX(MacroOutputs,MATCH($D172,MacroOutputs_ID,0),MATCH(AW$131,MacroOutputs_head,0)) -> 13.53847943 | AX172: 13.01003691 | AY172: 12.72789259 | AZ172: 12.53399189 | BA172: 12.30654889 | BB172: 12.03916299 | BC172: 11.58788556 | BD172: 11.25553964 | BE172: 10.92506855 | BF172: 10.61330891 | BG172: =INDEX(MacroOutputs,MATCH($D172,MacroOutputs_ID,0),MATCH(BG$131,MacroOutputs_head,0)) -> 10.33416165 | BH172: 9.986965122 | BI172: 9.760761762 | BJ172: 9.546044688 | BK172: 9.326793652 | BL172: 9.092959147 | BM172: 8.704020559 | BN172: 8.429266338 | BO172: 8.145542981 | BP172: 7.864667074 | BQ172: 7.592958426
D173: Buildings_Set2_Mt CO2e | E173: Buildings | F173: Set2 | G173: Mt CO2e | H173: Paris compatible - lower end of ambition | I173: 9.870884652 | J173: 9.72999196 | K173: 10.43653036 | L173: 12.58356994 | M173: 12.03928667 | N173: 10.38699964 | O173: 9.789291545 | P173: 10.29710986 | Q173: 11.52438557 | R173: 11.14069201 | S173: 10.58808388 | T173: 12.34070342 | U173: 15.43162404 | V173: 16.64578797 | W173: 18.37071667 | X173: 19.45270712 | Y173: 22.1585077 | Z173: 26.51373976 | AA173: 28.4430796 | AB173: 26.35898589 | AC173: 12.58646222 | AD173: 14.18067952 | AE173: 22.63709572 | AF173: 24.71394957 | AG173: 24.42454013 | AH173: 21.41962383 | AI173: 19.17457054 | AJ173: 19.07755381 | AK173: 19.35893823 | AL173: 19.84624712 | AM173: 19.51750387 | AN173: 19.15597164 | AO173: 19.00869315 | AP173: 18.45786663 | AQ173: 17.75732905 | AR173: 17.15473655 | AS173: 16.44665498 | AT173: 15.90607284 | AU173: 15.34568532 | AV173: 14.69646398 | AW173: 14.14513961 | AX173: 13.62355801 | AY173: 13.35678444 | AZ173: 13.18598213 | BA173: 12.97401105 | BB173: 12.71277478 | BC173: 12.26209949 | BD173: 11.92386089 | BE173: 11.58366095 | BF173: 11.26224373 | BG173: 10.97641885 | BH173: 10.63075578 | BI173: 10.40496733 | BJ173: 10.1915367 | BK173: 9.971561277 | BL173: 9.732328029 | BM173: 9.331454238 | BN173: 9.038958367 | BO173: 8.73335615 | BP173: 8.429250373 | BQ173: 8.134789513
D174: Buildings_Set3_Mt CO2e | E174: Buildings | F174: Set3 | G174: Mt CO2e | H174: Best-in-class 1 | I174: 9.870884652 | J174: 9.72999196 | K174: 10.43653036 | L174: 12.58356994 | M174: 12.03928667 | N174: 10.38699964 | O174: 9.789291545 | P174: 10.29710986 | Q174: 11.52438557 | R174: 11.14069201 | S174: 10.58808388 | T174: 12.34070342 | U174: 15.43162404 | V174: 16.64578797 | W174: 18.37071667 | X174: 19.45270712 | Y174: 22.1585077 | Z174: 26.51373976 | AA174: 28.4430796 | AB174: 26.35898589 | AC174: 12.58646222 | AD174: 14.18067952 | AE174: 22.63709572 | AF174: 24.71394957 | AG174: 24.42454013 | AH174: 21.41962383 | AI174: 19.18857535 | AJ174: 19.10566472 | AK174: 19.40262517 | AL174: 19.90750306 | AM174: 19.72656255 | AN174: 19.50626766 | AO174: 19.49710129 | AP174: 19.05491749 | AQ174: 18.4364851 | AR174: 17.90579644 | AS174: 17.2570522 | AT174: 16.76533116 | AU174: 16.23838794 | AV174: 15.59843233 | AW174: 15.0084267 | AX174: 14.45537779 | AY174: 14.17179961 | AZ174: 13.99565086 | BA174: 13.77127451 | BB174: 13.48950928 | BC174: 13.01478773 | BD174: 12.64924972 | BE174: 12.28031423 | BF174: 11.93221909 | BG174: 11.62430962 | BH174: 11.2661962 | BI174: 11.02711422 | BJ174: 10.80217012 | BK174: 10.57007707 | BL174: 10.31560561 | BM174: 9.894948768 | BN174: 9.57892607 | BO174: 9.247447705 | BP174: 8.917332877 | BQ174: 8.598114406
D175: Buildings_Set4_Mt CO2e | E175: Buildings | F175: Set4 | G175: Mt CO2e | H175: Best-in-class 2 | I175: 9.870884652 | J175: 9.72999196 | K175: 10.43653036 | L175: 12.58356994 | M175: 12.03928667 | N175: 10.38699964 | O175: 9.789291545 | P175: 10.29710986 | Q175: 11.52438557 | R175: 11.14069201 | S175: 10.58808388 | T175: 12.34070342 | U175: 15.43162404 | V175: 16.64578797 | W175: 18.37071667 | X175: 19.45270712 | Y175: 22.1585077 | Z175: 26.51373976 | AA175: 28.4430796 | AB175: 26.35898589 | AC175: 12.58646222 | AD175: 14.18067952 | AE175: 22.63709572 | AF175: 24.71394957 | AG175: 24.42454013 | AH175: 21.41962383 | AI175: 19.21520137 | AJ175: 19.16029658 | AK175: 19.49415787 | AL175: 20.04557326 | AM175: 19.90637981 | AN175: 19.72793392 | AO175: 19.76320295 | AP175: 19.35351778 | AQ175: 18.75917179 | AR175: 18.25106681 | AS175: 17.62224045 | AT175: 17.1482784 | AU175: 16.63418422 | AV175: 15.99717916 | AW175: 15.42970683 | AX175: 14.89799929 | AY175: 14.64044416 | AZ175: 14.49527208 | BA175: 14.2953813 | BB175: 14.02993122 | BC175: 13.5661188 | BD175: 13.20476637 | BE175: 12.83588566 | BF175: 12.48705212 | BG175: 12.18021361 | BH175: 11.82973096 | BI175: 11.59687772 | BJ175: 11.37849736 | BK175: 11.15064488 | BL175: 10.89585508 | BM175: 10.46855187 | BN175: 10.14013564 | BO175: 9.792004805 | BP175: 9.443544705 | BQ175: 9.105987491
D176: Buildings_Set5_Mt CO2e | E176: Buildings | F176: Set5 | G176: Mt CO2e | H176: National scenarios 1 | I176: 9.870884652 | J176: 9.72999196 | K176: 10.43653036 | L176: 12.58356994 | M176: 12.03928667 | N176: 10.38699964 | O176: 9.789291545 | P176: 10.29710986 | Q176: 11.52438557 | R176: 11.14069201 | S176: 10.58808388 | T176: 12.34070342 | U176: 15.43162404 | V176: 16.64578797 | W176: 18.37071667 | X176: 19.45270712 | Y176: 22.1585077 | Z176: 26.51373976 | AA176: 28.4430796 | AB176: 26.35898589 | AC176: 12.58646222 | AD176: 14.18067952 | AE176: 22.63709572 | AF176: 24.71394957 | AG176: 24.42454013 | AH176: 21.41962383 | AI176: 19.22592344 | AJ176: 19.17079584 | AK176: 19.4859131 | AL176: 20.00064811 | AM176: 19.8259284 | AN176: 19.60820949 | AO176: 19.59870683 | AP176: 19.16107643 | AQ176: 18.55001077 | AR176: 18.02680694 | AS176: 17.38646397 | AT176: 16.90395146 | AU176: 16.38819654 | AV176: 15.76223214 | AW176: 15.23416407 | AX176: 14.74035493 | AY176: 14.51577983 | AZ176: 14.40022448 | BA176: 14.23588072 | BB176: 14.01137234 | BC176: 13.59073106 | BD176: 13.27479344 | BE176: 12.95171106 | BF176: 12.64667548 | BG176: 12.38163689 | BH176: 12.07510579 | BI176: 11.88131572 | BJ176: 11.70158721 | BK176: 11.51166709 | BL176: 11.29385725 | BM176: 10.9012821 | BN176: 10.60465269 | BO176: 10.28466777 | BP176: 9.96094555 | BQ176: 9.644977674
D177: Buildings_Set6_Mt CO2e | E177: Buildings | F177: Set6 | G177: Mt CO2e | H177: National scenarios 2 | I177: 9.870884652 | J177: 9.72999196 | K177: 10.43653036 | L177: 12.58356994 | M177: 12.03928667 | N177: 10.38699964 | O177: 9.789291545 | P177: 10.29710986 | Q177: 11.52438557 | R177: 11.14069201 | S177: 10.58808388 | T177: 12.34070342 | U177: 15.43162404 | V177: 16.64578797 | W177: 18.37071667 | X177: 19.45270712 | Y177: 22.1585077 | Z177: 26.51373976 | AA177: 28.4430796 | AB177: 26.35898589 | AC177: 12.58646222 | AD177: 14.18067952 | AE177: 22.63709572 | AF177: 24.71394957 | AG177: 24.42454013 | AH177: 21.41962383 | AI177: 19.28716567 | AJ177: 19.29454371 | AK177: 19.68635355 | AL177: 20.29416645 | AM177: 20.20004876 | AN177: 20.06189829 | AO177: 20.13568911 | AP177: 19.7558022 | AQ177: 19.18495929 | AR177: 18.69933226 | AS177: 18.0911322 | AT177: 17.6364036 | AU177: 17.13890471 | AV177: 16.51281973 | AW177: 15.98722348 | AX177: 15.49868631 | AY177: 15.29078058 | AZ177: 15.20210493 | BA177: 15.05584532 | BB177: 14.83847564 | BC177: 14.41859076 | BD177: 14.09547636 | BE177: 13.76079117 | BF177: 13.44447351 | BG177: 13.17198645 | BH177: 12.86825356 | BI177: 12.67600426 | BJ177: 12.49894002 | BK177: 12.30911207 | BL177: 12.08566611 | BM177: 11.67937724 | BN177: 11.36181691 | BO177: 11.01572773 | BP177: 10.66416902 | BQ177: 10.32086827
D178: Buildings_Set7_Mt CO2e | E178: Buildings | F178: Set7 | G178: Mt CO2e | H178: Current Development Scenario (CDS) | I178: 9.870884652 | J178: 9.72999196 | K178: 10.43653036 | L178: 12.58356994 | M178: 12.03928667 | N178: 10.38699964 | O178: 9.789291545 | P178: 10.29710986 | Q178: 11.52438557 | R178: 11.14069201 | S178: 10.58808388 | T178: 12.34070342 | U178: 15.43162404 | V178: 16.64578797 | W178: 18.37071667 | X178: 19.45270712 | Y178: 22.1585077 | Z178: 26.51373976 | AA178: 28.4430796 | AB178: 26.35898589 | AC178: 12.58646222 | AD178: 14.18067952 | AE178: 22.63709572 | AF178: 24.71394957 | AG178: 24.42454013 | AH178: 21.41962383 | AI178: 19.36155455 | AJ178: 19.37948594 | AK178: 19.82028579 | AL178: 20.49086091 | AM178: 20.44120011 | AN178: 20.36030847 | AO178: 20.49455284 | AP178: 20.15135956 | AQ178: 19.60802571 | AR178: 19.14680452 | AS178: 18.56691354 | AT178: 18.13910773 | AU178: 17.65938613 | AV178: 17.03548897 | AW178: 16.51507065 | AX178: 16.03433128 | AY178: 15.83715752 | AZ178: 15.76473895 | BA178: 15.62250064 | BB178: 15.39724114 | BC178: 14.96591948 | BD178: 14.62837816 | BE178: 14.27196755 | BF178: 13.93512178 | BG178: 13.64433824 | BH178: 13.28014683 | BI178: 13.07896699 | BJ178: 12.89366111 | BK178: 12.69660217 | BL178: 12.46092217 | BM178: 12.03729708 | BN178: 11.69809313 | BO178: 11.32744961 | BP178: 10.95012895 | BQ178: 10.58244143
D179: Buildings_Set8_Mt CO2e | E179: Buildings | F179: Set8 | G179: Mt CO2e | H179: IRP3 of Draft IRP update of 2018 | I179: 9.870884652 | J179: 9.72999196 | K179: 10.43653036 | L179: 12.58356994 | M179: 12.03928667 | N179: 10.38699964 | O179: 9.789291545 | P179: 10.29710986 | Q179: 11.52438557 | R179: 11.14069201 | S179: 10.58808388 | T179: 12.34070342 | U179: 15.43162404 | V179: 16.64578797 | W179: 18.37071667 | X179: 19.45270712 | Y179: 22.1585077 | Z179: 26.51373976 | AA179: 28.4430796 | AB179: 26.35898589 | AC179: 12.58646222 | AD179: 14.18067952 | AE179: 22.63709572 | AF179: 24.71394957 | AG179: 24.42454013 | AH179: 21.41962383 | AI179: 19.36155455 | AJ179: 19.37948594 | AK179: 19.82028579 | AL179: 20.49086091 | AM179: 20.44120011 | AN179: 20.36030847 | AO179: 20.49455284 | AP179: 20.15135956 | AQ179: 19.60802571 | AR179: 19.14680452 | AS179: 18.56691354 | AT179: 18.13910773 | AU179: 17.65938613 | AV179: 17.03548897 | AW179: 16.51507065 | AX179: 16.03433128 | AY179: 15.83715752 | AZ179: 15.76473895 | BA179: 15.62250064 | BB179: 15.39724114 | BC179: 14.96591948 | BD179: 14.62837816 | BE179: 14.27196755 | BF179: 13.93512178 | BG179: 13.64433824 | BH179: 13.28014683 | BI179: 13.07896699 | BJ179: 12.89366111 | BK179: 12.69660217 | BL179: 12.46092217 | BM179: 12.03729708 | BN179: 11.69809313 | BO179: 11.32744961 | BP179: 10.95012895 | BQ179: 10.58244143
D180: Buildings_Set9_Mt CO2e | E180: Buildings | F180: Set9 | G180: Mt CO2e | H180: 0
D181: Buildings_Set10_Mt CO2e | E181: Buildings | F181: Set10 | G181: Mt CO2e | H181: 0
D182: Steel_Set1_Mt CO2e | E182: Steel | F182: Set1 | G182: Mt CO2e | H182: Paris compatible - upper end of ambition | I182: =INDEX(MacroOutputs,MATCH($D182,MacroOutputs_ID,0),MATCH(I$131,MacroOutputs_head,0)) -> 21.38904342 | J182: 21.4112234 | K182: 18.76063601 | L182: 18.34965239 | M182: 18.38407357 | N182: 18.4750158 | O182: 17.66984317 | P182: 18.80596197 | Q182: 16.50433146 | R182: 13.43480467 | S182: =INDEX(MacroOutputs,MATCH($D182,MacroOutputs_ID,0),MATCH(S$131,MacroOutputs_head,0)) -> 14.16279425 | T182: 14.81536843 | U182: 15.88130537 | V182: 15.64256714 | W182: 16.18387952 | X182: 17.03561075 | Y182: 17.39963399 | Z182: 16.04135588 | AA182: 14.74687032 | AB182: 13.09441559 | AC182: =INDEX(MacroOutputs,MATCH($D182,MacroOutputs_ID,0),MATCH(AC$131,MacroOutputs_head,0)) -> 16.04084837 | AD182: 14.29592483 | AE182: 14.57485592 | AF182: 16.11566109 | AG182: 14.87723494 | AH182: 14.79474455 | AI182: 15.78837592 | AJ182: 16.5838076 | AK182: 17.37902205 | AL182: 31.18044189 | AM182: =INDEX(MacroOutputs,MATCH($D182,MacroOutputs_ID,0),MATCH(AM$131,MacroOutputs_head,0)) -> 31.99161045 | AN182: 32.73251208 | AO182: 33.47188737 | AP182: 34.20887973 | AQ182: 34.94257419 | AR182: 35.67222825 | AS182: 36.34179907 | AT182: 37.00492159 | AU182: 37.66211612 | AV182: 38.31427417 | AW182: =INDEX(MacroOutputs,MATCH($D182,MacroOutputs_ID,0),MATCH(AW$131,MacroOutputs_head,0)) -> 38.96208694 | AX182: 39.44443359 | AY182: 39.92149618 | AZ182: 40.39338116 | BA182: 40.86010305 | BB182: 41.32165373 | BC182: 41.71027777 | BD182: 42.09051706 | BE182: 42.46272775 | BF182: 42.82714864 | BG182: =INDEX(MacroOutputs,MATCH($D182,MacroOutputs_ID,0),MATCH(BG$131,MacroOutputs_head,0)) -> 43.18394051 | BH182: 43.4198491 | BI182: 43.65092144 | BJ182: 43.87688135 | BK182: 44.09739108 | BL182: 44.31217468 | BM182: 44.45476063 | BN182: 44.59162971 | BO182: 44.7227652 | BP182: 44.84819378 | BQ182: 44.96792627
D183: Steel_Set2_Mt CO2e | E183: Steel | F183: Set2 | G183: Mt CO2e | H183: Paris compatible - lower end of ambition | I183: 21.38904342 | J183: 21.4112234 | K183: 18.76063601 | L183: 18.34965239 | M183: 18.38407357 | N183: 18.4750158 | O183: 17.66984317 | P183: 18.80596197 | Q183: 16.50433146 | R183: 13.43480467 | S183: 14.16279425 | T183: 14.81536843 | U183: 15.88130537 | V183: 15.64256714 | W183: 16.18387952 | X183: 17.03561075 | Y183: 17.39963399 | Z183: 16.04135588 | AA183: 14.74687032 | AB183: 13.09441559 | AC183: 16.04084837 | AD183: 14.29592483 | AE183: 14.57485592 | AF183: 16.11566109 | AG183: 14.87723494 | AH183: 14.79474455 | AI183: 15.78837592 | AJ183: 16.5838076 | AK183: 17.37902205 | AL183: 31.18044189 | AM183: 31.99161045 | AN183: 32.73251208 | AO183: 33.47188737 | AP183: 34.20887973 | AQ183: 34.94257419 | AR183: 35.67222825 | AS183: 36.34179907 | AT183: 37.00492159 | AU183: 37.66211612 | AV183: 38.31427417 | AW183: 38.96208694 | AX183: 39.44443359 | AY183: 39.92149618 | AZ183: 40.39338116 | BA183: 40.86010305 | BB183: 41.32165373 | BC183: 41.71027777 | BD183: 42.09051706 | BE183: 42.46272775 | BF183: 42.82714864 | BG183: 43.18394051 | BH183: 43.4198491 | BI183: 43.65092144 | BJ183: 43.87688135 | BK183: 44.09739108 | BL183: 44.31217468 | BM183: 44.45476063 | BN183: 44.59162971 | BO183: 44.7227652 | BP183: 44.84819378 | BQ183: 44.96792627
D184: Steel_Set3_Mt CO2e | E184: Steel | F184: Set3 | G184: Mt CO2e | H184: Best-in-class 1 | I184: 21.38904342 | J184: 21.4112234 | K184: 18.76063601 | L184: 18.34965239 | M184: 18.38407357 | N184: 18.4750158 | O184: 17.66984317 | P184: 18.80596197 | Q184: 16.50433146 | R184: 13.43480467 | S184: 14.16279425 | T184: 14.81536843 | U184: 15.88130537 | V184: 15.64256714 | W184: 16.18387952 | X184: 17.03561075 | Y184: 17.39963399 | Z184: 16.04135588 | AA184: 14.74687032 | AB184: 13.09441559 | AC184: 16.04084837 | AD184: 14.29592483 | AE184: 14.57485592 | AF184: 16.11566109 | AG184: 14.87723494 | AH184: 14.79474455 | AI184: 15.78837592 | AJ184: 16.5838076 | AK184: 17.37902205 | AL184: 31.18044189 | AM184: 31.99161045 | AN184: 32.73251208 | AO184: 33.47188737 | AP184: 34.20887973 | AQ184: 34.94257419 | AR184: 35.67222825 | AS184: 36.34179907 | AT184: 37.00492159 | AU184: 37.66211612 | AV184: 38.31427417 | AW184: 38.96208694 | AX184: 39.44443359 | AY184: 39.92149618 | AZ184: 40.39338116 | BA184: 40.86010305 | BB184: 41.32165373 | BC184: 41.71027777 | BD184: 42.09051706 | BE184: 42.46272775 | BF184: 42.82714864 | BG184: 43.18394051 | BH184: 43.4198491 | BI184: 43.65092144 | BJ184: 43.87688135 | BK184: 44.09739108 | BL184: 44.31217468 | BM184: 44.45476063 | BN184: 44.59162971 | BO184: 44.7227652 | BP184: 44.84819378 | BQ184: 44.96792627
D185: Steel_Set4_Mt CO2e | E185: Steel | F185: Set4 | G185: Mt CO2e | H185: Best-in-class 2 | I185: 21.38904342 | J185: 21.4112234 | K185: 18.76063601 | L185: 18.34965239 | M185: 18.38407357 | N185: 18.4750158 | O185: 17.66984317 | P185: 18.80596197 | Q185: 16.50433146 | R185: 13.43480467 | S185: 14.16279425 | T185: 14.81536843 | U185: 15.88130537 | V185: 15.64256714 | W185: 16.18387952 | X185: 17.03561075 | Y185: 17.39963399 | Z185: 16.04135588 | AA185: 14.74687032 | AB185: 13.09441559 | AC185: 16.04084837 | AD185: 14.29592483 | AE185: 14.57485592 | AF185: 16.11566109 | AG185: 14.87723494 | AH185: 14.79474455 | AI185: 15.78837592 | AJ185: 16.5838076 | AK185: 17.37902205 | AL185: 31.18044189 | AM185: 31.99161045 | AN185: 32.73251208 | AO185: 33.47188737 | AP185: 34.20887973 | AQ185: 34.94257419 | AR185: 35.67222825 | AS185: 36.34179907 | AT185: 37.00492159 | AU185: 37.66211612 | AV185: 38.31427417 | AW185: 38.96208694 | AX185: 39.44443359 | AY185: 39.92149618 | AZ185: 40.39338116 | BA185: 40.86010305 | BB185: 41.32165373 | BC185: 41.71027777 | BD185: 42.09051706 | BE185: 42.46272775 | BF185: 42.82714864 | BG185: 43.18394051 | BH185: 43.4198491 | BI185: 43.65092144 | BJ185: 43.87688135 | BK185: 44.09739108 | BL185: 44.31217468 | BM185: 44.45476063 | BN185: 44.59162971 | BO185: 44.7227652 | BP185: 44.84819378 | BQ185: 44.96792627
D186: Steel_Set5_Mt CO2e | E186: Steel | F186: Set5 | G186: Mt CO2e | H186: National scenarios 1 | I186: 21.38904342 | J186: 21.4112234 | K186: 18.76063601 | L186: 18.34965239 | M186: 18.38407357 | N186: 18.4750158 | O186: 17.66984317 | P186: 18.80596197 | Q186: 16.50433146 | R186: 13.43480467 | S186: 14.16279425 | T186: 14.81536843 | U186: 15.88130537 | V186: 15.64256714 | W186: 16.18387952 | X186: 17.03561075 | Y186: 17.39963399 | Z186: 16.04135588 | AA186: 14.74687032 | AB186: 13.09441559 | AC186: 16.04084837 | AD186: 14.29592483 | AE186: 14.57485592 | AF186: 16.11566109 | AG186: 14.87723494 | AH186: 14.79474455 | AI186: 15.78837592 | AJ186: 16.5838076 | AK186: 17.37902205 | AL186: 31.18044189 | AM186: 31.99161045 | AN186: 32.73251208 | AO186: 33.47188737 | AP186: 34.20887973 | AQ186: 34.94257419 | AR186: 35.67222825 | AS186: 36.34179907 | AT186: 37.00492159 | AU186: 37.66211612 | AV186: 38.31427417 | AW186: 38.96208694 | AX186: 39.44443359 | AY186: 39.92149618 | AZ186: 40.39338116 | BA186: 40.86010305 | BB186: 41.32165373 | BC186: 41.71027777 | BD186: 42.09051706 | BE186: 42.46272775 | BF186: 42.82714864 | BG186: 43.18394051 | BH186: 43.4198491 | BI186: 43.65092144 | BJ186: 43.87688135 | BK186: 44.09739108 | BL186: 44.31217468 | BM186: 44.45476063 | BN186: 44.59162971 | BO186: 44.7227652 | BP186: 44.84819378 | BQ186: 44.96792627
D187: Steel_Set6_Mt CO2e | E187: Steel | F187: Set6 | G187: Mt CO2e | H187: National scenarios 2 | I187: 21.38904342 | J187: 21.4112234 | K187: 18.76063601 | L187: 18.34965239 | M187: 18.38407357 | N187: 18.4750158 | O187: 17.66984317 | P187: 18.80596197 | Q187: 16.50433146 | R187: 13.43480467 | S187: 14.16279425 | T187: 14.81536843 | U187: 15.88130537 | V187: 15.64256714 | W187: 16.18387952 | X187: 17.03561075 | Y187: 17.39963399 | Z187: 16.04135588 | AA187: 14.74687032 | AB187: 13.09441559 | AC187: 16.04084837 | AD187: 14.29592483 | AE187: 14.57485592 | AF187: 16.11566109 | AG187: 14.87723494 | AH187: 14.79474455 | AI187: 15.78837592 | AJ187: 16.5838076 | AK187: 17.37902205 | AL187: 31.18044189 | AM187: 31.99161045 | AN187: 32.73251208 | AO187: 33.47188737 | AP187: 34.20887973 | AQ187: 34.94257419 | AR187: 35.67222825 | AS187: 36.34179907 | AT187: 37.00492159 | AU187: 37.66211612 | AV187: 38.31427417 | AW187: 38.96208694 | AX187: 39.44443359 | AY187: 39.92149618 | AZ187: 40.39338116 | BA187: 40.86010305 | BB187: 41.32165373 | BC187: 41.71027777 | BD187: 42.09051706 | BE187: 42.46272775 | BF187: 42.82714864 | BG187: 43.18394051 | BH187: 43.4198491 | BI187: 43.65092144 | BJ187: 43.87688135 | BK187: 44.09739108 | BL187: 44.31217468 | BM187: 44.45476063 | BN187: 44.59162971 | BO187: 44.7227652 | BP187: 44.84819378 | BQ187: 44.96792627
D188: Steel_Set7_Mt CO2e | E188: Steel | F188: Set7 | G188: Mt CO2e | H188: Current Development Scenario (CDS) | I188: 21.38904342 | J188: 21.4112234 | K188: 18.76063601 | L188: 18.34965239 | M188: 18.38407357 | N188: 18.4750158 | O188: 17.66984317 | P188: 18.80596197 | Q188: 16.50433146 | R188: 13.43480467 | S188: 14.16279425 | T188: 14.81536843 | U188: 15.88130537 | V188: 15.64256714 | W188: 16.18387952 | X188: 17.03561075 | Y188: 17.39963399 | Z188: 16.04135588 | AA188: 14.74687032 | AB188: 13.09441559 | AC188: 16.04084837 | AD188: 14.29592483 | AE188: 14.57485592 | AF188: 16.11566109 | AG188: 14.87723494 | AH188: 14.79474455 | AI188: 15.78837592 | AJ188: 16.5838076 | AK188: 17.37902205 | AL188: 31.18044189 | AM188: 31.99161045 | AN188: 32.73251208 | AO188: 33.47188737 | AP188: 34.20887973 | AQ188: 34.94257419 | AR188: 35.67222825 | AS188: 36.34179907 | AT188: 37.00492159 | AU188: 37.66211612 | AV188: 38.31427417 | AW188: 38.96208694 | AX188: 39.44443359 | AY188: 39.92149618 | AZ188: 40.39338116 | BA188: 40.86010305 | BB188: 41.32165373 | BC188: 41.71027777 | BD188: 42.09051706 | BE188: 42.46272775 | BF188: 42.82714864 | BG188: 43.18394051 | BH188: 43.4198491 | BI188: 43.65092144 | BJ188: 43.87688135 | BK188: 44.09739108 | BL188: 44.31217468 | BM188: 44.45476063 | BN188: 44.59162971 | BO188: 44.7227652 | BP188: 44.84819378 | BQ188: 44.96792627
D189: Steel_Set8_Mt CO2e | E189: Steel | F189: Set8 | G189: Mt CO2e | H189: IRP3 of Draft IRP update of 2018 | I189: 21.38904342 | J189: 21.4112234 | K189: 18.76063601 | L189: 18.34965239 | M189: 18.38407357 | N189: 18.4750158 | O189: 17.66984317 | P189: 18.80596197 | Q189: 16.50433146 | R189: 13.43480467 | S189: 14.16279425 | T189: 14.81536843 | U189: 15.88130537 | V189: 15.64256714 | W189: 16.18387952 | X189: 17.03561075 | Y189: 17.39963399 | Z189: 16.04135588 | AA189: 14.74687032 | AB189: 13.09441559 | AC189: 16.04084837 | AD189: 14.29592483 | AE189: 14.57485592 | AF189: 16.11566109 | AG189: 14.87723494 | AH189: 14.79474455 | AI189: 15.78837592 | AJ189: 16.5838076 | AK189: 17.37902205 | AL189: 31.18044189 | AM189: 31.99161045 | AN189: 32.73251208 | AO189: 33.47188737 | AP189: 34.20887973 | AQ189: 34.94257419 | AR189: 35.67222825 | AS189: 36.34179907 | AT189: 37.00492159 | AU189: 37.66211612 | AV189: 38.31427417 | AW189: 38.96208694 | AX189: 39.44443359 | AY189: 39.92149618 | AZ189: 40.39338116 | BA189: 40.86010305 | BB189: 41.32165373 | BC189: 41.71027777 | BD189: 42.09051706 | BE189: 42.46272775 | BF189: 42.82714864 | BG189: 43.18394051 | BH189: 43.4198491 | BI189: 43.65092144 | BJ189: 43.87688135 | BK189: 44.09739108 | BL189: 44.31217468 | BM189: 44.45476063 | BN189: 44.59162971 | BO189: 44.7227652 | BP189: 44.84819378 | BQ189: 44.96792627
D190: Steel_Set9_Mt CO2e | E190: Steel | F190: Set9 | G190: Mt CO2e | H190: 0
D191: Steel_Set10_Mt CO2e | E191: Steel | F191: Set10 | G191: Mt CO2e | H191: 0
D192: Cement_Set1_Mt CO2e | E192: Cement | F192: Set1 | G192: Mt CO2e | H192: Paris compatible - upper end of ambition | I192: =INDEX(MacroOutputs,MATCH($D192,MacroOutputs_ID,0),MATCH(I$131,MacroOutputs_head,0)) -> 4.781226088 | J192: 4.752071369 | K192: 4.975575667 | L192: 4.945559109 | M192: 5.141734698 | N192: 5.214847946 | O192: 5.449510806 | P192: 5.601945143 | Q192: 5.648964536 | R192: 5.012715521 | S192: =INDEX(MacroOutputs,MATCH($D192,MacroOutputs_ID,0),MATCH(S$131,MacroOutputs_head,0)) -> 4.985118651 | T192: 5.235599949 | U192: 5.657107643 | V192: 5.83487985 | W192: 6.642824188 | X192: 7.34965388 | Y192: 7.976828542 | Z192: 8.53774281 | AA192: 8.328044463 | AB192: 7.079043596 | AC192: =INDEX(MacroOutputs,MATCH($D192,MacroOutputs_ID,0),MATCH(AC$131,MacroOutputs_head,0)) -> 6.178970511 | AD192: 6.380396632 | AE192: 6.588613971 | AF192: 7.010871696 | AG192: 6.797679226 | AH192: 7.383127404 | AI192: 7.693268674 | AJ192: 8.006518835 | AK192: 8.322958892 | AL192: 8.643249143 | AM192: =INDEX(MacroOutputs,MATCH($D192,MacroOutputs_ID,0),MATCH(AM$131,MacroOutputs_head,0)) -> 8.967865864 | AN192: 9.306256926 | AO192: 9.648355712 | AP192: 9.99387503 | AQ192: 10.3424951 | AR192: 10.69395678 | AS192: 11.02619546 | AT192: 11.35902257 | AU192: 11.69258337 | AV192: 12.02718389 | AW192: =INDEX(MacroOutputs,MATCH($D192,MacroOutputs_ID,0),MATCH(AW$131,MacroOutputs_head,0)) -> 12.36305671 | AX192: 12.68388009 | AY192: 13.00517668 | AZ192: 13.3268841 | BA192: 13.64890875 | BB192: 13.97115327 | BC192: 14.25863688 | BD192: 14.54578085 | BE192: 14.83246901 | BF192: 15.11856701 | BG192: =INDEX(MacroOutputs,MATCH($D192,MacroOutputs_ID,0),MATCH(BG$131,MacroOutputs_head,0)) -> 15.40393258 | BH192: 15.64477297 | BI192: 15.88445056 | BJ192: 16.12278707 | BK192: 16.35957304 | BL192: 16.59462378 | BM192: 16.78552958 | BN192: 16.9743206 | BO192: 17.16093641 | BP192: 17.34533723 | BQ192: 17.52747629
D193: Cement_Set2_Mt CO2e | E193: Cement | F193: Set2 | G193: Mt CO2e | H193: Paris compatible - lower end of ambition | I193: 4.781226088 | J193: 4.752071369 | K193: 4.975575667 | L193: 4.945559109 | M193: 5.141734698 | N193: 5.214847946 | O193: 5.449510806 | P193: 5.601945143 | Q193: 5.648964536 | R193: 5.012715521 | S193: 4.985118651 | T193: 5.235599949 | U193: 5.657107643 | V193: 5.83487985 | W193: 6.642824188 | X193: 7.34965388 | Y193: 7.976828542 | Z193: 8.53774281 | AA193: 8.328044463 | AB193: 7.079043596 | AC193: 6.178970511 | AD193: 6.380396632 | AE193: 6.588613971 | AF193: 7.010871696 | AG193: 6.797679226 | AH193: 7.383127404 | AI193: 7.693268674 | AJ193: 8.006518835 | AK193: 8.322958892 | AL193: 8.643249143 | AM193: 8.967865864 | AN193: 9.306256926 | AO193: 9.648355712 | AP193: 9.99387503 | AQ193: 10.3424951 | AR193: 10.69395678 | AS193: 11.02619546 | AT193: 11.35902257 | AU193: 11.69258337 | AV193: 12.02718389 | AW193: 12.36305671 | AX193: 12.68388009 | AY193: 13.00517668 | AZ193: 13.3268841 | BA193: 13.64890875 | BB193: 13.97115327 | BC193: 14.25863688 | BD193: 14.54578085 | BE193: 14.83246901 | BF193: 15.11856701 | BG193: 15.40393258 | BH193: 15.64477297 | BI193: 15.88445056 | BJ193: 16.12278707 | BK193: 16.35957304 | BL193: 16.59462378 | BM193: 16.78552958 | BN193: 16.9743206 | BO193: 17.16093641 | BP193: 17.34533723 | BQ193: 17.52747629
D194: Cement_Set3_Mt CO2e | E194: Cement | F194: Set3 | G194: Mt CO2e | H194: Best-in-class 1 | I194: 4.781226088 | J194: 4.752071369 | K194: 4.975575667 | L194: 4.945559109 | M194: 5.141734698 | N194: 5.214847946 | O194: 5.449510806 | P194: 5.601945143 | Q194: 5.648964536 | R194: 5.012715521 | S194: 4.985118651 | T194: 5.235599949 | U194: 5.657107643 | V194: 5.83487985 | W194: 6.642824188 | X194: 7.34965388 | Y194: 7.976828542 | Z194: 8.53774281 | AA194: 8.328044463 | AB194: 7.079043596 | AC194: 6.178970511 | AD194: 6.380396632 | AE194: 6.588613971 | AF194: 7.010871696 | AG194: 6.797679226 | AH194: 7.383127404 | AI194: 7.693268674 | AJ194: 8.006518835 | AK194: 8.322958892 | AL194: 8.643249143 | AM194: 8.967865864 | AN194: 9.306256926 | AO194: 9.648355712 | AP194: 9.99387503 | AQ194: 10.3424951 | AR194: 10.69395678 | AS194: 11.02619546 | AT194: 11.35902257 | AU194: 11.69258337 | AV194: 12.02718389 | AW194: 12.36305671 | AX194: 12.68388009 | AY194: 13.00517668 | AZ194: 13.3268841 | BA194: 13.64890875 | BB194: 13.97115327 | BC194: 14.25863688 | BD194: 14.54578085 | BE194: 14.83246901 | BF194: 15.11856701 | BG194: 15.40393258 | BH194: 15.64477297 | BI194: 15.88445056 | BJ194: 16.12278707 | BK194: 16.35957304 | BL194: 16.59462378 | BM194: 16.78552958 | BN194: 16.9743206 | BO194: 17.16093641 | BP194: 17.34533723 | BQ194: 17.52747629
D195: Cement_Set4_Mt CO2e | E195: Cement | F195: Set4 | G195: Mt CO2e | H195: Best-in-class 2 | I195: 4.781226088 | J195: 4.752071369 | K195: 4.975575667 | L195: 4.945559109 | M195: 5.141734698 | N195: 5.214847946 | O195: 5.449510806 | P195: 5.601945143 | Q195: 5.648964536 | R195: 5.012715521 | S195: 4.985118651 | T195: 5.235599949 | U195: 5.657107643 | V195: 5.83487985 | W195: 6.642824188 | X195: 7.34965388 | Y195: 7.976828542 | Z195: 8.53774281 | AA195: 8.328044463 | AB195: 7.079043596 | AC195: 6.178970511 | AD195: 6.380396632 | AE195: 6.588613971 | AF195: 7.010871696 | AG195: 6.797679226 | AH195: 7.383127404 | AI195: 7.693268674 | AJ195: 8.006518835 | AK195: 8.322958892 | AL195: 8.643249143 | AM195: 8.967865864 | AN195: 9.306256926 | AO195: 9.648355712 | AP195: 9.99387503 | AQ195: 10.3424951 | AR195: 10.69395678 | AS195: 11.02619546 | AT195: 11.35902257 | AU195: 11.69258337 | AV195: 12.02718389 | AW195: 12.36305671 | AX195: 12.68388009 | AY195: 13.00517668 | AZ195: 13.3268841 | BA195: 13.64890875 | BB195: 13.97115327 | BC195: 14.25863688 | BD195: 14.54578085 | BE195: 14.83246901 | BF195: 15.11856701 | BG195: 15.40393258 | BH195: 15.64477297 | BI195: 15.88445056 | BJ195: 16.12278707 | BK195: 16.35957304 | BL195: 16.59462378 | BM195: 16.78552958 | BN195: 16.9743206 | BO195: 17.16093641 | BP195: 17.34533723 | BQ195: 17.52747629
D196: Cement_Set5_Mt CO2e | E196: Cement | F196: Set5 | G196: Mt CO2e | H196: =INDEX(Scen2Name,1,MATCH($F196,Scen2Number,0)) -> National scenarios 1 | I196: 4.781226088 | J196: 4.752071369 | K196: 4.975575667 | L196: 4.945559109 | M196: 5.141734698 | N196: 5.214847946 | O196: 5.449510806 | P196: 5.601945143 | Q196: 5.648964536 | R196: 5.012715521 | S196: 4.985118651 | T196: 5.235599949 | U196: 5.657107643 | V196: 5.83487985 | W196: 6.642824188 | X196: 7.34965388 | Y196: 7.976828542 | Z196: 8.53774281 | AA196: 8.328044463 | AB196: 7.079043596 | AC196: 6.178970511 | AD196: 6.380396632 | AE196: 6.588613971 | AF196: 7.010871696 | AG196: 6.797679226 | AH196: 7.383127404 | AI196: 7.693268674 | AJ196: 8.006518835 | AK196: 8.322958892 | AL196: 8.643249143 | AM196: 8.967865864 | AN196: 9.306256926 | AO196: 9.648355712 | AP196: 9.99387503 | AQ196: 10.3424951 | AR196: 10.69395678 | AS196: 11.02619546 | AT196: 11.35902257 | AU196: 11.69258337 | AV196: 12.02718389 | AW196: 12.36305671 | AX196: 12.68388009 | AY196: 13.00517668 | AZ196: 13.3268841 | BA196: 13.64890875 | BB196: 13.97115327 | BC196: 14.25863688 | BD196: 14.54578085 | BE196: 14.83246901 | BF196: 15.11856701 | BG196: 15.40393258 | BH196: 15.64477297 | BI196: 15.88445056 | BJ196: 16.12278707 | BK196: 16.35957304 | BL196: 16.59462378 | BM196: 16.78552958 | BN196: 16.9743206 | BO196: 17.16093641 | BP196: 17.34533723 | BQ196: 17.52747629
D197: =$E197 & "_" & $F197&"_" & $G197 -> Cement_Set6_Mt CO2e | E197: Cement | F197: Set6 | G197: Mt CO2e | H197: National scenarios 2 | I197: 4.781226088 | J197: 4.752071369 | K197: 4.975575667 | L197: 4.945559109 | M197: 5.141734698 | N197: 5.214847946 | O197: 5.449510806 | P197: 5.601945143 | Q197: 5.648964536 | R197: 5.012715521 | S197: 4.985118651 | T197: 5.235599949 | U197: 5.657107643 | V197: 5.83487985 | W197: 6.642824188 | X197: 7.34965388 | Y197: 7.976828542 | Z197: 8.53774281 | AA197: 8.328044463 | AB197: 7.079043596 | AC197: 6.178970511 | AD197: 6.380396632 | AE197: 6.588613971 | AF197: 7.010871696 | AG197: 6.797679226 | AH197: 7.383127404 | AI197: 7.693268674 | AJ197: 8.006518835 | AK197: 8.322958892 | AL197: 8.643249143 | AM197: 8.967865864 | AN197: 9.306256926 | AO197: 9.648355712 | AP197: 9.99387503 | AQ197: 10.3424951 | AR197: 10.69395678 | AS197: 11.02619546 | AT197: 11.35902257 | AU197: 11.69258337 | AV197: 12.02718389 | AW197: 12.36305671 | AX197: 12.68388009 | AY197: 13.00517668 | AZ197: 13.3268841 | BA197: 13.64890875 | BB197: 13.97115327 | BC197: 14.25863688 | BD197: 14.54578085 | BE197: 14.83246901 | BF197: 15.11856701 | BG197: 15.40393258 | BH197: 15.64477297 | BI197: 15.88445056 | BJ197: 16.12278707 | BK197: 16.35957304 | BL197: 16.59462378 | BM197: 16.78552958 | BN197: 16.9743206 | BO197: 17.16093641 | BP197: 17.34533723 | BQ197: 17.52747629
D198: Cement_Set7_Mt CO2e | E198: Cement | F198: Set7 | G198: Mt CO2e | H198: Current Development Scenario (CDS) | I198: 4.781226088 | J198: 4.752071369 | K198: 4.975575667 | L198: 4.945559109 | M198: 5.141734698 | N198: 5.214847946 | O198: 5.449510806 | P198: 5.601945143 | Q198: 5.648964536 | R198: 5.012715521 | S198: 4.985118651 | T198: 5.235599949 | U198: 5.657107643 | V198: 5.83487985 | W198: 6.642824188 | X198: 7.34965388 | Y198: 7.976828542 | Z198: 8.53774281 | AA198: 8.328044463 | AB198: 7.079043596 | AC198: 6.178970511 | AD198: 6.380396632 | AE198: 6.588613971 | AF198: 7.010871696 | AG198: 6.797679226 | AH198: 7.383127404 | AI198: 7.693268674 | AJ198: 8.006518835 | AK198: 8.322958892 | AL198: 8.643249143 | AM198: 8.967865864 | AN198: 9.306256926 | AO198: 9.648355712 | AP198: 9.99387503 | AQ198: 10.3424951 | AR198: 10.69395678 | AS198: 11.02619546 | AT198: 11.35902257 | AU198: 11.69258337 | AV198: 12.02718389 | AW198: 12.36305671 | AX198: 12.68388009 | AY198: 13.00517668 | AZ198: 13.3268841 | BA198: 13.64890875 | BB198: 13.97115327 | BC198: 14.25863688 | BD198: 14.54578085 | BE198: 14.83246901 | BF198: 15.11856701 | BG198: 15.40393258 | BH198: 15.64477297 | BI198: 15.88445056 | BJ198: 16.12278707 | BK198: 16.35957304 | BL198: 16.59462378 | BM198: 16.78552958 | BN198: 16.9743206 | BO198: 17.16093641 | BP198: 17.34533723 | BQ198: 17.52747629
D199: Cement_Set8_Mt CO2e | E199: Cement | F199: Set8 | G199: Mt CO2e | H199: IRP3 of Draft IRP update of 2018 | I199: 4.781226088 | J199: 4.752071369 | K199: 4.975575667 | L199: 4.945559109 | M199: 5.141734698 | N199: 5.214847946 | O199: 5.449510806 | P199: 5.601945143 | Q199: 5.648964536 | R199: 5.012715521 | S199: 4.985118651 | T199: 5.235599949 | U199: 5.657107643 | V199: 5.83487985 | W199: 6.642824188 | X199: 7.34965388 | Y199: 7.976828542 | Z199: 8.53774281 | AA199: 8.328044463 | AB199: 7.079043596 | AC199: 6.178970511 | AD199: 6.380396632 | AE199: 6.588613971 | AF199: 7.010871696 | AG199: 6.797679226 | AH199: 7.383127404 | AI199: 7.693268674 | AJ199: 8.006518835 | AK199: 8.322958892 | AL199: 8.643249143 | AM199: 8.967865864 | AN199: 9.306256926 | AO199: 9.648355712 | AP199: 9.99387503 | AQ199: 10.3424951 | AR199: 10.69395678 | AS199: 11.02619546 | AT199: 11.35902257 | AU199: 11.69258337 | AV199: 12.02718389 | AW199: 12.36305671 | AX199: 12.68388009 | AY199: 13.00517668 | AZ199: 13.3268841 | BA199: 13.64890875 | BB199: 13.97115327 | BC199: 14.25863688 | BD199: 14.54578085 | BE199: 14.83246901 | BF199: 15.11856701 | BG199: 15.40393258 | BH199: 15.64477297 | BI199: 15.88445056 | BJ199: 16.12278707 | BK199: 16.35957304 | BL199: 16.59462378 | BM199: 16.78552958 | BN199: 16.9743206 | BO199: 17.16093641 | BP199: 17.34533723 | BQ199: 17.52747629
D200: Cement_Set9_Mt CO2e | E200: Cement | F200: Set9 | G200: Mt CO2e | H200: 0
D201: Cement_Set10_Mt CO2e | E201: Cement | F201: Set10 | G201: Mt CO2e | H201: 0
D202: Other industry_Set1_Mt CO2e | E202: Other industry | F202: Set1 | G202: Mt CO2e | H202: Paris compatible - upper end of ambition | I202: =INDEX(MacroOutputs,MATCH($D202,MacroOutputs_ID,0),MATCH(I$131,MacroOutputs_head,0)) -> 32.05455554 | J202: 29.91590868 | K202: 29.63077912 | L202: 27.55514398 | M202: 25.37758326 | N202: 25.43593575 | O202: 31.76817817 | P202: 37.64393055 | Q202: 38.04874131 | R202: 33.22982249 | S202: =INDEX(MacroOutputs,MATCH($D202,MacroOutputs_ID,0),MATCH(S$131,MacroOutputs_head,0)) -> 33.83374469 | T202: 29.74140277 | U202: 33.62142503 | V202: 34.55725013 | W202: 38.74133154 | X202: 45.3280565 | Y202: 46.64011576 | Z202: 39.65856813 | AA202: 40.73684478 | AB202: 49.8921318 | AC202: =INDEX(MacroOutputs,MATCH($D202,MacroOutputs_ID,0),MATCH(AC$131,MacroOutputs_head,0)) -> 45.03829126 | AD202: 42.47486157 | AE202: 42.30093362 | AF202: 46.29049916 | AG202: 51.20342981 | AH202: 54.45445822 | AI202: 54.34597405 | AJ202: 54.66002862 | AK202: 54.99003363 | AL202: 55.42723261 | AM202: =INDEX(MacroOutputs,MATCH($D202,MacroOutputs_ID,0),MATCH(AM$131,MacroOutputs_head,0)) -> 55.98655341 | AN202: 56.65779261 | AO202: 57.43250367 | AP202: 58.20552161 | AQ202: 58.98125397 | AR202: 59.78094703 | AS202: 60.84402099 | AT202: 61.95872149 | AU202: 63.10601134 | AV202: 64.27686808 | AW202: =INDEX(MacroOutputs,MATCH($D202,MacroOutputs_ID,0),MATCH(AW$131,MacroOutputs_head,0)) -> 65.47001146 | AX202: 65.56556606 | AY202: 66.43422039 | AZ202: 67.30303659 | BA202: 68.1719881 | BB202: 69.04105159 | BC202: 69.82548166 | BD202: 70.60985881 | BE202: 71.39417102 | BF202: 72.17840807 | BG202: =INDEX(MacroOutputs,MATCH($D202,MacroOutputs_ID,0),MATCH(BG$131,MacroOutputs_head,0)) -> 72.9625613 | BH202: 73.81677246 | BI202: 74.67116326 | BJ202: 75.52571703 | BK202: 76.38041862 | BL202: 77.2352543 | BM202: 78.0700302 | BN202: 78.90493602 | BO202: 79.73996022 | BP202: 80.57509227 | BQ202: 81.41032253
D203: Other industry_Set2_Mt CO2e | E203: Other industry | F203: Set2 | G203: Mt CO2e | H203: Paris compatible - lower end of ambition | I203: 32.05455554 | J203: 29.91590868 | K203: 29.63077912 | L203: 27.55514398 | M203: 25.37758326 | N203: 25.43593575 | O203: 31.76817817 | P203: 37.64393055 | Q203: 38.04874131 | R203: 33.22982249 | S203: 33.83374469 | T203: 29.74140277 | U203: 33.62142503 | V203: 34.55725013 | W203: 38.74133154 | X203: 45.3280565 | Y203: 46.64011576 | Z203: 39.65856813 | AA203: 40.73684478 | AB203: 49.8921318 | AC203: 45.03829126 | AD203: 42.47486157 | AE203: 42.30093362 | AF203: 46.29049916 | AG203: 51.20342981 | AH203: 54.45445822 | AI203: 54.34597405 | AJ203: 54.66002862 | AK203: 54.99003363 | AL203: 55.42723261 | AM203: 55.98655341 | AN203: 56.65779261 | AO203: 57.43250367 | AP203: 58.20552161 | AQ203: 58.98125397 | AR203: 59.78094703 | AS203: 60.84402099 | AT203: 61.95872149 | AU203: 63.10601134 | AV203: 64.27686808 | AW203: 65.47001146 | AX203: 65.56556606 | AY203: 66.43422039 | AZ203: 67.30303659 | BA203: 68.1719881 | BB203: 69.04105159 | BC203: 69.82548166 | BD203: 70.60985881 | BE203: 71.39417102 | BF203: 72.17840807 | BG203: 72.9625613 | BH203: 73.81677246 | BI203: 74.67116326 | BJ203: 75.52571703 | BK203: 76.38041862 | BL203: 77.2352543 | BM203: 78.0700302 | BN203: 78.90493602 | BO203: 79.73996022 | BP203: 80.57509227 | BQ203: 81.41032253
D204: Other industry_Set3_Mt CO2e | E204: Other industry | F204: Set3 | G204: Mt CO2e | H204: Best-in-class 1 | I204: 32.05455554 | J204: 29.91590868 | K204: 29.63077912 | L204: 27.55514398 | M204: 25.37758326 | N204: 25.43593575 | O204: 31.76817817 | P204: 37.64393055 | Q204: 38.04874131 | R204: 33.22982249 | S204: 33.83374469 | T204: 29.74140277 | U204: 33.62142503 | V204: 34.55725013 | W204: 38.74133154 | X204: 45.3280565 | Y204: 46.64011576 | Z204: 39.65856813 | AA204: 40.73684478 | AB204: 49.8921318 | AC204: 45.03829126 | AD204: 42.47486157 | AE204: 42.30093362 | AF204: 46.29049916 | AG204: 51.20342981 | AH204: 54.45445822 | AI204: 54.34597405 | AJ204: 54.66002862 | AK204: 54.99003363 | AL204: 55.42723261 | AM204: 55.98655341 | AN204: 56.65779261 | AO204: 57.43250367 | AP204: 58.20552161 | AQ204: 58.98125397 | AR204: 59.78094703 | AS204: 60.84402099 | AT204: 61.95872149 | AU204: 63.10601134 | AV204: 64.27686808 | AW204: 65.47001146 | AX204: 65.56556606 | AY204: 66.43422039 | AZ204: 67.30303659 | BA204: 68.1719881 | BB204: 69.04105159 | BC204: 69.82548166 | BD204: 70.60985881 | BE204: 71.39417102 | BF204: 72.17840807 | BG204: 72.9625613 | BH204: 73.81677246 | BI204: 74.67116326 | BJ204: 75.52571703 | BK204: 76.38041862 | BL204: 77.2352543 | BM204: 78.0700302 | BN204: 78.90493602 | BO204: 79.73996022 | BP204: 80.57509227 | BQ204: 81.41032253
D205: Other industry_Set4_Mt CO2e | E205: Other industry | F205: Set4 | G205: Mt CO2e | H205: Best-in-class 2 | I205: 32.05455554 | J205: 29.91590868 | K205: 29.63077912 | L205: 27.55514398 | M205: 25.37758326 | N205: 25.43593575 | O205: 31.76817817 | P205: 37.64393055 | Q205: 38.04874131 | R205: 33.22982249 | S205: 33.83374469 | T205: 29.74140277 | U205: 33.62142503 | V205: 34.55725013 | W205: 38.74133154 | X205: 45.3280565 | Y205: 46.64011576 | Z205: 39.65856813 | AA205: 40.73684478 | AB205: 49.8921318 | AC205: 45.03829126 | AD205: 42.47486157 | AE205: 42.30093362 | AF205: 46.29049916 | AG205: 51.20342981 | AH205: 54.45445822 | AI205: 54.34597405 | AJ205: 54.66002862 | AK205: 54.99003363 | AL205: 55.42723261 | AM205: 55.98655341 | AN205: 56.65779261 | AO205: 57.43250367 | AP205: 58.20552161 | AQ205: 58.98125397 | AR205: 59.78094703 | AS205: 60.84402099 | AT205: 61.95872149 | AU205: 63.10601134 | AV205: 64.27686808 | AW205: 65.47001146 | AX205: 65.56556606 | AY205: 66.43422039 | AZ205: 67.30303659 | BA205: 68.1719881 | BB205: 69.04105159 | BC205: 69.82548166 | BD205: 70.60985881 | BE205: 71.39417102 | BF205: 72.17840807 | BG205: 72.9625613 | BH205: 73.81677246 | BI205: 74.67116326 | BJ205: 75.52571703 | BK205: 76.38041862 | BL205: 77.2352543 | BM205: 78.0700302 | BN205: 78.90493602 | BO205: 79.73996022 | BP205: 80.57509227 | BQ205: 81.41032253
D206: Other industry_Set5_Mt CO2e | E206: Other industry | F206: Set5 | G206: Mt CO2e | H206: National scenarios 1 | I206: 32.05455554 | J206: 29.91590868 | K206: 29.63077912 | L206: 27.55514398 | M206: 25.37758326 | N206: 25.43593575 | O206: 31.76817817 | P206: 37.64393055 | Q206: 38.04874131 | R206: 33.22982249 | S206: 33.83374469 | T206: 29.74140277 | U206: 33.62142503 | V206: 34.55725013 | W206: 38.74133154 | X206: 45.3280565 | Y206: 46.64011576 | Z206: 39.65856813 | AA206: 40.73684478 | AB206: 49.8921318 | AC206: 45.03829126 | AD206: 42.47486157 | AE206: 42.30093362 | AF206: 46.29049916 | AG206: 51.20342981 | AH206: 54.45445822 | AI206: 54.34597405 | AJ206: 54.66002862 | AK206: 54.99003363 | AL206: 55.42723261 | AM206: 55.98655341 | AN206: 56.65779261 | AO206: 57.43250367 | AP206: 58.20552161 | AQ206: 58.98125397 | AR206: 59.78094703 | AS206: 60.84402099 | AT206: 61.95872149 | AU206: 63.10601134 | AV206: 64.27686808 | AW206: 65.47001146 | AX206: 65.56556606 | AY206: 66.43422039 | AZ206: 67.30303659 | BA206: 68.1719881 | BB206: 69.04105159 | BC206: 69.82548166 | BD206: 70.60985881 | BE206: 71.39417102 | BF206: 72.17840807 | BG206: 72.9625613 | BH206: 73.81677246 | BI206: 74.67116326 | BJ206: 75.52571703 | BK206: 76.38041862 | BL206: 77.2352543 | BM206: 78.0700302 | BN206: 78.90493602 | BO206: 79.73996022 | BP206: 80.57509227 | BQ206: 81.41032253
D207: Other industry_Set6_Mt CO2e | E207: Other industry | F207: Set6 | G207: Mt CO2e | H207: National scenarios 2 | I207: 32.05455554 | J207: 29.91590868 | K207: 29.63077912 | L207: 27.55514398 | M207: 25.37758326 | N207: 25.43593575 | O207: 31.76817817 | P207: 37.64393055 | Q207: 38.04874131 | R207: 33.22982249 | S207: 33.83374469 | T207: 29.74140277 | U207: 33.62142503 | V207: 34.55725013 | W207: 38.74133154 | X207: 45.3280565 | Y207: 46.64011576 | Z207: 39.65856813 | AA207: 40.73684478 | AB207: 49.8921318 | AC207: 45.03829126 | AD207: 42.47486157 | AE207: 42.30093362 | AF207: 46.29049916 | AG207: 51.20342981 | AH207: 54.45445822 | AI207: 54.34597405 | AJ207: 54.66002862 | AK207: 54.99003363 | AL207: 55.42723261 | AM207: 55.98655341 | AN207: 56.65779261 | AO207: 57.43250367 | AP207: 58.20552161 | AQ207: 58.98125397 | AR207: 59.78094703 | AS207: 60.84402099 | AT207: 61.95872149 | AU207: 63.10601134 | AV207: 64.27686808 | AW207: 65.47001146 | AX207: 65.56556606 | AY207: 66.43422039 | AZ207: 67.30303659 | BA207: 68.1719881 | BB207: 69.04105159 | BC207: 69.82548166 | BD207: 70.60985881 | BE207: 71.39417102 | BF207: 72.17840807 | BG207: 72.9625613 | BH207: 73.81677246 | BI207: 74.67116326 | BJ207: 75.52571703 | BK207: 76.38041862 | BL207: 77.2352543 | BM207: 78.0700302 | BN207: 78.90493602 | BO207: 79.73996022 | BP207: 80.57509227 | BQ207: 81.41032253
D208: Other industry_Set7_Mt CO2e | E208: Other industry | F208: Set7 | G208: Mt CO2e | H208: Current Development Scenario (CDS) | I208: 32.05455554 | J208: 29.91590868 | K208: 29.63077912 | L208: 27.55514398 | M208: 25.37758326 | N208: 25.43593575 | O208: 31.76817817 | P208: 37.64393055 | Q208: 38.04874131 | R208: 33.22982249 | S208: 33.83374469 | T208: 29.74140277 | U208: 33.62142503 | V208: 34.55725013 | W208: 38.74133154 | X208: 45.3280565 | Y208: 46.64011576 | Z208: 39.65856813 | AA208: 40.73684478 | AB208: 49.8921318 | AC208: 45.03829126 | AD208: 42.47486157 | AE208: 42.30093362 | AF208: 46.29049916 | AG208: 51.20342981 | AH208: 54.45445822 | AI208: 54.34597405 | AJ208: 54.66002862 | AK208: 54.99003363 | AL208: 55.42723261 | AM208: 55.98655341 | AN208: 56.65779261 | AO208: 57.43250367 | AP208: 58.20552161 | AQ208: 58.98125397 | AR208: 59.78094703 | AS208: 60.84402099 | AT208: 61.95872149 | AU208: 63.10601134 | AV208: 64.27686808 | AW208: 65.47001146 | AX208: 65.56556606 | AY208: 66.43422039 | AZ208: 67.30303659 | BA208: 68.1719881 | BB208: 69.04105159 | BC208: 69.82548166 | BD208: 70.60985881 | BE208: 71.39417102 | BF208: 72.17840807 | BG208: 72.9625613 | BH208: 73.81677246 | BI208: 74.67116326 | BJ208: 75.52571703 | BK208: 76.38041862 | BL208: 77.2352543 | BM208: 78.0700302 | BN208: 78.90493602 | BO208: 79.73996022 | BP208: 80.57509227 | BQ208: 81.41032253
D209: Other industry_Set8_Mt CO2e | E209: Other industry | F209: Set8 | G209: Mt CO2e | H209: IRP3 of Draft IRP update of 2018 | I209: 32.05455554 | J209: 29.91590868 | K209: 29.63077912 | L209: 27.55514398 | M209: 25.37758326 | N209: 25.43593575 | O209: 31.76817817 | P209: 37.64393055 | Q209: 38.04874131 | R209: 33.22982249 | S209: 33.83374469 | T209: 29.74140277 | U209: 33.62142503 | V209: 34.55725013 | W209: 38.74133154 | X209: 45.3280565 | Y209: 46.64011576 | Z209: 39.65856813 | AA209: 40.73684478 | AB209: 49.8921318 | AC209: 45.03829126 | AD209: 42.47486157 | AE209: 42.30093362 | AF209: 46.29049916 | AG209: 51.20342981 | AH209: 54.45445822 | AI209: 54.34597405 | AJ209: 54.66002862 | AK209: 54.99003363 | AL209: 55.42723261 | AM209: 55.98655341 | AN209: 56.65779261 | AO209: 57.43250367 | AP209: 58.20552161 | AQ209: 58.98125397 | AR209: 59.78094703 | AS209: 60.84402099 | AT209: 61.95872149 | AU209: 63.10601134 | AV209: 64.27686808 | AW209: 65.47001146 | AX209: 65.56556606 | AY209: 66.43422039 | AZ209: 67.30303659 | BA209: 68.1719881 | BB209: 69.04105159 | BC209: 69.82548166 | BD209: 70.60985881 | BE209: 71.39417102 | BF209: 72.17840807 | BG209: 72.9625613 | BH209: 73.81677246 | BI209: 74.67116326 | BJ209: 75.52571703 | BK209: 76.38041862 | BL209: 77.2352543 | BM209: 78.0700302 | BN209: 78.90493602 | BO209: 79.73996022 | BP209: 80.57509227 | BQ209: 81.41032253
D210: Other industry_Set9_Mt CO2e | E210: Other industry | F210: Set9 | G210: Mt CO2e | H210: 0
D211: Other industry_Set10_Mt CO2e | E211: Other industry | F211: Set10 | G211: Mt CO2e | H211: 0
D212: Oil & gas_Set1_Mt CO2e | E212: Oil & gas | F212: Set1 | G212: Mt CO2e | H212: Paris compatible - upper end of ambition | I212: =INDEX(MacroOutputs,MATCH($D212,MacroOutputs_ID,0),MATCH(I$131,MacroOutputs_head,0)) -> 0.3581137917 | J212: 0.3714252648 | K212: 0.3809301053 | L212: 0.4214055948 | M212: 0.8568431685 | N212: 0.8183800149 | O212: 0.7823496489 | P212: 1.002994416 | Q212: 1.009851895 | R212: 0.950546729 | S212: =INDEX(MacroOutputs,MATCH($D212,MacroOutputs_ID,0),MATCH(S$131,MacroOutputs_head,0)) -> 0.9969970287 | T212: 1.000433113 | U212: 1.167718908 | V212: 1.743606559 | W212: 1.65454553 | X212: 1.423633076 | Y212: 1.342284028 | Z212: 1.286790021 | AA212: 1.30472563 | AB212: 1.408020371 | AC212: =INDEX(MacroOutputs,MATCH($D212,MacroOutputs_ID,0),MATCH(AC$131,MacroOutputs_head,0)) -> 1.151773401 | AD212: 0.9614530444 | AE212: 0.8059410619 | AF212: 0.7574315245 | AG212: 0.7118478252 | AH212: 0.6690131051 | AI212: 0.6690131051 | AJ212: 0.6690131051 | AK212: 0.6690131051 | AL212: 0.6690131051 | AM212: =INDEX(MacroOutputs,MATCH($D212,MacroOutputs_ID,0),MATCH(AM$131,MacroOutputs_head,0)) -> 0.6690131051 | AN212: 0.6690131051 | AO212: 0.6690131051 | AP212: 0.6690131051 | AQ212: 0.6690131051 | AR212: 0.6690131051 | AS212: 0.6690131051 | AT212: 0.6690131051 | AU212: 0.6690131051 | AV212: 0.6690131051 | AW212: =INDEX(MacroOutputs,MATCH($D212,MacroOutputs_ID,0),MATCH(AW$131,MacroOutputs_head,0)) -> 0.6690131051 | AX212: 0.6690131051 | AY212: 0.6690131051 | AZ212: 0.6690131051 | BA212: 0.6690131051 | BB212: 0.6690131051 | BC212: 0.6690131051 | BD212: 0.6690131051 | BE212: 0.6690131051 | BF212: 0.6690131051 | BG212: =INDEX(MacroOutputs,MATCH($D212,MacroOutputs_ID,0),MATCH(BG$131,MacroOutputs_head,0)) -> 0.6690131051 | BH212: 0.6690131051 | BI212: 0.6690131051 | BJ212: 0.6690131051 | BK212: 0.6690131051 | BL212: 0.6690131051 | BM212: 0.6690131051 | BN212: 0.6690131051 | BO212: 0.6690131051 | BP212: 0.6690131051 | BQ212: 0.6690131051
D213: Oil & gas_Set2_Mt CO2e | E213: Oil & gas | F213: Set2 | G213: Mt CO2e | H213: Paris compatible - lower end of ambition | I213: 0.3581137917 | J213: 0.3714252648 | K213: 0.3809301053 | L213: 0.4214055948 | M213: 0.8568431685 | N213: 0.8183800149 | O213: 0.7823496489 | P213: 1.002994416 | Q213: 1.009851895 | R213: 0.950546729 | S213: 0.9969970287 | T213: 1.000433113 | U213: 1.167718908 | V213: 1.743606559 | W213: 1.65454553 | X213: 1.423633076 | Y213: 1.342284028 | Z213: 1.286790021 | AA213: 1.30472563 | AB213: 1.408020371 | AC213: 1.151773401 | AD213: 0.9614530444 | AE213: 0.8059410619 | AF213: 0.7574315245 | AG213: 0.7118478252 | AH213: 0.6690131051 | AI213: 0.6690131051 | AJ213: 0.6690131051 | AK213: 0.6690131051 | AL213: 0.6690131051 | AM213: 0.6690131051 | AN213: 0.6690131051 | AO213: 0.6690131051 | AP213: 0.6690131051 | AQ213: 0.6690131051 | AR213: 0.6690131051 | AS213: 0.6690131051 | AT213: 0.6690131051 | AU213: 0.6690131051 | AV213: 0.6690131051 | AW213: 0.6690131051 | AX213: 0.6690131051 | AY213: 0.6690131051 | AZ213: 0.6690131051 | BA213: 0.6690131051 | BB213: 0.6690131051 | BC213: 0.6690131051 | BD213: 0.6690131051 | BE213: 0.6690131051 | BF213: 0.6690131051 | BG213: 0.6690131051 | BH213: 0.6690131051 | BI213: 0.6690131051 | BJ213: 0.6690131051 | BK213: 0.6690131051 | BL213: 0.6690131051 | BM213: 0.6690131051 | BN213: 0.6690131051 | BO213: 0.6690131051 | BP213: 0.6690131051 | BQ213: 0.6690131051
D214: Oil & gas_Set3_Mt CO2e | E214: Oil & gas | F214: Set3 | G214: Mt CO2e | H214: Best-in-class 1 | I214: 0.3581137917 | J214: 0.3714252648 | K214: 0.3809301053 | L214: 0.4214055948 | M214: 0.8568431685 | N214: 0.8183800149 | O214: 0.7823496489 | P214: 1.002994416 | Q214: 1.009851895 | R214: 0.950546729 | S214: 0.9969970287 | T214: 1.000433113 | U214: 1.167718908 | V214: 1.743606559 | W214: 1.65454553 | X214: 1.423633076 | Y214: 1.342284028 | Z214: 1.286790021 | AA214: 1.30472563 | AB214: 1.408020371 | AC214: 1.151773401 | AD214: 0.9614530444 | AE214: 0.8059410619 | AF214: 0.7574315245 | AG214: 0.7118478252 | AH214: 0.6690131051 | AI214: 0.6690131051 | AJ214: 0.6690131051 | AK214: 0.6690131051 | AL214: 0.6690131051 | AM214: 0.6690131051 | AN214: 0.6690131051 | AO214: 0.6690131051 | AP214: 0.6690131051 | AQ214: 0.6690131051 | AR214: 0.6690131051 | AS214: 0.6690131051 | AT214: 0.6690131051 | AU214: 0.6690131051 | AV214: 0.6690131051 | AW214: 0.6690131051 | AX214: 0.6690131051 | AY214: 0.6690131051 | AZ214: 0.6690131051 | BA214: 0.6690131051 | BB214: 0.6690131051 | BC214: 0.6690131051 | BD214: 0.6690131051 | BE214: 0.6690131051 | BF214: 0.6690131051 | BG214: 0.6690131051 | BH214: 0.6690131051 | BI214: 0.6690131051 | BJ214: 0.6690131051 | BK214: 0.6690131051 | BL214: 0.6690131051 | BM214: 0.6690131051 | BN214: 0.6690131051 | BO214: 0.6690131051 | BP214: 0.6690131051 | BQ214: 0.6690131051
D215: Oil & gas_Set4_Mt CO2e | E215: Oil & gas | F215: Set4 | G215: Mt CO2e | H215: Best-in-class 2 | I215: 0.3581137917 | J215: 0.3714252648 | K215: 0.3809301053 | L215: 0.4214055948 | M215: 0.8568431685 | N215: 0.8183800149 | O215: 0.7823496489 | P215: 1.002994416 | Q215: 1.009851895 | R215: 0.950546729 | S215: 0.9969970287 | T215: 1.000433113 | U215: 1.167718908 | V215: 1.743606559 | W215: 1.65454553 | X215: 1.423633076 | Y215: 1.342284028 | Z215: 1.286790021 | AA215: 1.30472563 | AB215: 1.408020371 | AC215: 1.151773401 | AD215: 0.9614530444 | AE215: 0.8059410619 | AF215: 0.7574315245 | AG215: 0.7118478252 | AH215: 0.6690131051 | AI215: 0.6690131051 | AJ215: 0.6690131051 | AK215: 0.6690131051 | AL215: 0.6690131051 | AM215: 0.6690131051 | AN215: 0.6690131051 | AO215: 0.6690131051 | AP215: 0.6690131051 | AQ215: 0.6690131051 | AR215: 0.6690131051 | AS215: 0.6690131051 | AT215: 0.6690131051 | AU215: 0.6690131051 | AV215: 0.6690131051 | AW215: 0.6690131051 | AX215: 0.6690131051 | AY215: 0.6690131051 | AZ215: 0.6690131051 | BA215: 0.6690131051 | BB215: 0.6690131051 | BC215: 0.6690131051 | BD215: 0.6690131051 | BE215: 0.6690131051 | BF215: 0.6690131051 | BG215: 0.6690131051 | BH215: 0.6690131051 | BI215: 0.6690131051 | BJ215: 0.6690131051 | BK215: 0.6690131051 | BL215: 0.6690131051 | BM215: 0.6690131051 | BN215: 0.6690131051 | BO215: 0.6690131051 | BP215: 0.6690131051 | BQ215: 0.6690131051
D216: Oil & gas_Set5_Mt CO2e | E216: Oil & gas | F216: Set5 | G216: Mt CO2e | H216: National scenarios 1 | I216: 0.3581137917 | J216: 0.3714252648 | K216: 0.3809301053 | L216: 0.4214055948 | M216: 0.8568431685 | N216: 0.8183800149 | O216: 0.7823496489 | P216: 1.002994416 | Q216: 1.009851895 | R216: 0.950546729 | S216: 0.9969970287 | T216: 1.000433113 | U216: 1.167718908 | V216: 1.743606559 | W216: 1.65454553 | X216: 1.423633076 | Y216: 1.342284028 | Z216: 1.286790021 | AA216: 1.30472563 | AB216: 1.408020371 | AC216: 1.151773401 | AD216: 0.9614530444 | AE216: 0.8059410619 | AF216: 0.7574315245 | AG216: 0.7118478252 | AH216: 0.6690131051 | AI216: 0.6690131051 | AJ216: 0.6690131051 | AK216: 0.6690131051 | AL216: 0.6690131051 | AM216: 0.6690131051 | AN216: 0.6690131051 | AO216: 0.6690131051 | AP216: 0.6690131051 | AQ216: 0.6690131051 | AR216: 0.6690131051 | AS216: 0.6690131051 | AT216: 0.6690131051 | AU216: 0.6690131051 | AV216: 0.6690131051 | AW216: 0.6690131051 | AX216: 0.6690131051 | AY216: 0.6690131051 | AZ216: 0.6690131051 | BA216: 0.6690131051 | BB216: 0.6690131051 | BC216: 0.6690131051 | BD216: 0.6690131051 | BE216: 0.6690131051 | BF216: 0.6690131051 | BG216: 0.6690131051 | BH216: 0.6690131051 | BI216: 0.6690131051 | BJ216: 0.6690131051 | BK216: 0.6690131051 | BL216: 0.6690131051 | BM216: 0.6690131051 | BN216: 0.6690131051 | BO216: 0.6690131051 | BP216: 0.6690131051 | BQ216: 0.6690131051
D217: Oil & gas_Set6_Mt CO2e | E217: Oil & gas | F217: Set6 | G217: Mt CO2e | H217: National scenarios 2 | I217: 0.3581137917 | J217: 0.3714252648 | K217: 0.3809301053 | L217: 0.4214055948 | M217: 0.8568431685 | N217: 0.8183800149 | O217: 0.7823496489 | P217: 1.002994416 | Q217: 1.009851895 | R217: 0.950546729 | S217: 0.9969970287 | T217: 1.000433113 | U217: 1.167718908 | V217: 1.743606559 | W217: 1.65454553 | X217: 1.423633076 | Y217: 1.342284028 | Z217: 1.286790021 | AA217: 1.30472563 | AB217: 1.408020371 | AC217: 1.151773401 | AD217: 0.9614530444 | AE217: 0.8059410619 | AF217: 0.7574315245 | AG217: 0.7118478252 | AH217: 0.6690131051 | AI217: 0.6690131051 | AJ217: 0.6690131051 | AK217: 0.6690131051 | AL217: 0.6690131051 | AM217: 0.6690131051 | AN217: 0.6690131051 | AO217: 0.6690131051 | AP217: 0.6690131051 | AQ217: 0.6690131051 | AR217: 0.6690131051 | AS217: 0.6690131051 | AT217: 0.6690131051 | AU217: 0.6690131051 | AV217: 0.6690131051 | AW217: 0.6690131051 | AX217: 0.6690131051 | AY217: 0.6690131051 | AZ217: 0.6690131051 | BA217: 0.6690131051 | BB217: 0.6690131051 | BC217: 0.6690131051 | BD217: 0.6690131051 | BE217: 0.6690131051 | BF217: 0.6690131051 | BG217: 0.6690131051 | BH217: 0.6690131051 | BI217: 0.6690131051 | BJ217: 0.6690131051 | BK217: 0.6690131051 | BL217: 0.6690131051 | BM217: 0.6690131051 | BN217: 0.6690131051 | BO217: 0.6690131051 | BP217: 0.6690131051 | BQ217: 0.6690131051
D218: Oil & gas_Set7_Mt CO2e | E218: Oil & gas | F218: Set7 | G218: Mt CO2e | H218: Current Development Scenario (CDS) | I218: 0.3581137917 | J218: 0.3714252648 | K218: 0.3809301053 | L218: 0.4214055948 | M218: 0.8568431685 | N218: 0.8183800149 | O218: 0.7823496489 | P218: 1.002994416 | Q218: 1.009851895 | R218: 0.950546729 | S218: 0.9969970287 | T218: 1.000433113 | U218: 1.167718908 | V218: 1.743606559 | W218: 1.65454553 | X218: 1.423633076 | Y218: 1.342284028 | Z218: 1.286790021 | AA218: 1.30472563 | AB218: 1.408020371 | AC218: 1.151773401 | AD218: 0.9614530444 | AE218: 0.8059410619 | AF218: 0.7574315245 | AG218: 0.7118478252 | AH218: 0.6690131051 | AI218: 0.6690131051 | AJ218: 0.6690131051 | AK218: 0.6690131051 | AL218: 0.6690131051 | AM218: 0.6690131051 | AN218: 0.6690131051 | AO218: 0.6690131051 | AP218: 0.6690131051 | AQ218: 0.6690131051 | AR218: 0.6690131051 | AS218: 0.6690131051 | AT218: 0.6690131051 | AU218: 0.6690131051 | AV218: 0.6690131051 | AW218: 0.6690131051 | AX218: 0.6690131051 | AY218: 0.6690131051 | AZ218: 0.6690131051 | BA218: 0.6690131051 | BB218: 0.6690131051 | BC218: 0.6690131051 | BD218: 0.6690131051 | BE218: 0.6690131051 | BF218: 0.6690131051 | BG218: 0.6690131051 | BH218: 0.6690131051 | BI218: 0.6690131051 | BJ218: 0.6690131051 | BK218: 0.6690131051 | BL218: 0.6690131051 | BM218: 0.6690131051 | BN218: 0.6690131051 | BO218: 0.6690131051 | BP218: 0.6690131051 | BQ218: 0.6690131051
D219: Oil & gas_Set8_Mt CO2e | E219: Oil & gas | F219: Set8 | G219: Mt CO2e | H219: IRP3 of Draft IRP update of 2018 | I219: 0.3581137917 | J219: 0.3714252648 | K219: 0.3809301053 | L219: 0.4214055948 | M219: 0.8568431685 | N219: 0.8183800149 | O219: 0.7823496489 | P219: 1.002994416 | Q219: 1.009851895 | R219: 0.950546729 | S219: 0.9969970287 | T219: 1.000433113 | U219: 1.167718908 | V219: 1.743606559 | W219: 1.65454553 | X219: 1.423633076 | Y219: 1.342284028 | Z219: 1.286790021 | AA219: 1.30472563 | AB219: 1.408020371 | AC219: 1.151773401 | AD219: 0.9614530444 | AE219: 0.8059410619 | AF219: 0.7574315245 | AG219: 0.7118478252 | AH219: 0.6690131051 | AI219: 0.6690131051 | AJ219: 0.6690131051 | AK219: 0.6690131051 | AL219: 0.6690131051 | AM219: 0.6690131051 | AN219: 0.6690131051 | AO219: 0.6690131051 | AP219: 0.6690131051 | AQ219: 0.6690131051 | AR219: 0.6690131051 | AS219: 0.6690131051 | AT219: 0.6690131051 | AU219: 0.6690131051 | AV219: 0.6690131051 | AW219: 0.6690131051 | AX219: 0.6690131051 | AY219: 0.6690131051 | AZ219: 0.6690131051 | BA219: 0.6690131051 | BB219: 0.6690131051 | BC219: 0.6690131051 | BD219: 0.6690131051 | BE219: 0.6690131051 | BF219: 0.6690131051 | BG219: 0.6690131051 | BH219: 0.6690131051 | BI219: 0.6690131051 | BJ219: 0.6690131051 | BK219: 0.6690131051 | BL219: 0.6690131051 | BM219: 0.6690131051 | BN219: 0.6690131051 | BO219: 0.6690131051 | BP219: 0.6690131051 | BQ219: 0.6690131051
D220: Oil & gas_Set9_Mt CO2e | E220: Oil & gas | F220: Set9 | G220: Mt CO2e | H220: 0
D221: Oil & gas_Set10_Mt CO2e | E221: Oil & gas | F221: Set10 | G221: Mt CO2e | H221: 0
D222: Waste_Set1_Mt CO2e | E222: Waste | F222: Set1 | G222: Mt CO2e | H222: Paris compatible - upper end of ambition | I222: =INDEX(MacroOutputs,MATCH($D222,MacroOutputs_ID,0),MATCH(I$131,MacroOutputs_head,0)) -> 9.4783027 | J222: 9.848795848 | K222: 10.30865918 | L222: 10.85595307 | M222: 11.48686303 | N222: 12.19744999 | O222: 12.9847711 | P222: 13.84723429 | Q222: 14.78344722 | R222: 15.79299586 | S222: =INDEX(MacroOutputs,MATCH($D222,MacroOutputs_ID,0),MATCH(S$131,MacroOutputs_head,0)) -> 16.87549765 | T222: 17.92328958 | U222: 19.24463691 | V222: 20.44407102 | W222: 21.90272342 | X222: 23.42773497 | Y222: 24.91627249 | Z222: 26.56602832 | AA222: 28.07575108 | AB222: 29.65003602 | AC222: =INDEX(MacroOutputs,MATCH($D222,MacroOutputs_ID,0),MATCH(AC$131,MacroOutputs_head,0)) -> 31.29362709 | AD222: 33.01070671 | AE222: 34.69432337 | AF222: 36.34586563 | AG222: 37.96362102 | AH222: 39.54540368 | AI222: 41.57585774 | AJ222: 43.18790351 | AK222: 44.76712148 | AL222: 46.31494397 | AM222: =INDEX(MacroOutputs,MATCH($D222,MacroOutputs_ID,0),MATCH(AM$131,MacroOutputs_head,0)) -> 47.83279501 | AN222: 49.32138429 | AO222: 50.78086224 | AP222: 52.21161551 | AQ222: 53.6139313 | AR222: 54.98810198 | AS222: 56.33439612 | AT222: 57.65324287 | AU222: 58.94533615 | AV222: 60.21160379 | AW222: =INDEX(MacroOutputs,MATCH($D222,MacroOutputs_ID,0),MATCH(AW$131,MacroOutputs_head,0)) -> 61.45298455 | AX222: 62.67024799 | AY222: 63.86401531 | AZ222: 65.03493984 | BA222: 66.18362376 | BB222: 67.3106391 | BC222: 68.41657144 | BD222: 69.50198884 | BE222: 70.56737079 | BF222: 71.6131459 | BG222: =INDEX(MacroOutputs,MATCH($D222,MacroOutputs_ID,0),MATCH(BG$131,MacroOutputs_head,0)) -> 72.63969976 | BH222: 73.64834267 | BI222: 74.63212959 | BJ222: 75.59128037 | BK222: 76.52595949 | BL222: 77.43636155 | BM222: 78.32275661 | BN222: 79.18546921 | BO222: 80.02481778 | BP222: 80.84112706 | BQ222: 81.634685
D223: Waste_Set2_Mt CO2e | E223: Waste | F223: Set2 | G223: Mt CO2e | H223: Paris compatible - lower end of ambition | I223: 9.4783027 | J223: 9.848795848 | K223: 10.30865918 | L223: 10.85595307 | M223: 11.48686303 | N223: 12.19744999 | O223: 12.9847711 | P223: 13.84723429 | Q223: 14.78344722 | R223: 15.79299586 | S223: 16.87549765 | T223: 17.92328958 | U223: 19.24463691 | V223: 20.44407102 | W223: 21.90272342 | X223: 23.42773497 | Y223: 24.91627249 | Z223: 26.56602832 | AA223: 28.07575108 | AB223: 29.65003602 | AC223: 31.29362709 | AD223: 33.01070671 | AE223: 34.69432337 | AF223: 36.34586563 | AG223: 37.96362102 | AH223: 39.54540368 | AI223: 41.57585774 | AJ223: 43.18790351 | AK223: 44.76712148 | AL223: 46.31494397 | AM223: 47.83279501 | AN223: 49.32138429 | AO223: 50.78086224 | AP223: 52.21161551 | AQ223: 53.6139313 | AR223: 54.98810198 | AS223: 56.33439612 | AT223: 57.65324287 | AU223: 58.94533615 | AV223: 60.21160379 | AW223: 61.45298455 | AX223: 62.67024799 | AY223: 63.86401531 | AZ223: 65.03493984 | BA223: 66.18362376 | BB223: 67.3106391 | BC223: 68.41657144 | BD223: 69.50198884 | BE223: 70.56737079 | BF223: 71.6131459 | BG223: 72.63969976 | BH223: 73.64834267 | BI223: 74.63212959 | BJ223: 75.59128037 | BK223: 76.52595949 | BL223: 77.43636155 | BM223: 78.32275661 | BN223: 79.18546921 | BO223: 80.02481778 | BP223: 80.84112706 | BQ223: 81.634685
D224: Waste_Set3_Mt CO2e | E224: Waste | F224: Set3 | G224: Mt CO2e | H224: Best-in-class 1 | I224: 9.4783027 | J224: 9.848795848 | K224: 10.30865918 | L224: 10.85595307 | M224: 11.48686303 | N224: 12.19744999 | O224: 12.9847711 | P224: 13.84723429 | Q224: 14.78344722 | R224: 15.79299586 | S224: 16.87549765 | T224: 17.92328958 | U224: 19.24463691 | V224: 20.44407102 | W224: 21.90272342 | X224: 23.42773497 | Y224: 24.91627249 | Z224: 26.56602832 | AA224: 28.07575108 | AB224: 29.65003602 | AC224: 31.29362709 | AD224: 33.01070671 | AE224: 34.69432337 | AF224: 36.34586563 | AG224: 37.96362102 | AH224: 39.54540368 | AI224: 41.57585774 | AJ224: 43.18790351 | AK224: 44.76712148 | AL224: 46.31494397 | AM224: 47.83279501 | AN224: 49.32138429 | AO224: 50.78086224 | AP224: 52.21161551 | AQ224: 53.6139313 | AR224: 54.98810198 | AS224: 56.33439612 | AT224: 57.65324287 | AU224: 58.94533615 | AV224: 60.21160379 | AW224: 61.45298455 | AX224: 62.67024799 | AY224: 63.86401531 | AZ224: 65.03493984 | BA224: 66.18362376 | BB224: 67.3106391 | BC224: 68.41657144 | BD224: 69.50198884 | BE224: 70.56737079 | BF224: 71.6131459 | BG224: 72.63969976 | BH224: 73.64834267 | BI224: 74.63212959 | BJ224: 75.59128037 | BK224: 76.52595949 | BL224: 77.43636155 | BM224: 78.32275661 | BN224: 79.18546921 | BO224: 80.02481778 | BP224: 80.84112706 | BQ224: 81.634685
D225: Waste_Set4_Mt CO2e | E225: Waste | F225: Set4 | G225: Mt CO2e | H225: Best-in-class 2 | I225: 9.4783027 | J225: 9.848795848 | K225: 10.30865918 | L225: 10.85595307 | M225: 11.48686303 | N225: 12.19744999 | O225: 12.9847711 | P225: 13.84723429 | Q225: 14.78344722 | R225: 15.79299586 | S225: 16.87549765 | T225: 17.92328958 | U225: 19.24463691 | V225: 20.44407102 | W225: 21.90272342 | X225: 23.42773497 | Y225: 24.91627249 | Z225: 26.56602832 | AA225: 28.07575108 | AB225: 29.65003602 | AC225: 31.29362709 | AD225: 33.01070671 | AE225: 34.69432337 | AF225: 36.34586563 | AG225: 37.96362102 | AH225: 39.54540368 | AI225: 41.57585774 | AJ225: 43.18790351 | AK225: 44.76712148 | AL225: 46.31494397 | AM225: 47.83279501 | AN225: 49.32138429 | AO225: 50.78086224 | AP225: 52.21161551 | AQ225: 53.6139313 | AR225: 54.98810198 | AS225: 56.33439612 | AT225: 57.65324287 | AU225: 58.94533615 | AV225: 60.21160379 | AW225: 61.45298455 | AX225: 62.67024799 | AY225: 63.86401531 | AZ225: 65.03493984 | BA225: 66.18362376 | BB225: 67.3106391 | BC225: 68.41657144 | BD225: 69.50198884 | BE225: 70.56737079 | BF225: 71.6131459 | BG225: 72.63969976 | BH225: 73.64834267 | BI225: 74.63212959 | BJ225: 75.59128037 | BK225: 76.52595949 | BL225: 77.43636155 | BM225: 78.32275661 | BN225: 79.18546921 | BO225: 80.02481778 | BP225: 80.84112706 | BQ225: 81.634685
D226: Waste_Set5_Mt CO2e | E226: Waste | F226: Set5 | G226: Mt CO2e | H226: National scenarios 1 | I226: 9.4783027 | J226: 9.848795848 | K226: 10.30865918 | L226: 10.85595307 | M226: 11.48686303 | N226: 12.19744999 | O226: 12.9847711 | P226: 13.84723429 | Q226: 14.78344722 | R226: 15.79299586 | S226: 16.87549765 | T226: 17.92328958 | U226: 19.24463691 | V226: 20.44407102 | W226: 21.90272342 | X226: 23.42773497 | Y226: 24.91627249 | Z226: 26.56602832 | AA226: 28.07575108 | AB226: 29.65003602 | AC226: 31.29362709 | AD226: 33.01070671 | AE226: 34.69432337 | AF226: 36.34586563 | AG226: 37.96362102 | AH226: 39.54540368 | AI226: 41.57585774 | AJ226: 43.18790351 | AK226: 44.76712148 | AL226: 46.31494397 | AM226: 47.83279501 | AN226: 49.32138429 | AO226: 50.78086224 | AP226: 52.21161551 | AQ226: 53.6139313 | AR226: 54.98810198 | AS226: 56.33439612 | AT226: 57.65324287 | AU226: 58.94533615 | AV226: 60.21160379 | AW226: 61.45298455 | AX226: 62.67024799 | AY226: 63.86401531 | AZ226: 65.03493984 | BA226: 66.18362376 | BB226: 67.3106391 | BC226: 68.41657144 | BD226: 69.50198884 | BE226: 70.56737079 | BF226: 71.6131459 | BG226: 72.63969976 | BH226: 73.64834267 | BI226: 74.63212959 | BJ226: 75.59128037 | BK226: 76.52595949 | BL226: 77.43636155 | BM226: 78.32275661 | BN226: 79.18546921 | BO226: 80.02481778 | BP226: 80.84112706 | BQ226: 81.634685
D227: Waste_Set6_Mt CO2e | E227: Waste | F227: Set6 | G227: Mt CO2e | H227: National scenarios 2 | I227: 9.4783027 | J227: 9.848795848 | K227: 10.30865918 | L227: 10.85595307 | M227: 11.48686303 | N227: 12.19744999 | O227: 12.9847711 | P227: 13.84723429 | Q227: 14.78344722 | R227: 15.79299586 | S227: 16.87549765 | T227: 17.92328958 | U227: 19.24463691 | V227: 20.44407102 | W227: 21.90272342 | X227: 23.42773497 | Y227: 24.91627249 | Z227: 26.56602832 | AA227: 28.07575108 | AB227: 29.65003602 | AC227: 31.29362709 | AD227: 33.01070671 | AE227: 34.69432337 | AF227: 36.34586563 | AG227: 37.96362102 | AH227: 39.54540368 | AI227: 41.57585774 | AJ227: 43.18790351 | AK227: 44.76712148 | AL227: 46.31494397 | AM227: 47.83279501 | AN227: 49.32138429 | AO227: 50.78086224 | AP227: 52.21161551 | AQ227: 53.6139313 | AR227: 54.98810198 | AS227: 56.33439612 | AT227: 57.65324287 | AU227: 58.94533615 | AV227: 60.21160379 | AW227: 61.45298455 | AX227: 62.67024799 | AY227: 63.86401531 | AZ227: 65.03493984 | BA227: 66.18362376 | BB227: 67.3106391 | BC227: 68.41657144 | BD227: 69.50198884 | BE227: 70.56737079 | BF227: 71.6131459 | BG227: 72.63969976 | BH227: 73.64834267 | BI227: 74.63212959 | BJ227: 75.59128037 | BK227: 76.52595949 | BL227: 77.43636155 | BM227: 78.32275661 | BN227: 79.18546921 | BO227: 80.02481778 | BP227: 80.84112706 | BQ227: 81.634685
D228: Waste_Set7_Mt CO2e | E228: Waste | F228: Set7 | G228: Mt CO2e | H228: =INDEX(Scen2Name,1,MATCH($F228,Scen2Number,0)) -> Current Development Scenario (CDS) | I228: 9.4783027 | J228: 9.848795848 | K228: 10.30865918 | L228: 10.85595307 | M228: 11.48686303 | N228: 12.19744999 | O228: 12.9847711 | P228: 13.84723429 | Q228: 14.78344722 | R228: 15.79299586 | S228: 16.87549765 | T228: 17.92328958 | U228: 19.24463691 | V228: 20.44407102 | W228: 21.90272342 | X228: 23.42773497 | Y228: 24.91627249 | Z228: 26.56602832 | AA228: 28.07575108 | AB228: 29.65003602 | AC228: 31.29362709 | AD228: 33.01070671 | AE228: 34.69432337 | AF228: 36.34586563 | AG228: 37.96362102 | AH228: 39.54540368 | AI228: 41.57585774 | AJ228: 43.18790351 | AK228: 44.76712148 | AL228: 46.31494397 | AM228: 47.83279501 | AN228: 49.32138429 | AO228: 50.78086224 | AP228: 52.21161551 | AQ228: 53.6139313 | AR228: 54.98810198 | AS228: 56.33439612 | AT228: 57.65324287 | AU228: 58.94533615 | AV228: 60.21160379 | AW228: 61.45298455 | AX228: 62.67024799 | AY228: 63.86401531 | AZ228: 65.03493984 | BA228: 66.18362376 | BB228: 67.3106391 | BC228: 68.41657144 | BD228: 69.50198884 | BE228: 70.56737079 | BF228: 71.6131459 | BG228: 72.63969976 | BH228: 73.64834267 | BI228: 74.63212959 | BJ228: 75.59128037 | BK228: 76.52595949 | BL228: 77.43636155 | BM228: 78.32275661 | BN228: 79.18546921 | BO228: 80.02481778 | BP228: 80.84112706 | BQ228: 81.634685
D229: Waste_Set8_Mt CO2e | E229: Waste | F229: Set8 | G229: Mt CO2e | H229: IRP3 of Draft IRP update of 2018 | I229: 9.4783027 | J229: 9.848795848 | K229: 10.30865918 | L229: 10.85595307 | M229: 11.48686303 | N229: 12.19744999 | O229: 12.9847711 | P229: 13.84723429 | Q229: 14.78344722 | R229: 15.79299586 | S229: 16.87549765 | T229: 17.92328958 | U229: 19.24463691 | V229: 20.44407102 | W229: 21.90272342 | X229: 23.42773497 | Y229: 24.91627249 | Z229: 26.56602832 | AA229: 28.07575108 | AB229: 29.65003602 | AC229: 31.29362709 | AD229: 33.01070671 | AE229: 34.69432337 | AF229: 36.34586563 | AG229: 37.96362102 | AH229: 39.54540368 | AI229: 41.57585774 | AJ229: 43.18790351 | AK229: 44.76712148 | AL229: 46.31494397 | AM229: 47.83279501 | AN229: 49.32138429 | AO229: 50.78086224 | AP229: 52.21161551 | AQ229: 53.6139313 | AR229: 54.98810198 | AS229: 56.33439612 | AT229: 57.65324287 | AU229: 58.94533615 | AV229: 60.21160379 | AW229: 61.45298455 | AX229: 62.67024799 | AY229: 63.86401531 | AZ229: 65.03493984 | BA229: 66.18362376 | BB229: 67.3106391 | BC229: 68.41657144 | BD229: 69.50198884 | BE229: 70.56737079 | BF229: 71.6131459 | BG229: 72.63969976 | BH229: 73.64834267 | BI229: 74.63212959 | BJ229: 75.59128037 | BK229: 76.52595949 | BL229: 77.43636155 | BM229: 78.32275661 | BN229: 79.18546921 | BO229: 80.02481778 | BP229: 80.84112706 | BQ229: 81.634685
D230: Waste_Set9_Mt CO2e | E230: Waste | F230: Set9 | G230: Mt CO2e | H230: 0
D231: Waste_Set10_Mt CO2e | E231: Waste | F231: Set10 | G231: Mt CO2e | H231: 0
D232: Agriculture_Set1_Mt CO2e | E232: Agriculture | F232: Set1 | G232: Mt CO2e | H232: Paris compatible - upper end of ambition | I232: =INDEX(MacroOutputs,MATCH($D232,MacroOutputs_ID,0),MATCH(I$131,MacroOutputs_head,0)) -> 52.32562799 | J232: 52.11654467 | K232: 50.45702716 | L232: 57.60950126 | M232: 56.58495132 | N232: 54.38403868 | O232: 58.51675288 | P232: 58.48597831 | Q232: 57.01988211 | R232: 57.25215196 | S232: =INDEX(MacroOutputs,MATCH($D232,MacroOutputs_ID,0),MATCH(S$131,MacroOutputs_head,0)) -> 58.35679983 | T232: 56.50312557 | U232: 57.20427689 | V232: 55.63286297 | W232: 55.16563546 | X232: 53.42957141 | Y232: 54.605175 | Z232: 53.09556086 | AA232: 53.20448424 | AB232: 52.15510191 | AC232: =INDEX(MacroOutputs,MATCH($D232,MacroOutputs_ID,0),MATCH(AC$131,MacroOutputs_head,0)) -> 54.28453143 | AD232: 55.6583264 | AE232: 54.71278395 | AF232: 54.78899023 | AG232: 56.59688829 | AH232: 53.4147383 | AI232: 53.7102535 | AJ232: 55.48049047 | AK232: 56.39671535 | AL232: 57.42145136 | AM232: =INDEX(MacroOutputs,MATCH($D232,MacroOutputs_ID,0),MATCH(AM$131,MacroOutputs_head,0)) -> 58.46572318 | AN232: 59.52999367 | AO232: 60.61473744 | AP232: 61.72044111 | AQ232: 62.84760369 | AR232: 63.99673684 | AS232: 65.16836524 | AT232: 66.36302692 | AU232: 67.58127361 | AV232: 68.82367113 | AW232: =INDEX(MacroOutputs,MATCH($D232,MacroOutputs_ID,0),MATCH(AW$131,MacroOutputs_head,0)) -> 70.09079969 | AX232: 70.56278285 | AY232: 71.03713984 | AZ232: 71.51388709 | BA232: 71.99304116 | BB232: 72.47461873 | BC232: 72.95863658 | BD232: 73.44511165 | BE232: 73.93406096 | BF232: 74.4255017 | BG232: =INDEX(MacroOutputs,MATCH($D232,MacroOutputs_ID,0),MATCH(BG$131,MacroOutputs_head,0)) -> 74.91945116 | BH232: 75.41592675 | BI232: 75.91494602 | BJ232: 76.41652665 | BK232: 76.92068643 | BL232: 77.42744332 | BM232: 77.93681536 | BN232: 78.44882076 | BO232: 78.96347785 | BP232: 79.48080509 | BQ232: 80.00082109
D233: Agriculture_Set2_Mt CO2e | E233: Agriculture | F233: Set2 | G233: Mt CO2e | H233: Paris compatible - lower end of ambition | I233: 52.32562799 | J233: 52.11654467 | K233: 50.45702716 | L233: 57.60950126 | M233: 56.58495132 | N233: 54.38403868 | O233: 58.51675288 | P233: 58.48597831 | Q233: 57.01988211 | R233: 57.25215196 | S233: 58.35679983 | T233: 56.50312557 | U233: 57.20427689 | V233: 55.63286297 | W233: 55.16563546 | X233: 53.42957141 | Y233: 54.605175 | Z233: 53.09556086 | AA233: 53.20448424 | AB233: 52.15510191 | AC233: 54.28453143 | AD233: 55.6583264 | AE233: 54.71278395 | AF233: 54.78899023 | AG233: 56.59688829 | AH233: 53.4147383 | AI233: 53.7102535 | AJ233: 55.48049047 | AK233: 56.39671535 | AL233: 57.42145136 | AM233: 58.46572318 | AN233: 59.52999367 | AO233: 60.61473744 | AP233: 61.72044111 | AQ233: 62.84760369 | AR233: 63.99673684 | AS233: 65.16836524 | AT233: 66.36302692 | AU233: 67.58127361 | AV233: 68.82367113 | AW233: 70.09079969 | AX233: 70.56278285 | AY233: 71.03713984 | AZ233: 71.51388709 | BA233: 71.99304116 | BB233: 72.47461873 | BC233: 72.95863658 | BD233: 73.44511165 | BE233: 73.93406096 | BF233: 74.4255017 | BG233: 74.91945116 | BH233: 75.41592675 | BI233: 75.91494602 | BJ233: 76.41652665 | BK233: 76.92068643 | BL233: 77.42744332 | BM233: 77.93681536 | BN233: 78.44882076 | BO233: 78.96347785 | BP233: 79.48080509 | BQ233: 80.00082109
D234: Agriculture_Set3_Mt CO2e | E234: Agriculture | F234: Set3 | G234: Mt CO2e | H234: Best-in-class 1 | I234: 52.32562799 | J234: 52.11654467 | K234: 50.45702716 | L234: 57.60950126 | M234: 56.58495132 | N234: 54.38403868 | O234: 58.51675288 | P234: 58.48597831 | Q234: 57.01988211 | R234: 57.25215196 | S234: 58.35679983 | T234: 56.50312557 | U234: 57.20427689 | V234: 55.63286297 | W234: 55.16563546 | X234: 53.42957141 | Y234: 54.605175 | Z234: 53.09556086 | AA234: 53.20448424 | AB234: 52.15510191 | AC234: 54.28453143 | AD234: 55.6583264 | AE234: 54.71278395 | AF234: 54.78899023 | AG234: 56.59688829 | AH234: 53.4147383 | AI234: 53.7102535 | AJ234: 55.48049047 | AK234: 56.39671535 | AL234: 57.42145136 | AM234: 58.46572318 | AN234: 59.52999367 | AO234: 60.61473744 | AP234: 61.72044111 | AQ234: 62.84760369 | AR234: 63.99673684 | AS234: 65.16836524 | AT234: 66.36302692 | AU234: 67.58127361 | AV234: 68.82367113 | AW234: 70.09079969 | AX234: 70.56278285 | AY234: 71.03713984 | AZ234: 71.51388709 | BA234: 71.99304116 | BB234: 72.47461873 | BC234: 72.95863658 | BD234: 73.44511165 | BE234: 73.93406096 | BF234: 74.4255017 | BG234: 74.91945116 | BH234: 75.41592675 | BI234: 75.91494602 | BJ234: 76.41652665 | BK234: 76.92068643 | BL234: 77.42744332 | BM234: 77.93681536 | BN234: 78.44882076 | BO234: 78.96347785 | BP234: 79.48080509 | BQ234: 80.00082109
D235: Agriculture_Set4_Mt CO2e | E235: Agriculture | F235: Set4 | G235: Mt CO2e | H235: Best-in-class 2 | I235: 52.32562799 | J235: 52.11654467 | K235: 50.45702716 | L235: 57.60950126 | M235: 56.58495132 | N235: 54.38403868 | O235: 58.51675288 | P235: 58.48597831 | Q235: 57.01988211 | R235: 57.25215196 | S235: 58.35679983 | T235: 56.50312557 | U235: 57.20427689 | V235: 55.63286297 | W235: 55.16563546 | X235: 53.42957141 | Y235: 54.605175 | Z235: 53.09556086 | AA235: 53.20448424 | AB235: 52.15510191 | AC235: 54.28453143 | AD235: 55.6583264 | AE235: 54.71278395 | AF235: 54.78899023 | AG235: 56.59688829 | AH235: 53.4147383 | AI235: 53.7102535 | AJ235: 55.48049047 | AK235: 56.39671535 | AL235: 57.42145136 | AM235: 58.46572318 | AN235: 59.52999367 | AO235: 60.61473744 | AP235: 61.72044111 | AQ235: 62.84760369 | AR235: 63.99673684 | AS235: 65.16836524 | AT235: 66.36302692 | AU235: 67.58127361 | AV235: 68.82367113 | AW235: 70.09079969 | AX235: 70.56278285 | AY235: 71.03713984 | AZ235: 71.51388709 | BA235: 71.99304116 | BB235: 72.47461873 | BC235: 72.95863658 | BD235: 73.44511165 | BE235: 73.93406096 | BF235: 74.4255017 | BG235: 74.91945116 | BH235: 75.41592675 | BI235: 75.91494602 | BJ235: 76.41652665 | BK235: 76.92068643 | BL235: 77.42744332 | BM235: 77.93681536 | BN235: 78.44882076 | BO235: 78.96347785 | BP235: 79.48080509 | BQ235: 80.00082109
D236: Agriculture_Set5_Mt CO2e | E236: Agriculture | F236: Set5 | G236: Mt CO2e | H236: National scenarios 1 | I236: 52.32562799 | J236: 52.11654467 | K236: 50.45702716 | L236: 57.60950126 | M236: 56.58495132 | N236: 54.38403868 | O236: 58.51675288 | P236: 58.48597831 | Q236: 57.01988211 | R236: 57.25215196 | S236: 58.35679983 | T236: 56.50312557 | U236: 57.20427689 | V236: 55.63286297 | W236: 55.16563546 | X236: 53.42957141 | Y236: 54.605175 | Z236: 53.09556086 | AA236: 53.20448424 | AB236: 52.15510191 | AC236: 54.28453143 | AD236: 55.6583264 | AE236: 54.71278395 | AF236: 54.78899023 | AG236: 56.59688829 | AH236: 53.4147383 | AI236: 53.7102535 | AJ236: 55.48049047 | AK236: 56.39671535 | AL236: 57.42145136 | AM236: 58.46572318 | AN236: 59.52999367 | AO236: 60.61473744 | AP236: 61.72044111 | AQ236: 62.84760369 | AR236: 63.99673684 | AS236: 65.16836524 | AT236: 66.36302692 | AU236: 67.58127361 | AV236: 68.82367113 | AW236: 70.09079969 | AX236: 70.56278285 | AY236: 71.03713984 | AZ236: 71.51388709 | BA236: 71.99304116 | BB236: 72.47461873 | BC236: 72.95863658 | BD236: 73.44511165 | BE236: 73.93406096 | BF236: 74.4255017 | BG236: 74.91945116 | BH236: 75.41592675 | BI236: 75.91494602 | BJ236: 76.41652665 | BK236: 76.92068643 | BL236: 77.42744332 | BM236: 77.93681536 | BN236: 78.44882076 | BO236: 78.96347785 | BP236: 79.48080509 | BQ236: 80.00082109
D237: Agriculture_Set6_Mt CO2e | E237: Agriculture | F237: Set6 | G237: Mt CO2e | H237: National scenarios 2 | I237: 52.32562799 | J237: 52.11654467 | K237: 50.45702716 | L237: 57.60950126 | M237: 56.58495132 | N237: 54.38403868 | O237: 58.51675288 | P237: 58.48597831 | Q237: 57.01988211 | R237: 57.25215196 | S237: 58.35679983 | T237: 56.50312557 | U237: 57.20427689 | V237: 55.63286297 | W237: 55.16563546 | X237: 53.42957141 | Y237: 54.605175 | Z237: 53.09556086 | AA237: 53.20448424 | AB237: 52.15510191 | AC237: 54.28453143 | AD237: 55.6583264 | AE237: 54.71278395 | AF237: 54.78899023 | AG237: 56.59688829 | AH237: 53.4147383 | AI237: 53.7102535 | AJ237: 55.48049047 | AK237: 56.39671535 | AL237: 57.42145136 | AM237: 58.46572318 | AN237: 59.52999367 | AO237: 60.61473744 | AP237: 61.72044111 | AQ237: 62.84760369 | AR237: 63.99673684 | AS237: 65.16836524 | AT237: 66.36302692 | AU237: 67.58127361 | AV237: 68.82367113 | AW237: 70.09079969 | AX237: 70.56278285 | AY237: 71.03713984 | AZ237: 71.51388709 | BA237: 71.99304116 | BB237: 72.47461873 | BC237: 72.95863658 | BD237: 73.44511165 | BE237: 73.93406096 | BF237: 74.4255017 | BG237: 74.91945116 | BH237: 75.41592675 | BI237: 75.91494602 | BJ237: 76.41652665 | BK237: 76.92068643 | BL237: 77.42744332 | BM237: 77.93681536 | BN237: 78.44882076 | BO237: 78.96347785 | BP237: 79.48080509 | BQ237: 80.00082109
D238: Agriculture_Set7_Mt CO2e | E238: Agriculture | F238: Set7 | G238: Mt CO2e | H238: Current Development Scenario (CDS) | I238: 52.32562799 | J238: 52.11654467 | K238: 50.45702716 | L238: 57.60950126 | M238: 56.58495132 | N238: 54.38403868 | O238: 58.51675288 | P238: 58.48597831 | Q238: 57.01988211 | R238: 57.25215196 | S238: 58.35679983 | T238: 56.50312557 | U238: 57.20427689 | V238: 55.63286297 | W238: 55.16563546 | X238: 53.42957141 | Y238: 54.605175 | Z238: 53.09556086 | AA238: 53.20448424 | AB238: 52.15510191 | AC238: 54.28453143 | AD238: 55.6583264 | AE238: 54.71278395 | AF238: 54.78899023 | AG238: 56.59688829 | AH238: 53.4147383 | AI238: 53.7102535 | AJ238: 55.48049047 | AK238: 56.39671535 | AL238: 57.42145136 | AM238: 58.46572318 | AN238: 59.52999367 | AO238: 60.61473744 | AP238: 61.72044111 | AQ238: 62.84760369 | AR238: 63.99673684 | AS238: 65.16836524 | AT238: 66.36302692 | AU238: 67.58127361 | AV238: 68.82367113 | AW238: 70.09079969 | AX238: 70.56278285 | AY238: 71.03713984 | AZ238: 71.51388709 | BA238: 71.99304116 | BB238: 72.47461873 | BC238: 72.95863658 | BD238: 73.44511165 | BE238: 73.93406096 | BF238: 74.4255017 | BG238: 74.91945116 | BH238: 75.41592675 | BI238: 75.91494602 | BJ238: 76.41652665 | BK238: 76.92068643 | BL238: 77.42744332 | BM238: 77.93681536 | BN238: 78.44882076 | BO238: 78.96347785 | BP238: 79.48080509 | BQ238: 80.00082109
D239: Agriculture_Set8_Mt CO2e | E239: Agriculture | F239: Set8 | G239: Mt CO2e | H239: IRP3 of Draft IRP update of 2018 | I239: 52.32562799 | J239: 52.11654467 | K239: 50.45702716 | L239: 57.60950126 | M239: 56.58495132 | N239: 54.38403868 | O239: 58.51675288 | P239: 58.48597831 | Q239: 57.01988211 | R239: 57.25215196 | S239: 58.35679983 | T239: 56.50312557 | U239: 57.20427689 | V239: 55.63286297 | W239: 55.16563546 | X239: 53.42957141 | Y239: 54.605175 | Z239: 53.09556086 | AA239: 53.20448424 | AB239: 52.15510191 | AC239: 54.28453143 | AD239: 55.6583264 | AE239: 54.71278395 | AF239: 54.78899023 | AG239: 56.59688829 | AH239: 53.4147383 | AI239: 53.7102535 | AJ239: 55.48049047 | AK239: 56.39671535 | AL239: 57.42145136 | AM239: 58.46572318 | AN239: 59.52999367 | AO239: 60.61473744 | AP239: 61.72044111 | AQ239: 62.84760369 | AR239: 63.99673684 | AS239: 65.16836524 | AT239: 66.36302692 | AU239: 67.58127361 | AV239: 68.82367113 | AW239: 70.09079969 | AX239: 70.56278285 | AY239: 71.03713984 | AZ239: 71.51388709 | BA239: 71.99304116 | BB239: 72.47461873 | BC239: 72.95863658 | BD239: 73.44511165 | BE239: 73.93406096 | BF239: 74.4255017 | BG239: 74.91945116 | BH239: 75.41592675 | BI239: 75.91494602 | BJ239: 76.41652665 | BK239: 76.92068643 | BL239: 77.42744332 | BM239: 77.93681536 | BN239: 78.44882076 | BO239: 78.96347785 | BP239: 79.48080509 | BQ239: 80.00082109
D240: Agriculture_Set9_Mt CO2e | E240: Agriculture | F240: Set9 | G240: Mt CO2e | H240: 0
D241: Agriculture_Set10_Mt CO2e | E241: Agriculture | F241: Set10 | G241: Mt CO2e | H241: 0
D242: Total_Set1_TWh/a | E242: Total | F242: Set1 | G242: TWh/a | H242: Paris compatible - upper end of ambition | I242: 167.226 | J242: 168.316 | K242: 168.09 | L242: 174.706 | M242: 181.69 | N242: 186.655 | O242: 201.716 | P242: 210.362 | Q242: 205.374 | R242: 203.012 | S242: 210.67 | T242: 210.1 | U242: 220.575 | V242: 234.229 | W242: 244.605 | X242: 244.922 | Y242: 253.798 | Z242: 263.479 | AA242: 258.291 | AB242: 249.557 | AC242: 259.601 | AD242: 262.538 | AE242: 257.919 | AF242: 256.073 | AG242: 252.578 | AH242: 249.655 | AI242: 256.199265 | AJ242: 259.3863807 | AK242: 261.1201207 | AL242: 269.7909506 | AM242: 272.9849169 | AN242: 276.0626836 | AO242: 279.4398486 | AP242: 283.564537 | AQ242: 288.345892 | AR242: 293.2100701 | AS242: 297.8568436 | AT242: 303.0263039 | AU242: 308.4204505 | AV242: 314.0190228 | AW242: 319.5114497 | AX242: 324.2526488 | AY242: 329.2772019 | AZ242: 334.1227148 | BA242: 338.8955216 | BB242: 343.6027758 | BC242: 347.0930579 | BD242: 351.0021479 | BE242: 354.7363571 | BF242: 358.3368959 | BG242: 361.7760743 | BH242: 365.0498942 | BI242: 368.2937754 | BJ242: 371.3805095 | BK242: 374.3195992 | BL242: 377.1526314 | BM242: 378.9306845 | BN242: 381.3145961 | BO242: 383.6157064 | BP242: 385.8283669 | BQ242: 387.9554822
D243: Total_Set2_TWh/a | E243: Total | F243: Set2 | G243: TWh/a | H243: Paris compatible - lower end of ambition | I243: 167.226 | J243: 168.316 | K243: 168.09 | L243: 174.706 | M243: 181.69 | N243: 186.655 | O243: 201.716 | P243: 210.362 | Q243: 205.374 | R243: 203.012 | S243: 210.67 | T243: 210.1 | U243: 220.575 | V243: 234.229 | W243: 244.605 | X243: 244.922 | Y243: 253.798 | Z243: 263.479 | AA243: 258.291 | AB243: 249.557 | AC243: 259.601 | AD243: 262.538 | AE243: 257.919 | AF243: 256.073 | AG243: 252.578 | AH243: 249.655 | AI243: 256.2994682 | AJ243: 259.5900047 | AK243: 261.4298633 | AL243: 270.2006161 | AM243: 273.6590707 | AN243: 277.0136404 | AO243: 280.6590262 | AP243: 285.0960744 | AQ243: 290.2419979 | AR243: 295.4877365 | AS243: 300.514739 | AT243: 306.0748634 | AU243: 311.9066886 | AV243: 317.9972454 | AW243: 323.9857139 | AX243: 329.1501097 | AY243: 334.5684654 | AZ243: 339.7819503 | BA243: 344.9366468 | BB243: 350.0439777 | BC243: 353.939098 | BD243: 358.2615789 | BE243: 362.42331 | BF243: 366.4530966 | BG243: 370.315627 | BH243: 374.0177609 | BI243: 377.6824558 | BJ243: 381.1807227 | BK243: 384.5208585 | BL243: 387.7588794 | BM243: 389.9769583 | BN243: 392.8118745 | BO243: 395.5646511 | BP243: 398.2202431 | BQ243: 400.7733076
D244: Total_Set3_TWh/a | E244: Total | F244: Set3 | G244: TWh/a | H244: Best-in-class 1 | I244: 167.226 | J244: 168.316 | K244: 168.09 | L244: 174.706 | M244: 181.69 | N244: 186.655 | O244: 201.716 | P244: 210.362 | Q244: 205.374 | R244: 203.012 | S244: 210.67 | T244: 210.1 | U244: 220.575 | V244: 234.229 | W244: 244.605 | X244: 244.922 | Y244: 253.798 | Z244: 263.479 | AA244: 258.291 | AB244: 249.557 | AC244: 259.601 | AD244: 262.538 | AE244: 257.919 | AF244: 256.073 | AG244: 252.578 | AH244: 249.655 | AI244: 256.3085412 | AJ244: 259.6031703 | AK244: 261.4178247 | AL244: 270.1202927 | AM244: 273.8814162 | AN244: 277.4954811 | AO244: 281.3091956 | AP244: 285.8722495 | AQ244: 291.1195679 | AR244: 296.4189282 | AS244: 301.3942225 | AT244: 306.8795472 | AU244: 312.5891958 | AV244: 318.6450385 | AW244: 324.2803049 | AX244: 329.1173338 | AY244: 334.2790296 | AZ244: 339.3476186 | BA244: 344.5177559 | BB244: 349.813893 | BC244: 354.0547018 | BD244: 358.8978712 | BE244: 363.7369895 | BF244: 368.5736435 | BG244: 373.3763413 | BH244: 378.1556301 | BI244: 382.9186208 | BJ244: 387.5375467 | BK244: 392.0016685 | BL244: 396.3403959 | BM244: 399.7078015 | BN244: 403.6329701 | BO244: 407.4076177 | BP244: 411.0029684 | BQ244: 414.4153342
D245: Total_Set4_TWh/a | E245: Total | F245: Set4 | G245: TWh/a | H245: Best-in-class 2 | I245: 167.226 | J245: 168.316 | K245: 168.09 | L245: 174.706 | M245: 181.69 | N245: 186.655 | O245: 201.716 | P245: 210.362 | Q245: 205.374 | R245: 203.012 | S245: 210.67 | T245: 210.1 | U245: 220.575 | V245: 234.229 | W245: 244.605 | X245: 244.922 | Y245: 253.798 | Z245: 263.479 | AA245: 258.291 | AB245: 249.557 | AC245: 259.601 | AD245: 262.538 | AE245: 257.919 | AF245: 256.073 | AG245: 252.578 | AH245: 249.655 | AI245: 256.418658 | AJ245: 259.8277806 | AK245: 261.7610698 | AL245: 270.5817676 | AM245: 274.5417217 | AN245: 278.7069695 | AO245: 283.4295992 | AP245: 288.5187929 | AQ245: 294.1427441 | AR245: 299.8041258 | AS245: 305.1629443 | AT245: 311.0419569 | AU245: 317.1484912 | AV245: 323.63019 | AW245: 329.8306207 | AX245: 335.1963151 | AY245: 340.8551045 | AZ245: 346.394243 | BA245: 352.0289047 | BB245: 357.7855093 | BC245: 362.4731457 | BD245: 367.7445413 | BE245: 372.9948871 | BF245: 378.224925 | BG245: 383.3415204 | BH245: 388.4228289 | BI245: 393.4706825 | BJ245: 398.3609713 | BK245: 403.0819843 | BL245: 407.6923679 | BM245: 411.3263508 | BN245: 415.5395914 | BO245: 419.6177315 | BP245: 423.5258781 | BQ245: 427.249526
D246: Total_Set5_TWh/a | E246: Total | F246: Set5 | G246: TWh/a | H246: National scenarios 1 | I246: 167.226 | J246: 168.316 | K246: 168.09 | L246: 174.706 | M246: 181.69 | N246: 186.655 | O246: 201.716 | P246: 210.362 | Q246: 205.374 | R246: 203.012 | S246: 210.67 | T246: 210.1 | U246: 220.575 | V246: 234.229 | W246: 244.605 | X246: 244.922 | Y246: 253.798 | Z246: 263.479 | AA246: 258.291 | AB246: 249.557 | AC246: 259.601 | AD246: 262.538 | AE246: 257.919 | AF246: 256.073 | AG246: 252.578 | AH246: 249.655 | AI246: 256.4813435 | AJ246: 259.9362808 | AK246: 261.8817227 | AL246: 270.7128454 | AM246: 274.5518806 | AN246: 278.2181293 | AO246: 282.0768657 | AP246: 286.6213719 | AQ246: 291.7951534 | AR246: 296.9961614 | AS246: 301.8517402 | AT246: 307.1864332 | AU246: 312.6766679 | AV246: 318.4337047 | AW246: 324.1224672 | AX246: 328.9899748 | AY246: 334.1969458 | AZ246: 339.3289721 | BA246: 344.54647 | BB246: 349.8818114 | BC246: 354.1642905 | BD246: 359.0550641 | BE246: 363.9446193 | BF246: 368.8773792 | BG246: 373.7762209 | BH246: 378.8925333 | BI246: 383.8996899 | BJ246: 388.8452162 | BK246: 393.7219685 | BL246: 398.574866 | BM246: 402.5929943 | BN246: 407.2786948 | BO246: 411.9328947 | BP246: 416.5235629 | BQ246: 421.0406429
D247: Total_Set6_TWh/a | E247: Total | F247: Set6 | G247: TWh/a | H247: National scenarios 2 | I247: 167.226 | J247: 168.316 | K247: 168.09 | L247: 174.706 | M247: 181.69 | N247: 186.655 | O247: 201.716 | P247: 210.362 | Q247: 205.374 | R247: 203.012 | S247: 210.67 | T247: 210.1 | U247: 220.575 | V247: 234.229 | W247: 244.605 | X247: 244.922 | Y247: 253.798 | Z247: 263.479 | AA247: 258.291 | AB247: 249.557 | AC247: 259.601 | AD247: 262.538 | AE247: 257.919 | AF247: 256.073 | AG247: 252.578 | AH247: 249.655 | AI247: 256.4840461 | AJ247: 260.2407097 | AK247: 262.5060655 | AL247: 271.6435099 | AM247: 275.8536213 | AN247: 279.8453311 | AO247: 284.0254664 | AP247: 288.9653292 | AQ247: 294.6155066 | AR247: 300.3239849 | AS247: 305.681085 | AT247: 311.546643 | AU247: 317.6154901 | AV247: 324.025688 | AW247: 330.377856 | AX247: 335.9162217 | AY247: 341.7715571 | AZ247: 347.5339752 | BA247: 353.4112417 | BB247: 359.4393362 | BC247: 364.4317491 | BD247: 370.0472399 | BE247: 375.6827565 | BF247: 381.3664222 | BG247: 387.0064335 | BH247: 392.8742664 | BI247: 398.6252583 | BJ247: 404.3054455 | BK247: 409.9047214 | BL247: 415.4901666 | BM247: 420.26648 | BN247: 425.7245329 | BO247: 431.1561241 | BP247: 436.5175532 | BQ247: 441.788308
D248: Total_Set7_TWh/a | E248: Total | F248: Set7 | G248: TWh/a | H248: Current Development Scenario (CDS) | I248: =INDEX(MacroOutputs,MATCH($D248,MacroOutputs_ID,0),MATCH(I$131,MacroOutputs_head,0)) -> 167.226 | J248: 168.316 | K248: 168.09 | L248: 174.706 | M248: 181.69 | N248: 186.655 | O248: 201.716 | P248: 210.362 | Q248: 205.374 | R248: 203.012 | S248: 210.67 | T248: 210.1 | U248: 220.575 | V248: 234.229 | W248: 244.605 | X248: 244.922 | Y248: =INDEX(MacroOutputs,MATCH($D248,MacroOutputs_ID,0),MATCH(Y$131,MacroOutputs_head,0)) -> 253.798 | Z248: 263.479 | AA248: 258.291 | AB248: 249.557 | AC248: 259.601 | AD248: 262.538 | AE248: 257.919 | AF248: 256.073 | AG248: 252.578 | AH248: 249.655 | AI248: 256.7880273 | AJ248: 260.5417484 | AK248: 262.9095162 | AL248: 272.1194574 | AM248: 276.4102545 | AN248: 280.5672272 | AO248: =INDEX(MacroOutputs,MATCH($D248,MacroOutputs_ID,0),MATCH(AO$131,MacroOutputs_head,0)) -> 284.9003373 | AP248: 290.0519343 | AQ248: 296.0125394 | AR248: 302.0507987 | AS248: 307.7944914 | AT248: 314.08157 | AU248: 320.614199 | AV248: 327.5660199 | AW248: 334.4780967 | AX248: 340.5896937 | AY248: 346.9360875 | AZ248: 353.1345455 | BA248: 359.4225123 | BB248: 365.8511561 | BC248: 371.272742 | BD248: 377.3556308 | BE248: =INDEX(MacroOutputs,MATCH($D248,MacroOutputs_ID,0),MATCH(BE$131,MacroOutputs_head,0)) -> 383.4237575 | BF248: 389.5303282 | BG248: 395.5517123 | BH248: 401.0061582 | BI248: 407.09968 | BJ248: 413.0979308 | BK248: 419.033933 | BL248: 424.9358698 | BM248: 430.0306723 | BN248: 435.8144543 | BO248: 441.5592761 | BP248: 447.1975308 | BQ248: 452.7194857
D249: Total_Set8_TWh/a | E249: Total | F249: Set8 | G249: TWh/a | H249: IRP3 of Draft IRP update of 2018 | I249: 167.226 | J249: 168.316 | K249: 168.09 | L249: 174.706 | M249: 181.69 | N249: 186.655 | O249: 201.716 | P249: 210.362 | Q249: 205.374 | R249: 203.012 | S249: 210.67 | T249: 210.1 | U249: 220.575 | V249: 234.229 | W249: 244.605 | X249: 244.922 | Y249: 253.798 | Z249: 263.479 | AA249: 258.291 | AB249: 249.557 | AC249: 259.601 | AD249: 262.538 | AE249: 257.919 | AF249: 256.073 | AG249: 252.578 | AH249: 249.655 | AI249: 256.7880273 | AJ249: 260.5417484 | AK249: 262.9095162 | AL249: 272.1194574 | AM249: 276.4102545 | AN249: 280.5672272 | AO249: 284.9003373 | AP249: 290.0519343 | AQ249: 296.0125394 | AR249: 302.0507987 | AS249: 307.7944914 | AT249: 314.08157 | AU249: 320.614199 | AV249: 327.5660199 | AW249: 334.4780967 | AX249: 340.5896937 | AY249: 346.9360875 | AZ249: 353.1345455 | BA249: 359.4225123 | BB249: 365.8511561 | BC249: 371.272742 | BD249: 377.3556308 | BE249: 383.4237575 | BF249: 389.5303282 | BG249: 395.5517123 | BH249: 401.0061582 | BI249: 407.09968 | BJ249: 413.0979308 | BK249: 419.033933 | BL249: 424.9358698 | BM249: 430.0306723 | BN249: 435.8144543 | BO249: 441.5592761 | BP249: 447.1975308 | BQ249: 452.7194857
D250: Total_Set9_TWh/a | E250: Total | F250: Set9 | G250: TWh/a | H250: 0
D251: Total_Set10_TWh/a | E251: Total | F251: Set10 | G251: TWh/a | H251: 0
D252: Transport - passenger_Set1_Mt CO2e | E252: Transport - passenger | F252: Set1 | G252: Mt CO2e | H252: Paris compatible - upper end of ambition | I252: 21.07336708 | J252: 21.19175412 | K252: 21.31114467 | L252: 21.43154968 | M252: 21.55298028 | N252: 21.67544778 | O252: 21.56990713 | P252: 21.46513973 | Q252: 21.36111237 | R252: 21.25779184 | S252: 21.15514495 | T252: 21.15030978 | U252: 21.14373765 | V252: 21.13551697 | W252: 21.12573663 | X252: 21.11448594 | Y252: 21.21611104 | Z252: 21.30651384 | AA252: 21.38594131 | AB252: 21.45463991 | AC252: 21.51285561 | AD252: 21.96086433 | AE252: 22.39875872 | AF252: 22.82626097 | AG252: 23.24309083 | AH252: 23.64896563 | AI252: 23.7054296 | AJ252: 24.11012308 | AK252: 24.47963028 | AL252: 24.80097678 | AM252: 25.05775332 | AN252: 24.88067331 | AO252: 24.59984651 | AP252: 24.20666937 | AQ252: 23.69528357 | AR252: 23.07973933 | AS252: 22.50839266 | AT252: 21.85201592 | AU252: 21.06877286 | AV252: 20.2486002 | AW252: 19.43001392 | AX252: 18.53323043 | AY252: 17.67380281 | AZ252: 16.8820724 | BA252: 16.16044892 | BB252: 15.51977907 | BC252: 15.00785502 | BD252: 14.58737474 | BE252: 14.2534595 | BF252: 14.00517757 | BG252: 13.8202347 | BH252: 13.63159207 | BI252: 13.50317294 | BJ252: 13.41891785 | BK252: 13.3661329 | BL252: 13.33517919 | BM252: 13.20628002 | BN252: 13.08994746 | BO252: 12.98231001 | BP252: 12.87876293 | BQ252: 12.77777792
D253: Transport - passenger_Set2_Mt CO2e | E253: Transport - passenger | F253: Set2 | G253: Mt CO2e | H253: Paris compatible - lower end of ambition | I253: 21.07336708 | J253: 21.19175412 | K253: 21.31114467 | L253: 21.43154968 | M253: 21.55298028 | N253: 21.67544778 | O253: 21.56990713 | P253: 21.46513973 | Q253: 21.36111237 | R253: 21.25779184 | S253: 21.15514495 | T253: 21.15030978 | U253: 21.14373765 | V253: 21.13551697 | W253: 21.12573663 | X253: 21.11448594 | Y253: 21.21611104 | Z253: 21.30651384 | AA253: 21.38594131 | AB253: 21.45463991 | AC253: 21.51285561 | AD253: 21.96086433 | AE253: 22.39875872 | AF253: 22.82626097 | AG253: 23.24309083 | AH253: 23.64896563 | AI253: 23.65608812 | AJ253: 24.01118302 | AK253: 24.33137674 | AL253: 24.60441013 | AM253: 24.8147866 | AN253: 24.5963525 | AO253: 24.27858362 | AP253: 23.85411452 | AQ253: 23.31775957 | AR253: 22.68375095 | AS253: 22.09933379 | AT253: 21.43539917 | AU253: 20.63442063 | AV253: 19.79910898 | AW253: 18.96746535 | AX253: 18.10842779 | AY253: 17.28955979 | AZ253: 16.54099721 | BA253: 15.86392577 | BB253: 15.26823076 | BC253: 14.80001084 | BD253: 14.42091753 | BE253: 14.12451102 | BF253: 13.90908814 | BG253: 13.74895334 | BH253: 13.58136391 | BI253: 13.46970533 | BJ253: 13.39843694 | BK253: 13.35552158 | BL253: 13.33202453 | BM253: 13.21157948 | BN253: 13.10154873 | BO253: 12.99906711 | BP253: 12.89944441 | BQ253: 12.80152286
D254: Transport - passenger_Set3_Mt CO2e | E254: Transport - passenger | F254: Set3 | G254: Mt CO2e | H254: Best-in-class 1 | I254: 21.07336708 | J254: 21.19175412 | K254: 21.31114467 | L254: 21.43154968 | M254: 21.55298028 | N254: 21.67544778 | O254: 21.56990713 | P254: 21.46513973 | Q254: 21.36111237 | R254: 21.25779184 | S254: 21.15514495 | T254: 21.15030978 | U254: 21.14373765 | V254: 21.13551697 | W254: 21.12573663 | X254: 21.11448594 | Y254: 21.21611104 | Z254: 21.30651384 | AA254: 21.38594131 | AB254: 21.45463991 | AC254: 21.51285561 | AD254: 21.96086433 | AE254: 22.39875872 | AF254: 22.82626097 | AG254: 23.24309083 | AH254: 23.64896563 | AI254: 23.75364557 | AJ254: 24.20929747 | AK254: 24.65715933 | AL254: 25.09574989 | AM254: 25.52295144 | AN254: 25.57200054 | AO254: 25.59507642 | AP254: 25.59222046 | AQ254: 25.55894596 | AR254: 25.4953307 | AS254: 25.57359632 | AT254: 25.60257726 | AU254: 25.56351085 | AV254: 25.46567196 | AW254: 25.31202976 | AX254: 25.07864852 | AY254: 24.77736577 | AZ254: 24.41501778 | BA254: 23.98904558 | BB254: 23.50462032 | BC254: 23.03112757 | BD254: 22.5145165 | BE254: 21.95894847 | BF254: 21.38288974 | BG254: 20.75226436 | BH254: 20.04640027 | BI254: 19.35793083 | BJ254: 18.69741225 | BK254: 18.07184548 | BL254: 17.49503336 | BM254: 16.79145942 | BN254: 16.14829181 | BO254: 15.56503408 | BP254: 15.04187672 | BQ254: 14.57380037
D255: Transport - passenger_Set4_Mt CO2e | E255: Transport - passenger | F255: Set4 | G255: Mt CO2e | H255: Best-in-class 2 | I255: 21.07336708 | J255: 21.19175412 | K255: 21.31114467 | L255: 21.43154968 | M255: 21.55298028 | N255: 21.67544778 | O255: 21.56990713 | P255: 21.46513973 | Q255: 21.36111237 | R255: 21.25779184 | S255: 21.15514495 | T255: 21.15030978 | U255: 21.14373765 | V255: 21.13551697 | W255: 21.12573663 | X255: 21.11448594 | Y255: 21.21611104 | Z255: 21.30651384 | AA255: 21.38594131 | AB255: 21.45463991 | AC255: 21.51285561 | AD255: 21.96086433 | AE255: 22.39875872 | AF255: 22.82626097 | AG255: 23.24309083 | AH255: 23.64896563 | AI255: 23.70591356 | AJ255: 24.11288103 | AK255: 24.51148619 | AL255: 24.89630267 | AM255: 25.22411096 | AN255: 24.88172505 | AO255: 24.19799206 | AP255: 23.85762332 | AQ255: 23.65685124 | AR255: 23.45447026 | AS255: 23.38785434 | AT255: 23.27793133 | AU255: 23.12362085 | AV255: 22.92306765 | AW255: 22.68111411 | AX255: 22.39352752 | AY255: 22.05845216 | AZ255: 21.67773848 | BA255: 21.25474786 | BB255: 20.7945361 | BC255: 20.36224578 | BD255: 19.90533054 | BE255: 19.43310782 | BF255: 18.95458411 | BG255: 18.47863832 | BH255: 17.9368812 | BI255: 17.41683086 | BJ255: 16.92343454 | BK255: 16.46195899 | BL255: 16.03639705 | BM255: 15.50666703 | BN255: 15.0259285 | BO255: 14.59259892 | BP255: 14.20515872 | BQ255: 13.86096339
D256: Transport - passenger_Set5_Mt CO2e | E256: Transport - passenger | F256: Set5 | G256: Mt CO2e | H256: National scenarios 1 | I256: 21.07336708 | J256: 21.19175412 | K256: 21.31114467 | L256: 21.43154968 | M256: 21.55298028 | N256: 21.67544778 | O256: 21.56990713 | P256: 21.46513973 | Q256: 21.36111237 | R256: 21.25779184 | S256: 21.15514495 | T256: 21.15030978 | U256: 21.14373765 | V256: 21.13551697 | W256: 21.12573663 | X256: 21.11448594 | Y256: 21.21611104 | Z256: 21.30651384 | AA256: 21.38594131 | AB256: 21.45463991 | AC256: 21.51285561 | AD256: 21.96086433 | AE256: 22.39875872 | AF256: 22.82626097 | AG256: 23.24309083 | AH256: 23.64896563 | AI256: 23.94072114 | AJ256: 24.52888586 | AK256: 25.15786782 | AL256: 25.78915753 | AM256: 26.42236824 | AN256: 26.70945681 | AO256: 26.93719093 | AP256: 27.15019089 | AQ256: 27.34991099 | AR256: 27.5350084 | AS256: 27.8870639 | AT256: 28.23777444 | AU256: 28.56829681 | AV256: 28.88011314 | AW256: 29.1736253 | AX256: 29.49153759 | AY256: 29.77536247 | AZ256: 30.04439166 | BA256: 30.29853434 | BB256: 30.53766817 | BC256: 30.84433555 | BD256: 31.13390913 | BE256: 31.41075936 | BF256: 31.67517046 | BG256: 31.92714289 | BH256: 32.11788726 | BI256: 32.27669296 | BJ256: 32.42772043 | BK256: 32.57033995 | BL256: 32.70455954 | BM256: 32.64017889 | BN256: 32.55232576 | BO256: 32.45866659 | BP256: 32.35944533 | BQ256: 32.25518251
D257: Transport - passenger_Set6_Mt CO2e | E257: Transport - passenger | F257: Set6 | G257: Mt CO2e | H257: National scenarios 2 | I257: 21.07336708 | J257: 21.19175412 | K257: 21.31114467 | L257: 21.43154968 | M257: 21.55298028 | N257: 21.67544778 | O257: 21.56990713 | P257: 21.46513973 | Q257: 21.36111237 | R257: 21.25779184 | S257: 21.15514495 | T257: 21.15030978 | U257: 21.14373765 | V257: 21.13551697 | W257: 21.12573663 | X257: 21.11448594 | Y257: 21.21611104 | Z257: 21.30651384 | AA257: 21.38594131 | AB257: 21.45463991 | AC257: 21.51285561 | AD257: 21.96086433 | AE257: 22.39875872 | AF257: 22.82626097 | AG257: 23.24309083 | AH257: 23.64896563 | AI257: 24.19670931 | AJ257: 24.7436365 | AK257: 25.28902342 | AL257: 25.83283107 | AM257: 26.37468327 | AN257: 26.60177361 | AO257: 26.81922261 | AP257: 27.02540096 | AQ257: 27.2185687 | AR257: 27.39738439 | AS257: 27.80213179 | AT257: 28.18758804 | AU257: 28.55372036 | AV257: 28.9010058 | AW257: 29.22966589 | AX257: 29.56789026 | AY257: 29.89269652 | AZ257: 30.20387935 | BA257: 30.50123863 | BB257: 30.78457254 | BC257: 31.14001842 | BD257: 31.48536553 | BE257: 31.82059576 | BF257: 32.14571683 | BG257: 32.46071844 | BH257: 32.67888478 | BI257: 32.89111658 | BJ257: 33.09743814 | BK257: 33.29782259 | BL257: 33.49233623 | BM257: 33.46175608 | BN257: 33.42640919 | BO257: 33.38690949 | BP257: 33.34399923 | BQ257: 33.29826958
D258: Transport - passenger_Set7_Mt CO2e | E258: Transport - passenger | F258: Set7 | G258: Mt CO2e | H258: Current Development Scenario (CDS) | I258: 21.07336708 | J258: 21.19175412 | K258: 21.31114467 | L258: 21.43154968 | M258: 21.55298028 | N258: 21.67544778 | O258: 21.56990713 | P258: 21.46513973 | Q258: 21.36111237 | R258: 21.25779184 | S258: 21.15514495 | T258: 21.15030978 | U258: 21.14373765 | V258: 21.13551697 | W258: 21.12573663 | X258: 21.11448594 | Y258: 21.21611104 | Z258: 21.30651384 | AA258: 21.38594131 | AB258: 21.45463991 | AC258: 21.51285561 | AD258: 21.96086433 | AE258: 22.39875872 | AF258: 22.82626097 | AG258: 23.24309083 | AH258: 23.64896563 | AI258: 24.19670931 | AJ258: 24.7436365 | AK258: 25.28902342 | AL258: 25.83283107 | AM258: 26.37468327 | AN258: 26.60177361 | AO258: 26.81922261 | AP258: 27.02540096 | AQ258: 27.2185687 | AR258: 27.39738439 | AS258: 27.80213179 | AT258: 28.18758804 | AU258: 28.55372036 | AV258: 28.9010058 | AW258: 29.22966589 | AX258: 29.56789026 | AY258: 29.89269652 | AZ258: 30.20387935 | BA258: 30.50123863 | BB258: 30.78457254 | BC258: 31.14001842 | BD258: 31.48536553 | BE258: 31.82059576 | BF258: 32.14571683 | BG258: 32.46071844 | BH258: 32.67888478 | BI258: 32.89111658 | BJ258: 33.09743814 | BK258: 33.29782259 | BL258: 33.49233623 | BM258: 33.46175608 | BN258: 33.42640919 | BO258: 33.38690949 | BP258: 33.34399923 | BQ258: 33.29826958
D259: Transport - passenger_Set8_Mt CO2e | E259: Transport - passenger | F259: Set8 | G259: Mt CO2e | H259: IRP3 of Draft IRP update of 2018 | I259: 21.07336708 | J259: 21.19175412 | K259: 21.31114467 | L259: 21.43154968 | M259: 21.55298028 | N259: 21.67544778 | O259: 21.56990713 | P259: 21.46513973 | Q259: 21.36111237 | R259: 21.25779184 | S259: 21.15514495 | T259: 21.15030978 | U259: 21.14373765 | V259: 21.13551697 | W259: 21.12573663 | X259: 21.11448594 | Y259: 21.21611104 | Z259: 21.30651384 | AA259: 21.38594131 | AB259: 21.45463991 | AC259: 21.51285561 | AD259: 21.96086433 | AE259: 22.39875872 | AF259: 22.82626097 | AG259: 23.24309083 | AH259: 23.64896563 | AI259: 24.19670931 | AJ259: 24.7436365 | AK259: 25.28902342 | AL259: 25.83283107 | AM259: 26.37468327 | AN259: 26.60177361 | AO259: 26.81922261 | AP259: 27.02540096 | AQ259: 27.2185687 | AR259: 27.39738439 | AS259: 27.80213179 | AT259: 28.18758804 | AU259: 28.55372036 | AV259: 28.9010058 | AW259: 29.22966589 | AX259: 29.56789026 | AY259: 29.89269652 | AZ259: 30.20387935 | BA259: 30.50123863 | BB259: 30.78457254 | BC259: 31.14001842 | BD259: 31.48536553 | BE259: 31.82059576 | BF259: 32.14571683 | BG259: 32.46071844 | BH259: 32.67888478 | BI259: 32.89111658 | BJ259: 33.09743814 | BK259: 33.29782259 | BL259: 33.49233623 | BM259: 33.46175608 | BN259: 33.42640919 | BO259: 33.38690949 | BP259: 33.34399923 | BQ259: 33.29826958
D260: Transport - passenger_Set9_Mt CO2e | E260: Transport - passenger | F260: Set9 | G260: Mt CO2e | H260: 0
D261: =$E261 & "_" & $F261&"_" & $G261 -> Transport - passenger_Set10_Mt CO2e | E261: Transport - passenger | F261: Set10 | G261: Mt CO2e | H261: 0
D262: Buildings - residential_Set1_Mt CO2e | E262: Buildings - residential | F262: Set1 | G262: Mt CO2e | H262: Paris compatible - upper end of ambition | I262: 7.109487051 | J262: 6.924333412 | K262: 7.400064451 | L262: 9.142494576 | M262: 8.906166622 | N262: 7.676168176 | O262: 7.377110824 | P262: 7.711103472 | Q262: 8.383502979 | R262: 8.460712873 | S262: 7.938392525 | T262: 8.912246292 | U262: 11.00475364 | V262: 11.93932406 | W262: 13.11724734 | X262: 13.78129778 | Y262: 15.57540119 | Z262: 18.21373725 | AA262: 19.41862245 | AB262: 17.94429632 | AC262: 8.669673812 | AD262: 9.844138449 | AE262: 15.47992848 | AF262: 16.63312394 | AG262: 16.41389618 | AH262: 14.45620095 | AI262: 11.70870414 | AJ262: 11.68659513 | AK262: 12.03572561 | AL262: 12.60565463 | AM262: 12.35701828 | AN262: 12.08715556 | AO262: 11.88972279 | AP262: 11.30720763 | AQ262: 10.59217751 | AR262: 9.982454044 | AS262: 9.412974891 | AT262: 8.886176384 | AU262: 8.352908167 | AV262: 7.751009457 | AW262: 7.250359656 | AX262: 6.828084064 | AY262: 6.528762935 | AZ262: 6.321022782 | BA262: 6.083330033 | BB262: 5.809499862 | BC262: 5.527896476 | BD262: 5.234797856 | BE262: 4.947602039 | BF262: 4.683250877 | BG262: 4.455704017 | BH262: 4.300935097 | BI262: 4.136873523 | BJ262: 3.988147083 | BK262: 3.838712655 | BL262: 3.678445462 | BM262: 3.49963224 | BN262: 3.307364172 | BO262: 3.10900797 | BP262: 2.915977146 | BQ262: 2.734284163
D263: =$E263 & "_" & $F263&"_" & $G263 -> Buildings - residential_Set2_Mt CO2e | E263: Buildings - residential | F263: Set2 | G263: Mt CO2e | H263: Paris compatible - lower end of ambition | I263: 7.109487051 | J263: 6.924333412 | K263: 7.400064451 | L263: 9.142494576 | M263: 8.906166622 | N263: 7.676168176 | O263: 7.377110824 | P263: 7.711103472 | Q263: 8.383502979 | R263: 8.460712873 | S263: 7.938392525 | T263: 8.912246292 | U263: 11.00475364 | V263: 11.93932406 | W263: 13.11724734 | X263: =INDEX(MacroOutputs,MATCH($D263,MacroOutputs_ID,0),MATCH(X$131,MacroOutputs_head,0)) -> 13.78129778 | Y263: 15.57540119 | Z263: 18.21373725 | AA263: 19.41862245 | AB263: 17.94429632 | AC263: 8.669673812 | AD263: 9.844138449 | AE263: 15.47992848 | AF263: 16.63312394 | AG263: 16.41389618 | AH263: 14.45620095 | AI263: 11.73247737 | AJ263: 11.73537358 | AK263: 12.11745123 | AL263: 12.72893159 | AM263: 12.56161818 | AN263: =INDEX(MacroOutputs,MATCH($D263,MacroOutputs_ID,0),MATCH(AN$131,MacroOutputs_head,0)) -> 12.37106794 | AO263: 12.25407322 | AP263: 11.73262638 | AQ263: 11.06313609 | AR263: 10.4943644 | AS263: 9.95956644 | AT263: 9.462284845 | AU263: 8.949496712 | AV263: 8.352132058 | AW263: 7.857019833 | AX263: 7.44160517 | AY263: 7.15765478 | AZ263: 6.973013019 | BA263: 6.750792189 | BB263: 6.483111656 | BC263: 6.20211041 | BD263: =INDEX(MacroOutputs,MATCH($D263,MacroOutputs_ID,0),MATCH(BD$131,MacroOutputs_head,0)) -> 5.903119108 | BE263: 5.606194441 | BF263: 5.332185691 | BG263: 5.097961215 | BH263: 4.944725757 | BI263: 4.781079094 | BJ263: 4.633639098 | BK263: 4.48348028 | BL263: 4.317814345 | BM263: 4.12706592 | BN263: 3.917056202 | BO263: 3.696821138 | BP263: 3.480560445 | BQ263: 3.27611525
... 340 more rows

Sheet Country Summary
B2: Country Summary
B3: back to cover
J5: BaseYear
B6: Choice of scenario | J6: Base year
B7: Choose a scenario to be analysed | J7: The last year of historical data
A8: ScenarioSelected | B8: S2 | J8: 2015
B11: Emissions
C13: Emissions summary - Electricity emissions from demand sectors allocated to electricity sector
C15: EmSum_ElecAlloc_Data | D15: EmSum_ElecAlloc_Sector
C16: EmSum_ElecAlloc_Year | D16: Sector | E16: Unit | F16: 1990 | G16: 1991 | H16: 1992 | I16: 1993 | J16: 1994 | K16: 1995 | L16: 1996 | M16: 1997 | N16: 1998 | O16: 1999 | P16: 2000 | Q16: 2001 | R16: 2002 | S16: 2003 | T16: 2004 | U16: 2005 | V16: 2006 | W16: 2007 | X16: 2008 | Y16: 2009 | Z16: 2010 | AA16: 2011 | AB16: 2012 | AC16: 2013 | AD16: 2014 | AE16: 2015 | AF16: 2016 | AG16: 2017 | AH16: 2018 | AI16: 2019 | AJ16: 2020 | AK16: 2021 | AL16: 2022 | AM16: 2023 | AN16: 2024 | AO16: 2025 | AP16: 2026 | AQ16: 2027 | AR16: 2028 | AS16: 2029 | AT16: 2030 | AU16: 2031 | AV16: 2032 | AW16: 2033 | AX16: 2034 | AY16: 2035 | AZ16: 2036 | BA16: 2037 | BB16: 2038 | BC16: 2039 | BD16: 2040 | BE16: 2041 | BF16: 2042 | BG16: 2043 | BH16: 2044 | BI16: 2045 | BJ16: 2046 | BK16: 2047 | BL16: 2048 | BM16: 2049 | BN16: 2050
D17: Electricity | E17: Mt CO2e | F17: ='Calculation - Elec & Heat'!L928 -> 144.6101069 | G17: ='Calculation - Elec & Heat'!M928 -> 146.532067 | H17: ='Calculation - Elec & Heat'!N928 -> 144.2148849 | I17: ='Calculation - Elec & Heat'!O928 -> 155.1617924 | J17: ='Calculation - Elec & Heat'!P928 -> 155.8629581 | K17: ='Calculation - Elec & Heat'!Q928 -> 169.0208825 | L17: ='Calculation - Elec & Heat'!R928 -> 171.5220644 | M17: ='Calculation - Elec & Heat'!S928 -> 178.6927118 | N17: ='Calculation - Elec & Heat'!T928 -> 191.2123632 | O17: ='Calculation - Elec & Heat'!U928 -> 184.1982035 | P17: ='Calculation - Elec & Heat'!V928 -> 181.6626887 | Q17: ='Calculation - Elec & Heat'!W928 -> 184.0360246 | R17: ='Calculation - Elec & Heat'!X928 -> 182.9330951 | S17: ='Calculation - Elec & Heat'!Y928 -> 198.4381097 | T17: ='Calculation - Elec & Heat'!Z928 -> 222.1007872 | U17: ='Calculation - Elec & Heat'!AA928 -> 213.2635311 | V17: ='Calculation - Elec & Heat'!AB928 -> 217.6643047 | W17: ='Calculation - Elec & Heat'!AC928 -> 222.2341132 | X17: ='Calculation - Elec & Heat'!AD928 -> 252.1487122 | Y17: ='Calculation - Elec & Heat'!AE928 -> 234.7508506 | Z17: ='Calculation - Elec & Heat'!AF928 -> 248.9787978 | AA17: ='Calculation - Elec & Heat'!AG928 -> 236.0635445 | AB17: ='Calculation - Elec & Heat'!AH928 -> 241.0009743 | AC17: ='Calculation - Elec & Heat'!AI928 -> 243.9418795 | AD17: ='Calculation - Elec & Heat'!AJ928 -> 257.2310567 | AE17: ='Calculation - Elec & Heat'!AK928 -> 258.397467 | AF17: ='Calculation - Elec & Heat'!AL928 -> 263.7161203 | AG17: ='Calculation - Elec & Heat'!AM928 -> 263.0279052 | AH17: ='Calculation - Elec & Heat'!AN928 -> 260.9933869 | AI17: ='Calculation - Elec & Heat'!AO928 -> 265.6348476 | AJ17: ='Calculation - Elec & Heat'!AP928 -> 265.4396707 | AK17: ='Calculation - Elec & Heat'!AQ928 -> 265.1174321 | AL17: ='Calculation - Elec & Heat'!AR928 -> 264.959378 | AM17: ='Calculation - Elec & Heat'!AS928 -> 265.5415124 | AN17: ='Calculation - Elec & Heat'!AT928 -> 266.8216919 | AO17: ='Calculation - Elec & Heat'!AU928 -> 268.1234335 | AP17: ='Calculation - Elec & Heat'!AV928 -> 266.445638 | AQ17: ='Calculation - Elec & Heat'!AW928 -> 265.2800624 | AR17: ='Calculation - Elec & Heat'!AX928 -> 264.3442133 | AS17: ='Calculation - Elec & Heat'!AY928 -> 263.7597249 | AT17: ='Calculation - Elec & Heat'!AZ928 -> 263.1423119 | AU17: ='Calculation - Elec & Heat'!BA928 -> 262.0271276 | AV17: ='Calculation - Elec & Heat'!BB928 -> 261.1454344 | AW17: ='Calculation - Elec & Heat'!BC928 -> 260.2008506 | AX17: ='Calculation - Elec & Heat'!BD928 -> 259.367379 | AY17: ='Calculation - Elec & Heat'!BE928 -> 258.6740225 | AZ17: ='Calculation - Elec & Heat'!BF928 -> 257.3209398 | BA17: ='Calculation - Elec & Heat'!BG928 -> 256.474434 | BB17: ='Calculation - Elec & Heat'!BH928 -> 255.6567202 | BC17: ='Calculation - Elec & Heat'!BI928 -> 254.9007323 | BD17: ='Calculation - Elec & Heat'!BJ928 -> 254.1238708 | BE17: ='Calculation - Elec & Heat'!BK928 -> 252.0880206 | BF17: ='Calculation - Elec & Heat'!BL928 -> 250.9491256 | BG17: ='Calculation - Elec & Heat'!BM928 -> 249.7047481 | BH17: ='Calculation - Elec & Heat'!BN928 -> 248.3803106 | BI17: ='Calculation - Elec & Heat'!BO928 -> 246.9967236 | BJ17: ='Calculation - Elec & Heat'!BP928 -> 245.1184581 | BK17: ='Calculation - Elec & Heat'!BQ928 -> 243.6076452 | BL17: ='Calculation - Elec & Heat'!BR928 -> 242.0460345 | BM17: ='Calculation - Elec & Heat'!BS928 -> 240.4006853 | BN17: ='Calculation - Elec & Heat'!BT928 -> 238.671751
D18: Heat | E18: Mt CO2e | F18: =SUM('Calculation - Elec & Heat'!L962:L963) -> 0 | G18: =SUM('Calculation - Elec & Heat'!M962:M963) -> 0 | H18: =SUM('Calculation - Elec & Heat'!N962:N963) -> 0 | I18: =SUM('Calculation - Elec & Heat'!O962:O963) -> 0 | J18: =SUM('Calculation - Elec & Heat'!P962:P963) -> 0 | K18: =SUM('Calculation - Elec & Heat'!Q962:Q963) -> 0 | L18: =SUM('Calculation - Elec & Heat'!R962:R963) -> 0 | M18: =SUM('Calculation - Elec & Heat'!S962:S963) -> 0 | N18: =SUM('Calculation - Elec & Heat'!T962:T963) -> 0 | O18: =SUM('Calculation - Elec & Heat'!U962:U963) -> 0 | P18: =SUM('Calculation - Elec & Heat'!V962:V963) -> 0 | Q18: =SUM('Calculation - Elec & Heat'!W962:W963) -> 0 | R18: =SUM('Calculation - Elec & Heat'!X962:X963) -> 0 | S18: =SUM('Calculation - Elec & Heat'!Y962:Y963) -> 0 | T18: =SUM('Calculation - Elec & Heat'!Z962:Z963) -> 0 | U18: =SUM('Calculation - Elec & Heat'!AA962:AA963) -> 0 | V18: =SUM('Calculation - Elec & Heat'!AB962:AB963) -> 0 | W18: =SUM('Calculation - Elec & Heat'!AC962:AC963) -> 0 | X18: =SUM('Calculation - Elec & Heat'!AD962:AD963) -> 0 | Y18: =SUM('Calculation - Elec & Heat'!AE962:AE963) -> 0 | Z18: =SUM('Calculation - Elec & Heat'!AF962:AF963) -> 0 | AA18: =SUM('Calculation - Elec & Heat'!AG962:AG963) -> 0 | AB18: =SUM('Calculation - Elec & Heat'!AH962:AH963) -> 0 | AC18: =SUM('Calculation - Elec & Heat'!AI962:AI963) -> 0 | AD18: =SUM('Calculation - Elec & Heat'!AJ962:AJ963) -> 0 | AE18: =SUM('Calculation - Elec & Heat'!AK962:AK963) -> 0 | AF18: =SUM('Calculation - Elec & Heat'!AL962:AL963) -> 0 | AG18: =SUM('Calculation - Elec & Heat'!AM962:AM963) -> 0 | AH18: =SUM('Calculation - Elec & Heat'!AN962:AN963) -> 0 | AI18: =SUM('Calculation - Elec & Heat'!AO962:AO963) -> 0 | AJ18: =SUM('Calculation - Elec & Heat'!AP962:AP963) -> 0 | AK18: =SUM('Calculation - Elec & Heat'!AQ962:AQ963) -> 0 | AL18: =SUM('Calculation - Elec & Heat'!AR962:AR963) -> 0 | AM18: =SUM('Calculation - Elec & Heat'!AS962:AS963) -> 0 | AN18: =SUM('Calculation - Elec & Heat'!AT962:AT963) -> 0 | AO18: =SUM('Calculation - Elec & Heat'!AU962:AU963) -> 0 | AP18: =SUM('Calculation - Elec & Heat'!AV962:AV963) -> 0 | AQ18: =SUM('Calculation - Elec & Heat'!AW962:AW963) -> 0 | AR18: =SUM('Calculation - Elec & Heat'!AX962:AX963) -> 0 | AS18: =SUM('Calculation - Elec & Heat'!AY962:AY963) -> 0 | AT18: =SUM('Calculation - Elec & Heat'!AZ962:AZ963) -> 0 | AU18: =SUM('Calculation - Elec & Heat'!BA962:BA963) -> 0 | AV18: =SUM('Calculation - Elec & Heat'!BB962:BB963) -> 0 | AW18: =SUM('Calculation - Elec & Heat'!BC962:BC963) -> 0 | AX18: =SUM('Calculation - Elec & Heat'!BD962:BD963) -> 0 | AY18: =SUM('Calculation - Elec & Heat'!BE962:BE963) -> 0 | AZ18: =SUM('Calculation - Elec & Heat'!BF962:BF963) -> 0 | BA18: =SUM('Calculation - Elec & Heat'!BG962:BG963) -> 0 | BB18: =SUM('Calculation - Elec & Heat'!BH962:BH963) -> 0 | BC18: =SUM('Calculation - Elec & Heat'!BI962:BI963) -> 0 | BD18: =SUM('Calculation - Elec & Heat'!BJ962:BJ963) -> 0 | BE18: =SUM('Calculation - Elec & Heat'!BK962:BK963) -> 0 | BF18: =SUM('Calculation - Elec & Heat'!BL962:BL963) -> 0 | BG18: =SUM('Calculation - Elec & Heat'!BM962:BM963) -> 0 | BH18: =SUM('Calculation - Elec & Heat'!BN962:BN963) -> 0 | BI18: =SUM('Calculation - Elec & Heat'!BO962:BO963) -> 0 | BJ18: =SUM('Calculation - Elec & Heat'!BP962:BP963) -> 0 | BK18: =SUM('Calculation - Elec & Heat'!BQ962:BQ963) -> 0 | BL18: =SUM('Calculation - Elec & Heat'!BR962:BR963) -> 0 | BM18: =SUM('Calculation - Elec & Heat'!BS962:BS963) -> 0 | BN18: =SUM('Calculation - Elec & Heat'!BT962:BT963) -> 0
D19: Transport | E19: Mt CO2e | F19: ='Calculation - Transport'!L1825+'Calculation - Transport'!L1837 -> 43.01106888 | G19: ='Calculation - Transport'!M1825+'Calculation - Transport'!M1837 -> 43.20428089 | H19: ='Calculation - Transport'!N1825+'Calculation - Transport'!N1837 -> 43.39636813 | I19: ='Calculation - Transport'!O1825+'Calculation - Transport'!O1837 -> 43.58733306 | J19: ='Calculation - Transport'!P1825+'Calculation - Transport'!P1837 -> 43.77717838 | K19: ='Calculation - Transport'!Q1825+'Calculation - Transport'!Q1837 -> 43.96590694 | L19: ='Calculation - Transport'!R1825+'Calculation - Transport'!R1837 -> 43.90538789 | M19: ='Calculation - Transport'!S1825+'Calculation - Transport'!S1837 -> 43.84751975 | N19: ='Calculation - Transport'!T1825+'Calculation - Transport'!T1837 -> 43.79227171 | O19: ='Calculation - Transport'!U1825+'Calculation - Transport'!U1837 -> 43.73961298 | P19: ='Calculation - Transport'!V1825+'Calculation - Transport'!V1837 -> 43.68951277 | Q19: ='Calculation - Transport'!W1825+'Calculation - Transport'!W1837 -> 44.31664252 | R19: ='Calculation - Transport'!X1825+'Calculation - Transport'!X1837 -> 44.89854313 | S19: ='Calculation - Transport'!Y1825+'Calculation - Transport'!Y1837 -> 45.43417634 | T19: ='Calculation - Transport'!Z1825+'Calculation - Transport'!Z1837 -> 45.9224965 | U19: ='Calculation - Transport'!AA1825+'Calculation - Transport'!AA1837 -> 46.36245116 | V19: ='Calculation - Transport'!AB1825+'Calculation - Transport'!AB1837 -> 47.64148369 | W19: ='Calculation - Transport'!AC1825+'Calculation - Transport'!AC1837 -> 48.92074082 | X19: ='Calculation - Transport'!AD1825+'Calculation - Transport'!AD1837 -> 50.20179138 | Y19: ='Calculation - Transport'!AE1825+'Calculation - Transport'!AE1837 -> 51.48617186 | Z19: ='Calculation - Transport'!AF1825+'Calculation - Transport'!AF1837 -> 52.77539086 | AA19: ='Calculation - Transport'!AG1825+'Calculation - Transport'!AG1837 -> 54.12972631 | AB19: ='Calculation - Transport'!AH1825+'Calculation - Transport'!AH1837 -> 55.47479342 | AC19: ='Calculation - Transport'!AI1825+'Calculation - Transport'!AI1837 -> 56.81071854 | AD19: ='Calculation - Transport'!AJ1825+'Calculation - Transport'!AJ1837 -> 58.1376234 | AE19: ='Calculation - Transport'!AK1825+'Calculation - Transport'!AK1837 -> 59.45562522 | AF19: ='Calculation - Transport'!AL1825+'Calculation - Transport'!AL1837 -> 60.4759458 | AG19: ='Calculation - Transport'!AM1825+'Calculation - Transport'!AM1837 -> 61.48621109 | AH19: ='Calculation - Transport'!AN1825+'Calculation - Transport'!AN1837 -> 62.48449542 | AI19: ='Calculation - Transport'!AO1825+'Calculation - Transport'!AO1837 -> 63.47059476 | AJ19: ='Calculation - Transport'!AP1825+'Calculation - Transport'!AP1837 -> 64.44348078 | AK19: ='Calculation - Transport'!AQ1825+'Calculation - Transport'!AQ1837 -> 65.27893002 | AL19: ='Calculation - Transport'!AR1825+'Calculation - Transport'!AR1837 -> 66.09698107 | AM19: ='Calculation - Transport'!AS1825+'Calculation - Transport'!AS1837 -> 66.8939113 | AN19: ='Calculation - Transport'!AT1825+'Calculation - Transport'!AT1837 -> 67.66564478 | AO19: ='Calculation - Transport'!AU1825+'Calculation - Transport'!AU1837 -> 68.40901698 | AP19: ='Calculation - Transport'!AV1825+'Calculation - Transport'!AV1837 -> 69.49963413 | AQ19: ='Calculation - Transport'!AW1825+'Calculation - Transport'!AW1837 -> 70.55550342 | AR19: ='Calculation - Transport'!AX1825+'Calculation - Transport'!AX1837 -> 71.57741421 | AS19: ='Calculation - Transport'!AY1825+'Calculation - Transport'!AY1837 -> 72.5674133 | AT19: ='Calculation - Transport'!AZ1825+'Calculation - Transport'!AZ1837 -> 73.52689613 | AU19: ='Calculation - Transport'!BA1825+'Calculation - Transport'!BA1837 -> 74.56208219 | AV19: ='Calculation - Transport'!BB1825+'Calculation - Transport'!BB1837 -> 75.57078102 | AW19: ='Calculation - Transport'!BC1825+'Calculation - Transport'!BC1837 -> 76.55291376 | AX19: ='Calculation - Transport'!BD1825+'Calculation - Transport'!BD1837 -> 77.50838749 | AY19: ='Calculation - Transport'!BE1825+'Calculation - Transport'!BE1837 -> 78.43708163 | AZ19: ='Calculation - Transport'!BF1825+'Calculation - Transport'!BF1837 -> 79.60307335 | BA19: ='Calculation - Transport'!BG1825+'Calculation - Transport'!BG1837 -> 80.7336079 | BB19: ='Calculation - Transport'!BH1825+'Calculation - Transport'!BH1837 -> 81.82892941 | BC19: ='Calculation - Transport'!BI1825+'Calculation - Transport'!BI1837 -> 82.88933723 | BD19: ='Calculation - Transport'!BJ1825+'Calculation - Transport'!BJ1837 -> 83.91507462 | BE19: ='Calculation - Transport'!BK1825+'Calculation - Transport'!BK1837 -> 84.79929902 | BF19: ='Calculation - Transport'!BL1825+'Calculation - Transport'!BL1837 -> 85.64762793 | BG19: ='Calculation - Transport'!BM1825+'Calculation - Transport'!BM1837 -> 86.45988876 | BH19: ='Calculation - Transport'!BN1825+'Calculation - Transport'!BN1837 -> 87.23577987 | BI19: ='Calculation - Transport'!BO1825+'Calculation - Transport'!BO1837 -> 87.97524803 | BJ19: ='Calculation - Transport'!BP1825+'Calculation - Transport'!BP1837 -> 88.22410898 | BK19: ='Calculation - Transport'!BQ1825+'Calculation - Transport'!BQ1837 -> 88.44647576 | BL19: ='Calculation - Transport'!BR1825+'Calculation - Transport'!BR1837 -> 88.64392232 | BM19: ='Calculation - Transport'!BS1825+'Calculation - Transport'!BS1837 -> 88.81837528 | BN19: ='Calculation - Transport'!BT1825+'Calculation - Transport'!BT1837 -> 88.97137123
D20: Buildings | E20: Mt CO2e | F20: ='Calculation - Buildings'!L1071 -> 9.870884652 | G20: ='Calculation - Buildings'!M1071 -> 9.72999196 | H20: ='Calculation - Buildings'!N1071 -> 10.43653036 | I20: ='Calculation - Buildings'!O1071 -> 12.58356994 | J20: ='Calculation - Buildings'!P1071 -> 12.03928667 | K20: ='Calculation - Buildings'!Q1071 -> 10.38699964 | L20: ='Calculation - Buildings'!R1071 -> 9.789291545 | M20: ='Calculation - Buildings'!S1071 -> 10.29710986 | N20: ='Calculation - Buildings'!T1071 -> 11.52438557 | O20: ='Calculation - Buildings'!U1071 -> 11.14069201 | P20: ='Calculation - Buildings'!V1071 -> 10.58808388 | Q20: ='Calculation - Buildings'!W1071 -> 12.34070342 | R20: ='Calculation - Buildings'!X1071 -> 15.43162404 | S20: ='Calculation - Buildings'!Y1071 -> 16.64578797 | T20: ='Calculation - Buildings'!Z1071 -> 18.37071667 | U20: ='Calculation - Buildings'!AA1071 -> 19.45270712 | V20: ='Calculation - Buildings'!AB1071 -> 22.1585077 | W20: ='Calculation - Buildings'!AC1071 -> 26.51373976 | X20: ='Calculation - Buildings'!AD1071 -> 28.4430796 | Y20: ='Calculation - Buildings'!AE1071 -> 26.35898589 | Z20: ='Calculation - Buildings'!AF1071 -> 12.58646222 | AA20: ='Calculation - Buildings'!AG1071 -> 14.18067952 | AB20: ='Calculation - Buildings'!AH1071 -> 22.63709572 | AC20: ='Calculation - Buildings'!AI1071 -> 24.71394957 | AD20: ='Calculation - Buildings'!AJ1071 -> 24.42454013 | AE20: ='Calculation - Buildings'!AK1071 -> 21.41962383 | AF20: ='Calculation - Buildings'!AL1071 -> 19.36155455 | AG20: ='Calculation - Buildings'!AM1071 -> 19.37948594 | AH20: ='Calculation - Buildings'!AN1071 -> 19.82028579 | AI20: ='Calculation - Buildings'!AO1071 -> 20.49086091 | AJ20: ='Calculation - Buildings'!AP1071 -> 20.44120011 | AK20: ='Calculation - Buildings'!AQ1071 -> 20.36030847 | AL20: ='Calculation - Buildings'!AR1071 -> 20.49455284 | AM20: ='Calculation - Buildings'!AS1071 -> 20.15135956 | AN20: ='Calculation - Buildings'!AT1071 -> 19.60802571 | AO20: ='Calculation - Buildings'!AU1071 -> 19.14680452 | AP20: ='Calculation - Buildings'!AV1071 -> 18.56691354 | AQ20: ='Calculation - Buildings'!AW1071 -> 18.13910773 | AR20: ='Calculation - Buildings'!AX1071 -> 17.65938613 | AS20: ='Calculation - Buildings'!AY1071 -> 17.03548897 | AT20: ='Calculation - Buildings'!AZ1071 -> 16.51507065 | AU20: ='Calculation - Buildings'!BA1071 -> 16.03433128 | AV20: ='Calculation - Buildings'!BB1071 -> 15.83715752 | AW20: ='Calculation - Buildings'!BC1071 -> 15.76473895 | AX20: ='Calculation - Buildings'!BD1071 -> 15.62250064 | AY20: ='Calculation - Buildings'!BE1071 -> 15.39724114 | AZ20: ='Calculation - Buildings'!BF1071 -> 14.96591948 | BA20: ='Calculation - Buildings'!BG1071 -> 14.62837816 | BB20: ='Calculation - Buildings'!BH1071 -> 14.27196755 | BC20: ='Calculation - Buildings'!BI1071 -> 13.93512178 | BD20: ='Calculation - Buildings'!BJ1071 -> 13.64433824 | BE20: ='Calculation - Buildings'!BK1071 -> 13.28014683 | BF20: ='Calculation - Buildings'!BL1071 -> 13.07896699 | BG20: ='Calculation - Buildings'!BM1071 -> 12.89366111 | BH20: ='Calculation - Buildings'!BN1071 -> 12.69660217 | BI20: ='Calculation - Buildings'!BO1071 -> 12.46092217 | BJ20: ='Calculation - Buildings'!BP1071 -> 12.03729708 | BK20: ='Calculation - Buildings'!BQ1071 -> 11.69809313 | BL20: ='Calculation - Buildings'!BR1071 -> 11.32744961 | BM20: ='Calculation - Buildings'!BS1071 -> 10.95012895 | BN20: ='Calculation - Buildings'!BT1071 -> 10.58244143
D21: Steel | E21: Mt CO2e | F21: ='Calculation - Industry Steel'!L468+'Calculation - Industry Steel'!L475+'Calculation - Industry Steel'!L500 -> 21.38904342 | G21: ='Calculation - Industry Steel'!M468+'Calculation - Industry Steel'!M475+'Calculation - Industry Steel'!M500 -> 21.4112234 | H21: ='Calculation - Industry Steel'!N468+'Calculation - Industry Steel'!N475+'Calculation - Industry Steel'!N500 -> 18.76063601 | I21: ='Calculation - Industry Steel'!O468+'Calculation - Industry Steel'!O475+'Calculation - Industry Steel'!O500 -> 18.34965239 | J21: ='Calculation - Industry Steel'!P468+'Calculation - Industry Steel'!P475+'Calculation - Industry Steel'!P500 -> 18.38407357 | K21: ='Calculation - Industry Steel'!Q468+'Calculation - Industry Steel'!Q475+'Calculation - Industry Steel'!Q500 -> 18.4750158 | L21: ='Calculation - Industry Steel'!R468+'Calculation - Industry Steel'!R475+'Calculation - Industry Steel'!R500 -> 17.66984317 | M21: ='Calculation - Industry Steel'!S468+'Calculation - Industry Steel'!S475+'Calculation - Industry Steel'!S500 -> 18.80596197 | N21: ='Calculation - Industry Steel'!T468+'Calculation - Industry Steel'!T475+'Calculation - Industry Steel'!T500 -> 16.50433146 | O21: ='Calculation - Industry Steel'!U468+'Calculation - Industry Steel'!U475+'Calculation - Industry Steel'!U500 -> 13.43480467 | P21: ='Calculation - Industry Steel'!V468+'Calculation - Industry Steel'!V475+'Calculation - Industry Steel'!V500 -> 14.16279425 | Q21: ='Calculation - Industry Steel'!W468+'Calculation - Industry Steel'!W475+'Calculation - Industry Steel'!W500 -> 14.81536843 | R21: ='Calculation - Industry Steel'!X468+'Calculation - Industry Steel'!X475+'Calculation - Industry Steel'!X500 -> 15.88130537 | S21: ='Calculation - Industry Steel'!Y468+'Calculation - Industry Steel'!Y475+'Calculation - Industry Steel'!Y500 -> 15.64256714 | T21: ='Calculation - Industry Steel'!Z468+'Calculation - Industry Steel'!Z475+'Calculation - Industry Steel'!Z500 -> 16.18387952 | U21: ='Calculation - Industry Steel'!AA468+'Calculation - Industry Steel'!AA475+'Calculation - Industry Steel'!AA500 -> 17.03561075 | V21: ='Calculation - Industry Steel'!AB468+'Calculation - Industry Steel'!AB475+'Calculation - Industry Steel'!AB500 -> 17.39963399 | W21: ='Calculation - Industry Steel'!AC468+'Calculation - Industry Steel'!AC475+'Calculation - Industry Steel'!AC500 -> 16.04135588 | X21: ='Calculation - Industry Steel'!AD468+'Calculation - Industry Steel'!AD475+'Calculation - Industry Steel'!AD500 -> 14.74687032 | Y21: ='Calculation - Industry Steel'!AE468+'Calculation - Industry Steel'!AE475+'Calculation - Industry Steel'!AE500 -> 13.09441559 | Z21: ='Calculation - Industry Steel'!AF468+'Calculation - Industry Steel'!AF475+'Calculation - Industry Steel'!AF500 -> 16.04084837 | AA21: ='Calculation - Industry Steel'!AG468+'Calculation - Industry Steel'!AG475+'Calculation - Industry Steel'!AG500 -> 14.29592483 | AB21: ='Calculation - Industry Steel'!AH468+'Calculation - Industry Steel'!AH475+'Calculation - Industry Steel'!AH500 -> 14.57485592 | AC21: ='Calculation - Industry Steel'!AI468+'Calculation - Industry Steel'!AI475+'Calculation - Industry Steel'!AI500 -> 16.11566109 | AD21: ='Calculation - Industry Steel'!AJ468+'Calculation - Industry Steel'!AJ475+'Calculation - Industry Steel'!AJ500 -> 14.87723494 | AE21: ='Calculation - Industry Steel'!AK468+'Calculation - Industry Steel'!AK475+'Calculation - Industry Steel'!AK500 -> 14.79474455 | AF21: ='Calculation - Industry Steel'!AL468+'Calculation - Industry Steel'!AL475+'Calculation - Industry Steel'!AL500 -> 15.78837592 | AG21: ='Calculation - Industry Steel'!AM468+'Calculation - Industry Steel'!AM475+'Calculation - Industry Steel'!AM500 -> 16.5838076 | AH21: ='Calculation - Industry Steel'!AN468+'Calculation - Industry Steel'!AN475+'Calculation - Industry Steel'!AN500 -> 17.37902205 | AI21: ='Calculation - Industry Steel'!AO468+'Calculation - Industry Steel'!AO475+'Calculation - Industry Steel'!AO500 -> 31.18044189 | AJ21: ='Calculation - Industry Steel'!AP468+'Calculation - Industry Steel'!AP475+'Calculation - Industry Steel'!AP500 -> 31.99161045 | AK21: ='Calculation - Industry Steel'!AQ468+'Calculation - Industry Steel'!AQ475+'Calculation - Industry Steel'!AQ500 -> 32.73251208 | AL21: ='Calculation - Industry Steel'!AR468+'Calculation - Industry Steel'!AR475+'Calculation - Industry Steel'!AR500 -> 33.47188737 | AM21: ='Calculation - Industry Steel'!AS468+'Calculation - Industry Steel'!AS475+'Calculation - Industry Steel'!AS500 -> 34.20887973 | AN21: ='Calculation - Industry Steel'!AT468+'Calculation - Industry Steel'!AT475+'Calculation - Industry Steel'!AT500 -> 34.94257419 | AO21: ='Calculation - Industry Steel'!AU468+'Calculation - Industry Steel'!AU475+'Calculation - Industry Steel'!AU500 -> 35.67222825 | AP21: ='Calculation - Industry Steel'!AV468+'Calculation - Industry Steel'!AV475+'Calculation - Industry Steel'!AV500 -> 36.34179907 | AQ21: ='Calculation - Industry Steel'!AW468+'Calculation - Industry Steel'!AW475+'Calculation - Industry Steel'!AW500 -> 37.00492159 | AR21: ='Calculation - Industry Steel'!AX468+'Calculation - Industry Steel'!AX475+'Calculation - Industry Steel'!AX500 -> 37.66211612 | AS21: ='Calculation - Industry Steel'!AY468+'Calculation - Industry Steel'!AY475+'Calculation - Industry Steel'!AY500 -> 38.31427417 | AT21: ='Calculation - Industry Steel'!AZ468+'Calculation - Industry Steel'!AZ475+'Calculation - Industry Steel'!AZ500 -> 38.96208694 | AU21: ='Calculation - Industry Steel'!BA468+'Calculation - Industry Steel'!BA475+'Calculation - Industry Steel'!BA500 -> 39.44443359 | AV21: ='Calculation - Industry Steel'!BB468+'Calculation - Industry Steel'!BB475+'Calculation - Industry Steel'!BB500 -> 39.92149618 | AW21: ='Calculation - Industry Steel'!BC468+'Calculation - Industry Steel'!BC475+'Calculation - Industry Steel'!BC500 -> 40.39338116 | AX21: ='Calculation - Industry Steel'!BD468+'Calculation - Industry Steel'!BD475+'Calculation - Industry Steel'!BD500 -> 40.86010305 | AY21: ='Calculation - Industry Steel'!BE468+'Calculation - Industry Steel'!BE475+'Calculation - Industry Steel'!BE500 -> 41.32165373 | AZ21: ='Calculation - Industry Steel'!BF468+'Calculation - Industry Steel'!BF475+'Calculation - Industry Steel'!BF500 -> 41.71027777 | BA21: ='Calculation - Industry Steel'!BG468+'Calculation - Industry Steel'!BG475+'Calculation - Industry Steel'!BG500 -> 42.09051706 | BB21: ='Calculation - Industry Steel'!BH468+'Calculation - Industry Steel'!BH475+'Calculation - Industry Steel'!BH500 -> 42.46272775 | BC21: ='Calculation - Industry Steel'!BI468+'Calculation - Industry Steel'!BI475+'Calculation - Industry Steel'!BI500 -> 42.82714864 | BD21: ='Calculation - Industry Steel'!BJ468+'Calculation - Industry Steel'!BJ475+'Calculation - Industry Steel'!BJ500 -> 43.18394051 | BE21: ='Calculation - Industry Steel'!BK468+'Calculation - Industry Steel'!BK475+'Calculation - Industry Steel'!BK500 -> 43.4198491 | BF21: ='Calculation - Industry Steel'!BL468+'Calculation - Industry Steel'!BL475+'Calculation - Industry Steel'!BL500 -> 43.65092144 | BG21: ='Calculation - Industry Steel'!BM468+'Calculation - Industry Steel'!BM475+'Calculation - Industry Steel'!BM500 -> 43.87688135 | BH21: ='Calculation - Industry Steel'!BN468+'Calculation - Industry Steel'!BN475+'Calculation - Industry Steel'!BN500 -> 44.09739108 | BI21: ='Calculation - Industry Steel'!BO468+'Calculation - Industry Steel'!BO475+'Calculation - Industry Steel'!BO500 -> 44.31217468 | BJ21: ='Calculation - Industry Steel'!BP468+'Calculation - Industry Steel'!BP475+'Calculation - Industry Steel'!BP500 -> 44.45476063 | BK21: ='Calculation - Industry Steel'!BQ468+'Calculation - Industry Steel'!BQ475+'Calculation - Industry Steel'!BQ500 -> 44.59162971 | BL21: ='Calculation - Industry Steel'!BR468+'Calculation - Industry Steel'!BR475+'Calculation - Industry Steel'!BR500 -> 44.7227652 | BM21: ='Calculation - Industry Steel'!BS468+'Calculation - Industry Steel'!BS475+'Calculation - Industry Steel'!BS500 -> 44.84819378 | BN21: ='Calculation - Industry Steel'!BT468+'Calculation - Industry Steel'!BT475+'Calculation - Industry Steel'!BT500 -> 44.96792627
D22: Cement | E22: Mt CO2e | F22: ='Calculation - Industry Cement'!L407+'Calculation - Industry Cement'!L414+'Calculation - Industry Cement'!L435 -> 4.781226088 | G22: ='Calculation - Industry Cement'!M407+'Calculation - Industry Cement'!M414+'Calculation - Industry Cement'!M435 -> 4.752071369 | H22: ='Calculation - Industry Cement'!N407+'Calculation - Industry Cement'!N414+'Calculation - Industry Cement'!N435 -> 4.975575667 | I22: ='Calculation - Industry Cement'!O407+'Calculation - Industry Cement'!O414+'Calculation - Industry Cement'!O435 -> 4.945559109 | J22: ='Calculation - Industry Cement'!P407+'Calculation - Industry Cement'!P414+'Calculation - Industry Cement'!P435 -> 5.141734698 | K22: ='Calculation - Industry Cement'!Q407+'Calculation - Industry Cement'!Q414+'Calculation - Industry Cement'!Q435 -> 5.214847946 | L22: ='Calculation - Industry Cement'!R407+'Calculation - Industry Cement'!R414+'Calculation - Industry Cement'!R435 -> 5.449510806 | M22: ='Calculation - Industry Cement'!S407+'Calculation - Industry Cement'!S414+'Calculation - Industry Cement'!S435 -> 5.601945143 | N22: ='Calculation - Industry Cement'!T407+'Calculation - Industry Cement'!T414+'Calculation - Industry Cement'!T435 -> 5.648964536 | O22: ='Calculation - Industry Cement'!U407+'Calculation - Industry Cement'!U414+'Calculation - Industry Cement'!U435 -> 5.012715521 | P22: ='Calculation - Industry Cement'!V407+'Calculation - Industry Cement'!V414+'Calculation - Industry Cement'!V435 -> 4.985118651 | Q22: ='Calculation - Industry Cement'!W407+'Calculation - Industry Cement'!W414+'Calculation - Industry Cement'!W435 -> 5.235599949 | R22: ='Calculation - Industry Cement'!X407+'Calculation - Industry Cement'!X414+'Calculation - Industry Cement'!X435 -> 5.657107643 | S22: ='Calculation - Industry Cement'!Y407+'Calculation - Industry Cement'!Y414+'Calculation - Industry Cement'!Y435 -> 5.83487985 | T22: ='Calculation - Industry Cement'!Z407+'Calculation - Industry Cement'!Z414+'Calculation - Industry Cement'!Z435 -> 6.642824188 | U22: ='Calculation - Industry Cement'!AA407+'Calculation - Industry Cement'!AA414+'Calculation - Industry Cement'!AA435 -> 7.34965388 | V22: ='Calculation - Industry Cement'!AB407+'Calculation - Industry Cement'!AB414+'Calculation - Industry Cement'!AB435 -> 7.976828542 | W22: ='Calculation - Industry Cement'!AC407+'Calculation - Industry Cement'!AC414+'Calculation - Industry Cement'!AC435 -> 8.53774281 | X22: ='Calculation - Industry Cement'!AD407+'Calculation - Industry Cement'!AD414+'Calculation - Industry Cement'!AD435 -> 8.328044463 | Y22: ='Calculation - Industry Cement'!AE407+'Calculation - Industry Cement'!AE414+'Calculation - Industry Cement'!AE435 -> 7.079043596 | Z22: ='Calculation - Industry Cement'!AF407+'Calculation - Industry Cement'!AF414+'Calculation - Industry Cement'!AF435 -> 6.178970511 | AA22: ='Calculation - Industry Cement'!AG407+'Calculation - Industry Cement'!AG414+'Calculation - Industry Cement'!AG435 -> 6.380396632 | AB22: ='Calculation - Industry Cement'!AH407+'Calculation - Industry Cement'!AH414+'Calculation - Industry Cement'!AH435 -> 6.588613971 | AC22: ='Calculation - Industry Cement'!AI407+'Calculation - Industry Cement'!AI414+'Calculation - Industry Cement'!AI435 -> 7.010871696 | AD22: ='Calculation - Industry Cement'!AJ407+'Calculation - Industry Cement'!AJ414+'Calculation - Industry Cement'!AJ435 -> 6.797679226 | AE22: ='Calculation - Industry Cement'!AK407+'Calculation - Industry Cement'!AK414+'Calculation - Industry Cement'!AK435 -> 7.383127404 | AF22: ='Calculation - Industry Cement'!AL407+'Calculation - Industry Cement'!AL414+'Calculation - Industry Cement'!AL435 -> 7.693268674 | AG22: ='Calculation - Industry Cement'!AM407+'Calculation - Industry Cement'!AM414+'Calculation - Industry Cement'!AM435 -> 8.006518835 | AH22: ='Calculation - Industry Cement'!AN407+'Calculation - Industry Cement'!AN414+'Calculation - Industry Cement'!AN435 -> 8.322958892 | AI22: ='Calculation - Industry Cement'!AO407+'Calculation - Industry Cement'!AO414+'Calculation - Industry Cement'!AO435 -> 8.643249143 | AJ22: ='Calculation - Industry Cement'!AP407+'Calculation - Industry Cement'!AP414+'Calculation - Industry Cement'!AP435 -> 8.967865864 | AK22: ='Calculation - Industry Cement'!AQ407+'Calculation - Industry Cement'!AQ414+'Calculation - Industry Cement'!AQ435 -> 9.306256926 | AL22: ='Calculation - Industry Cement'!AR407+'Calculation - Industry Cement'!AR414+'Calculation - Industry Cement'!AR435 -> 9.648355712 | AM22: ='Calculation - Industry Cement'!AS407+'Calculation - Industry Cement'!AS414+'Calculation - Industry Cement'!AS435 -> 9.99387503 | AN22: ='Calculation - Industry Cement'!AT407+'Calculation - Industry Cement'!AT414+'Calculation - Industry Cement'!AT435 -> 10.3424951 | AO22: ='Calculation - Industry Cement'!AU407+'Calculation - Industry Cement'!AU414+'Calculation - Industry Cement'!AU435 -> 10.69395678 | AP22: ='Calculation - Industry Cement'!AV407+'Calculation - Industry Cement'!AV414+'Calculation - Industry Cement'!AV435 -> 11.02619546 | AQ22: ='Calculation - Industry Cement'!AW407+'Calculation - Industry Cement'!AW414+'Calculation - Industry Cement'!AW435 -> 11.35902257 | AR22: ='Calculation - Industry Cement'!AX407+'Calculation - Industry Cement'!AX414+'Calculation - Industry Cement'!AX435 -> 11.69258337 | AS22: ='Calculation - Industry Cement'!AY407+'Calculation - Industry Cement'!AY414+'Calculation - Industry Cement'!AY435 -> 12.02718389 | AT22: ='Calculation - Industry Cement'!AZ407+'Calculation - Industry Cement'!AZ414+'Calculation - Industry Cement'!AZ435 -> 12.36305671 | AU22: ='Calculation - Industry Cement'!BA407+'Calculation - Industry Cement'!BA414+'Calculation - Industry Cement'!BA435 -> 12.68388009 | AV22: ='Calculation - Industry Cement'!BB407+'Calculation - Industry Cement'!BB414+'Calculation - Industry Cement'!BB435 -> 13.00517668 | AW22: ='Calculation - Industry Cement'!BC407+'Calculation - Industry Cement'!BC414+'Calculation - Industry Cement'!BC435 -> 13.3268841 | AX22: ='Calculation - Industry Cement'!BD407+'Calculation - Industry Cement'!BD414+'Calculation - Industry Cement'!BD435 -> 13.64890875 | AY22: ='Calculation - Industry Cement'!BE407+'Calculation - Industry Cement'!BE414+'Calculation - Industry Cement'!BE435 -> 13.97115327 | AZ22: ='Calculation - Industry Cement'!BF407+'Calculation - Industry Cement'!BF414+'Calculation - Industry Cement'!BF435 -> 14.25863688 | BA22: ='Calculation - Industry Cement'!BG407+'Calculation - Industry Cement'!BG414+'Calculation - Industry Cement'!BG435 -> 14.54578085 | BB22: ='Calculation - Industry Cement'!BH407+'Calculation - Industry Cement'!BH414+'Calculation - Industry Cement'!BH435 -> 14.83246901 | BC22: ='Calculation - Industry Cement'!BI407+'Calculation - Industry Cement'!BI414+'Calculation - Industry Cement'!BI435 -> 15.11856701 | BD22: ='Calculation - Industry Cement'!BJ407+'Calculation - Industry Cement'!BJ414+'Calculation - Industry Cement'!BJ435 -> 15.40393258 | BE22: ='Calculation - Industry Cement'!BK407+'Calculation - Industry Cement'!BK414+'Calculation - Industry Cement'!BK435 -> 15.64477297 | BF22: ='Calculation - Industry Cement'!BL407+'Calculation - Industry Cement'!BL414+'Calculation - Industry Cement'!BL435 -> 15.88445056 | BG22: ='Calculation - Industry Cement'!BM407+'Calculation - Industry Cement'!BM414+'Calculation - Industry Cement'!BM435 -> 16.12278707 | BH22: ='Calculation - Industry Cement'!BN407+'Calculation - Industry Cement'!BN414+'Calculation - Industry Cement'!BN435 -> 16.35957304 | BI22: ='Calculation - Industry Cement'!BO407+'Calculation - Industry Cement'!BO414+'Calculation - Industry Cement'!BO435 -> 16.59462378 | BJ22: ='Calculation - Industry Cement'!BP407+'Calculation - Industry Cement'!BP414+'Calculation - Industry Cement'!BP435 -> 16.78552958 | BK22: ='Calculation - Industry Cement'!BQ407+'Calculation - Industry Cement'!BQ414+'Calculation - Industry Cement'!BQ435 -> 16.9743206 | BL22: ='Calculation - Industry Cement'!BR407+'Calculation - Industry Cement'!BR414+'Calculation - Industry Cement'!BR435 -> 17.16093641 | BM22: ='Calculation - Industry Cement'!BS407+'Calculation - Industry Cement'!BS414+'Calculation - Industry Cement'!BS435 -> 17.34533723 | BN22: ='Calculation - Industry Cement'!BT407+'Calculation - Industry Cement'!BT414+'Calculation - Industry Cement'!BT435 -> 17.52747629
D23: Other industry | E23: Mt CO2e | F23: ='Calculation - Other Industry'!L680 - 'Calculation - Other Industry'!L659 + 'Calculation - Other Industry'!L694 -> 32.05455554 | G23: ='Calculation - Other Industry'!M680 - 'Calculation - Other Industry'!M659 + 'Calculation - Other Industry'!M694 -> 29.91590868 | H23: ='Calculation - Other Industry'!N680 - 'Calculation - Other Industry'!N659 + 'Calculation - Other Industry'!N694 -> 29.63077912 | I23: ='Calculation - Other Industry'!O680 - 'Calculation - Other Industry'!O659 + 'Calculation - Other Industry'!O694 -> 27.55514398 | J23: ='Calculation - Other Industry'!P680 - 'Calculation - Other Industry'!P659 + 'Calculation - Other Industry'!P694 -> 25.37758326 | K23: ='Calculation - Other Industry'!Q680 - 'Calculation - Other Industry'!Q659 + 'Calculation - Other Industry'!Q694 -> 25.43593575 | L23: ='Calculation - Other Industry'!R680 - 'Calculation - Other Industry'!R659 + 'Calculation - Other Industry'!R694 -> 31.76817817 | M23: ='Calculation - Other Industry'!S680 - 'Calculation - Other Industry'!S659 + 'Calculation - Other Industry'!S694 -> 37.64393055 | N23: ='Calculation - Other Industry'!T680 - 'Calculation - Other Industry'!T659 + 'Calculation - Other Industry'!T694 -> 38.04874131 | O23: ='Calculation - Other Industry'!U680 - 'Calculation - Other Industry'!U659 + 'Calculation - Other Industry'!U694 -> 33.22982249 | P23: ='Calculation - Other Industry'!V680 - 'Calculation - Other Industry'!V659 + 'Calculation - Other Industry'!V694 -> 33.83374469 | Q23: ='Calculation - Other Industry'!W680 - 'Calculation - Other Industry'!W659 + 'Calculation - Other Industry'!W694 -> 29.74140277 | R23: ='Calculation - Other Industry'!X680 - 'Calculation - Other Industry'!X659 + 'Calculation - Other Industry'!X694 -> 33.62142503 | S23: ='Calculation - Other Industry'!Y680 - 'Calculation - Other Industry'!Y659 + 'Calculation - Other Industry'!Y694 -> 34.55725013 | T23: ='Calculation - Other Industry'!Z680 - 'Calculation - Other Industry'!Z659 + 'Calculation - Other Industry'!Z694 -> 38.74133154 | U23: ='Calculation - Other Industry'!AA680 - 'Calculation - Other Industry'!AA659 + 'Calculation - Other Industry'!AA694 -> 45.3280565 | V23: ='Calculation - Other Industry'!AB680 - 'Calculation - Other Industry'!AB659 + 'Calculation - Other Industry'!AB694 -> 46.64011576 | W23: ='Calculation - Other Industry'!AC680 - 'Calculation - Other Industry'!AC659 + 'Calculation - Other Industry'!AC694 -> 39.65856813 | X23: ='Calculation - Other Industry'!AD680 - 'Calculation - Other Industry'!AD659 + 'Calculation - Other Industry'!AD694 -> 40.73684478 | Y23: ='Calculation - Other Industry'!AE680 - 'Calculation - Other Industry'!AE659 + 'Calculation - Other Industry'!AE694 -> 49.8921318 | Z23: ='Calculation - Other Industry'!AF680 - 'Calculation - Other Industry'!AF659 + 'Calculation - Other Industry'!AF694 -> 45.03829126 | AA23: ='Calculation - Other Industry'!AG680 - 'Calculation - Other Industry'!AG659 + 'Calculation - Other Industry'!AG694 -> 42.47486157 | AB23: ='Calculation - Other Industry'!AH680 - 'Calculation - Other Industry'!AH659 + 'Calculation - Other Industry'!AH694 -> 42.30093362 | AC23: ='Calculation - Other Industry'!AI680 - 'Calculation - Other Industry'!AI659 + 'Calculation - Other Industry'!AI694 -> 46.29049916 | AD23: ='Calculation - Other Industry'!AJ680 - 'Calculation - Other Industry'!AJ659 + 'Calculation - Other Industry'!AJ694 -> 51.20342981 | AE23: ='Calculation - Other Industry'!AK680 - 'Calculation - Other Industry'!AK659 + 'Calculation - Other Industry'!AK694 -> 54.45445822 | AF23: ='Calculation - Other Industry'!AL680 - 'Calculation - Other Industry'!AL659 + 'Calculation - Other Industry'!AL694 -> 54.34597405 | AG23: ='Calculation - Other Industry'!AM680 - 'Calculation - Other Industry'!AM659 + 'Calculation - Other Industry'!AM694 -> 54.66002862 | AH23: ='Calculation - Other Industry'!AN680 - 'Calculation - Other Industry'!AN659 + 'Calculation - Other Industry'!AN694 -> 54.99003363 | AI23: ='Calculation - Other Industry'!AO680 - 'Calculation - Other Industry'!AO659 + 'Calculation - Other Industry'!AO694 -> 55.42723261 | AJ23: ='Calculation - Other Industry'!AP680 - 'Calculation - Other Industry'!AP659 + 'Calculation - Other Industry'!AP694 -> 55.98655341 | AK23: ='Calculation - Other Industry'!AQ680 - 'Calculation - Other Industry'!AQ659 + 'Calculation - Other Industry'!AQ694 -> 56.65779261 | AL23: ='Calculation - Other Industry'!AR680 - 'Calculation - Other Industry'!AR659 + 'Calculation - Other Industry'!AR694 -> 57.43250367 | AM23: ='Calculation - Other Industry'!AS680 - 'Calculation - Other Industry'!AS659 + 'Calculation - Other Industry'!AS694 -> 58.20552161 | AN23: ='Calculation - Other Industry'!AT680 - 'Calculation - Other Industry'!AT659 + 'Calculation - Other Industry'!AT694 -> 58.98125397 | AO23: ='Calculation - Other Industry'!AU680 - 'Calculation - Other Industry'!AU659 + 'Calculation - Other Industry'!AU694 -> 59.78094703 | AP23: ='Calculation - Other Industry'!AV680 - 'Calculation - Other Industry'!AV659 + 'Calculation - Other Industry'!AV694 -> 60.84402099 | AQ23: ='Calculation - Other Industry'!AW680 - 'Calculation - Other Industry'!AW659 + 'Calculation - Other Industry'!AW694 -> 61.95872149 | AR23: ='Calculation - Other Industry'!AX680 - 'Calculation - Other Industry'!AX659 + 'Calculation - Other Industry'!AX694 -> 63.10601134 | AS23: ='Calculation - Other Industry'!AY680 - 'Calculation - Other Industry'!AY659 + 'Calculation - Other Industry'!AY694 -> 64.27686808 | AT23: ='Calculation - Other Industry'!AZ680 - 'Calculation - Other Industry'!AZ659 + 'Calculation - Other Industry'!AZ694 -> 65.47001146 | AU23: ='Calculation - Other Industry'!BA680 - 'Calculation - Other Industry'!BA659 + 'Calculation - Other Industry'!BA694 -> 65.56556606 | AV23: ='Calculation - Other Industry'!BB680 - 'Calculation - Other Industry'!BB659 + 'Calculation - Other Industry'!BB694 -> 66.43422039 | AW23: ='Calculation - Other Industry'!BC680 - 'Calculation - Other Industry'!BC659 + 'Calculation - Other Industry'!BC694 -> 67.30303659 | AX23: ='Calculation - Other Industry'!BD680 - 'Calculation - Other Industry'!BD659 + 'Calculation - Other Industry'!BD694 -> 68.1719881 | AY23: ='Calculation - Other Industry'!BE680 - 'Calculation - Other Industry'!BE659 + 'Calculation - Other Industry'!BE694 -> 69.04105159 | AZ23: ='Calculation - Other Industry'!BF680 - 'Calculation - Other Industry'!BF659 + 'Calculation - Other Industry'!BF694 -> 69.82548166 | BA23: ='Calculation - Other Industry'!BG680 - 'Calculation - Other Industry'!BG659 + 'Calculation - Other Industry'!BG694 -> 70.60985881 | BB23: ='Calculation - Other Industry'!BH680 - 'Calculation - Other Industry'!BH659 + 'Calculation - Other Industry'!BH694 -> 71.39417102 | BC23: ='Calculation - Other Industry'!BI680 - 'Calculation - Other Industry'!BI659 + 'Calculation - Other Industry'!BI694 -> 72.17840807 | BD23: ='Calculation - Other Industry'!BJ680 - 'Calculation - Other Industry'!BJ659 + 'Calculation - Other Industry'!BJ694 -> 72.9625613 | BE23: ='Calculation - Other Industry'!BK680 - 'Calculation - Other Industry'!BK659 + 'Calculation - Other Industry'!BK694 -> 73.81677246 | BF23: ='Calculation - Other Industry'!BL680 - 'Calculation - Other Industry'!BL659 + 'Calculation - Other Industry'!BL694 -> 74.67116326 | BG23: ='Calculation - Other Industry'!BM680 - 'Calculation - Other Industry'!BM659 + 'Calculation - Other Industry'!BM694 -> 75.52571703 | BH23: ='Calculation - Other Industry'!BN680 - 'Calculation - Other Industry'!BN659 + 'Calculation - Other Industry'!BN694 -> 76.38041862 | BI23: ='Calculation - Other Industry'!BO680 - 'Calculation - Other Industry'!BO659 + 'Calculation - Other Industry'!BO694 -> 77.2352543 | BJ23: ='Calculation - Other Industry'!BP680 - 'Calculation - Other Industry'!BP659 + 'Calculation - Other Industry'!BP694 -> 78.0700302 | BK23: ='Calculation - Other Industry'!BQ680 - 'Calculation - Other Industry'!BQ659 + 'Calculation - Other Industry'!BQ694 -> 78.90493602 | BL23: ='Calculation - Other Industry'!BR680 - 'Calculation - Other Industry'!BR659 + 'Calculation - Other Industry'!BR694 -> 79.73996022 | BM23: ='Calculation - Other Industry'!BS680 - 'Calculation - Other Industry'!BS659 + 'Calculation - Other Industry'!BS694 -> 80.57509227 | BN23: ='Calculation - Other Industry'!BT680 - 'Calculation - Other Industry'!BT659 + 'Calculation - Other Industry'!BT694 -> 81.41032253
D24: Oil & gas | E24: Mt CO2e | F24: ='Calculation - Oil & Gas'!L149 -> 0.3581137917 | G24: ='Calculation - Oil & Gas'!M149 -> 0.3714252648 | H24: ='Calculation - Oil & Gas'!N149 -> 0.3809301053 | I24: ='Calculation - Oil & Gas'!O149 -> 0.4214055948 | J24: ='Calculation - Oil & Gas'!P149 -> 0.8568431685 | K24: ='Calculation - Oil & Gas'!Q149 -> 0.8183800149 | L24: ='Calculation - Oil & Gas'!R149 -> 0.7823496489 | M24: ='Calculation - Oil & Gas'!S149 -> 1.002994416 | N24: ='Calculation - Oil & Gas'!T149 -> 1.009851895 | O24: ='Calculation - Oil & Gas'!U149 -> 0.950546729 | P24: ='Calculation - Oil & Gas'!V149 -> 0.9969970287 | Q24: ='Calculation - Oil & Gas'!W149 -> 1.000433113 | R24: ='Calculation - Oil & Gas'!X149 -> 1.167718908 | S24: ='Calculation - Oil & Gas'!Y149 -> 1.743606559 | T24: ='Calculation - Oil & Gas'!Z149 -> 1.65454553 | U24: ='Calculation - Oil & Gas'!AA149 -> 1.423633076 | V24: ='Calculation - Oil & Gas'!AB149 -> 1.342284028 | W24: ='Calculation - Oil & Gas'!AC149 -> 1.286790021 | X24: ='Calculation - Oil & Gas'!AD149 -> 1.30472563 | Y24: ='Calculation - Oil & Gas'!AE149 -> 1.408020371 | Z24: ='Calculation - Oil & Gas'!AF149 -> 1.151773401 | AA24: ='Calculation - Oil & Gas'!AG149 -> 0.9614530444 | AB24: ='Calculation - Oil & Gas'!AH149 -> 0.8059410619 | AC24: ='Calculation - Oil & Gas'!AI149 -> 0.7574315245 | AD24: ='Calculation - Oil & Gas'!AJ149 -> 0.7118478252 | AE24: ='Calculation - Oil & Gas'!AK149 -> 0.6690131051 | AF24: ='Calculation - Oil & Gas'!AL149 -> 0.6690131051 | AG24: ='Calculation - Oil & Gas'!AM149 -> 0.6690131051 | AH24: ='Calculation - Oil & Gas'!AN149 -> 0.6690131051 | AI24: ='Calculation - Oil & Gas'!AO149 -> 0.6690131051 | AJ24: ='Calculation - Oil & Gas'!AP149 -> 0.6690131051 | AK24: ='Calculation - Oil & Gas'!AQ149 -> 0.6690131051 | AL24: ='Calculation - Oil & Gas'!AR149 -> 0.6690131051 | AM24: ='Calculation - Oil & Gas'!AS149 -> 0.6690131051 | AN24: ='Calculation - Oil & Gas'!AT149 -> 0.6690131051 | AO24: ='Calculation - Oil & Gas'!AU149 -> 0.6690131051 | AP24: ='Calculation - Oil & Gas'!AV149 -> 0.6690131051 | AQ24: ='Calculation - Oil & Gas'!AW149 -> 0.6690131051 | AR24: ='Calculation - Oil & Gas'!AX149 -> 0.6690131051 | AS24: ='Calculation - Oil & Gas'!AY149 -> 0.6690131051 | AT24: ='Calculation - Oil & Gas'!AZ149 -> 0.6690131051 | AU24: ='Calculation - Oil & Gas'!BA149 -> 0.6690131051 | AV24: ='Calculation - Oil & Gas'!BB149 -> 0.6690131051 | AW24: ='Calculation - Oil & Gas'!BC149 -> 0.6690131051 | AX24: ='Calculation - Oil & Gas'!BD149 -> 0.6690131051 | AY24: ='Calculation - Oil & Gas'!BE149 -> 0.6690131051 | AZ24: ='Calculation - Oil & Gas'!BF149 -> 0.6690131051 | BA24: ='Calculation - Oil & Gas'!BG149 -> 0.6690131051 | BB24: ='Calculation - Oil & Gas'!BH149 -> 0.6690131051 | BC24: ='Calculation - Oil & Gas'!BI149 -> 0.6690131051 | BD24: ='Calculation - Oil & Gas'!BJ149 -> 0.6690131051 | BE24: ='Calculation - Oil & Gas'!BK149 -> 0.6690131051 | BF24: ='Calculation - Oil & Gas'!BL149 -> 0.6690131051 | BG24: ='Calculation - Oil & Gas'!BM149 -> 0.6690131051 | BH24: ='Calculation - Oil & Gas'!BN149 -> 0.6690131051 | BI24: ='Calculation - Oil & Gas'!BO149 -> 0.6690131051 | BJ24: ='Calculation - Oil & Gas'!BP149 -> 0.6690131051 | BK24: ='Calculation - Oil & Gas'!BQ149 -> 0.6690131051 | BL24: ='Calculation - Oil & Gas'!BR149 -> 0.6690131051 | BM24: ='Calculation - Oil & Gas'!BS149 -> 0.6690131051 | BN24: ='Calculation - Oil & Gas'!BT149 -> 0.6690131051
D25: Waste | E25: Mt CO2e | F25: ='Calculation - Waste'!L327 -> 9.4783027 | G25: ='Calculation - Waste'!M327 -> 9.848795848 | H25: ='Calculation - Waste'!N327 -> 10.30865918 | I25: ='Calculation - Waste'!O327 -> 10.85595307 | J25: ='Calculation - Waste'!P327 -> 11.48686303 | K25: ='Calculation - Waste'!Q327 -> 12.19744999 | L25: ='Calculation - Waste'!R327 -> 12.9847711 | M25: ='Calculation - Waste'!S327 -> 13.84723429 | N25: ='Calculation - Waste'!T327 -> 14.78344722 | O25: ='Calculation - Waste'!U327 -> 15.79299586 | P25: ='Calculation - Waste'!V327 -> 16.87549765 | Q25: ='Calculation - Waste'!W327 -> 17.92328958 | R25: ='Calculation - Waste'!X327 -> 19.24463691 | S25: ='Calculation - Waste'!Y327 -> 20.44407102 | T25: ='Calculation - Waste'!Z327 -> 21.90272342 | U25: ='Calculation - Waste'!AA327 -> 23.42773497 | V25: ='Calculation - Waste'!AB327 -> 24.91627249 | W25: ='Calculation - Waste'!AC327 -> 26.56602832 | X25: ='Calculation - Waste'!AD327 -> 28.07575108 | Y25: ='Calculation - Waste'!AE327 -> 29.65003602 | Z25: ='Calculation - Waste'!AF327 -> 31.29362709 | AA25: ='Calculation - Waste'!AG327 -> 33.01070671 | AB25: ='Calculation - Waste'!AH327 -> 34.69432337 | AC25: ='Calculation - Waste'!AI327 -> 36.34586563 | AD25: ='Calculation - Waste'!AJ327 -> 37.96362102 | AE25: ='Calculation - Waste'!AK327 -> 39.54540368 | AF25: ='Calculation - Waste'!AL327 -> 41.57585774 | AG25: ='Calculation - Waste'!AM327 -> 43.18790351 | AH25: ='Calculation - Waste'!AN327 -> 44.76712148 | AI25: ='Calculation - Waste'!AO327 -> 46.31494397 | AJ25: ='Calculation - Waste'!AP327 -> 47.83279501 | AK25: ='Calculation - Waste'!AQ327 -> 49.32138429 | AL25: ='Calculation - Waste'!AR327 -> 50.78086224 | AM25: ='Calculation - Waste'!AS327 -> 52.21161551 | AN25: ='Calculation - Waste'!AT327 -> 53.6139313 | AO25: ='Calculation - Waste'!AU327 -> 54.98810198 | AP25: ='Calculation - Waste'!AV327 -> 56.33439612 | AQ25: ='Calculation - Waste'!AW327 -> 57.65324287 | AR25: ='Calculation - Waste'!AX327 -> 58.94533615 | AS25: ='Calculation - Waste'!AY327 -> 60.21160379 | AT25: ='Calculation - Waste'!AZ327 -> 61.45298455 | AU25: ='Calculation - Waste'!BA327 -> 62.67024799 | AV25: ='Calculation - Waste'!BB327 -> 63.86401531 | AW25: ='Calculation - Waste'!BC327 -> 65.03493984 | AX25: ='Calculation - Waste'!BD327 -> 66.18362376 | AY25: ='Calculation - Waste'!BE327 -> 67.3106391 | AZ25: ='Calculation - Waste'!BF327 -> 68.41657144 | BA25: ='Calculation - Waste'!BG327 -> 69.50198884 | BB25: ='Calculation - Waste'!BH327 -> 70.56737079 | BC25: ='Calculation - Waste'!BI327 -> 71.6131459 | BD25: ='Calculation - Waste'!BJ327 -> 72.63969976 | BE25: ='Calculation - Waste'!BK327 -> 73.64834267 | BF25: ='Calculation - Waste'!BL327 -> 74.63212959 | BG25: ='Calculation - Waste'!BM327 -> 75.59128037 | BH25: ='Calculation - Waste'!BN327 -> 76.52595949 | BI25: ='Calculation - Waste'!BO327 -> 77.43636155 | BJ25: ='Calculation - Waste'!BP327 -> 78.32275661 | BK25: ='Calculation - Waste'!BQ327 -> 79.18546921 | BL25: ='Calculation - Waste'!BR327 -> 80.02481778 | BM25: ='Calculation - Waste'!BS327 -> 80.84112706 | BN25: ='Calculation - Waste'!BT327 -> 81.634685
D26: Agriculture | E26: Mt CO2e | F26: ='Calculation - Agriculture'!L585-'Calculation - Agriculture'!L543 -> 52.32562799 | G26: ='Calculation - Agriculture'!M585-'Calculation - Agriculture'!M543 -> 52.11654467 | H26: ='Calculation - Agriculture'!N585-'Calculation - Agriculture'!N543 -> 50.45702716 | I26: ='Calculation - Agriculture'!O585-'Calculation - Agriculture'!O543 -> 57.60950126 | J26: ='Calculation - Agriculture'!P585-'Calculation - Agriculture'!P543 -> 56.58495132 | K26: ='Calculation - Agriculture'!Q585-'Calculation - Agriculture'!Q543 -> 54.38403868 | L26: ='Calculation - Agriculture'!R585-'Calculation - Agriculture'!R543 -> 58.51675288 | M26: ='Calculation - Agriculture'!S585-'Calculation - Agriculture'!S543 -> 58.48597831 | N26: ='Calculation - Agriculture'!T585-'Calculation - Agriculture'!T543 -> 57.01988211 | O26: ='Calculation - Agriculture'!U585-'Calculation - Agriculture'!U543 -> 57.25215196 | P26: ='Calculation - Agriculture'!V585-'Calculation - Agriculture'!V543 -> 58.35679983 | Q26: ='Calculation - Agriculture'!W585-'Calculation - Agriculture'!W543 -> 56.50312557 | R26: ='Calculation - Agriculture'!X585-'Calculation - Agriculture'!X543 -> 57.20427689 | S26: ='Calculation - Agriculture'!Y585-'Calculation - Agriculture'!Y543 -> 55.63286297 | T26: ='Calculation - Agriculture'!Z585-'Calculation - Agriculture'!Z543 -> 55.16563546 | U26: ='Calculation - Agriculture'!AA585-'Calculation - Agriculture'!AA543 -> 53.42957141 | V26: ='Calculation - Agriculture'!AB585-'Calculation - Agriculture'!AB543 -> 54.605175 | W26: ='Calculation - Agriculture'!AC585-'Calculation - Agriculture'!AC543 -> 53.09556086 | X26: ='Calculation - Agriculture'!AD585-'Calculation - Agriculture'!AD543 -> 53.20448424 | Y26: ='Calculation - Agriculture'!AE585-'Calculation - Agriculture'!AE543 -> 52.15510191 | Z26: ='Calculation - Agriculture'!AF585-'Calculation - Agriculture'!AF543 -> 54.28453143 | AA26: ='Calculation - Agriculture'!AG585-'Calculation - Agriculture'!AG543 -> 55.6583264 | AB26: ='Calculation - Agriculture'!AH585-'Calculation - Agriculture'!AH543 -> 54.71278395 | AC26: ='Calculation - Agriculture'!AI585-'Calculation - Agriculture'!AI543 -> 54.78899023 | AD26: ='Calculation - Agriculture'!AJ585-'Calculation - Agriculture'!AJ543 -> 56.59688829 | AE26: ='Calculation - Agriculture'!AK585-'Calculation - Agriculture'!AK543 -> 53.4147383 | AF26: ='Calculation - Agriculture'!AL585-'Calculation - Agriculture'!AL543 -> 53.7102535 | AG26: ='Calculation - Agriculture'!AM585-'Calculation - Agriculture'!AM543 -> 55.48049047 | AH26: ='Calculation - Agriculture'!AN585-'Calculation - Agriculture'!AN543 -> 56.39671535 | AI26: ='Calculation - Agriculture'!AO585-'Calculation - Agriculture'!AO543 -> 57.42145136 | AJ26: ='Calculation - Agriculture'!AP585-'Calculation - Agriculture'!AP543 -> 58.46572318 | AK26: ='Calculation - Agriculture'!AQ585-'Calculation - Agriculture'!AQ543 -> 59.52999367 | AL26: ='Calculation - Agriculture'!AR585-'Calculation - Agriculture'!AR543 -> 60.61473744 | AM26: ='Calculation - Agriculture'!AS585-'Calculation - Agriculture'!AS543 -> 61.72044111 | AN26: ='Calculation - Agriculture'!AT585-'Calculation - Agriculture'!AT543 -> 62.84760369 | AO26: ='Calculation - Agriculture'!AU585-'Calculation - Agriculture'!AU543 -> 63.99673684 | AP26: ='Calculation - Agriculture'!AV585-'Calculation - Agriculture'!AV543 -> 65.16836524 | AQ26: ='Calculation - Agriculture'!AW585-'Calculation - Agriculture'!AW543 -> 66.36302692 | AR26: ='Calculation - Agriculture'!AX585-'Calculation - Agriculture'!AX543 -> 67.58127361 | AS26: ='Calculation - Agriculture'!AY585-'Calculation - Agriculture'!AY543 -> 68.82367113 | AT26: ='Calculation - Agriculture'!AZ585-'Calculation - Agriculture'!AZ543 -> 70.09079969 | AU26: ='Calculation - Agriculture'!BA585-'Calculation - Agriculture'!BA543 -> 70.56278285 | AV26: ='Calculation - Agriculture'!BB585-'Calculation - Agriculture'!BB543 -> 71.03713984 | AW26: ='Calculation - Agriculture'!BC585-'Calculation - Agriculture'!BC543 -> 71.51388709 | AX26: ='Calculation - Agriculture'!BD585-'Calculation - Agriculture'!BD543 -> 71.99304116 | AY26: ='Calculation - Agriculture'!BE585-'Calculation - Agriculture'!BE543 -> 72.47461873 | AZ26: ='Calculation - Agriculture'!BF585-'Calculation - Agriculture'!BF543 -> 72.95863658 | BA26: ='Calculation - Agriculture'!BG585-'Calculation - Agriculture'!BG543 -> 73.44511165 | BB26: ='Calculation - Agriculture'!BH585-'Calculation - Agriculture'!BH543 -> 73.93406096 | BC26: ='Calculation - Agriculture'!BI585-'Calculation - Agriculture'!BI543 -> 74.4255017 | BD26: ='Calculation - Agriculture'!BJ585-'Calculation - Agriculture'!BJ543 -> 74.91945116 | BE26: ='Calculation - Agriculture'!BK585-'Calculation - Agriculture'!BK543 -> 75.41592675 | BF26: ='Calculation - Agriculture'!BL585-'Calculation - Agriculture'!BL543 -> 75.91494602 | BG26: ='Calculation - Agriculture'!BM585-'Calculation - Agriculture'!BM543 -> 76.41652665 | BH26: ='Calculation - Agriculture'!BN585-'Calculation - Agriculture'!BN543 -> 76.92068643 | BI26: ='Calculation - Agriculture'!BO585-'Calculation - Agriculture'!BO543 -> 77.42744332 | BJ26: ='Calculation - Agriculture'!BP585-'Calculation - Agriculture'!BP543 -> 77.93681536 | BK26: ='Calculation - Agriculture'!BQ585-'Calculation - Agriculture'!BQ543 -> 78.44882076 | BL26: ='Calculation - Agriculture'!BR585-'Calculation - Agriculture'!BR543 -> 78.96347785 | BM26: ='Calculation - Agriculture'!BS585-'Calculation - Agriculture'!BS543 -> 79.48080509 | BN26: ='Calculation - Agriculture'!BT585-'Calculation - Agriculture'!BT543 -> 80.00082109
D27: Total | E27: Mt CO2e | F27: =SUM(F17:F26) -> 317.8789299 | G27: =SUM(G17:G26) -> 317.8823091 | H27: 312.5613906 | I27: 331.0699108 | J27: 329.5114722 | K27: 339.8994573 | L27: 352.3881496 | M27: 368.2253861 | N27: 379.544239 | O27: 364.7515457 | P27: 365.1512375 | Q27: 365.9125899 | R27: 376.039733 | S27: 394.3733117 | T27: 426.68494 | U27: 427.0729499 | V27: 440.3446059 | W27: 442.8546398 | X27: 477.1903037 | Y27: 465.8747577 | Z27: 468.328693 | AA27: 457.1556195 | AB27: 472.7903153 | AC27: 486.775867 | AD27: 507.9439213 | AE27: 509.5342013 | AF27: 517.3363637 | AG27: 522.4813644 | AH27: 525.8230326 | AI27: 549.2526353 | AJ27: 554.2379126 | AK27: 558.9736233 | AL27: 564.1682714 | AM27: 569.5961293 | AN27: 575.4922337 | AO27: 581.480239 | AP27: 584.8959757 | AQ27: 588.982622 | AR27: 593.2373473 | AS27: 597.6852413 | AT27: =SUM(AT17:AT26) -> 602.1922311 | AU27: 604.2194647 | AV27: 607.4844345 | AW27: 610.7596452 | AX27: 614.0249451 | AY27: 617.2964748 | AZ27: 619.7285501 | BA27: 622.6986903 | BB27: 625.6174298 | BC27: =SUM(BC17:BC26) -> 628.5569757 | BD27: 631.4618821 | BE27: 632.7821435 | BF27: 635.0983445 | BG27: 637.2605035 | BH27: 639.2657344 | BI27: 641.1077645 | BJ27: 641.6187697 | BK27: 642.5264035 | BL27: 643.298377 | BM27: 643.9287581 | BN27: 644.4358079
C30: Emissions summary - Electricity emissions broken down to sectors
C32: EmSum_ElecBD_Data | D32: EmSum_ElecBD_Sector
C33: EmSum_ElecBD_Year | D33: Sector | E33: Unit | F33: 1990 | G33: 1991 | H33: 1992 | I33: 1993 | J33: 1994 | K33: 1995 | L33: 1996 | M33: 1997 | N33: 1998 | O33: 1999 | P33: 2000 | Q33: 2001 | R33: 2002 | S33: 2003 | T33: 2004 | U33: 2005 | V33: 2006 | W33: 2007 | X33: 2008 | Y33: 2009 | Z33: 2010 | AA33: 2011 | AB33: 2012 | AC33: 2013 | AD33: 2014 | AE33: 2015 | AF33: 2016 | AG33: 2017 | AH33: 2018 | AI33: 2019 | AJ33: 2020 | AK33: 2021 | AL33: 2022 | AM33: 2023 | AN33: 2024 | AO33: 2025 | AP33: 2026 | AQ33: 2027 | AR33: 2028 | AS33: 2029 | AT33: 2030 | AU33: 2031 | AV33: 2032 | AW33: 2033 | AX33: 2034 | AY33: 2035 | AZ33: 2036 | BA33: 2037 | BB33: 2038 | BC33: 2039 | BD33: 2040 | BE33: 2041 | BF33: 2042 | BG33: 2043 | BH33: 2044 | BI33: 2045 | BJ33: 2046 | BK33: 2047 | BL33: 2048 | BM33: 2049 | BN33: 2050
D34: Electricity | E34: Mt CO2e | F34: =SUM('Calculation - Elec & Heat'!L935:L937) -> 24.84118779 | G34: =SUM('Calculation - Elec & Heat'!M935:M937) -> 26.1030413 | H34: =SUM('Calculation - Elec & Heat'!N935:N937) -> 35.62954042 | I34: =SUM('Calculation - Elec & Heat'!O935:O937) -> 39.01896558 | J34: =SUM('Calculation - Elec & Heat'!P935:P937) -> 39.75029001 | K34: =SUM('Calculation - Elec & Heat'!Q935:Q937) -> 41.03647203 | L34: =SUM('Calculation - Elec & Heat'!R935:R937) -> 43.68610794 | M34: =SUM('Calculation - Elec & Heat'!S935:S937) -> 45.12011865 | N34: =SUM('Calculation - Elec & Heat'!T935:T937) -> 47.88952993 | O34: =SUM('Calculation - Elec & Heat'!U935:U937) -> 46.05467007 | P34: =SUM('Calculation - Elec & Heat'!V935:V937) -> 46.97645037 | Q34: =SUM('Calculation - Elec & Heat'!W935:W937) -> 43.76803897 | R34: =SUM('Calculation - Elec & Heat'!X935:X937) -> 41.5961728 | S34: =SUM('Calculation - Elec & Heat'!Y935:Y937) -> 48.44130882 | T34: =SUM('Calculation - Elec & Heat'!Z935:Z937) -> 57.93074058 | U34: =SUM('Calculation - Elec & Heat'!AA935:AA937) -> 53.94134882 | V34: =SUM('Calculation - Elec & Heat'!AB935:AB937) -> 54.66751239 | W34: =SUM('Calculation - Elec & Heat'!AC935:AC937) -> 55.03613662 | X34: =SUM('Calculation - Elec & Heat'!AD935:AD937) -> 63.97176015 | Y34: =SUM('Calculation - Elec & Heat'!AE935:AE937) -> 61.62507263 | Z34: =SUM('Calculation - Elec & Heat'!AF935:AF937) -> 64.36088863 | AA34: =SUM('Calculation - Elec & Heat'!AG935:AG937) -> 59.06061595 | AB34: =SUM('Calculation - Elec & Heat'!AH935:AH937) -> 61.64241529 | AC34: =SUM('Calculation - Elec & Heat'!AI935:AI937) -> 61.149381 | AD34: =SUM('Calculation - Elec & Heat'!AJ935:AJ937) -> 64.79579694 | AE34: =SUM('Calculation - Elec & Heat'!AK935:AK937) -> 65.01869148 | AF34: =SUM('Calculation - Elec & Heat'!AL935:AL937) -> 65.24413654 | AG34: =SUM('Calculation - Elec & Heat'!AM935:AM937) -> 64.17206606 | AH34: =SUM('Calculation - Elec & Heat'!AN935:AN937) -> 62.89557791 | AI34: =SUM('Calculation - Elec & Heat'!AO935:AO937) -> 62.95344679 | AJ34: =SUM('Calculation - Elec & Heat'!AP935:AP937) -> 62.12198896 | AK34: =SUM('Calculation - Elec & Heat'!AQ935:AQ937) -> 61.30803038 | AL34: =SUM('Calculation - Elec & Heat'!AR935:AR937) -> 60.56243255 | AM34: =SUM('Calculation - Elec & Heat'!AS935:AS937) -> 59.99063041 | AN34: =SUM('Calculation - Elec & Heat'!AT935:AT937) -> 59.58003886 | AO34: =SUM('Calculation - Elec & Heat'!AU935:AU937) -> 59.19981599 | AP34: =SUM('Calculation - Elec & Heat'!AV935:AV937) -> 57.90983131 | AQ34: =SUM('Calculation - Elec & Heat'!AW935:AW937) -> 56.77376311 | AR34: =SUM('Calculation - Elec & Heat'!AX935:AX937) -> 55.73258488 | AS34: =SUM('Calculation - Elec & Heat'!AY935:AY937) -> 54.80237682 | AT34: =SUM('Calculation - Elec & Heat'!AZ935:AZ937) -> 53.90925907 | AU34: =SUM('Calculation - Elec & Heat'!BA935:BA937) -> 53.17769479 | AV34: =SUM('Calculation - Elec & Heat'!BB935:BB937) -> 52.51448809 | AW34: =SUM('Calculation - Elec & Heat'!BC935:BC937) -> 51.86343541 | AX34: =SUM('Calculation - Elec & Heat'!BD935:BD937) -> 51.2529776 | AY34: =SUM('Calculation - Elec & Heat'!BE935:BE937) -> 50.68624946 | AZ34: =SUM('Calculation - Elec & Heat'!BF935:BF937) -> 50.03002826 | BA34: =SUM('Calculation - Elec & Heat'!BG935:BG937) -> 49.47712265 | BB34: =SUM('Calculation - Elec & Heat'!BH935:BH937) -> 48.9450239 | BC34: =SUM('Calculation - Elec & Heat'!BI935:BI937) -> 48.43816988 | BD34: =SUM('Calculation - Elec & Heat'!BJ935:BJ937) -> 47.94185228 | BE34: =SUM('Calculation - Elec & Heat'!BK935:BK937) -> 47.14769715 | BF34: =SUM('Calculation - Elec & Heat'!BL935:BL937) -> 46.5729599 | BG34: =SUM('Calculation - Elec & Heat'!BM935:BM937) -> 45.98839896 | BH34: =SUM('Calculation - Elec & Heat'!BN935:BN937) -> 45.39830751 | BI34: =SUM('Calculation - Elec & Heat'!BO935:BO937) -> 44.80615254 | BJ34: =SUM('Calculation - Elec & Heat'!BP935:BP937) -> 44.1435593 | BK34: =SUM('Calculation - Elec & Heat'!BQ935:BQ937) -> 43.54725305 | BL34: =SUM('Calculation - Elec & Heat'!BR935:BR937) -> 42.95033166 | BM34: =SUM('Calculation - Elec & Heat'!BS935:BS937) -> 42.34769326 | BN34: =SUM('Calculation - Elec & Heat'!BT935:BT937) -> 41.73949762
D35: Heat | E35: Mt CO2e | F35: =SUM('Calculation - Elec & Heat'!L962:L963) -> 0 | G35: =SUM('Calculation - Elec & Heat'!M962:M963) -> 0 | H35: =SUM('Calculation - Elec & Heat'!N962:N963) -> 0 | I35: =SUM('Calculation - Elec & Heat'!O962:O963) -> 0 | J35: =SUM('Calculation - Elec & Heat'!P962:P963) -> 0 | K35: =SUM('Calculation - Elec & Heat'!Q962:Q963) -> 0 | L35: =SUM('Calculation - Elec & Heat'!R962:R963) -> 0 | M35: =SUM('Calculation - Elec & Heat'!S962:S963) -> 0 | N35: =SUM('Calculation - Elec & Heat'!T962:T963) -> 0 | O35: =SUM('Calculation - Elec & Heat'!U962:U963) -> 0 | P35: =SUM('Calculation - Elec & Heat'!V962:V963) -> 0 | Q35: =SUM('Calculation - Elec & Heat'!W962:W963) -> 0 | R35: =SUM('Calculation - Elec & Heat'!X962:X963) -> 0 | S35: =SUM('Calculation - Elec & Heat'!Y962:Y963) -> 0 | T35: =SUM('Calculation - Elec & Heat'!Z962:Z963) -> 0 | U35: =SUM('Calculation - Elec & Heat'!AA962:AA963) -> 0 | V35: =SUM('Calculation - Elec & Heat'!AB962:AB963) -> 0 | W35: =SUM('Calculation - Elec & Heat'!AC962:AC963) -> 0 | X35: =SUM('Calculation - Elec & Heat'!AD962:AD963) -> 0 | Y35: =SUM('Calculation - Elec & Heat'!AE962:AE963) -> 0 | Z35: =SUM('Calculation - Elec & Heat'!AF962:AF963) -> 0 | AA35: =SUM('Calculation - Elec & Heat'!AG962:AG963) -> 0 | AB35: =SUM('Calculation - Elec & Heat'!AH962:AH963) -> 0 | AC35: =SUM('Calculation - Elec & Heat'!AI962:AI963) -> 0 | AD35: =SUM('Calculation - Elec & Heat'!AJ962:AJ963) -> 0 | AE35: =SUM('Calculation - Elec & Heat'!AK962:AK963) -> 0 | AF35: =SUM('Calculation - Elec & Heat'!AL962:AL963) -> 0 | AG35: =SUM('Calculation - Elec & Heat'!AM962:AM963) -> 0 | AH35: =SUM('Calculation - Elec & Heat'!AN962:AN963) -> 0 | AI35: =SUM('Calculation - Elec & Heat'!AO962:AO963) -> 0 | AJ35: =SUM('Calculation - Elec & Heat'!AP962:AP963) -> 0 | AK35: =SUM('Calculation - Elec & Heat'!AQ962:AQ963) -> 0 | AL35: =SUM('Calculation - Elec & Heat'!AR962:AR963) -> 0 | AM35: =SUM('Calculation - Elec & Heat'!AS962:AS963) -> 0 | AN35: =SUM('Calculation - Elec & Heat'!AT962:AT963) -> 0 | AO35: =SUM('Calculation - Elec & Heat'!AU962:AU963) -> 0 | AP35: =SUM('Calculation - Elec & Heat'!AV962:AV963) -> 0 | AQ35: =SUM('Calculation - Elec & Heat'!AW962:AW963) -> 0 | AR35: =SUM('Calculation - Elec & Heat'!AX962:AX963) -> 0 | AS35: =SUM('Calculation - Elec & Heat'!AY962:AY963) -> 0 | AT35: =SUM('Calculation - Elec & Heat'!AZ962:AZ963) -> 0 | AU35: =SUM('Calculation - Elec & Heat'!BA962:BA963) -> 0 | AV35: =SUM('Calculation - Elec & Heat'!BB962:BB963) -> 0 | AW35: =SUM('Calculation - Elec & Heat'!BC962:BC963) -> 0 | AX35: =SUM('Calculation - Elec & Heat'!BD962:BD963) -> 0 | AY35: =SUM('Calculation - Elec & Heat'!BE962:BE963) -> 0 | AZ35: =SUM('Calculation - Elec & Heat'!BF962:BF963) -> 0 | BA35: =SUM('Calculation - Elec & Heat'!BG962:BG963) -> 0 | BB35: =SUM('Calculation - Elec & Heat'!BH962:BH963) -> 0 | BC35: =SUM('Calculation - Elec & Heat'!BI962:BI963) -> 0 | BD35: =SUM('Calculation - Elec & Heat'!BJ962:BJ963) -> 0 | BE35: =SUM('Calculation - Elec & Heat'!BK962:BK963) -> 0 | BF35: =SUM('Calculation - Elec & Heat'!BL962:BL963) -> 0 | BG35: =SUM('Calculation - Elec & Heat'!BM962:BM963) -> 0 | BH35: =SUM('Calculation - Elec & Heat'!BN962:BN963) -> 0 | BI35: =SUM('Calculation - Elec & Heat'!BO962:BO963) -> 0 | BJ35: =SUM('Calculation - Elec & Heat'!BP962:BP963) -> 0 | BK35: =SUM('Calculation - Elec & Heat'!BQ962:BQ963) -> 0 | BL35: =SUM('Calculation - Elec & Heat'!BR962:BR963) -> 0 | BM35: =SUM('Calculation - Elec & Heat'!BS962:BS963) -> 0 | BN35: =SUM('Calculation - Elec & Heat'!BT962:BT963) -> 0
D36: Transport | E36: Mt CO2e | F36: ='Calculation - Transport'!L1846 -> 46.08628921 | G36: ='Calculation - Transport'!M1846 -> 46.21861818 | H36: ='Calculation - Transport'!N1846 -> 46.42985399 | I36: ='Calculation - Transport'!O1846 -> 46.69036447 | J36: ='Calculation - Transport'!P1846 -> 46.80111642 | K36: ='Calculation - Transport'!Q1846 -> 47.01643492 | L36: ='Calculation - Transport'!R1846 -> 46.58408445 | M36: ='Calculation - Transport'!S1846 -> 46.47835644 | N36: ='Calculation - Transport'!T1846 -> 46.52533502 | O36: ='Calculation - Transport'!U1846 -> 46.28686244 | P36: ='Calculation - Transport'!V1846 -> 46.17094764 | Q36: ='Calculation - Transport'!W1846 -> 46.67698884 | R36: ='Calculation - Transport'!X1846 -> 47.17971111 | S36: ='Calculation - Transport'!Y1846 -> 47.81221714 | T36: ='Calculation - Transport'!Z1846 -> 48.31463945 | U36: ='Calculation - Transport'!AA1846 -> 48.66582341 | V36: ='Calculation - Transport'!AB1846 -> 49.86809635 | W36: ='Calculation - Transport'!AC1846 -> 51.09588347 | X36: ='Calculation - Transport'!AD1846 -> 52.64978865 | Y36: ='Calculation - Transport'!AE1846 -> 53.75151747 | Z36: ='Calculation - Transport'!AF1846 -> 55.03474078 | AA36: ='Calculation - Transport'!AG1846 -> 56.27169012 | AB36: ='Calculation - Transport'!AH1846 -> 57.73841207 | AC36: ='Calculation - Transport'!AI1846 -> 59.13286482 | AD36: ='Calculation - Transport'!AJ1846 -> 60.61831737 | AE36: ='Calculation - Transport'!AK1846 -> 61.96299938 | AF36: ='Calculation - Transport'!AL1846 -> 63.13669978 | AG36: ='Calculation - Transport'!AM1846 -> 64.25591166 | AH36: ='Calculation - Transport'!AN1846 -> 65.36607656 | AI36: ='Calculation - Transport'!AO1846 -> 66.47020428 | AJ36: ='Calculation - Transport'!AP1846 -> 67.56258578 | AK36: ='Calculation - Transport'!AQ1846 -> 68.43601425 | AL36: ='Calculation - Transport'!AR1846 -> 69.29124071 | AM36: ='Calculation - Transport'!AS1846 -> 70.12460414 | AN36: ='Calculation - Transport'!AT1846 -> 70.93183219 | AO36: ='Calculation - Transport'!AU1846 -> 71.7093967 | AP36: ='Calculation - Transport'!AV1846 -> 72.82627241 | AQ36: ='Calculation - Transport'!AW1846 -> 73.90758961 | AR36: ='Calculation - Transport'!AX1846 -> 74.95411384 | AS36: ='Calculation - Transport'!AY1846 -> 75.96806747 | AT36: ='Calculation - Transport'!AZ1846 -> 76.95083933 | AU36: ='Calculation - Transport'!BA1846 -> 78.02356106 | AV36: ='Calculation - Transport'!BB1846 -> 79.06935196 | AW36: ='Calculation - Transport'!BC1846 -> 80.08811445 | AX36: ='Calculation - Transport'!BD1846 -> 81.07985511 | AY36: ='Calculation - Transport'!BE1846 -> 82.04450735 | AZ36: ='Calculation - Transport'!BF1846 -> 83.25624178 | BA36: ='Calculation - Transport'!BG1846 -> 84.43219972 | BB36: ='Calculation - Transport'!BH1846 -> 85.57254935 | BC36: ='Calculation - Transport'!BI1846 -> 86.6776692 | BD36: ='Calculation - Transport'!BJ1846 -> 87.74784413 | BE36: ='Calculation - Transport'!BK1846 -> 88.68843312 | BF36: ='Calculation - Transport'!BL1846 -> 89.5999769 | BG36: ='Calculation - Transport'!BM1846 -> 90.47405565 | BH36: ='Calculation - Transport'!BN1846 -> 91.310396 | BI36: ='Calculation - Transport'!BO1846 -> 92.10898406 | BJ36: ='Calculation - Transport'!BP1846 -> 92.44660601 | BK36: ='Calculation - Transport'!BQ1846 -> 92.75539423 | BL36: ='Calculation - Transport'!BR1846 -> 93.03689359 | BM36: ='Calculation - Transport'!BS1846 -> 93.29314394 | BN36: ='Calculation - Transport'!BT1846 -> 93.52579299
D37: Buildings | E37: Mt CO2e | F37: ='Calculation - Buildings'!L1081 -> 43.61095571 | G37: ='Calculation - Buildings'!M1081 -> 43.76782161 | H37: ='Calculation - Buildings'!N1081 -> 38.01612165 | I37: ='Calculation - Buildings'!O1081 -> 43.86857152 | J37: ='Calculation - Buildings'!P1081 -> 43.77484736 | K37: ='Calculation - Buildings'!Q1081 -> 47.68639762 | L37: ='Calculation - Buildings'!R1081 -> 49.57004535 | M37: ='Calculation - Buildings'!S1081 -> 53.33755468 | N37: ='Calculation - Buildings'!T1081 -> 49.90104618 | O37: ='Calculation - Buildings'!U1081 -> 50.52679125 | P37: ='Calculation - Buildings'!V1081 -> 48.97468099 | Q37: ='Calculation - Buildings'!W1081 -> 54.84295483 | R37: ='Calculation - Buildings'!X1081 -> 53.57213689 | S37: ='Calculation - Buildings'!Y1081 -> 62.2321851 | T37: ='Calculation - Buildings'!Z1081 -> 69.91738447 | U37: ='Calculation - Buildings'!AA1081 -> 72.10927047 | V37: ='Calculation - Buildings'!AB1081 -> 77.32113136 | W37: ='Calculation - Buildings'!AC1081 -> 83.40435767 | X37: ='Calculation - Buildings'!AD1081 -> 92.38304231 | Y37: ='Calculation - Buildings'!AE1081 -> 85.31989491 | Z37: ='Calculation - Buildings'!AF1081 -> 74.69262371 | AA37: ='Calculation - Buildings'!AG1081 -> 72.80441846 | AB37: ='Calculation - Buildings'!AH1081 -> 80.70238293 | AC37: ='Calculation - Buildings'!AI1081 -> 83.61912663 | AD37: ='Calculation - Buildings'!AJ1081 -> 86.64620354 | AE37: ='Calculation - Buildings'!AK1081 -> 83.63860968 | AF37: ='Calculation - Buildings'!AL1081 -> 85.33229743 | AG37: ='Calculation - Buildings'!AM1081 -> 85.41411144 | AH37: ='Calculation - Buildings'!AN1081 -> 85.64119705 | AI37: ='Calculation - Buildings'!AO1081 -> 86.15771049 | AJ37: ='Calculation - Buildings'!AP1081 -> 87.30408981 | AK37: ='Calculation - Buildings'!AQ1081 -> 88.3987814 | AL37: ='Calculation - Buildings'!AR1081 -> 89.79217439 | AM37: ='Calculation - Buildings'!AS1081 -> 91.25243439 | AN37: ='Calculation - Buildings'!AT1081 -> 93.02915266 | AO37: ='Calculation - Buildings'!AU1081 -> 94.86810548 | AP37: ='Calculation - Buildings'!AV1081 -> 95.36590401 | AQ37: ='Calculation - Buildings'!AW1081 -> 96.31402664 | AR37: ='Calculation - Buildings'!AX1081 -> 97.29215683 | AS37: ='Calculation - Buildings'!AY1081 -> 98.3131838 | AT37: ='Calculation - Buildings'!AZ1081 -> 99.32215578 | AU37: ='Calculation - Buildings'!BA1081 -> 99.91162316 | AV37: ='Calculation - Buildings'!BB1081 -> 100.8611576 | AW37: ='Calculation - Buildings'!BC1081 -> 101.8041139 | AX37: ='Calculation - Buildings'!BD1081 -> 102.693376 | AY37: ='Calculation - Buildings'!BE1081 -> 103.5447903 | AZ37: ='Calculation - Buildings'!BF1081 -> 103.7873562 | BA37: ='Calculation - Buildings'!BG1081 -> 104.469201 | BB37: ='Calculation - Buildings'!BH1081 -> 105.0902506 | BC37: ='Calculation - Buildings'!BI1081 -> 105.7199918 | BD37: ='Calculation - Buildings'!BJ1081 -> 106.3204197 | BE37: ='Calculation - Buildings'!BK1081 -> 106.1165578 | BF37: ='Calculation - Buildings'!BL1081 -> 106.5059492 | BG37: ='Calculation - Buildings'!BM1081 -> 106.812849 | BH37: ='Calculation - Buildings'!BN1081 -> 107.0301814 | BI37: ='Calculation - Buildings'!BO1081 -> 107.1479695 | BJ37: ='Calculation - Buildings'!BP1081 -> 106.6761883 | BK37: ='Calculation - Buildings'!BQ1081 -> 106.5809104 | BL37: ='Calculation - Buildings'!BR1081 -> 106.3978482 | BM37: ='Calculation - Buildings'!BS1081 -> 106.1237246 | BN37: ='Calculation - Buildings'!BT1081 -> 105.7744171
D38: Steel | E38: Mt CO2e | F38: ='Calculation - Industry Steel'!L486+'Calculation - Industry Steel'!L500 -> 34.78041529 | G38: ='Calculation - Industry Steel'!M486+'Calculation - Industry Steel'!M500 -> 35.85116738 | H38: ='Calculation - Industry Steel'!N486+'Calculation - Industry Steel'!N500 -> 32.9311277 | I38: ='Calculation - Industry Steel'!O486+'Calculation - Industry Steel'!O500 -> 32.56695686 | J38: ='Calculation - Industry Steel'!P486+'Calculation - Industry Steel'!P500 -> 32.09137948 | K38: ='Calculation - Industry Steel'!Q486+'Calculation - Industry Steel'!Q500 -> 32.69482414 | L38: ='Calculation - Industry Steel'!R486+'Calculation - Industry Steel'!R500 -> 29.44085463 | M38: ='Calculation - Industry Steel'!S486+'Calculation - Industry Steel'!S500 -> 31.14071634 | N38: ='Calculation - Industry Steel'!T486+'Calculation - Industry Steel'!T500 -> 29.10000432 | O38: ='Calculation - Industry Steel'!U486+'Calculation - Industry Steel'!U500 -> 25.51628653 | P38: ='Calculation - Industry Steel'!V486+'Calculation - Industry Steel'!V500 -> 27.59987288 | Q38: ='Calculation - Industry Steel'!W486+'Calculation - Industry Steel'!W500 -> 28.2012596 | R38: ='Calculation - Industry Steel'!X486+'Calculation - Industry Steel'!X500 -> 29.41755474 | S38: ='Calculation - Industry Steel'!Y486+'Calculation - Industry Steel'!Y500 -> 30.48906195 | T38: ='Calculation - Industry Steel'!Z486+'Calculation - Industry Steel'!Z500 -> 31.42443573 | U38: ='Calculation - Industry Steel'!AA486+'Calculation - Industry Steel'!AA500 -> 31.82038537 | V38: ='Calculation - Industry Steel'!AB486+'Calculation - Industry Steel'!AB500 -> 32.29271104 | W38: ='Calculation - Industry Steel'!AC486+'Calculation - Industry Steel'!AC500 -> 30.05270733 | X38: ='Calculation - Industry Steel'!AD486+'Calculation - Industry Steel'!AD500 -> 29.00979875 | Y38: ='Calculation - Industry Steel'!AE486+'Calculation - Industry Steel'!AE500 -> 25.5129119 | Z38: ='Calculation - Industry Steel'!AF486+'Calculation - Industry Steel'!AF500 -> 28.75817371 | AA38: ='Calculation - Industry Steel'!AG486+'Calculation - Industry Steel'!AG500 -> 26.37589244 | AB38: ='Calculation - Industry Steel'!AH486+'Calculation - Industry Steel'!AH500 -> 26.18929976 | AC38: ='Calculation - Industry Steel'!AI486+'Calculation - Industry Steel'!AI500 -> 28.29987875 | AD38: ='Calculation - Industry Steel'!AJ486+'Calculation - Industry Steel'!AJ500 -> 26.83494774 | AE38: ='Calculation - Industry Steel'!AK486+'Calculation - Industry Steel'!AK500 -> 26.29102858 | AF38: ='Calculation - Industry Steel'!AL486+'Calculation - Industry Steel'!AL500 -> 27.93023212 | AG38: ='Calculation - Industry Steel'!AM486+'Calculation - Industry Steel'!AM500 -> 29.13431631 | AH38: ='Calculation - Industry Steel'!AN486+'Calculation - Industry Steel'!AN500 -> 30.31941986 | AI38: ='Calculation - Industry Steel'!AO486+'Calculation - Industry Steel'!AO500 -> 49.58544685 | AJ38: ='Calculation - Industry Steel'!AP486+'Calculation - Industry Steel'!AP500 -> 50.61117149 | AK38: ='Calculation - Industry Steel'!AQ486+'Calculation - Industry Steel'!AQ500 -> 51.5167408 | AL38: ='Calculation - Industry Steel'!AR486+'Calculation - Industry Steel'!AR500 -> 52.41253596 | AM38: ='Calculation - Industry Steel'!AS486+'Calculation - Industry Steel'!AS500 -> 53.2987182 | AN38: ='Calculation - Industry Steel'!AT486+'Calculation - Industry Steel'!AT500 -> 54.1739381 | AO38: ='Calculation - Industry Steel'!AU486+'Calculation - Industry Steel'!AU500 -> 55.03589391 | AP38: ='Calculation - Industry Steel'!AV486+'Calculation - Industry Steel'!AV500 -> 55.53006417 | AQ38: ='Calculation - Industry Steel'!AW486+'Calculation - Industry Steel'!AW500 -> 56.02085632 | AR38: ='Calculation - Industry Steel'!AX486+'Calculation - Industry Steel'!AX500 -> 56.50812525 | AS38: ='Calculation - Industry Steel'!AY486+'Calculation - Industry Steel'!AY500 -> 56.99311239 | AT38: ='Calculation - Industry Steel'!AZ486+'Calculation - Industry Steel'!AZ500 -> 57.47593858 | AU38: ='Calculation - Industry Steel'!BA486+'Calculation - Industry Steel'!BA500 -> 57.72898265 | AV38: ='Calculation - Industry Steel'!BB486+'Calculation - Industry Steel'!BB500 -> 57.98429153 | AW38: ='Calculation - Industry Steel'!BC486+'Calculation - Industry Steel'!BC500 -> 58.24112642 | AX38: ='Calculation - Industry Steel'!BD486+'Calculation - Industry Steel'!BD500 -> 58.49928704 | AY38: ='Calculation - Industry Steel'!BE486+'Calculation - Industry Steel'!BE500 -> 58.75835392 | AZ38: ='Calculation - Industry Steel'!BF486+'Calculation - Industry Steel'!BF500 -> 58.9074977 | BA38: ='Calculation - Industry Steel'!BG486+'Calculation - Industry Steel'!BG500 -> 59.05591333 | BB38: ='Calculation - Industry Steel'!BH486+'Calculation - Industry Steel'!BH500 -> 59.20281033 | BC38: ='Calculation - Industry Steel'!BI486+'Calculation - Industry Steel'!BI500 -> 59.34803789 | BD38: ='Calculation - Industry Steel'!BJ486+'Calculation - Industry Steel'!BJ500 -> 59.49124453 | BE38: ='Calculation - Industry Steel'!BK486+'Calculation - Industry Steel'!BK500 -> 59.4315048 | BF38: ='Calculation - Industry Steel'!BL486+'Calculation - Industry Steel'!BL500 -> 59.40369035 | BG38: ='Calculation - Industry Steel'!BM486+'Calculation - Industry Steel'!BM500 -> 59.3723447 | BH38: ='Calculation - Industry Steel'!BN486+'Calculation - Industry Steel'!BN500 -> 59.33715808 | BI38: ='Calculation - Industry Steel'!BO486+'Calculation - Industry Steel'!BO500 -> 59.29789871 | BJ38: ='Calculation - Industry Steel'!BP486+'Calculation - Industry Steel'!BP500 -> 59.17054111 | BK38: ='Calculation - Industry Steel'!BQ486+'Calculation - Industry Steel'!BQ500 -> 59.04052836 | BL38: ='Calculation - Industry Steel'!BR486+'Calculation - Industry Steel'!BR500 -> 58.90744675 | BM38: ='Calculation - Industry Steel'!BS486+'Calculation - Industry Steel'!BS500 -> 58.77136733 | BN38: ='Calculation - Industry Steel'!BT486+'Calculation - Industry Steel'!BT500 -> 58.63237035
D39: Cement | E39: Mt CO2e | F39: ='Calculation - Industry Cement'!L421+'Calculation - Industry Cement'!L435 -> 5.206974465 | G39: ='Calculation - Industry Cement'!M421+'Calculation - Industry Cement'!M435 -> 5.18614857 | H39: ='Calculation - Industry Cement'!N421+'Calculation - Industry Cement'!N435 -> 5.429647689 | I39: ='Calculation - Industry Cement'!O421+'Calculation - Industry Cement'!O435 -> 5.428071081 | J39: ='Calculation - Industry Cement'!P421+'Calculation - Industry Cement'!P435 -> 5.629921781 | K39: ='Calculation - Industry Cement'!Q421+'Calculation - Industry Cement'!Q435 -> 5.725884222 | L39: ='Calculation - Industry Cement'!R421+'Calculation - Industry Cement'!R435 -> 5.921841879 | M39: ='Calculation - Industry Cement'!S421+'Calculation - Industry Cement'!S435 -> 6.090382325 | N39: ='Calculation - Industry Cement'!T421+'Calculation - Industry Cement'!T435 -> 6.18343931 | O39: ='Calculation - Industry Cement'!U421+'Calculation - Industry Cement'!U435 -> 5.48612708 | P39: ='Calculation - Industry Cement'!V421+'Calculation - Industry Cement'!V435 -> 5.454591112 | Q39: ='Calculation - Industry Cement'!W421+'Calculation - Industry Cement'!W435 -> 5.689850308 | R39: ='Calculation - Industry Cement'!X421+'Calculation - Industry Cement'!X435 -> 6.127582063 | S39: ='Calculation - Industry Cement'!Y421+'Calculation - Industry Cement'!Y435 -> 6.356980394 | T39: ='Calculation - Industry Cement'!Z421+'Calculation - Industry Cement'!Z435 -> 7.253071558 | U39: ='Calculation - Industry Cement'!AA421+'Calculation - Industry Cement'!AA435 -> 8.012799223 | V39: ='Calculation - Industry Cement'!AB421+'Calculation - Industry Cement'!AB435 -> 8.694275766 | W39: ='Calculation - Industry Cement'!AC421+'Calculation - Industry Cement'!AC435 -> 9.306596503 | X39: ='Calculation - Industry Cement'!AD421+'Calculation - Industry Cement'!AD435 -> 9.199767803 | Y39: ='Calculation - Industry Cement'!AE421+'Calculation - Industry Cement'!AE435 -> 7.801673189 | Z39: ='Calculation - Industry Cement'!AF421+'Calculation - Industry Cement'!AF435 -> 6.862162293 | AA39: ='Calculation - Industry Cement'!AG421+'Calculation - Industry Cement'!AG435 -> 7.044069003 | AB39: ='Calculation - Industry Cement'!AH421+'Calculation - Industry Cement'!AH435 -> 7.305131442 | AC39: ='Calculation - Industry Cement'!AI421+'Calculation - Industry Cement'!AI435 -> 7.790919228 | AD39: ='Calculation - Industry Cement'!AJ421+'Calculation - Industry Cement'!AJ435 -> 7.604149503 | AE39: ='Calculation - Industry Cement'!AK421+'Calculation - Industry Cement'!AK435 -> 8.258198339 | AF39: ='Calculation - Industry Cement'!AL421+'Calculation - Industry Cement'!AL435 -> 8.603809484 | AG39: ='Calculation - Industry Cement'!AM421+'Calculation - Industry Cement'!AM435 -> 8.93512492 | AH39: ='Calculation - Industry Cement'!AN421+'Calculation - Industry Cement'!AN435 -> 9.268838794 | AI39: ='Calculation - Industry Cement'!AO421+'Calculation - Industry Cement'!AO435 -> 9.606760009 | AJ39: ='Calculation - Industry Cement'!AP421+'Calculation - Industry Cement'!AP435 -> 9.947925883 | AK39: ='Calculation - Industry Cement'!AQ421+'Calculation - Industry Cement'!AQ435 -> 10.30342772 | AL39: ='Calculation - Industry Cement'!AR421+'Calculation - Industry Cement'!AR435 -> 10.66213435 | AM39: ='Calculation - Industry Cement'!AS421+'Calculation - Industry Cement'!AS435 -> 11.02381107 | AN39: ='Calculation - Industry Cement'!AT421+'Calculation - Industry Cement'!AT435 -> 11.38811276 | AO39: ='Calculation - Industry Cement'!AU421+'Calculation - Industry Cement'!AU435 -> 11.75469453 | AP39: ='Calculation - Industry Cement'!AV421+'Calculation - Industry Cement'!AV435 -> 12.08967617 | AQ39: ='Calculation - Industry Cement'!AW421+'Calculation - Industry Cement'!AW435 -> 12.42487775 | AR39: ='Calculation - Industry Cement'!AX421+'Calculation - Industry Cement'!AX435 -> 12.76044186 | AS39: ='Calculation - Industry Cement'!AY421+'Calculation - Industry Cement'!AY435 -> 13.09672883 | AT39: ='Calculation - Industry Cement'!AZ421+'Calculation - Industry Cement'!AZ435 -> 13.43396839 | AU39: ='Calculation - Industry Cement'!BA421+'Calculation - Industry Cement'!BA435 -> 13.7496774 | AV39: ='Calculation - Industry Cement'!BB421+'Calculation - Industry Cement'!BB435 -> 14.06565197 | AW39: ='Calculation - Industry Cement'!BC421+'Calculation - Industry Cement'!BC435 -> 14.38181162 | AX39: ='Calculation - Industry Cement'!BD421+'Calculation - Industry Cement'!BD435 -> 14.69807858 | AY39: ='Calculation - Industry Cement'!BE421+'Calculation - Industry Cement'!BE435 -> 15.01435762 | AZ39: ='Calculation - Industry Cement'!BF421+'Calculation - Industry Cement'!BF435 -> 15.31119328 | BA39: ='Calculation - Industry Cement'!BG421+'Calculation - Industry Cement'!BG435 -> 15.60775348 | BB39: ='Calculation - Industry Cement'!BH421+'Calculation - Industry Cement'!BH435 -> 15.90387333 | BC39: ='Calculation - Industry Cement'!BI421+'Calculation - Industry Cement'!BI435 -> 16.19941307 | BD39: ='Calculation - Industry Cement'!BJ421+'Calculation - Industry Cement'!BJ435 -> 16.494215 | BE39: ='Calculation - Industry Cement'!BK421+'Calculation - Industry Cement'!BK435 -> 16.73225238 | BF39: ='Calculation - Industry Cement'!BL421+'Calculation - Industry Cement'!BL435 -> 16.97113742 | BG39: ='Calculation - Industry Cement'!BM421+'Calculation - Industry Cement'!BM435 -> 17.20834015 | BH39: ='Calculation - Industry Cement'!BN421+'Calculation - Industry Cement'!BN435 -> 17.44365318 | BI39: ='Calculation - Industry Cement'!BO421+'Calculation - Industry Cement'!BO435 -> 17.67689562 | BJ39: ='Calculation - Industry Cement'!BP421+'Calculation - Industry Cement'!BP435 -> 17.86297112 | BK39: ='Calculation - Industry Cement'!BQ421+'Calculation - Industry Cement'!BQ435 -> 18.04672015 | BL39: ='Calculation - Industry Cement'!BR421+'Calculation - Industry Cement'!BR435 -> 18.22805749 | BM39: ='Calculation - Industry Cement'!BS421+'Calculation - Industry Cement'!BS435 -> 18.40695085 | BN39: ='Calculation - Industry Cement'!BT421+'Calculation - Industry Cement'!BT435 -> 18.58336299
D40: Other industry | E40: Mt CO2e | F40: ='Calculation - Other Industry'!L680+'Calculation - Other Industry'!L694 -> 98.0773622 | G40: ='Calculation - Other Industry'!M680+'Calculation - Other Industry'!M694 -> 95.27559852 | H40: ='Calculation - Other Industry'!N680+'Calculation - Other Industry'!N694 -> 89.50035284 | I40: ='Calculation - Other Industry'!O680+'Calculation - Other Industry'!O694 -> 91.84216534 | J40: ='Calculation - Other Industry'!P680+'Calculation - Other Industry'!P694 -> 88.25393396 | K40: ='Calculation - Other Industry'!Q680+'Calculation - Other Industry'!Q694 -> 93.59607121 | L40: ='Calculation - Other Industry'!R680+'Calculation - Other Industry'!R694 -> 100.7864311 | M40: ='Calculation - Other Industry'!S680+'Calculation - Other Industry'!S694 -> 108.1336847 | N40: ='Calculation - Other Industry'!T680+'Calculation - Other Industry'!T694 -> 122.2417927 | O40: ='Calculation - Other Industry'!U680+'Calculation - Other Industry'!U694 -> 112.0874537 | P40: ='Calculation - Other Industry'!V680+'Calculation - Other Industry'!V694 -> 110.4368276 | Q40: ='Calculation - Other Industry'!W680+'Calculation - Other Industry'!W694 -> 107.9537086 | R40: ='Calculation - Other Industry'!X680+'Calculation - Other Industry'!X694 -> 116.8888753 | S40: ='Calculation - Other Industry'!Y680+'Calculation - Other Industry'!Y694 -> 116.9695842 | T40: ='Calculation - Other Industry'!Z680+'Calculation - Other Industry'!Z694 -> 127.9361132 | U40: ='Calculation - Other Industry'!AA680+'Calculation - Other Industry'!AA694 -> 129.7058261 | V40: ='Calculation - Other Industry'!AB680+'Calculation - Other Industry'!AB694 -> 131.9337722 | W40: ='Calculation - Other Industry'!AC680+'Calculation - Other Industry'!AC694 -> 128.1599493 | X40: ='Calculation - Other Industry'!AD680+'Calculation - Other Industry'!AD694 -> 141.9393993 | Y40: ='Calculation - Other Industry'!AE680+'Calculation - Other Industry'!AE694 -> 143.6235189 | Z40: ='Calculation - Other Industry'!AF680+'Calculation - Other Industry'!AF694 -> 146.5950436 | AA40: ='Calculation - Other Industry'!AG680+'Calculation - Other Industry'!AG694 -> 140.9702955 | AB40: ='Calculation - Other Industry'!AH680+'Calculation - Other Industry'!AH694 -> 144.048902 | AC40: ='Calculation - Other Industry'!AI680+'Calculation - Other Industry'!AI694 -> 149.8689375 | AD40: ='Calculation - Other Industry'!AJ680+'Calculation - Other Industry'!AJ694 -> 160.8670796 | AE40: ='Calculation - Other Industry'!AK680+'Calculation - Other Industry'!AK694 -> 165.4303344 | AF40: ='Calculation - Other Industry'!AL680+'Calculation - Other Industry'!AL694 -> 166.3551747 | AG40: ='Calculation - Other Industry'!AM680+'Calculation - Other Industry'!AM694 -> 165.6924607 | AH40: ='Calculation - Other Industry'!AN680+'Calculation - Other Industry'!AN694 -> 165.0312377 | AI40: ='Calculation - Other Industry'!AO680+'Calculation - Other Industry'!AO694 -> 164.5897309 | AJ40: ='Calculation - Other Industry'!AP680+'Calculation - Other Industry'!AP694 -> 164.2271417 | AK40: ='Calculation - Other Industry'!AQ680+'Calculation - Other Industry'!AQ694 -> 163.9841238 | AL40: ='Calculation - Other Industry'!AR680+'Calculation - Other Industry'!AR694 -> 163.8670367 | AM40: ='Calculation - Other Industry'!AS680+'Calculation - Other Industry'!AS694 -> 163.7790265 | AN40: ='Calculation - Other Industry'!AT680+'Calculation - Other Industry'!AT694 -> 163.723341 | AO40: ='Calculation - Other Industry'!AU680+'Calculation - Other Industry'!AU694 -> 163.7144611 | AP40: ='Calculation - Other Industry'!AV680+'Calculation - Other Industry'!AV694 -> 163.5073535 | AQ40: ='Calculation - Other Industry'!AW680+'Calculation - Other Industry'!AW694 -> 163.4080106 | AR40: ='Calculation - Other Industry'!AX680+'Calculation - Other Industry'!AX694 -> 163.3912687 | AS40: ='Calculation - Other Industry'!AY680+'Calculation - Other Industry'!AY694 -> 163.4480131 | AT40: ='Calculation - Other Industry'!AZ680+'Calculation - Other Industry'!AZ694 -> 163.5700483 | AU40: ='Calculation - Other Industry'!BA680+'Calculation - Other Industry'!BA694 -> 162.4476578 | AV40: ='Calculation - Other Industry'!BB680+'Calculation - Other Industry'!BB694 -> 162.1782311 | AW40: ='Calculation - Other Industry'!BC680+'Calculation - Other Industry'!BC694 -> 161.957591 | AX40: ='Calculation - Other Industry'!BD680+'Calculation - Other Industry'!BD694 -> 161.783946 | AY40: ='Calculation - Other Industry'!BE680+'Calculation - Other Industry'!BE694 -> 161.6545382 | AZ40: ='Calculation - Other Industry'!BF680+'Calculation - Other Industry'!BF694 -> 161.2839124 | BA40: ='Calculation - Other Industry'!BG680+'Calculation - Other Industry'!BG694 -> 160.9620788 | BB40: ='Calculation - Other Industry'!BH680+'Calculation - Other Industry'!BH694 -> 160.6827261 | BC40: ='Calculation - Other Industry'!BI680+'Calculation - Other Industry'!BI694 -> 160.4436612 | BD40: ='Calculation - Other Industry'!BJ680+'Calculation - Other Industry'!BJ694 -> 160.2420706 | BE40: ='Calculation - Other Industry'!BK680+'Calculation - Other Industry'!BK694 -> 159.9801718 | BF40: ='Calculation - Other Industry'!BL680+'Calculation - Other Industry'!BL694 -> 159.9099258 | BG40: ='Calculation - Other Industry'!BM680+'Calculation - Other Industry'!BM694 -> 159.8432498 | BH40: ='Calculation - Other Industry'!BN680+'Calculation - Other Industry'!BN694 -> 159.7805999 | BI40: ='Calculation - Other Industry'!BO680+'Calculation - Other Industry'!BO694 -> 159.7223822 | BJ40: ='Calculation - Other Industry'!BP680+'Calculation - Other Industry'!BP694 -> 159.6113512 | BK40: ='Calculation - Other Industry'!BQ680+'Calculation - Other Industry'!BQ694 -> 159.5092477 | BL40: ='Calculation - Other Industry'!BR680+'Calculation - Other Industry'!BR694 -> 159.4137055 | BM40: ='Calculation - Other Industry'!BS680+'Calculation - Other Industry'!BS694 -> 159.3247279 | BN40: ='Calculation - Other Industry'!BT680+'Calculation - Other Industry'!BT694 -> 159.2425094
D41: Oil & gas | E41: Mt CO2e | F41: ='Calculation - Oil & Gas'!L149 -> 0.3581137917 | G41: ='Calculation - Oil & Gas'!M149 -> 0.3714252648 | H41: ='Calculation - Oil & Gas'!N149 -> 0.3809301053 | I41: ='Calculation - Oil & Gas'!O149 -> 0.4214055948 | J41: ='Calculation - Oil & Gas'!P149 -> 0.8568431685 | K41: ='Calculation - Oil & Gas'!Q149 -> 0.8183800149 | L41: ='Calculation - Oil & Gas'!R149 -> 0.7823496489 | M41: ='Calculation - Oil & Gas'!S149 -> 1.002994416 | N41: ='Calculation - Oil & Gas'!T149 -> 1.009851895 | O41: ='Calculation - Oil & Gas'!U149 -> 0.950546729 | P41: ='Calculation - Oil & Gas'!V149 -> 0.9969970287 | Q41: ='Calculation - Oil & Gas'!W149 -> 1.000433113 | R41: ='Calculation - Oil & Gas'!X149 -> 1.167718908 | S41: ='Calculation - Oil & Gas'!Y149 -> 1.743606559 | T41: ='Calculation - Oil & Gas'!Z149 -> 1.65454553 | U41: ='Calculation - Oil & Gas'!AA149 -> 1.423633076 | V41: ='Calculation - Oil & Gas'!AB149 -> 1.342284028 | W41: ='Calculation - Oil & Gas'!AC149 -> 1.286790021 | X41: ='Calculation - Oil & Gas'!AD149 -> 1.30472563 | Y41: ='Calculation - Oil & Gas'!AE149 -> 1.408020371 | Z41: ='Calculation - Oil & Gas'!AF149 -> 1.151773401 | AA41: ='Calculation - Oil & Gas'!AG149 -> 0.9614530444 | AB41: ='Calculation - Oil & Gas'!AH149 -> 0.8059410619 | AC41: ='Calculation - Oil & Gas'!AI149 -> 0.7574315245 | AD41: ='Calculation - Oil & Gas'!AJ149 -> 0.7118478252 | AE41: ='Calculation - Oil & Gas'!AK149 -> 0.6690131051 | AF41: ='Calculation - Oil & Gas'!AL149 -> 0.6690131051 | AG41: ='Calculation - Oil & Gas'!AM149 -> 0.6690131051 | AH41: ='Calculation - Oil & Gas'!AN149 -> 0.6690131051 | AI41: ='Calculation - Oil & Gas'!AO149 -> 0.6690131051 | AJ41: ='Calculation - Oil & Gas'!AP149 -> 0.6690131051 | AK41: ='Calculation - Oil & Gas'!AQ149 -> 0.6690131051 | AL41: ='Calculation - Oil & Gas'!AR149 -> 0.6690131051 | AM41: ='Calculation - Oil & Gas'!AS149 -> 0.6690131051 | AN41: ='Calculation - Oil & Gas'!AT149 -> 0.6690131051 | AO41: ='Calculation - Oil & Gas'!AU149 -> 0.6690131051 | AP41: ='Calculation - Oil & Gas'!AV149 -> 0.6690131051 | AQ41: ='Calculation - Oil & Gas'!AW149 -> 0.6690131051 | AR41: ='Calculation - Oil & Gas'!AX149 -> 0.6690131051 | AS41: ='Calculation - Oil & Gas'!AY149 -> 0.6690131051 | AT41: ='Calculation - Oil & Gas'!AZ149 -> 0.6690131051 | AU41: ='Calculation - Oil & Gas'!BA149 -> 0.6690131051 | AV41: ='Calculation - Oil & Gas'!BB149 -> 0.6690131051 | AW41: ='Calculation - Oil & Gas'!BC149 -> 0.6690131051 | AX41: ='Calculation - Oil & Gas'!BD149 -> 0.6690131051 | AY41: ='Calculation - Oil & Gas'!BE149 -> 0.6690131051 | AZ41: ='Calculation - Oil & Gas'!BF149 -> 0.6690131051 | BA41: ='Calculation - Oil & Gas'!BG149 -> 0.6690131051 | BB41: ='Calculation - Oil & Gas'!BH149 -> 0.6690131051 | BC41: ='Calculation - Oil & Gas'!BI149 -> 0.6690131051 | BD41: ='Calculation - Oil & Gas'!BJ149 -> 0.6690131051 | BE41: ='Calculation - Oil & Gas'!BK149 -> 0.6690131051 | BF41: ='Calculation - Oil & Gas'!BL149 -> 0.6690131051 | BG41: ='Calculation - Oil & Gas'!BM149 -> 0.6690131051 | BH41: ='Calculation - Oil & Gas'!BN149 -> 0.6690131051 | BI41: ='Calculation - Oil & Gas'!BO149 -> 0.6690131051 | BJ41: ='Calculation - Oil & Gas'!BP149 -> 0.6690131051 | BK41: ='Calculation - Oil & Gas'!BQ149 -> 0.6690131051 | BL41: ='Calculation - Oil & Gas'!BR149 -> 0.6690131051 | BM41: ='Calculation - Oil & Gas'!BS149 -> 0.6690131051 | BN41: ='Calculation - Oil & Gas'!BT149 -> 0.6690131051
D42: Waste | E42: Mt CO2e | F42: ='Calculation - Waste'!L327 -> 9.4783027 | G42: ='Calculation - Waste'!M327 -> 9.848795848 | H42: ='Calculation - Waste'!N327 -> 10.30865918 | I42: ='Calculation - Waste'!O327 -> 10.85595307 | J42: ='Calculation - Waste'!P327 -> 11.48686303 | K42: ='Calculation - Waste'!Q327 -> 12.19744999 | L42: ='Calculation - Waste'!R327 -> 12.9847711 | M42: ='Calculation - Waste'!S327 -> 13.84723429 | N42: ='Calculation - Waste'!T327 -> 14.78344722 | O42: ='Calculation - Waste'!U327 -> 15.79299586 | P42: ='Calculation - Waste'!V327 -> 16.87549765 | Q42: ='Calculation - Waste'!W327 -> 17.92328958 | R42: ='Calculation - Waste'!X327 -> 19.24463691 | S42: ='Calculation - Waste'!Y327 -> 20.44407102 | T42: ='Calculation - Waste'!Z327 -> 21.90272342 | U42: ='Calculation - Waste'!AA327 -> 23.42773497 | V42: ='Calculation - Waste'!AB327 -> 24.91627249 | W42: ='Calculation - Waste'!AC327 -> 26.56602832 | X42: ='Calculation - Waste'!AD327 -> 28.07575108 | Y42: ='Calculation - Waste'!AE327 -> 29.65003602 | Z42: ='Calculation - Waste'!AF327 -> 31.29362709 | AA42: ='Calculation - Waste'!AG327 -> 33.01070671 | AB42: ='Calculation - Waste'!AH327 -> 34.69432337 | AC42: ='Calculation - Waste'!AI327 -> 36.34586563 | AD42: ='Calculation - Waste'!AJ327 -> 37.96362102 | AE42: ='Calculation - Waste'!AK327 -> 39.54540368 | AF42: ='Calculation - Waste'!AL327 -> 41.57585774 | AG42: ='Calculation - Waste'!AM327 -> 43.18790351 | AH42: ='Calculation - Waste'!AN327 -> 44.76712148 | AI42: ='Calculation - Waste'!AO327 -> 46.31494397 | AJ42: ='Calculation - Waste'!AP327 -> 47.83279501 | AK42: ='Calculation - Waste'!AQ327 -> 49.32138429 | AL42: ='Calculation - Waste'!AR327 -> 50.78086224 | AM42: ='Calculation - Waste'!AS327 -> 52.21161551 | AN42: ='Calculation - Waste'!AT327 -> 53.6139313 | AO42: ='Calculation - Waste'!AU327 -> 54.98810198 | AP42: ='Calculation - Waste'!AV327 -> 56.33439612 | AQ42: ='Calculation - Waste'!AW327 -> 57.65324287 | AR42: ='Calculation - Waste'!AX327 -> 58.94533615 | AS42: ='Calculation - Waste'!AY327 -> 60.21160379 | AT42: ='Calculation - Waste'!AZ327 -> 61.45298455 | AU42: ='Calculation - Waste'!BA327 -> 62.67024799 | AV42: ='Calculation - Waste'!BB327 -> 63.86401531 | AW42: ='Calculation - Waste'!BC327 -> 65.03493984 | AX42: ='Calculation - Waste'!BD327 -> 66.18362376 | AY42: ='Calculation - Waste'!BE327 -> 67.3106391 | AZ42: ='Calculation - Waste'!BF327 -> 68.41657144 | BA42: ='Calculation - Waste'!BG327 -> 69.50198884 | BB42: ='Calculation - Waste'!BH327 -> 70.56737079 | BC42: ='Calculation - Waste'!BI327 -> 71.6131459 | BD42: ='Calculation - Waste'!BJ327 -> 72.63969976 | BE42: ='Calculation - Waste'!BK327 -> 73.64834267 | BF42: ='Calculation - Waste'!BL327 -> 74.63212959 | BG42: ='Calculation - Waste'!BM327 -> 75.59128037 | BH42: ='Calculation - Waste'!BN327 -> 76.52595949 | BI42: ='Calculation - Waste'!BO327 -> 77.43636155 | BJ42: ='Calculation - Waste'!BP327 -> 78.32275661 | BK42: ='Calculation - Waste'!BQ327 -> 79.18546921 | BL42: ='Calculation - Waste'!BR327 -> 80.02481778 | BM42: ='Calculation - Waste'!BS327 -> 80.84112706 | BN42: ='Calculation - Waste'!BT327 -> 81.634685
D43: Agriculture | E43: Mt CO2e | F43: ='Calculation - Agriculture'!L585 -> 55.43932876 | G43: ='Calculation - Agriculture'!M585 -> 55.25969243 | H43: ='Calculation - Agriculture'!N585 -> 53.93515701 | I43: ='Calculation - Agriculture'!O585 -> 60.37745728 | J43: ='Calculation - Agriculture'!P585 -> 60.86627695 | K43: ='Calculation - Agriculture'!Q585 -> 59.12754313 | L43: ='Calculation - Agriculture'!R585 -> 62.63166348 | M43: ='Calculation - Agriculture'!S585 -> 63.07434423 | N43: ='Calculation - Agriculture'!T585 -> 61.90979237 | O43: ='Calculation - Agriculture'!U585 -> 62.04981208 | P43: ='Calculation - Agriculture'!V585 -> 61.6653722 | Q43: ='Calculation - Agriculture'!W585 -> 59.85606609 | R43: ='Calculation - Agriculture'!X585 -> 60.84534426 | S43: ='Calculation - Agriculture'!Y585 -> 59.88429655 | T43: ='Calculation - Agriculture'!Z585 -> 60.35128612 | U43: ='Calculation - Agriculture'!AA585 -> 57.96612844 | V43: ='Calculation - Agriculture'!AB585 -> 59.30855027 | W43: ='Calculation - Agriculture'!AC585 -> 57.94619062 | X43: ='Calculation - Agriculture'!AD585 -> 58.65626999 | Y43: ='Calculation - Agriculture'!AE585 -> 57.18211233 | Z43: ='Calculation - Agriculture'!AF585 -> 59.57965977 | AA43: ='Calculation - Agriculture'!AG585 -> 60.65647829 | AB43: ='Calculation - Agriculture'!AH585 -> 59.66350738 | AC43: ='Calculation - Agriculture'!AI585 -> 59.81146184 | AD43: ='Calculation - Agriculture'!AJ585 -> 61.90195781 | AE43: ='Calculation - Agriculture'!AK585 -> 58.71992262 | AF43: ='Calculation - Agriculture'!AL585 -> 58.48914277 | AG43: ='Calculation - Agriculture'!AM585 -> 61.02045666 | AH43: ='Calculation - Agriculture'!AN585 -> 61.86455019 | AI43: ='Calculation - Agriculture'!AO585 -> 62.90537897 | AJ43: ='Calculation - Agriculture'!AP585 -> 63.96120084 | AK43: ='Calculation - Agriculture'!AQ585 -> 65.03610757 | AL43: ='Calculation - Agriculture'!AR585 -> 66.1308414 | AM43: ='Calculation - Agriculture'!AS585 -> 67.246276 | AN43: ='Calculation - Agriculture'!AT585 -> 68.38287377 | AO43: ='Calculation - Agriculture'!AU585 -> 69.54075625 | AP43: ='Calculation - Agriculture'!AV585 -> 70.66346488 | AQ43: ='Calculation - Agriculture'!AW585 -> 71.81124206 | AR43: ='Calculation - Agriculture'!AX585 -> 72.98430673 | AS43: ='Calculation - Agriculture'!AY585 -> 74.18314198 | AT43: ='Calculation - Agriculture'!AZ585 -> 75.408024 | AU43: ='Calculation - Agriculture'!BA585 -> 75.84100682 | AV43: ='Calculation - Agriculture'!BB585 -> 76.27823388 | AW43: ='Calculation - Agriculture'!BC585 -> 76.71949942 | AX43: ='Calculation - Agriculture'!BD585 -> 77.1647879 | AY43: ='Calculation - Agriculture'!BE585 -> 77.61402575 | AZ43: ='Calculation - Agriculture'!BF585 -> 78.06673594 | BA43: ='Calculation - Agriculture'!BG585 -> 78.52341948 | BB43: ='Calculation - Agriculture'!BH585 -> 78.98381223 | BC43: ='Calculation - Agriculture'!BI585 -> 79.44787363 | BD43: ='Calculation - Agriculture'!BJ585 -> 79.91552295 | BE43: ='Calculation - Agriculture'!BK585 -> 80.36817072 | BF43: ='Calculation - Agriculture'!BL585 -> 80.83356222 | BG43: ='Calculation - Agriculture'!BM585 -> 81.30097176 | BH43: ='Calculation - Agriculture'!BN585 -> 81.77046571 | BI43: ='Calculation - Agriculture'!BO585 -> 82.24210715 | BJ43: ='Calculation - Agriculture'!BP585 -> 82.71578292 | BK43: ='Calculation - Agriculture'!BQ585 -> 83.19186736 | BL43: ='Calculation - Agriculture'!BR585 -> 83.67026301 | BM43: ='Calculation - Agriculture'!BS585 -> 84.15101003 | BN43: ='Calculation - Agriculture'!BT585 -> 84.6341594
D44: Total | E44: Mt CO2e | F44: =SUM(F34:F43) -> 317.8789299 | G44: =SUM(G34:G43) -> 317.8823091 | H44: 312.5613906 | I44: 331.0699108 | J44: 329.5114722 | K44: 339.8994573 | L44: 352.3881496 | M44: 368.2253861 | N44: 379.544239 | O44: 364.7515457 | P44: 365.1512375 | Q44: 365.9125899 | R44: 376.039733 | S44: 394.3733117 | T44: 426.68494 | U44: 427.0729499 | V44: 440.3446059 | W44: 442.8546398 | X44: 477.1903037 | Y44: 465.8747577 | Z44: 468.328693 | AA44: 457.1556195 | AB44: 472.7903153 | AC44: 486.775867 | AD44: 507.9439213 | AE44: 509.5342013 | AF44: 517.3363637 | AG44: 522.4813644 | AH44: 525.8230326 | AI44: 549.2526353 | AJ44: 554.2379126 | AK44: 558.9736233 | AL44: 564.1682714 | AM44: 569.5961293 | AN44: 575.4922337 | AO44: 581.480239 | AP44: 584.8959757 | AQ44: 588.982622 | AR44: 593.2373473 | AS44: 597.6852413 | AT44: =SUM(AT34:AT43) -> 602.1922311 | AU44: 604.2194647 | AV44: 607.4844345 | AW44: 610.7596452 | AX44: 614.0249451 | AY44: 617.2964748 | AZ44: 619.7285501 | BA44: 622.6986903 | BB44: 625.6174298 | BC44: =SUM(BC34:BC43) -> 628.5569757 | BD44: 631.4618821 | BE44: 632.7821435 | BF44: 635.0983445 | BG44: 637.2605035 | BH44: 639.2657344 | BI44: 641.1077645 | BJ44: 641.6187697 | BK44: 642.5264035 | BL44: 643.298377 | BM44: 643.9287581 | BN44: 644.4358079
C47: Emissions summary - by category
